Workbook

Sheet LEGENDA
B2: Modelo Financeiro para concessões aeroportuárias
B4: Lista de planilhas | C4: Conteúdo
B6: >>MODELO
B7: CONTROLE | C7: Reúne principais variáveis de sensibilidade. O valor de outorga é definido nesta seção.
B8: Result | C8: Reúne os principais resultados acerca da viabilidade do projeto (com intuito de facilitar a compreensão/localização dos principais parâmetros). Não possui nenhum dado de entrada.
B9: MF | C9: Principal planilha do Modelo Financeiro. Consolida parâmetros de máscaras de demanda, capex e arquitetura, e realiza projeção financeira completa incluindo: valoração, demonstrativos
C10: A planilha MF é quebrada em três seções:
C11: PAINEL DE CONTROLE: apresenta gráficos e indicadores gerais da concessão (volumes, receitas, capacidade de geração de caixa, eficiência, fontes e usos, entre outros).
C12: SÍNTESE: consolida parâmetros para realizar avaliação de viabilidade e calcular principais demonstrativos financeiros.
C13: DETALHAMENTO: realiza projeção de grandezas que serão usadas na valoração (receitas, custos, financiamento, depreciações, impostos, investimentos, particularidades de contabilidade, entre outros).
B14: Premissas | C14: Reúne premissas específicas referente ao aeroporto em questão
B15: Timing | C15: Trata os principais marcos temporais ao longo da vida de concessão
B16: MacroEco | C16: Projeções de indicadores macroeconômicos
B17: Inflação | C17: Índices de reajuste de inflação
B19: >>MÁSCARAS (DE INTERFACE COM OUTROS ESTUDOS)
B20: MDem | C20: Interface de Demanda para o modelo financeiro. Recupera os dados de entrada de mercado do aeroporto em análise para alimentar o modelo financeiro.
B21: MCapex | C21: Interface de Capex para o modelo financeiro. Recupera os dados de entrada de capex do aeroporto em análise para alimentar o modelo financeiro
B22: Capex | C22: Detalhamento do Capex aeroporto em questão
B23: MArq | C23: Interface de Arquitetura para o modelo financeiro. Recupera os dados de entrada de arquitetura (configuração e vocação de áreas) do aeroporto em análise para alimentar o modelo financeiro.
B24: MIPTU | C24: Interface Jurídica para o modelo financeiro. Recupera os dados e cálculos de IPTU para alimentar o modelo financeiro.
B26: >>OUTPUT
B27: Output_Rel | C27: Reúne gráficos e tabelas apresentados no relatório de Avaliação Econômico-Financeira. Ao usar, atente ao valor de outorga que está considerado.
B28: Ouput_MF_Bloco | C28: Interface de Output para o modelo financeiro do Bloco de aeroportos em questão
B31: Código da célula | C31: Significado
B33: Entrada | C33: Valores inputados
B34: Fórmula Diferente | C34: As células que geralmente diferem das células adjacentes. Normalmente, indica que as células não podem ser arrastadas ou copiadas
B35: Transferido | C35: As células que estão diretamente ligadas a outras abas ou módulos, apenas para facilitar visualização
B36: Resultados | C36: Destaca resultados principais
B37: Título 0 | C37: Título nível 0
B38: Título 1 | C38: Título nível 1
B39: Título 2 | C39: Título nível 2
B40: Título 3 | C40: Título nível 3

Sheet MODELO>> (hidden)
B2: Modelo Financeiro para concessões aeroportuárias
B4: Lista de planilhas | C4: Conteúdo
B6: >>MODELO
B7: CONTROLE | C7: Reúne principais variáveis de sensibilidade. O valor de outorga é definido nesta seção.
B8: Result | C8: Reúne os principais resultados acerca da viabilidade do projeto (com intuito de facilitar a compreensão/localização dos principais parâmetros). Não possui nenhum dado de entrada.
B9: MF | C9: Principal planilha do Modelo Financeiro. Consolida parâmetros de máscaras de demanda, capex e arquitetura, e realiza projeção financeira completa incluindo: valoração, demonstrativos
C10: A planilha MF é quebrada em três seções:
C11: PAINEL DE CONTROLE: apresenta gráficos e indicadores gerais da concessão (volumes, receitas, capacidade de geração de caixa, eficiência, fontes e usos, entre outros).
C12: SÍNTESE: consolida parâmetros para realizar avaliação de viabilidade e calcular principais demonstrativos financeiros.
C13: DETALHAMENTO: realiza projeção de grandezas que serão usadas na valoração (receitas, custos, financiamento, depreciações, impostos, investimentos, particularidades de contabilidade, entre outros).
B14: Premissas | C14: Reúne premissas específicas referente ao aeroporto em questão
B15: Timing | C15: Trata os principais marcos temporais ao longo da vida de concessão
B16: MacroEco | C16: Projeções de indicadores macroeconômicos
B17: Inflação | C17: Índices de reajuste de inflação
B19: >>MÁSCARAS (DE INTERFACE COM OUTROS ESTUDOS)
B20: MDem | C20: Interface de Demanda para o modelo financeiro. Recupera os dados de entrada de mercado do aeroporto em análise para alimentar o modelo financeiro.
B21: MCapex | C21: Interface de Capex para o modelo financeiro. Recupera os dados de entrada de capex do aeroporto em análise para alimentar o modelo financeiro
B22: Capex | C22: Detalhamento do Capex aeroporto em questão
B23: MArq | C23: Interface de Arquitetura para o modelo financeiro. Recupera os dados de entrada de arquitetura (configuração e vocação de áreas) do aeroporto em análise para alimentar o modelo financeiro.
B24: MIPTU | C24: Interface Jurídica para o modelo financeiro. Recupera os dados e cálculos de IPTU para alimentar o modelo financeiro.
B26: >>OUTPUT
B27: Output_Rel | C27: Reúne gráficos e tabelas apresentados no relatório de Avaliação Econômico-Financeira. Ao usar, atente ao valor de outorga que está considerado.
B28: Ouput_MF_Bloco | C28: Interface de Output para o modelo financeiro do Bloco de aeroportos em questão

Sheet CONTROLE (hidden)
A1: =Premissas!$A$1 -> SBPB | C1: Cenário | E1: Valor | F1: Unidade | G1: Fonte
A3: VPL | E3: =MFTE!$E$118 -> -6.321018495e-07 | F3: MM R$
A4: Outorga inicial [downpayment] | F4: MM R$ | G4: (Passo 1: Definir como 50% do VPL sem outorgas, negativo (-50%*valor da célula E6))
A5: Outorga variável anual - após ramp up | F5: % ROB | G5: (Passo 2: Definir com atingir meta: célula E6 para valor 0, alterando valor da célula E8)
A6: Prazo de concessão | E6: =Premissas!D12 -> 32 | F6: [anos]
A7: Anos de carência de pagamento da outorga anual | E7: 5 | F7: [anos]
A8: Primeiro ano de pagamento integral da outorga anual | E8: 10 | F8: [ano da concessão]
A9: Anos com obrigação de manter valor de outorga inicial integralizada em capital social mínimo | E9: 5 | F9: [anos]
A10: Outorga fixa (% do VPL) | E10: 0.5 | F10: [%]

Sheet Result
A1: =Premissas!$A$1 -> SBPB | C1: Valor | D1: Unid | E1: Fonte
A3: RESULTADOS
A5: Custo de capital | C5: 0.083 | D5: % a.a. real
A6: Anos de concessão | C6: 32 | D6: anos
A8: Outorga fixa inicial | C8: =CONTROLE!E4 -> 0 | D8: MM R$
A9: Outorga variável | C9: =CONTROLE!E5 -> 0 | D9: % ROB
A11: VPL de projeto | C11: =MFTE!$E$118 -> -6.321018495e-07 | D11: MM R$
A12: TIR para firma | C12: =MFTE!E115 -> 0.08299999916 | D12: % a.a. real
A15: Data assinatura contrato | C15: 2021-09-01
A16: Tempo retorno Pandemia | C16: 3
A17: Obras - Fase 0 | C17: 2022 | D17: resa e cercamento
A18: Obras - Fase 1 | C18: 2023
A19: Obras - Fase 2 | C19: 2026 | D19: a data deve ser posterior ou igual a fase 1
A20: Obras - Fase 3 | C20: 2075 | D20: a data deve ser posterior ou igual a fase 2
A22: IPTU? | C22: Sim
A23: Segunda ampliação TPS? | C23: Sim
A25: % fixo pago no primeiro ano | C25: 0.6
A26: Contrapartida Governo | C26: 50 | D26: MM R$ | E26: =C5/C12 -> 1.00000001
A27: Tempo de pagamento da contrapartida | C27: 5
E28: =C26*C25 -> 30 | F28: =(C26-E28)/(C27*12) -> 0.3333333333
A29: Ganhos pela concessão? | C29: Sim
A30: Ajuste tarifário embarque | C30: 1.856672661
A32: Demanda - Cenário 1 | C32: 2022
A33: Demanda - Cenário 2 | C33: 2024
A34: Demanda - Cenário 3 | C34: 2028
A37: APORTE CAPEX | C37: 25
A38: Pagamento ano 1 | C38: 0
A39: Pagamento ano 2 | C39: 0
A40: Pagamento ano 3 | C40: 0
A41: Pagamento ano 4 | C41: 0.5
A42: Pagamento ano 5 | C42: 0.5
A43: Pagamento ano 6 | C43: 0
A44: Pagamento ano 7 | C44: 0
A45: Pagamento ano 8 | C45: 0
A46: Pagamento ano 9 | C46: 0
A47: Pagamento ano 10 | C47: 0
C48: =SUM(C38:C47) -> 1
A50: APORTE OPEX | C50: =C51*C52 -> 29.9999997
A51: Valor mensal | C51: 0.33333333
A52: Nº de parcelas | C52: 90
A53: Data do ultimo pagamento | C53: =C15+C52/12*365 -> 2029-02-28T12:00:00

Sheet MFTE
A1: Inflação (IPCA) | B1: % a.a. | I1: =MacroEco!I$3 -> 0.0389 | J1: =MacroEco!J$3 -> 0.0173 | K1: =MacroEco!K$3 -> 0.03 | L1: =MacroEco!L$3 -> 0.0343 | M1: =MacroEco!M$3 -> 0.0333 | N1: =MacroEco!N$3 -> 0.0324 | O1: =MacroEco!O$3 -> 0.0324 | P1: =MacroEco!P$3 -> 0.0324 | Q1: =MacroEco!Q$3 -> 0.0324 | R1: =MacroEco!R$3 -> 0.0324 | S1: =MacroEco!S$3 -> 0.0324 | T1: =MacroEco!T$3 -> 0.0324 | U1: =MacroEco!U$3 -> 0.0324 | V1: =MacroEco!V$3 -> 0.0324 | W1: =MacroEco!W$3 -> 0.0324 | X1: =MacroEco!X$3 -> 0.0324 | Y1: =MacroEco!Y$3 -> 0.0324 | Z1: =MacroEco!Z$3 -> 0.0324 | AA1: =MacroEco!AA$3 -> 0.0324 | AB1: =MacroEco!AB$3 -> 0.0324 | AC1: =MacroEco!AC$3 -> 0.0324 | AD1: =MacroEco!AD$3 -> 0.0324 | AE1: =MacroEco!AE$3 -> 0.0324 | AF1: =MacroEco!AF$3 -> 0.0324 | AG1: =MacroEco!AG$3 -> 0.0324 | AH1: =MacroEco!AH$3 -> 0.0324 | AI1: =MacroEco!AI$3 -> 0.0324 | AJ1: =MacroEco!AJ$3 -> 0.0324 | AK1: =MacroEco!AK$3 -> 0.0324 | AL1: =MacroEco!AL$3 -> 0.0324 | AM1: =MacroEco!AM$3 -> 0.0324 | AN1: =MacroEco!AN$3 -> 0.0324 | AO1: =MacroEco!AO$3 -> 0.0324 | AP1: =MacroEco!AP$3 -> 0.0324 | AQ1: =MacroEco!AQ$3 -> 0.0324 | AR1: =MacroEco!AR$3 -> 0.0324 | AS1: =MacroEco!AS$3 -> 0.0324 | AT1: =MacroEco!AT$3 -> 0.0324 | AU1: =MacroEco!AU$3 -> 0.0324 | AV1: =MacroEco!AV$3 -> 0.0324 | AW1: =MacroEco!AW$3 -> 0.0324 | AX1: =MacroEco!AX$3 -> 0.0324 | AY1: =MacroEco!AY$3 -> 0.0324 | AZ1: =MacroEco!AZ$3 -> 0.0324 | BA1: =MacroEco!BA$3 -> 0.0324 | BB1: =MacroEco!BB$3 -> 0.0324 | BC1: =MacroEco!BC$3 -> 0.0324 | BD1: =MacroEco!BD$3 -> 0.0324 | BE1: =MacroEco!BE$3 -> 0.0324 | BF1: =MacroEco!BF$3 -> 0.0324 | BG1: =MacroEco!BG$3 -> 0.0324 | BH1: =MacroEco!BH$3 -> 0.0324 | BI1: =MacroEco!BI$3 -> 0.0324 | BJ1: =MacroEco!BJ$3 -> 0.0324 | BK1: =MacroEco!BK$3 -> 0.0324 | BL1: =MacroEco!BL$3 -> 0.0324 | BM1: =MacroEco!BM$3 -> 0.0324
A2: Índice de inflação (IPCA) | B2: [2019 = 1,00] | I2: =MacroEco!I$6 -> 1 | J2: =MacroEco!J$6 -> 1.0173 | K2: =MacroEco!K$6 -> 1.047819 | L2: =MacroEco!L$6 -> 1.083759192 | M2: =MacroEco!M$6 -> 1.119848373 | N2: =MacroEco!N$6 -> 1.15613146 | O2: =MacroEco!O$6 -> 1.193590119 | P2: =MacroEco!P$6 -> 1.232262439 | Q2: =MacroEco!Q$6 -> 1.272187742 | R2: =MacroEco!R$6 -> 1.313406625 | S2: =MacroEco!S$6 -> 1.355961 | T2: =MacroEco!T$6 -> 1.399894136 | U2: =MacroEco!U$6 -> 1.445250706 | V2: =MacroEco!V$6 -> 1.492076829 | W2: =MacroEco!W$6 -> 1.540420118 | X2: =MacroEco!X$6 -> 1.59032973 | Y2: =MacroEco!Y$6 -> 1.641856413 | Z2: =MacroEco!Z$6 -> 1.695052561 | AA2: =MacroEco!AA$6 -> 1.749972264 | AB2: =MacroEco!AB$6 -> 1.806671366 | AC2: =MacroEco!AC$6 -> 1.865207518 | AD2: =MacroEco!AD$6 -> 1.925640241 | AE2: =MacroEco!AE$6 -> 1.988030985 | AF2: =MacroEco!AF$6 -> 2.052443189 | AG2: =MacroEco!AG$6 -> 2.118942348 | AH2: =MacroEco!AH$6 -> 2.187596081 | AI2: =MacroEco!AI$6 -> 2.258474194 | AJ2: =MacroEco!AJ$6 -> 2.331648757 | AK2: =MacroEco!AK$6 -> 2.407194177 | AL2: =MacroEco!AL$6 -> 2.485187268 | AM2: =MacroEco!AM$6 -> 2.565707336 | AN2: =MacroEco!AN$6 -> 2.648836254 | AO2: =MacroEco!AO$6 -> 2.734658548 | AP2: =MacroEco!AP$6 -> 2.823261485 | AQ2: =MacroEco!AQ$6 -> 2.914735157 | AR2: =MacroEco!AR$6 -> 3.009172576 | AS2: =MacroEco!AS$6 -> 3.106669768 | AT2: =MacroEco!AT$6 -> 3.207325868 | AU2: =MacroEco!AU$6 -> 3.311243227 | AV2: =MacroEco!AV$6 -> 3.418527507 | AW2: =MacroEco!AW$6 -> 3.529287798 | AX2: =MacroEco!AX$6 -> 3.643636723 | AY2: =MacroEco!AY$6 -> 3.761690553 | AZ2: =MacroEco!AZ$6 -> 3.883569327 | BA2: =MacroEco!BA$6 -> 4.009396973 | BB2: =MacroEco!BB$6 -> 4.139301435 | BC2: =MacroEco!BC$6 -> 4.273414801 | BD2: =MacroEco!BD$6 -> 4.411873441 | BE2: =MacroEco!BE$6 -> 4.55481814 | BF2: =MacroEco!BF$6 -> 4.702394248 | BG2: =MacroEco!BG$6 -> 4.854751822 | BH2: =MacroEco!BH$6 -> 5.012045781 | BI2: =MacroEco!BI$6 -> 5.174436064 | BJ2: =MacroEco!BJ$6 -> 5.342087793 | BK2: =MacroEco!BK$6 -> 5.515171437 | BL2: =MacroEco!BL$6 -> 5.693862992 | BM2: =MacroEco!BM$6 -> 5.878344153
A3: Perda de valor real vs grandeza em R$ constantes do ano anterior | B3: % | I3: =-I1/(1+I1) -> -0.0374434498 | J3: -0.01700579967 | K3: -0.02912621359 | L3: -0.03316252538 | M3: -0.03222684603 | N3: -0.03138318481 | O3: -0.03138318481 | P3: -0.03138318481 | Q3: -0.03138318481 | R3: -0.03138318481 | S3: -0.03138318481 | T3: -0.03138318481 | U3: -0.03138318481 | V3: -0.03138318481 | W3: -0.03138318481 | X3: -0.03138318481 | Y3: -0.03138318481 | Z3: -0.03138318481 | AA3: -0.03138318481 | AB3: -0.03138318481 | AC3: -0.03138318481 | AD3: -0.03138318481 | AE3: -0.03138318481 | AF3: -0.03138318481 | AG3: -0.03138318481 | AH3: -0.03138318481 | AI3: -0.03138318481 | AJ3: -0.03138318481 | AK3: -0.03138318481 | AL3: -0.03138318481 | AM3: -0.03138318481 | AN3: -0.03138318481 | AO3: =-AO1/(1+AO1) -> -0.03138318481 | AP3: -0.03138318481 | AQ3: -0.03138318481 | AR3: -0.03138318481 | AS3: -0.03138318481 | AT3: -0.03138318481 | AU3: -0.03138318481 | AV3: -0.03138318481 | AW3: -0.03138318481 | AX3: -0.03138318481 | AY3: -0.03138318481 | AZ3: -0.03138318481 | BA3: -0.03138318481 | BB3: -0.03138318481 | BC3: -0.03138318481 | BD3: -0.03138318481 | BE3: -0.03138318481 | BF3: -0.03138318481 | BG3: -0.03138318481 | BH3: -0.03138318481 | BI3: -0.03138318481 | BJ3: -0.03138318481 | BK3: -0.03138318481 | BL3: -0.03138318481 | BM3: -0.03138318481
A4: =Premissas!$A$1 -> SBPB | B4: Unid | C4: Fonte | E4: Fator | F4: Unid fator | G4: Fonte | I4: 2019 | J4: =I4+1 -> 2020 | K4: 2021 | L4: 2022 | M4: 2023 | N4: 2024 | O4: 2025 | P4: 2026 | Q4: 2027 | R4: 2028 | S4: 2029 | T4: 2030 | U4: 2031 | V4: 2032 | W4: 2033 | X4: 2034 | Y4: 2035 | Z4: 2036 | AA4: 2037 | AB4: 2038 | AC4: 2039 | AD4: 2040 | AE4: 2041 | AF4: 2042 | AG4: 2043 | AH4: 2044 | AI4: 2045 | AJ4: 2046 | AK4: 2047 | AL4: 2048 | AM4: 2049 | AN4: 2050 | AO4: 2051 | AP4: =AO4+1 -> 2052 | AQ4: 2053 | AR4: 2054 | AS4: 2055 | AT4: 2056 | AU4: 2057 | AV4: 2058 | AW4: 2059 | AX4: 2060 | AY4: 2061 | AZ4: 2062 | BA4: 2063 | BB4: 2064 | BC4: 2065 | BD4: 2066 | BE4: 2067 | BF4: 2068 | BG4: 2069 | BH4: 2070 | BI4: 2071 | BJ4: 2072 | BK4: 2073 | BL4: 2074 | BM4: 2075
A5: Início período | I5: =DATE(I$4,1,1) -> 2019-01-01 | J5: =EDATE(I5,12) -> 2020-01-01 | K5: 2021-01-01 | L5: 2022-01-01 | M5: 2023-01-01 | N5: 2024-01-01 | O5: 2025-01-01 | P5: 2026-01-01 | Q5: 2027-01-01 | R5: 2028-01-01 | S5: 2029-01-01 | T5: 2030-01-01 | U5: 2031-01-01 | V5: 2032-01-01 | W5: 2033-01-01 | X5: 2034-01-01 | Y5: 2035-01-01 | Z5: 2036-01-01 | AA5: 2037-01-01 | AB5: 2038-01-01 | AC5: 2039-01-01 | AD5: 2040-01-01 | AE5: 2041-01-01 | AF5: 2042-01-01 | AG5: 2043-01-01 | AH5: 2044-01-01 | AI5: 2045-01-01 | AJ5: 2046-01-01 | AK5: 2047-01-01 | AL5: 2048-01-01 | AM5: 2049-01-01 | AN5: 2050-01-01 | AO5: 2051-01-01 | AP5: =EDATE(AO5,12) -> 2052-01-01 | AQ5: 2053-01-01 | AR5: 2054-01-01 | AS5: 2055-01-01 | AT5: 2056-01-01 | AU5: 2057-01-01 | AV5: 2058-01-01 | AW5: 2059-01-01 | AX5: 2060-01-01 | AY5: 2061-01-01 | AZ5: 2062-01-01 | BA5: 2063-01-01 | BB5: 2064-01-01 | BC5: 2065-01-01 | BD5: 2066-01-01 | BE5: 2067-01-01 | BF5: 2068-01-01 | BG5: 2069-01-01 | BH5: 2070-01-01 | BI5: 2071-01-01 | BJ5: 2072-01-01 | BK5: 2073-01-01 | BL5: 2074-01-01 | BM5: 2075-01-01
A6: Fim de período | I6: =EDATE(I5,12) -> 2020-01-01 | J6: 2021-01-01 | K6: 2022-01-01 | L6: 2023-01-01 | M6: 2024-01-01 | N6: 2025-01-01 | O6: 2026-01-01 | P6: 2027-01-01 | Q6: 2028-01-01 | R6: 2029-01-01 | S6: 2030-01-01 | T6: 2031-01-01 | U6: 2032-01-01 | V6: 2033-01-01 | W6: 2034-01-01 | X6: 2035-01-01 | Y6: 2036-01-01 | Z6: 2037-01-01 | AA6: 2038-01-01 | AB6: 2039-01-01 | AC6: 2040-01-01 | AD6: 2041-01-01 | AE6: 2042-01-01 | AF6: 2043-01-01 | AG6: 2044-01-01 | AH6: 2045-01-01 | AI6: 2046-01-01 | AJ6: 2047-01-01 | AK6: 2048-01-01 | AL6: 2049-01-01 | AM6: 2050-01-01 | AN6: 2051-01-01 | AO6: =EDATE(AO5,12) -> 2052-01-01 | AP6: 2053-01-01 | AQ6: 2054-01-01 | AR6: 2055-01-01 | AS6: 2056-01-01 | AT6: 2057-01-01 | AU6: 2058-01-01 | AV6: 2059-01-01 | AW6: 2060-01-01 | AX6: 2061-01-01 | AY6: 2062-01-01 | AZ6: 2063-01-01 | BA6: 2064-01-01 | BB6: 2065-01-01 | BC6: 2066-01-01 | BD6: 2067-01-01 | BE6: 2068-01-01 | BF6: 2069-01-01 | BG6: 2070-01-01 | BH6: 2071-01-01 | BI6: 2072-01-01 | BJ6: 2073-01-01 | BK6: 2074-01-01 | BL6: 2075-01-01 | BM6: 2076-01-01
A8: MASTER CHECK | E8: =IF(AND(E9:E12="OK"),"MASTER OK","ERRO") -> MASTER OK
A9: Ativo = Passivo + PL | E9: =E217 -> OK
A10: Fontes = Usos | E10: =E286 -> OK
A11: Soma de diferenças temporárias = 0 | E11: =E1966 -> OK
A12: Amortização debêntures = 100% | E12: =E1369 -> OK
A15: PAINEL DE CONTROLE
A16: GRÁFICOS
A19: PORTE DE OPERAÇÕES
A20: WLU total | B20: MM WLU | I20: =I435 -> 0 | J20: 0 | K20: 0.001215944977 | L20: 0.007907494904 | M20: 0.0128428775 | N20: 0.01838209039 | O20: 0.03494878227 | P20: 0.0585091189 | Q20: 0.08543270887 | R20: 0.116779641 | S20: 0.1519970661 | T20: 0.1824461927 | U20: 0.2221530101 | V20: 0.2549423973 | W20: 0.267898554 | X20: 0.2817949563 | Y20: 0.298055653 | Z20: 0.3142904158 | AA20: 0.3302367823 | AB20: 0.3457989016 | AC20: 0.3611834928 | AD20: 0.3767619694 | AE20: 0.3926694254 | AF20: 0.4092335478 | AG20: 0.4251527276 | AH20: 0.4414007309 | AI20: 0.4578932243 | AJ20: 0.4742706612 | AK20: 0.490521761 | AL20: 0.5071029483 | AM20: 0.524240683 | AN20: 0.5423312029 | AO20: =AO435 -> 0.5423312029 | AP20: 0.5423312029 | AQ20: 0.3610588556 | AR20: 0 | AS20: 0 | AT20: 0 | AU20: 0 | AV20: 0 | AW20: 0 | AX20: 0 | AY20: 0 | AZ20: 0 | BA20: 0 | BB20: 0 | BC20: 0 | BD20: 0 | BE20: 0 | BF20: 0 | BG20: 0 | BH20: 0 | BI20: 0 | BJ20: 0 | BK20: 0 | BL20: 0 | BM20: 0
A21: WLU pax | B21: MM WLU | I21: =I436 -> 0 | J21: 0 | K21: 0.001124823288 | L21: 0.0073055 | M21: 0.01185225 | N21: 0.016941 | O21: 0.033387034 | P21: 0.05682396 | Q21: 0.083621528 | R21: 0.114839488 | S21: 0.145618704 | T21: 0.171160028 | U21: 0.20544121 | V21: 0.232225 | W21: 0.243878 | X21: 0.256384 | Y21: 0.271171 | Z21: 0.285855 | AA21: 0.30018 | AB21: 0.314055 | AC21: 0.32769 | AD21: 0.341458 | AE21: 0.355494 | AF21: 0.370124 | AG21: 0.384044 | AH21: 0.398224 | AI21: 0.412575 | AJ21: 0.426732 | AK21: 0.440677 | AL21: 0.454857 | AM21: 0.469488 | AN21: 0.484955 | AO21: =AO436 -> 0.484955 | AP21: 0.484955 | AQ21: 0.3228604521 | AR21: 0 | AS21: 0 | AT21: 0 | AU21: 0 | AV21: 0 | AW21: 0 | AX21: 0 | AY21: 0 | AZ21: 0 | BA21: 0 | BB21: 0 | BC21: 0 | BD21: 0 | BE21: 0 | BF21: 0 | BG21: 0 | BH21: 0 | BI21: 0 | BJ21: 0 | BK21: 0 | BL21: 0 | BM21: 0
A22: WLU carga | B22: MM WLU | I22: =I437 -> 0 | J22: 0 | K22: 9.112168902e-05 | L22: 0.0006019949038 | M22: 0.0009906274974 | N22: 0.001441090385 | O22: 0.001561748266 | P22: 0.001685158903 | Q22: 0.001811180869 | R22: 0.001940153007 | S22: 0.0063783621 | T22: 0.01128616473 | U22: 0.01671180012 | V22: 0.02271739729 | W22: 0.02402055399 | X22: 0.02541095627 | Y22: 0.02688465298 | Z22: 0.02843541578 | AA22: 0.03005678234 | AB22: 0.03174390161 | AC22: 0.03349349282 | AD22: 0.03530396935 | AE22: 0.03717542536 | AF22: 0.0391095478 | AG22: 0.04110872758 | AH22: 0.0431767309 | AI22: 0.04531822428 | AJ22: 0.04753866119 | AK22: 0.04984476102 | AL22: 0.05224594833 | AM22: 0.05475268299 | AN22: 0.05737620287 | AO22: =AO437 -> 0.05737620287 | AP22: 0.05737620287 | AQ22: 0.03819840356 | AR22: 0 | AS22: 0 | AT22: 0 | AU22: 0 | AV22: 0 | AW22: 0 | AX22: 0 | AY22: 0 | AZ22: 0 | BA22: 0 | BB22: 0 | BC22: 0 | BD22: 0 | BE22: 0 | BF22: 0 | BG22: 0 | BH22: 0 | BI22: 0 | BJ22: 0 | BK22: 0 | BL22: 0 | BM22: 0
A23: Operações de aeronaves | B23: 000 operações | I23: =I341 -> 0 | J23: 0 | K23: 0.1342835616 | L23: 0.8215 | M23: 1.257 | N23: 1.705 | O23: 2.185206897 | P23: 2.804117241 | Q23: 3.572731034 | R23: 4.475048276 | S23: 5.736341379 | T23: 6.991931034 | U23: 8.429817241 | V23: 9.808 | W23: 10.155 | X23: 10.468 | Y23: 10.99 | Z23: 11.473 | AA23: 11.945 | AB23: 12.333 | AC23: 12.643 | AD23: 13.022 | AE23: 13.431 | AF23: 13.864 | AG23: 14.29 | AH23: 14.718 | AI23: 15.138 | AJ23: 15.533 | AK23: 15.976 | AL23: 16.381 | AM23: 16.802 | AN23: 17.326 | AO23: =AO341 -> 17.326 | AP23: 17.326 | AQ23: 11.53484384 | AR23: 0 | AS23: 0 | AT23: 0 | AU23: 0 | AV23: 0 | AW23: 0 | AX23: 0 | AY23: 0 | AZ23: 0 | BA23: 0 | BB23: 0 | BC23: 0 | BD23: 0 | BE23: 0 | BF23: 0 | BG23: 0 | BH23: 0 | BI23: 0 | BJ23: 0 | BK23: 0 | BL23: 0 | BM23: 0
A25: Receita líquida ajustada | B25: MM R$ | I25: =I200 -> 0 | J25: 0 | K25: 1.43168262 | L25: 4.539581686 | M25: 4.941482279 | N25: 17.42906124 | O25: 18.30801583 | P25: 7.989746822 | Q25: =Q200 -> 9.661472124 | R25: 11.61152913 | S25: 11.41068984 | T25: 13.7454568 | U25: 17.46076587 | V25: 20.91321938 | W25: 22.02623389 | X25: 23.31249775 | Y25: 24.68916326 | Z25: 26.04851336 | AA25: 27.3891998 | AB25: 28.76441698 | AC25: 30.00392541 | AD25: 31.27301507 | AE25: 32.60835416 | AF25: 34.04446807 | AG25: 35.32741578 | AH25: 36.66751105 | AI25: 38.0554029 | AJ25: 39.39427772 | AK25: 40.67626208 | AL25: 42.00910819 | AM25: 43.45680346 | AN25: 44.86264005 | AO25: =AO200 -> 44.86264005 | AP25: 44.86264005 | AQ25: 31.63928442 | AR25: 0 | AS25: 0 | AT25: 0 | AU25: 0 | AV25: 0 | AW25: 0 | AX25: 0 | AY25: 0 | AZ25: 0 | BA25: 0 | BB25: 0 | BC25: 0 | BD25: 0 | BE25: 0 | BF25: 0 | BG25: 0 | BH25: 0 | BI25: 0 | BJ25: 0 | BK25: 0 | BL25: 0 | BM25: 0
A26: EBITDA ajustado, com outorgas | B26: MM R$ | I26: =I205 -> 0 | J26: 0 | K26: -0.3755211083 | L26: 0.6737832758 | M26: 0.1786697251 | N26: 11.46533764 | O26: 10.79417236 | P26: -0.6114449407 | Q26: -0.515615674 | R26: 0.6163864061 | S26: -0.45249762 | T26: 1.252449983 | U26: 4.998480037 | V26: 8.220241386 | W26: 9.102720265 | X26: 10.15726068 | Y26: 10.87931187 | Z26: 12.31593928 | AA26: 13.38924394 | AB26: 14.51836998 | AC26: 15.52932598 | AD26: 16.19648059 | AE26: 17.65125802 | AF26: 18.83689181 | AG26: 19.87834973 | AH26: 20.9760578 | AI26: 21.75959254 | AJ26: 23.22686145 | AK26: 24.2688192 | AL26: 25.36597255 | AM26: 26.5721217 | AN26: 27.71450228 | AO26: =AO205 -> 28.14770644 | AP26: 28.14770644 | AQ26: 17.82981468 | AR26: 0 | AS26: 0 | AT26: 0 | AU26: 0 | AV26: 0 | AW26: 0 | AX26: 0 | AY26: 0 | AZ26: 0 | BA26: 0 | BB26: 0 | BC26: 0 | BD26: 0 | BE26: 0 | BF26: 0 | BG26: 0 | BH26: 0 | BI26: 0 | BJ26: 0 | BK26: 0 | BL26: 0 | BM26: 0
A28: MARGENS
A29: Mg EBITDA ajust, s/ outorgas | B29: % ROL ajustada | I29: =I209 ->  | K29: -0.2622935439 | L29: 0.1484240889 | M29: 0.03615711137 | N29: 0.6578287542 | O29: 0.5895872313 | P29: -0.07652870038 | Q29: -0.05336823078 | R29: 0.05308399944 | S29: -0.03965558845 | T29: 0.09111737802 | U29: 0.2862692321 | V29: 0.3930643693 | W29: 0.4132672117 | X29: 0.435700232 | Y29: 0.4406512995 | Z29: 0.4728077608 | AA29: 0.4888512277 | AB29: 0.5047336781 | AC29: 0.517576476 | AD29: 0.5179059502 | AE29: 0.5413109146 | AF29: 0.5533025738 | AG29: 0.5626890417 | AH29: 0.5720611298 | AI29: 0.5717872073 | AJ29: 0.5895998809 | AK29: 0.5966334652 | AL29: 0.6038207819 | AM29: 0.6114605674 | AN29: 0.6177635167 | AO29: =AO209 -> 0.6274197508 | AP29: 0.6274197508 | AQ29: 0.5635340687
A30: Mg EBITDA ajust, s/ outorgas e s/ ATAERO | B30: % ROL ajustada | I30: =IFERROR(I100/I95,#N/A) ->  | K30: =IFERROR(K100/K95,#N/A) ->  | AO30: =IFERROR(AO100/AO95,#N/A) -> 
A31: Mg EBITDA ajust, c/ outorgas | B31: % ROL ajustada | I31: =I210 ->  | K31: -0.2622935439 | L31: 0.1484240889 | M31: 0.03615711137 | N31: 0.6578287542 | O31: 0.5895872313 | P31: -0.07652870038 | Q31: -0.05336823078 | R31: 0.05308399944 | S31: -0.03965558845 | T31: 0.09111737802 | U31: 0.2862692321 | V31: 0.3930643693 | W31: 0.4132672117 | X31: 0.435700232 | Y31: 0.4406512995 | Z31: 0.4728077608 | AA31: 0.4888512277 | AB31: 0.5047336781 | AC31: 0.517576476 | AD31: 0.5179059502 | AE31: 0.5413109146 | AF31: 0.5533025738 | AG31: 0.5626890417 | AH31: 0.5720611298 | AI31: 0.5717872073 | AJ31: 0.5895998809 | AK31: 0.5966334652 | AL31: 0.6038207819 | AM31: 0.6114605674 | AN31: 0.6177635167 | AO31: =AO210 -> 0.6274197508 | AP31: 0.6274197508 | AQ31: 0.5635340687
A32: Mg líquida ajust, s/ outorgas | B32: % ROL ajustada | I32: =I211 ->  | K32: -0.3592462572 | L32: 0.03712475683 | M32: -0.1002000622 | N32: 0.5118553344 | O32: 0.452363654 | P32: -0.3199865457 | Q32: -0.2902604683 | R32: -0.1792950024 | S32: -0.2921991471 | T32: -0.1501171841 | U32: 0.05888031481 | V32: 0.1766262939 | W32: 0.2014958675 | X32: 0.2282319862 | Y32: 0.2365070376 | Z32: 0.2701927541 | AA32: 0.287579098 | AB32: 0.3047927952 | AC32: 0.3184333887 | AD32: 0.319406434 | AE32: 0.3433630937 | AF32: 0.3511749831 | AG32: 0.3606878648 | AH32: 0.3699794539 | AI32: 0.3693792104 | AJ32: 0.3864002317 | AK32: 0.3920558574 | AL32: 0.3971130738 | AM32: 0.401872864 | AN32: 0.403618544 | AO32: =AO211 -> 0.4063807869 | AP32: 0.3936436216 | AQ32: 0.3024051034
A33: Mg líquida ajust, c/ outorgas | B33: % ROL ajustada | I33: =I212 ->  | K33: -0.3592462572 | L33: 0.03712475683 | M33: -0.1002000622 | N33: 0.5118553344 | O33: 0.452363654 | P33: -0.3199865457 | Q33: -0.2902604683 | R33: -0.1792950024 | S33: -0.2921991471 | T33: -0.1501171841 | U33: 0.05888031481 | V33: 0.1766262939 | W33: 0.2014958675 | X33: 0.2282319862 | Y33: 0.2365070376 | Z33: 0.2701927541 | AA33: 0.287579098 | AB33: 0.3047927952 | AC33: 0.3184333887 | AD33: 0.319406434 | AE33: 0.3433630937 | AF33: 0.3511749831 | AG33: 0.3606878648 | AH33: 0.3699794539 | AI33: 0.3693792104 | AJ33: 0.3864002317 | AK33: 0.3920558574 | AL33: 0.3971130738 | AM33: 0.401872864 | AN33: 0.403618544 | AO33: =AO212 -> 0.4063807869 | AP33: 0.3936436216 | AQ33: 0.3024051034
A35: FLUXO DE CAIXA PARA A FIRMA
A36: FCLF positivo | B36: MM R$ | I36: =IF(I108>0,I108,"") ->  | K36: =IF(K108>0,K108,"") ->  | N36: 5.076177273 | O36: 7.596538398 | U36: 1.175330916 | V36: 4.048823109 | W36: 5.149906336 | X36: 6.021125708 | Y36: 6.626528246 | Z36: 7.786479865 | AA36: 8.751617923 | AB36: 9.704125294 | AC36: 10.58127 | AD36: 11.14466849 | AE36: 12.3175179 | AF36: 11.50796897 | AG36: 13.94446956 | AH36: 15.19747347 | AI36: 15.86115951 | AJ36: 17.06065427 | AK36: 18.00956115 | AL36: 18.93346239 | AM36: 19.94711456 | AN36: 20.92752025 | AO36: =IF(AO108>0,AO108,"") -> 21.46619284 | AP36: 21.53108678 | AQ36: 17.00033204
A37: FCLF negativo | B37: MM R$ | I37: =IF(I108<0,I108,"") ->  | K37: -5.112815898 | L37: -1.973574279 | M37: -10.48355768 | P37: -47.58214413 | Q37: =IF(Q108<0,Q108,"") -> -11.05979878 | R37: -2.077410362 | S37: -2.825760865 | T37: -1.809610311 | AO37: =IF(AO108<0,AO108,"") -> 
A38: VPL acumulado | B38: MM R$ | I38: =I113 -> 0 | J38: 0 | K38: -5.112815898 | L38: -6.935137485 | M38: -15.87337263 | N38: -11.87713403 | O38: -6.355063984 | P38: -38.29262337 | Q38: -45.1471345 | R38: -46.33597364 | S38: -47.82913848 | T38: -48.71207392 | U38: -48.18256218 | V38: -46.49827641 | W38: -44.52013265 | X38: -42.38459241 | Y38: -40.21445287 | Z38: -37.85986818 | AA38: -35.41625171 | AB38: -32.91433624 | AC38: -30.39535127 | AD38: -27.94557469 | AE38: -25.44549375 | AF38: -23.28873736 | AG38: -20.87563384 | AH38: -18.44725247 | AI38: -16.10705787 | AJ38: -13.78280023 | AK38: -11.51730445 | AL38: -9.318119715 | AM38: -7.178762548 | AN38: -5.106272142 | AO38: =AO113 -> -3.143357892 | AP38: -1.3254001 | AQ38: -6.321018495e-07 | AR38: -6.321018495e-07 | AS38: -6.321018495e-07 | AT38: -6.321018495e-07 | AU38: -6.321018495e-07 | AV38: -6.321018495e-07 | AW38: -6.321018495e-07 | AX38: -6.321018495e-07 | AY38: -6.321018495e-07 | AZ38: -6.321018495e-07 | BA38: -6.321018495e-07 | BB38: -6.321018495e-07 | BC38: -6.321018495e-07 | BD38: -6.321018495e-07 | BE38: -6.321018495e-07 | BF38: -6.321018495e-07 | BG38: -6.321018495e-07 | BH38: -6.321018495e-07 | BI38: -6.321018495e-07 | BJ38: -6.321018495e-07 | BK38: -6.321018495e-07 | BL38: -6.321018495e-07 | BM38: -6.321018495e-07
A40: FONTES E USOS
A41: (+) Fontes / (−) Usos
A42: Operação, ex-outorga | B42: MM R$ | I42: =I289 -> 0 | J42: 0 | K42: -0.3409524307 | L42: 0.2820747645 | M42: 1.175349854 | N42: 6.277374031 | O42: 8.690306246 | P42: 8.394513895 | Q42: -9.868578861 | R42: -0.8855481396 | S42: -1.637482387 | T42: -0.6212895463 | U42: 2.361724158 | V42: 5.234188696 | W42: 6.330456615 | X42: 7.200769333 | Y42: 7.805123538 | Z42: 8.965954071 | AA42: 9.927985109 | AB42: 10.87940059 | AC42: 11.75542477 | AD42: 12.31981365 | AE42: 13.48962942 | AF42: 14.87899274 | AG42: 15.1143233 | AH42: 16.36828237 | AI42: 17.02887685 | AJ42: 18.22724095 | AK42: 19.17505719 | AL42: 20.09991444 | AM42: 21.11048094 | AN42: 22.08970709 | AO42: =AO289 -> 22.62723496 | AP42: 22.69212889 | AQ42: 18.17358464 | AR42: 0.1852088186 | AS42: 0.005812442582 | AT42: 0.005812442582 | AU42: 0.005812442582 | AV42: 0.005812442582 | AW42: 0.005812442582 | AX42: -0.179396376 | AY42: 0 | AZ42: 0 | BA42: 0 | BB42: 0 | BC42: 0 | BD42: 0 | BE42: 0 | BF42: 0 | BG42: 0 | BH42: 0 | BI42: 0 | BJ42: 0 | BK42: 0 | BL42: 0 | BM42: 0
A43: Aporte | B43: MM R$ | I43: =I290 -> 0 | J43: 0 | K43: 5.169399046 | L43: 1.746388706 | M43: 3.371561306 | N43: 0 | O43: 0 | P43: 36.15196273 | Q43: 12.04557014 | R43: 3.194776626 | S43: 3.786445814 | T43: 2.808067746 | U43: 0 | V43: 0 | W43: 0 | X43: 0 | Y43: 0 | Z43: 0 | AA43: 0 | AB43: 0 | AC43: 0 | AD43: 0 | AE43: 0 | AF43: 0 | AG43: 0 | AH43: 0 | AI43: 0 | AJ43: 0 | AK43: 0 | AL43: 0 | AM43: 0 | AN43: 0 | AO43: =AO290 -> 0 | AP43: 0 | AQ43: 0 | AR43: 1.012364665 | AS43: 1.191761041 | AT43: 1.191761041 | AU43: 1.191761041 | AV43: 1.191761041 | AW43: 1.191761041 | AX43: 0.179396376 | AY43: 0 | AZ43: 0 | BA43: 0 | BB43: 0 | BC43: 0 | BD43: 0 | BE43: 0 | BF43: 0 | BG43: 0 | BH43: 0 | BI43: 0 | BJ43: 0 | BK43: 0 | BL43: 0 | BM43: 0
A44: Captação dívida | B44: MM R$ | I44: =I291 -> 0 | J44: 0 | K44: 0 | L44: 0.3509142089 | M44: 7.127944216 | N44: 0 | O44: 0 | P44: 0 | Q44: 0 | R44: 0 | S44: 0 | T44: 0 | U44: 0 | V44: 0 | W44: 0 | X44: 0 | Y44: 0 | Z44: 0 | AA44: 0 | AB44: 0 | AC44: 0 | AD44: 0 | AE44: 0 | AF44: 0 | AG44: 0 | AH44: 0 | AI44: 0 | AJ44: 0 | AK44: 0 | AL44: 0 | AM44: 0 | AN44: 0 | AO44: =AO291 -> 0 | AP44: 0 | AQ44: 0 | AR44: 0 | AS44: 0 | AT44: 0 | AU44: 0 | AV44: 0 | AW44: 0 | AX44: 0 | AY44: 0 | AZ44: 0 | BA44: 0 | BB44: 0 | BC44: 0 | BD44: 0 | BE44: 0 | BF44: 0 | BG44: 0 | BH44: 0 | BI44: 0 | BJ44: 0 | BK44: 0 | BL44: 0 | BM44: 0
A45: Redução caixa | B45: MM R$ | C45: Inclui receita financeira | I45: =I292 -> 0 | J45: 0 | K45: 0 | L45: 0.002410442114 | M45: 0.00972141674 | N45: 0.01140213517 | O45: 0.3053106926 | P45: 12.64838117 | Q45: 0.01868696178 | R45: 0.02268017816 | S45: 0.02733825122 | T45: 0.0272138785 | U45: 0.03288306393 | V45: 0.0417879287 | W45: 0.05006824661 | X45: 0.05273487607 | Y45: 0.05581821125 | Z45: 0.05911552135 | AA45: 0.06237146387 | AB45: 0.06558290719 | AC45: 0.06887857846 | AD45: 0.07184799653 | AE45: 0.07488811998 | AF45: 0.07808739092 | AG45: 0.0815286703 | AH45: 0.08460172616 | AI45: 0.08781217849 | AJ45: 0.09113765709 | AK45: 0.094345397 | AL45: 0.09741599911 | AM45: 0.100609125 | AN45: 0.1040783832 | AO45: =AO292 -> 0.107445204 | AP45: 0.107445204 | AQ45: 1.865898069 | AR45: 2.509104036e-14 | AS45: 0 | AT45: 0 | AU45: 0 | AV45: 0 | AW45: 0 | AX45: 5.551115123e-17 | AY45: 4.52171776e-18 | AZ45: 0 | BA45: 0 | BB45: 0 | BC45: 0 | BD45: 0 | BE45: 0 | BF45: 0 | BG45: 0 | BH45: 0 | BI45: 0 | BJ45: 0 | BK45: 0 | BL45: 0 | BM45: 0
A46: Capex | B46: MM R$ | I46: =I294 -> 0 | J46: 0 | K46: =K294 -> -0.6890724976 | L46: -2.256468593 | M46: -11.66221281 | N46: -1.205073483 | O46: -1.197573483 | P46: -56.22580614 | Q46: -1.197573483 | R46: -1.199573483 | S46: -1.197573483 | T46: -1.197573483 | U46: -1.197573483 | V46: -1.199573483 | W46: -1.197573483 | X46: -1.197573483 | Y46: -1.197573483 | Z46: -1.199573483 | AA46: -1.197573483 | AB46: -1.197573483 | AC46: -1.197573483 | AD46: -1.199573483 | AE46: -1.197573483 | AF46: -3.397573483 | AG46: -1.197573483 | AH46: -1.199573483 | AI46: -1.197573483 | AJ46: -1.197573483 | AK46: -1.197573483 | AL46: -1.199573483 | AM46: -1.197573483 | AN46: -1.197573483 | AO46: =AO294 -> -1.197573483 | AP46: -1.197573483 | AQ46: -1.197573483 | AR46: -1.197573483 | AS46: -1.197573483 | AT46: -1.197573483 | AU46: -1.197573483 | AV46: -1.197573483 | AW46: -1.197573483 | AX46: 0 | AY46: 0 | AZ46: 0 | BA46: 0 | BB46: 0 | BC46: 0 | BD46: 0 | BE46: 0 | BF46: 0 | BG46: 0 | BH46: 0 | BI46: 0 | BJ46: 0 | BK46: 0 | BL46: 0 | BM46: 0
A47: Dividendos | B47: MM R$ | I47: =I295 -> 0 | J47: 0 | K47: 0 | L47: 0 | M47: 0 | N47: 0 | O47: 0 | P47: 0 | Q47: 0 | R47: 0 | S47: 0 | T47: 0 | U47: -0.02796412148 | V47: -2.995117697 | W47: -4.271653957 | X47: -5.230681016 | Y47: -6.326300163 | Z47: -7.504750809 | AA47: -8.48759147 | AB47: -9.454767158 | AC47: -10.35289241 | AD47: -10.92964664 | AE47: -12.11362526 | AF47: -11.31311632 | AG47: -13.76855675 | AH47: -15.03111713 | AI47: -15.70416671 | AJ47: -16.92068036 | AK47: -17.9678384 | AL47: -18.8899923 | AM47: -19.89926325 | AN47: -20.88184764 | AO47: =AO295 -> -21.47896922 | AP47: -21.54386315 | AQ47: -18.84190923 | AR47: 0 | AS47: 0 | AT47: 0 | AU47: 0 | AV47: 0 | AW47: 0 | AX47: 0 | AY47: -4.52171776e-18 | AZ47: 0 | BA47: 0 | BB47: 0 | BC47: 0 | BD47: 0 | BE47: 0 | BF47: 0 | BG47: 0 | BH47: 0 | BI47: 0 | BJ47: 0 | BK47: 0 | BL47: 0 | BM47: 0
A48: Serviço da dívida | B48: MM R$ | I48: =I296 -> 0 | J48: 0 | K48: 0 | L48: 0 | M48: 0 | N48: -0.01014418783 | O48: -0.2625348186 | P48: -0.9690516536 | Q48: -0.9191448825 | R48: -1.039751572 | S48: -0.9660801143 | T48: -0.9039488775 | U48: -0.9977447888 | V48: -0.9159103372 | W48: -0.838229654 | X48: -0.7435544768 | Y48: -0.2500152864 | Z48: -0.2326215782 | AA48: -0.2160733687 | AB48: -0.2003347203 | AC48: -0.1853711181 | AD48: -0.1711494163 | AE48: -0.1576377864 | AF48: -0.1448056666 | AG48: -0.1326237143 | AH48: -0.1210637591 | AI48: -0.1100987587 | AJ48: -0.09550528519 | AK48: 0 | AL48: 0 | AM48: 0 | AN48: 0 | AO48: =AO296 -> 0 | AP48: 0 | AQ48: 0 | AR48: 0 | AS48: 0 | AT48: 0 | AU48: 0 | AV48: 0 | AW48: 0 | AX48: 0 | AY48: 0 | AZ48: 0 | BA48: 0 | BB48: 0 | BC48: 0 | BD48: 0 | BE48: 0 | BF48: 0 | BG48: 0 | BH48: 0 | BI48: 0 | BJ48: 0 | BK48: 0 | BL48: 0 | BM48: 0
A49: Aumento caixa | B49: MM R$ | I49: =I297 -> 0 | J49: 0 | K49: =K297 -> -0.05658314822 | L49: -0.1253195278 | M49: -0.0223639793 | N49: -5.073558495 | O49: -7.535508637 | P49: 0 | Q49: -0.0789598751 | R49: -0.09258360838 | S49: -0.01264808051 | T49: -0.1124697174 | U49: -0.1713248284 | V49: -0.165375107 | W49: -0.07306776716 | X49: -0.08169523342 | Y49: -0.08705281628 | Z49: -0.0881237215 | AA49: -0.08911824998 | AB49: -0.09230813385 | AC49: -0.08846633164 | AD49: -0.09129211038 | AE49: -0.09568101117 | AF49: -0.101584662 | AG49: -0.09709802054 | AH49: -0.1011297231 | AI49: -0.1048500762 | AJ49: -0.1046194801 | AK49: -0.1039907094 | AL49: -0.1077646588 | AM49: -0.1142533267 | AN49: -0.114364343 | AO49: =AO297 -> -0.05813746023 | AP49: -0.05813746023 | AQ49: 0 | AR49: 0 | AS49: 0 | AT49: 0 | AU49: 0 | AV49: 0 | AW49: 0 | AX49: 0 | AY49: 0 | AZ49: 0 | BA49: 0 | BB49: 0 | BC49: 0 | BD49: 0 | BE49: 0 | BF49: 0 | BG49: 0 | BH49: 0 | BI49: 0 | BJ49: 0 | BK49: 0 | BL49: 0 | BM49: 0
A50: Outorga fixa | B50: MM R$ | I50: =I298 -> 0 | J50: 0 | K50: 0 | L50: 0 | M50: 0 | N50: 0 | O50: 0 | P50: 0 | Q50: 0 | R50: 0 | S50: 0 | T50: 0 | U50: 0 | V50: 0 | W50: 0 | X50: 0 | Y50: 0 | Z50: 0 | AA50: 0 | AB50: 0 | AC50: 0 | AD50: 0 | AE50: 0 | AF50: 0 | AG50: 0 | AH50: 0 | AI50: 0 | AJ50: 0 | AK50: 0 | AL50: 0 | AM50: 0 | AN50: 0 | AO50: =AO298 -> 0 | AP50: 0 | AQ50: 0 | AR50: 0 | AS50: 0 | AT50: 0 | AU50: 0 | AV50: 0 | AW50: 0 | AX50: 0 | AY50: 0 | AZ50: 0 | BA50: 0 | BB50: 0 | BC50: 0 | BD50: 0 | BE50: 0 | BF50: 0 | BG50: 0 | BH50: 0 | BI50: 0 | BJ50: 0 | BK50: 0 | BL50: 0 | BM50: 0
A51: Outorga variável | B51: MM R$ | I51: =I299 -> 0 | J51: 0 | K51: 0 | L51: 0 | M51: 0 | N51: 0 | O51: 0 | P51: 0 | Q51: 0 | R51: 0 | S51: 0 | T51: 0 | U51: 0 | V51: 0 | W51: 0 | X51: 0 | Y51: 0 | Z51: 0 | AA51: 0 | AB51: 0 | AC51: 0 | AD51: 0 | AE51: 0 | AF51: 0 | AG51: 0 | AH51: 0 | AI51: 0 | AJ51: 0 | AK51: 0 | AL51: 0 | AM51: 0 | AN51: 0 | AO51: =AO299 -> 0 | AP51: 0 | AQ51: 0 | AR51: 0 | AS51: 0 | AT51: 0 | AU51: 0 | AV51: 0 | AW51: 0 | AX51: 0 | AY51: 0 | AZ51: 0 | BA51: 0 | BB51: 0 | BC51: 0 | BD51: 0 | BE51: 0 | BF51: 0 | BG51: 0 | BH51: 0 | BI51: 0 | BJ51: 0 | BK51: 0 | BL51: 0 | BM51: 0
A52: Obrigações Pré-Contrato | B52: MM R$ | I52: =I300 -> 0 | J52: 0 | K52: -4.08279097 | L52: 0 | M52: 0 | N52: 0 | O52: 0 | P52: 0 | Q52: 0 | R52: 0 | S52: 0 | T52: 0 | U52: 0 | V52: 0 | W52: 0 | X52: 0 | Y52: 0 | Z52: 0 | AA52: 0 | AB52: 0 | AC52: 0 | AD52: 0 | AE52: 0 | AF52: 0 | AG52: 0 | AH52: 0 | AI52: 0 | AJ52: 0 | AK52: 0 | AL52: 0 | AM52: 0 | AN52: 0 | AO52: =AO300 -> 0 | AP52: 0 | AQ52: 0 | AR52: 0 | AS52: 0 | AT52: 0 | AU52: 0 | AV52: 0 | AW52: 0 | AX52: 0 | AY52: 0 | AZ52: 0 | BA52: 0 | BB52: 0 | BC52: 0 | BD52: 0 | BE52: 0 | BF52: 0 | BG52: 0 | BH52: 0 | BI52: 0 | BJ52: 0 | BK52: 0 | BL52: 0 | BM52: 0
A54: EFICIÊNCIA
A55: ROB total / WLU | B55: R$/WLU | I55: =IF(I$88=0,#N/A,I90/I$88) ->  | K55: 1325.498195 | L55: =IF(L$88=0,#N/A,L90/L$88) -> 649.3250963 | M55: 437.0526127 | N55: 1072.076917 | O55: 572.5117324 | P55: 149.4017004 | Q55: 123.2187225 | R55: 108.1503232 | S55: 84.90272296 | T55: 87.28070929 | U55: 92.40843596 | V55: 97.94939326 | W55: 98.2366726 | X55: 98.9084361 | Y55: 99.03908524 | Z55: 99.12620577 | AA55: 99.2561099 | AB55: 99.63841315 | AC55: 99.60928278 | AD55: 99.63776445 | AE55: 99.7922871 | AF55: 100.07174 | AG55: 100.0798346 | AH55: 100.1787619 | AI55: 100.3559879 | AJ55: 100.4416513 | AK55: 100.4287932 | AL55: 100.4872193 | AM55: 100.7127326 | AN55: 100.6546707 | AO55: =IF(AO$88=0,#N/A,AO90/AO$88) -> 100.6546707 | AP55: 100.6546707 | AQ55: 106.3548506
A56: ROB tarifária / WLU | B56: R$/WLU | I56: =IF(I$88=0,#N/A,I91/I$88) ->  | K56: 85.71366271 | L56: 84.47999285 | M56: 83.36466114 | N56: 82.56482199 | O56: 64.99191157 | P56: 66.69790478 | Q56: 63.49490296 | R56: 61.66987106 | S56: 68.70638653 | T56: 75.57863788 | U56: 80.71169858 | V56: 86.19988152 | W56: 86.52054725 | X56: 87.23655864 | Y56: 87.38574329 | Z56: 87.49567014 | AA56: 87.64553582 | AB56: 88.05664957 | AC56: 88.06452881 | AD56: 88.11754622 | AE56: 88.29188642 | AF56: 88.58947546 | AG56: 88.61168568 | AH56: 88.72473918 | AI56: 88.91689686 | AJ56: 89.01861106 | AK56: 89.01432711 | AL56: 89.08602102 | AM56: 89.32404591 | AN56: 89.27010285 | AO56: =IF(AO$88=0,#N/A,AO91/AO$88) -> 89.27010285 | AP56: 89.27010285 | AQ56: 89.27010285
A57: ROB não-tarifária / WLU | B57: R$/WLU | I57: =IF(I$88=0,#N/A,I92/I$88) ->  | K57: 1239.784533 | L57: 564.8451035 | M57: 353.6879515 | N57: 989.512095 | O57: 507.5198208 | P57: 82.7037956 | Q57: 59.72381949 | R57: 46.48045211 | S57: 16.19633643 | T57: 11.70207142 | U57: 11.69673738 | V57: 11.74951174 | W57: 11.71612535 | X57: 11.67187746 | Y57: 11.65334195 | Z57: 11.63053563 | AA57: 11.61057408 | AB57: 11.58176358 | AC57: 11.54475397 | AD57: 11.52021823 | AE57: 11.50040068 | AF57: 11.48226454 | AG57: 11.46814888 | AH57: 11.45402275 | AI57: 11.43909104 | AJ57: 11.42304024 | AK57: 11.41446604 | AL57: 11.40119824 | AM57: 11.38868672 | AN57: 11.38456783 | AO57: =IF(AO$88=0,#N/A,AO92/AO$88) -> 11.38456783 | AP57: 11.38456783 | AQ57: 17.08474778
A58: ROB total / WLU s/ ATAERO | B58: R$/WLU | I58: =IF(I$88=0,#N/A,I93/I$88) ->  | AO58: =IF(AO$88=0,#N/A,AO93/AO$88) -> 
A59: ROB tarifária / WLU s/ ATAERO | B59: R$/WLU | I59: =IF(I$88=0,#N/A,I94/I$88) ->  | AO59: =IF(AO$88=0,#N/A,AO94/AO$88) -> 
A60: Opex s/outorga / WLU | B60: R$/WLU | I60: =IF(I$88=0,#N/A,I96/I$88) ->  | K60: -1606.655684 | L60: -529.1627418 | M60: -401.8488096 | N60: -352.0290182 | O60: -225.0527394 | P60: -151.3655818 | Q60: -121.7041597 | R60: -95.74357148 | S60: -81.46747039 | T60: -72.99021251 | U60: -60.66108076 | V60: -54.6581031 | W60: -52.99171565 | X60: -51.31067879 | Y60: -50.92672662 | Z60: -48.04034944 | AA60: -46.63853638 | AB60: -45.36163092 | AC60: -44.17162388 | AD60: -44.15340829 | AE60: -42.07411699 | AF60: -41.0877875 | AG60: -40.22733346 | AH60: -39.40358504 | AI60: -39.49781338 | AJ60: -37.88658049 | AK60: -37.23235586 | AL60: -36.58981974 | AM60: -35.96403265 | AN60: -35.36026593 | AO60: =IF(AO$88=0,#N/A,AO96/AO$88) -> -34.4669786 | AP60: -34.4669786 | AQ60: -42.77225548
A61: Opex c/outorga / WLU | B61: R$/WLU | I61: =IF(I$88=0,#N/A,I97/I$88) ->  | K61: -1606.655684 | L61: -529.1627418 | M61: -401.8488096 | N61: -352.0290182 | O61: -225.0527394 | P61: -151.3655818 | Q61: -121.7041597 | R61: -95.74357148 | S61: -81.46747039 | T61: -72.99021251 | U61: -60.66108076 | V61: -54.6581031 | W61: -52.99171565 | X61: -51.31067879 | Y61: -50.92672662 | Z61: -48.04034944 | AA61: -46.63853638 | AB61: -45.36163092 | AC61: -44.17162388 | AD61: -44.15340829 | AE61: -42.07411699 | AF61: -41.0877875 | AG61: -40.22733346 | AH61: -39.40358504 | AI61: -39.49781338 | AJ61: -37.88658049 | AK61: -37.23235586 | AL61: -36.58981974 | AM61: -35.96403265 | AN61: -35.36026593 | AO61: =IF(AO$88=0,#N/A,AO97/AO$88) -> -34.4669786 | AP61: -34.4669786 | AQ61: -42.77225548
A62: (EBITDA ajust s/ outorga) / WLU | B62: R$/WLU | I62: =IF(I$88=0,#N/A,I98/I$88) ->  | K62: -333.8489809 | L62: 92.22959083 | M62: 15.07475163 | N62: 676.7804522 | O62: 323.3043211 | P62: -10.76033667 | Q62: -6.166063767 | R62: 5.367373338 | S62: -3.107414141 | T62: 7.317421001 | U62: 24.33046435 | V62: 35.39774523 | W62: 37.32489304 | X62: 39.61737346 | Y62: 40.11974685 | Z62: 43.08456831 | AA62: 44.60405072 | AB62: 46.22874967 | AC62: 47.39029564 | AD62: 47.43330245 | AE62: 49.6527593 | AF62: 50.89346221 | AG62: 51.76060486 | AH62: 52.67401713 | AI62: 52.74093812 | AJ62: 54.42962199 | AK62: 55.07167199 | AL62: 55.76691697 | AM62: 56.59808494 | AN62: 57.14860612 | AO62: =IF(AO$88=0,#N/A,AO98/AO$88) -> 58.04189345 | AP62: 58.04189345 | AQ62: 55.22452369
A63: (EBITDA ajust c/ outorga) / WLU | B63: R$/WLU | I63: =IF(I$88=0,#N/A,I99/I$88) ->  | K63: -333.8489809 | L63: 92.22959083 | M63: 15.07475163 | N63: 676.7804522 | O63: 323.3043211 | P63: -10.76033667 | Q63: -6.166063767 | R63: 5.367373338 | S63: -3.107414141 | T63: 7.317421001 | U63: 24.33046435 | V63: 35.39774523 | W63: 37.32489304 | X63: 39.61737346 | Y63: 40.11974685 | Z63: 43.08456831 | AA63: 44.60405072 | AB63: 46.22874967 | AC63: 47.39029564 | AD63: 47.43330245 | AE63: 49.6527593 | AF63: 50.89346221 | AG63: 51.76060486 | AH63: 52.67401713 | AI63: 52.74093812 | AJ63: 54.42962199 | AK63: 55.07167199 | AL63: 55.76691697 | AM63: 56.59808494 | AN63: 57.14860612 | AO63: =IF(AO$88=0,#N/A,AO99/AO$88) -> 58.04189345 | AP63: 58.04189345 | AQ63: 55.22452369
A65: Receita bruta por funcionário | B65: MM R$/colaborador | I65: =IF(I$89=0,#N/A,I90/I$89) ->  | K65: 0.248491873 | L65: 0.2062454127 | M65: 0.1670986074 | N65: 0.4429769525 | O65: 0.3982180974 | P65: 0.1414932708 | Q65: 0.1451230683 | R65: 0.1592298428 | S65: 0.1437607498 | T65: 0.1757525723 | U65: 0.2157329647 | V65: 0.2527366428 | W65: 0.26041047 | X65: 0.2697717072 | Y65: 0.2797554978 | Z65: 0.2891400158 | AA65: 0.2949970205 | AB65: 0.3038052606 | AC65: 0.3108663417 | AD65: 0.3179636614 | AE65: 0.3254638469 | AF65: 0.3336842585 | AG65: 0.3401332742 | AH65: 0.3469007591 | AI65: 0.3538835189 | AJ65: 0.3601820735 | AK65: 0.3657575147 | AL65: 0.3716041877 | AM65: 0.3782673553 | AN65: 0.384354219 | AO65: =IF(AO$89=0,#N/A,AO90/AO$89) -> 0.384354219 | AP65: 0.384354219 | AQ65: 0.323941275
A66: WLU por funcionário | B66: 000 WLU/colaborador | I66: =IF(I$89=0,#N/A,(I88*1000)/I$89) ->  | K66: 0.1874705479 | L66: 0.3176304348 | M66: 0.3823306452 | N66: 0.413195122 | O66: 0.6955632083 | P66: 0.947066 | Q66: 1.177768 | R66: 1.472301128 | S66: 1.693240744 | T66: 2.013647388 | U66: 2.334559205 | V66: 2.580277778 | W66: 2.650847826 | X66: 2.727489362 | Y66: 2.824697917 | Z66: 2.916887755 | AA66: 2.972079208 | AB66: 3.04907767 | AC66: 3.120857143 | AD66: 3.191196262 | AE66: 3.261412844 | AF66: 3.33445045 | AG66: 3.398619469 | AH66: 3.462817391 | AI66: 3.526282051 | AJ66: 3.585983193 | AK66: 3.641958678 | AL66: 3.69802439 | AM66: 3.755904 | AN66: 3.818543307 | AO66: =IF(AO$89=0,#N/A,(AO88*1000)/AO$89) -> 3.818543307 | AP66: 3.818543307 | AQ66: 3.045853321
A68: COVENANTS
A69: ICSD | B69: [] | I69: =I$1923 ->  | N69: 937.4263846 | O69: 32.88978042 | P69: -1.816478121 | Q69: -1.761437125 | R69: -0.6911391257 | S69: -1.845533494 | T69: -0.3962198892 | U69: 2.952444484 | V69: 6.283624118 | W69: 7.75812737 | X69: 9.958008253 | Y69: 31.8474265 | Z69: 39.70789626 | AA69: 46.97651751 | AB69: 55.48468335 | AC69: 64.61939863 | AD69: 73.00314997 | AE69: 87.47937609 | AF69: 102.2370491 | AG69: 118.3264663 | AH69: 137.3728276 | AI69: 156.6678949 | AJ69: 194.2984126 | AM69: =AM$1923 ->  | AO69: =AO$1923 -> 
A70: PL/Ativo | B70: % | I70: =I$1931 ->  | K70: 0.9234184363 | L70: 0.8313548155 | M70: 0.4806734035 | N70: 0.6663246676 | O70: 0.7337815228 | P70: 0.7703635407 | Q70: 0.8823353139 | R70: 0.8883648433 | S70: 0.8931755728 | T70: 0.8988701014 | U70: 0.9082795696 | V70: 0.9166844141 | W70: 0.9244109313 | X70: 0.9317666619 | Y70: 0.9308035668 | Z70: 0.9315451074 | AA70: 0.9311883336 | AB70: 0.9306738887 | AC70: 0.9299326201 | AD70: 0.9276953602 | AE70: 0.9275214325 | AF70: 0.9215159401 | AG70: 0.9268751598 | AH70: 0.9239992064 | AI70: 0.9188705699 | AJ70: 0.9157792324 | AK70: 0.9069106449 | AL70: 0.8957546905 | AM70: 0.881101866 | AN70: 0.86019358 | AO70: =AO$1931 -> 0.8325834543 | AP70: 0.7750183716 | AQ70: 0
A72: COMPOSIÇÃO DE RECEITAS NÃO-TARIFÁRIAS
A73: % ROB não-tarifária vs total | B73: % | I73: =IF(I90=0,#N/A,I92/I90) ->  | K73: 0.9353347571 | L73: 0.8698956912 | M73: 0.8092571495 | N73: 0.9229861023 | O73: 0.8864793368 | P73: 0.5535666287 | Q73: 0.4846976036 | R73: 0.4297763589 | S73: 0.190763451 | T73: 0.1340739725 | U73: 0.1265765107 | V73: 0.1199549211 | W73: 0.1192642731 | X73: 0.1180068953 | Y73: 0.1176640709 | Z73: 0.1173305841 | AA73: 0.1169759131 | AB73: 0.1162379369 | AC73: 0.1159003825 | AD73: 0.1156210027 | AE73: 0.1152433822 | AF73: 0.1147403307 | AG73: 0.1145900064 | AH73: 0.1143358386 | AI73: 0.1139851371 | AJ73: 0.1137281207 | AK73: 0.1136573057 | AL73: 0.1134591874 | AM73: 0.1130809027 | AN73: 0.1131052116 | AO73: =IF(AO90=0,#N/A,AO92/AO90) -> 0.1131052116 | AP73: 0.1131052116 | AQ73: 0.1606391028
A74: ROB não-tarifária | B74: MM R$ | I74: =SUM(I75,I76,I77,I78,I79,I80,I81,I82,I84,I83,I85) -> 0 | J74: 0 | K74: 1.394538514 | L74: 4.126475903 | M74: 4.191998023 | N74: 16.7633244 | O74: 16.94458151 | P74: 4.699557173 | Q74: 4.994197043 | R74: 5.337791322 | S74: 2.358489521 | T74: 2.002926872 | U74: 2.40299188 | V74: 2.728530364 | W74: 2.857305219 | X74: 2.992482631 | Y74: 3.16004839 | Z74: 3.324646761 | AA74: 3.485262129 | AB74: 3.637310761 | AC74: 3.783100429 | AD74: 3.933670677 | AE74: 4.088323439 | AF74: 4.249861682 | AG74: 4.40427377 | AH74: 4.561266757 | AI74: 4.719482984 | AJ74: 4.874576809 | AK74: 5.030092653 | AL74: 5.18591483 | AM74: 5.34685175 | AN74: 5.521003092 | AO74: =SUM(AO75,AO76,AO77,AO78,AO79,AO80,AO81,AO82,AO84,AO83,AO85) -> 5.521003092 | AP74: 5.521003092 | AQ74: 5.515989393 | AR74: 0 | AS74: 0 | AT74: 0 | AU74: 0 | AV74: 0 | AW74: 0 | AX74: 0 | AY74: 0 | AZ74: 0 | BA74: 0 | BB74: 0 | BC74: 0 | BD74: 0 | BE74: 0 | BF74: 0 | BG74: 0 | BH74: 0 | BI74: 0 | BJ74: 0 | BK74: 0 | BL74: 0 | BM74: 0
A75: Combustível | B75: MM R$ | I75: =I677 -> 0 | J75: 0 | K75: 0.0204510034 | L75: 0.0418182932 | M75: 0.0639873336 | N75: 0.086792684 | O75: 0.11123752 | P75: 0.1427430273 | Q75: 0.1818691588 | R75: 0.2278014375 | S75: 0.2920073106 | T75: 0.3559228509 | U75: 0.4291181607 | V75: 0.4992742784 | W75: 0.516938244 | X75: 0.5328714464 | Y75: 0.559443752 | Z75: 0.5840307704 | AA75: 0.608057836 | AB75: 0.6278088984 | AC75: 0.6435893864 | AD75: 0.6628823056 | AE75: 0.6837023688 | AF75: 0.7057441472 | AG75: 0.727429592 | AH75: 0.7492168464 | AI75: 0.7705968624 | AJ75: 0.7907042584 | AK75: 0.8132550848 | AL75: 0.8338715288 | AM75: 0.8553024496 | AN75: 0.8819765648 | AO75: =AO677 -> 0.8819765648 | AP75: 0.8819765648 | AQ75: 0.8819765648 | AR75: 0 | AS75: 0 | AT75: 0 | AU75: 0 | AV75: 0 | AW75: 0 | AX75: 0 | AY75: 0 | AZ75: 0 | BA75: 0 | BB75: 0 | BC75: 0 | BD75: 0 | BE75: 0 | BF75: 0 | BG75: 0 | BH75: 0 | BI75: 0 | BJ75: 0 | BK75: 0 | BL75: 0 | BM75: 0
A76: Estacionamento | B76: MM R$ | I76: =I703 -> 0 | J76: 0 | K76: 0.00665229159 | L76: 0.01444122018 | M76: 0.02342905371 | N76: 0.03348829116 | O76: 0.06599815333 | P76: 0.1123273312 | Q76: 0.1652996917 | R76: 0.2270101063 | S76: 0.2878532293 | T76: 0.3383422969 | U76: 0.4061079663 | V76: 0.459053091 | W76: 0.4820882753 | X76: 0.5068096358 | Y76: 0.536039986 | Z76: 0.5650667298 | AA76: 0.5933838168 | AB76: 0.6208113618 | AC76: 0.6477644844 | AD76: 0.6749805161 | AE76: 0.7027263194 | AF76: 0.7316463182 | AG76: 0.7591628174 | AH76: 0.7871932742 | AI76: 0.815561757 | AJ76: 0.8435467483 | AK76: 0.8711126665 | AL76: 0.8991431233 | AM76: 0.9280650989 | AN76: 0.9586396458 | AO76: =AO703 -> 0.9586396458 | AP76: 0.9586396458 | AQ76: 0.9586396458 | AR76: 0 | AS76: 0 | AT76: 0 | AU76: 0 | AV76: 0 | AW76: 0 | AX76: 0 | AY76: 0 | AZ76: 0 | BA76: 0 | BB76: 0 | BC76: 0 | BD76: 0 | BE76: 0 | BF76: 0 | BG76: 0 | BH76: 0 | BI76: 0 | BJ76: 0 | BK76: 0 | BL76: 0 | BM76: 0
A77: Locadoras | B77: MM R$ | I77: =I722 -> 0 | J77: 0 | K77: 0.00600010614 | L77: 0.01302541428 | M77: 0.02113208766 | N77: 0.03020512536 | O77: 0.05952774614 | P77: 0.1013148477 | Q77: 0.1490938396 | R77: 0.2047542135 | S77: 0.2596323245 | T77: 0.3051714835 | U77: 0.3662934598 | V77: 0.414047886 | W77: 0.4348247189 | X77: 0.4571224166 | Y77: 0.4834870462 | Z77: 0.5096680308 | AA77: 0.5352089328 | AB77: 0.5599475028 | AC77: 0.5842581624 | AD77: 0.6088059557 | AE77: 0.6338315822 | AF77: 0.659916287 | AG77: 0.6847350902 | AH77: 0.710017463 | AI77: 0.735604722 | AJ77: 0.7608460867 | AK77: 0.7857094639 | AL77: 0.8109918367 | AM77: 0.8370783245 | AN77: 0.8646553668 | AO77: =AO722 -> 0.8646553668 | AP77: 0.8646553668 | AQ77: 0.8646553668 | AR77: 0 | AS77: 0 | AT77: 0 | AU77: 0 | AV77: 0 | AW77: 0 | AX77: 0 | AY77: 0 | AZ77: 0 | BA77: 0 | BB77: 0 | BC77: 0 | BD77: 0 | BE77: 0 | BF77: 0 | BG77: 0 | BH77: 0 | BI77: 0 | BJ77: 0 | BK77: 0 | BL77: 0 | BM77: 0
A78: Varejo/Alimentação | B78: MM R$ | I78: =I737 -> 0 | J78: 0 | K78: 0.0107219288 | L78: 0.023275849 | M78: 0.03776212186 | N78: 0.05397524575 | O78: 0.1063734942 | P78: 0.1810452279 | Q78: 0.266424209 | R78: 0.3658868772 | S78: 0.4639516755 | T78: 0.5453281727 | U78: 0.6545504868 | V78: 0.7398855702 | W78: 0.7770128672 | X78: 0.8168578836 | Y78: 0.8639703303 | Z78: 0.9107546116 | AA78: 0.956395093 | AB78: 1.000601842 | AC78: 1.044043934 | AD78: 1.087909773 | AE78: 1.13262948 | AF78: 1.179241713 | AG78: 1.223591835 | AH78: 1.268770336 | AI78: 1.314493655 | AJ78: 1.359598877 | AK78: 1.404028651 | AL78: 1.449207152 | AM78: 1.495822571 | AN78: 1.545101547 | AO78: =AO737 -> 1.545101547 | AP78: 1.545101547 | AQ78: 1.545101547 | AR78: 0 | AS78: 0 | AT78: 0 | AU78: 0 | AV78: 0 | AW78: 0 | AX78: 0 | AY78: 0 | AZ78: 0 | BA78: 0 | BB78: 0 | BC78: 0 | BD78: 0 | BE78: 0 | BF78: 0 | BG78: 0 | BH78: 0 | BI78: 0 | BJ78: 0 | BK78: 0 | BL78: 0 | BM78: 0
A79: Aéreas | B79: MM R$ | I79: =I859 -> 0 | J79: 0 | K79: 0.00356528046 | L79: 0.00773973892 | M79: 0.01255674774 | N79: 0.01794797304 | O79: 0.0353715593 | P79: 0.06020157618 | Q79: 0.08859199162 | R79: 0.1216655472 | S79: 0.1542742798 | T79: 0.1813337801 | U79: 0.2176526355 | V79: 0.246028454 | W79: 0.2583741083 | X79: 0.271623465 | Y79: 0.2872894042 | Z79: 0.3028462212 | AA79: 0.3180226992 | AB79: 0.3327224292 | AC79: 0.3471678936 | AD79: 0.3617542635 | AE79: 0.3766245634 | AF79: 0.3921241706 | AG79: 0.4068715754 | AH79: 0.4218944346 | AI79: 0.437098458 | AJ79: 0.4520969501 | AK79: 0.4668708409 | AL79: 0.4818937001 | AM79: 0.4973943667 | AN79: 0.5137807252 | AO79: =AO859 -> 0.5137807252 | AP79: 0.5137807252 | AQ79: 0.5137807252 | AR79: 0 | AS79: 0 | AT79: 0 | AU79: 0 | AV79: 0 | AW79: 0 | AX79: 0 | AY79: 0 | AZ79: 0 | BA79: 0 | BB79: 0 | BC79: 0 | BD79: 0 | BE79: 0 | BF79: 0 | BG79: 0 | BH79: 0 | BI79: 0 | BJ79: 0 | BK79: 0 | BL79: 0 | BM79: 0
A80: Publicidade | B80: MM R$ | I80: =I872 -> 0 | J80: 0 | K80: 0.002191343112 | L80: 0.004757107824 | M80: 0.007717805928 | N80: 0.01103143709 | O80: 0.02174056816 | P80: 0.03700194439 | Q80: 0.05445166314 | R80: 0.07477979972 | S80: 0.09482224025 | T80: 0.1114539331 | U80: 0.1337767418 | V80: 0.1512174888 | W80: 0.1588055495 | X80: 0.1669490565 | Y80: 0.1765778777 | Z80: 0.1861396286 | AA80: 0.1954676102 | AB80: 0.2045025662 | AC80: 0.2133812419 | AD80: 0.2223465229 | AE80: 0.231486317 | AF80: 0.2410129048 | AG80: 0.2500771634 | AH80: 0.2593107256 | AI80: 0.2686556376 | AJ80: 0.277874223 | AK80: 0.2869547607 | AL80: 0.296188323 | AM80: 0.305715562 | AN80: 0.3157871774 | AO80: =AO872 -> 0.3157871774 | AP80: 0.3157871774 | AQ80: 0.3157871774 | AR80: 0 | AS80: 0 | AT80: 0 | AU80: 0 | AV80: 0 | AW80: 0 | AX80: 0 | AY80: 0 | AZ80: 0 | BA80: 0 | BB80: 0 | BC80: 0 | BD80: 0 | BE80: 0 | BF80: 0 | BG80: 0 | BH80: 0 | BI80: 0 | BJ80: 0 | BK80: 0 | BL80: 0 | BM80: 0
A82: Telecom | B82: MM R$ | I82: =I878 -> 0 | J82: 0 | K82: 0.00239134665 | L82: 0.0051912883 | M82: 0.00842220885 | N82: 0.0120382746 | O82: 0.02372482636 | P82: 0.04037910598 | Q82: 0.0594214578 | R82: 0.08160494017 | S82: 0.1034766511 | T82: 0.1216263159 | U82: 0.1459865238 | V82: 0.165019085 | W82: 0.1732997068 | X82: 0.1821864704 | Y82: 0.1926941126 | Z82: 0.203128563 | AA82: 0.213307908 | AB82: 0.223167483 | AC82: 0.232856514 | AD82: 0.2426400548 | AE82: 0.2526140364 | AF82: 0.2630101144 | AG82: 0.2729016664 | AH82: 0.2829779744 | AI82: 0.293175795 | AJ82: 0.3032357592 | AK82: 0.3131450762 | AL82: 0.3232213842 | AM82: 0.3336181728 | AN82: 0.344609023 | AO82: =AO878 -> 0.344609023 | AP82: 0.344609023 | AQ82: 0.344609023 | AR82: 0 | AS82: 0 | AT82: 0 | AU82: 0 | AV82: 0 | AW82: 0 | AX82: 0 | AY82: 0 | AZ82: 0 | BA82: 0 | BB82: 0 | BC82: 0 | BD82: 0 | BE82: 0 | BF82: 0 | BG82: 0 | BH82: 0 | BI82: 0 | BJ82: 0 | BK82: 0 | BL82: 0 | BM82: 0
A83: TECA Concedido | B83: MM R$ | I83: =SUM(I654,I671) -> 0 | J83: 0 | K83: 0.00501369863 | L83: 0.015 | M83: 0.015 | N83: 0.015 | O83: 0.015 | P83: 0.015 | Q83: 0.015 | R83: 0.015 | S83: 0.015 | T83: 0.015 | U83: 0.015 | V83: 0.015 | W83: 0.015 | X83: 0.015 | Y83: 0.015 | Z83: 0.015 | AA83: 0.015 | AB83: 0.015 | AC83: 0.015 | AD83: 0.015 | AE83: 0.015 | AF83: 0.015 | AG83: 0.015 | AH83: 0.015 | AI83: 0.015 | AJ83: 0.015 | AK83: 0.015 | AL83: 0.015 | AM83: 0.015 | AN83: 0.015 | AO83: =SUM(AO654,AO671) -> 0.015 | AP83: 0.015 | AQ83: 0.00998630137 | AR83: 0 | AS83: 0 | AT83: 0 | AU83: 0 | AV83: 0 | AW83: 0 | AX83: 0 | AY83: 0 | AZ83: 0 | BA83: 0 | BB83: 0 | BC83: 0 | BD83: 0 | BE83: 0 | BF83: 0 | BG83: 0 | BH83: 0 | BI83: 0 | BJ83: 0 | BK83: 0 | BL83: 0 | BM83: 0
A84: Imobiliário | B84: MM R$ | I84: =I887 -> 0 | J84: 0 | K84: 0 | L84: 0 | M84: 0 | N84: 0 | O84: 0 | P84: 0 | Q84: 0 | R84: 0 | S84: 0 | T84: 0 | U84: 0 | V84: 0 | W84: 0 | X84: 0 | Y84: 0 | Z84: 0 | AA84: 0 | AB84: 0 | AC84: 0 | AD84: 0 | AE84: 0 | AF84: 0 | AG84: 0 | AH84: 0 | AI84: 0 | AJ84: 0 | AK84: 0 | AL84: 0 | AM84: 0 | AN84: 0 | AO84: =AO887 -> 0 | AP84: 0 | AQ84: 0 | AR84: 0 | AS84: 0 | AT84: 0 | AU84: 0 | AV84: 0 | AW84: 0 | AX84: 0 | AY84: 0 | AZ84: 0 | BA84: 0 | BB84: 0 | BC84: 0 | BD84: 0 | BE84: 0 | BF84: 0 | BG84: 0 | BH84: 0 | BI84: 0 | BJ84: 0 | BK84: 0 | BL84: 0 | BM84: 0
A85: Outras Receitas | B85: MM R$ | I85: =I891 -> 0 | J85: 0 | K85: 1.337551515 | L85: 4.001226992 | M85: 4.001990664 | N85: 16.50284537 | O85: 16.50560765 | P85: 4.009544112 | Q85: 4.014045032 | R85: 4.0192884 | S85: 0.6874718095 | T85: 0.0287480383 | U85: 0.03450590563 | V85: 0.039004511 | W85: 0.04096174888 | X85: 0.04306225664 | Y85: 0.04554588116 | Z85: 0.0480122058 | AA85: 0.0504182328 | AB85: 0.0527486778 | AC85: 0.0550388124 | AD85: 0.05735128568 | AE85: 0.05970877224 | AF85: 0.06216602704 | AG85: 0.06450403024 | AH85: 0.06688570304 | AI85: 0.069296097 | AJ85: 0.07167390672 | AK85: 0.07401610892 | AL85: 0.07639778172 | AM85: 0.07885520448 | AN85: 0.0814530418 | AO85: =AO891 -> 0.0814530418 | AP85: 0.0814530418 | AQ85: 0.0814530418 | AR85: 0 | AS85: 0 | AT85: 0 | AU85: 0 | AV85: 0 | AW85: 0 | AX85: 0 | AY85: 0 | AZ85: 0 | BA85: 0 | BB85: 0 | BC85: 0 | BD85: 0 | BE85: 0 | BF85: 0 | BG85: 0 | BH85: 0 | BI85: 0 | BJ85: 0 | BK85: 0 | BL85: 0 | BM85: 0
A87: AUXILIARES
A88: WLU | B88: MM WLU | C88: Ajustado para volume sob controle da concessionária | I88: =I436*I321 -> 0 | J88: 0 | K88: 0.001124823288 | L88: 0.0073055 | M88: 0.01185225 | N88: 0.016941 | O88: 0.033387034 | P88: 0.05682396 | Q88: 0.083621528 | R88: 0.114839488 | S88: 0.145618704 | T88: 0.171160028 | U88: 0.20544121 | V88: 0.232225 | W88: 0.243878 | X88: 0.256384 | Y88: 0.271171 | Z88: 0.285855 | AA88: 0.30018 | AB88: 0.314055 | AC88: 0.32769 | AD88: 0.341458 | AE88: 0.355494 | AF88: 0.370124 | AG88: 0.384044 | AH88: 0.398224 | AI88: 0.412575 | AJ88: 0.426732 | AK88: 0.440677 | AL88: 0.454857 | AM88: 0.469488 | AN88: 0.484955 | AO88: =AO436*AO321 -> 0.484955 | AP88: 0.484955 | AQ88: 0.3228604521 | AR88: 0 | AS88: 0 | AT88: 0 | AU88: 0 | AV88: 0 | AW88: 0 | AX88: 0 | AY88: 0 | AZ88: 0 | BA88: 0 | BB88: 0 | BC88: 0 | BD88: 0 | BE88: 0 | BF88: 0 | BG88: 0 | BH88: 0 | BI88: 0 | BJ88: 0 | BK88: 0 | BL88: 0 | BM88: 0
A89: Colaboradores do operador aeroportuário | B89: # colaboradores | I89: =I450 -> 0 | J89: 0 | K89: 6 | L89: 23 | M89: 31 | N89: 41 | O89: 48 | P89: 60 | Q89: 71 | R89: 78 | S89: 86 | T89: 85 | U89: 88 | V89: 90 | W89: 92 | X89: 94 | Y89: 96 | Z89: 98 | AA89: 101 | AB89: 103 | AC89: 105 | AD89: 107 | AE89: 109 | AF89: 111 | AG89: 113 | AH89: 115 | AI89: 117 | AJ89: 119 | AK89: 121 | AL89: 123 | AM89: 125 | AN89: 127 | AO89: =AO450 -> 127 | AP89: 127 | AQ89: 106 | AR89: 0 | AS89: 0 | AT89: 0 | AU89: 0 | AV89: 0 | AW89: 0 | AX89: 0 | AY89: 0 | AZ89: 0 | BA89: 0 | BB89: 0 | BC89: 0 | BD89: 0 | BE89: 0 | BF89: 0 | BG89: 0 | BH89: 0 | BI89: 0 | BJ89: 0 | BK89: 0 | BL89: 0 | BM89: 0
A90: Receita bruta de serviços | B90: MM R$ | I90: =I488 -> 0 | J90: 0 | K90: 1.490951238 | L90: 4.743644491 | M90: 5.180056828 | N90: 18.16205505 | O90: 19.11446868 | P90: 8.489596247 | Q90: 10.30373785 | R90: 12.41992774 | S90: 12.36342448 | T90: 14.93896865 | U90: 18.9845009 | V90: 22.74629785 | W90: 23.95776324 | X90: 25.35854048 | Y90: 26.85652778 | Z90: 28.33572155 | AA90: 29.79469907 | AB90: 31.29194184 | AC90: 32.64096587 | AD90: 34.02211177 | AE90: 35.47555931 | AF90: 37.0389527 | AG90: 38.43505998 | AH90: 39.89358729 | AI90: 41.40437171 | AJ90: 42.86166675 | AK90: 44.25665928 | AL90: 45.70731509 | AM90: 47.28341942 | AN90: 48.81298582 | AO90: =AO488 -> 48.81298582 | AP90: 48.81298582 | AQ90: 34.33777515 | AR90: 0 | AS90: 0 | AT90: 0 | AU90: 0 | AV90: 0 | AW90: 0 | AX90: 0 | AY90: 0 | AZ90: 0 | BA90: 0 | BB90: 0 | BC90: 0 | BD90: 0 | BE90: 0 | BF90: 0 | BG90: 0 | BH90: 0 | BI90: 0 | BJ90: 0 | BK90: 0 | BL90: 0 | BM90: 0
A91: Receita bruta tarifária | B91: MM R$ | I91: =I492 -> 0 | J91: 0 | K91: 0.09641272389 | L91: 0.6171685877 | M91: 0.988058805 | N91: 1.398730649 | O91: 2.169887161 | P91: 3.790039074 | Q91: 5.309540806 | R91: 7.082136418 | S91: 10.00493496 | T91: 12.93604178 | U91: 16.58150902 | V91: 20.01776749 | W91: 21.10045802 | X91: 22.36605785 | Y91: 23.69647939 | Z91: 25.01107479 | AA91: 26.30943694 | AB91: 27.65463108 | AC91: 28.85786545 | AD91: 30.0884411 | AE91: 31.38723587 | AF91: 32.78909101 | AG91: 34.03078621 | AH91: 35.33232054 | AI91: 36.68488872 | AJ91: 37.98708994 | AK91: 39.22656663 | AL91: 40.52140026 | AM91: 41.93656767 | AN91: 43.29198273 | AO91: =AO492 -> 43.29198273 | AP91: 43.29198273 | AQ91: 28.82178576 | AR91: 0 | AS91: 0 | AT91: 0 | AU91: 0 | AV91: 0 | AW91: 0 | AX91: 0 | AY91: 0 | AZ91: 0 | BA91: 0 | BB91: 0 | BC91: 0 | BD91: 0 | BE91: 0 | BF91: 0 | BG91: 0 | BH91: 0 | BI91: 0 | BJ91: 0 | BK91: 0 | BL91: 0 | BM91: 0
A92: Receita bruta não-tarifária | B92: MM R$ | I92: =I652 -> 0 | J92: 0 | K92: 1.394538514 | L92: 4.126475903 | M92: 4.191998023 | N92: 16.7633244 | O92: 16.94458151 | P92: 4.699557173 | Q92: 4.994197043 | R92: 5.337791322 | S92: 2.358489521 | T92: 2.002926872 | U92: 2.40299188 | V92: 2.728530364 | W92: 2.857305219 | X92: 2.992482631 | Y92: 3.16004839 | Z92: 3.324646761 | AA92: 3.485262129 | AB92: 3.637310761 | AC92: 3.783100429 | AD92: 3.933670677 | AE92: 4.088323439 | AF92: 4.249861682 | AG92: 4.40427377 | AH92: 4.561266757 | AI92: 4.719482984 | AJ92: 4.874576809 | AK92: 5.030092653 | AL92: 5.18591483 | AM92: 5.34685175 | AN92: 5.521003092 | AO92: =AO652 -> 5.521003092 | AP92: 5.521003092 | AQ92: 5.515989393 | AR92: 0 | AS92: 0 | AT92: 0 | AU92: 0 | AV92: 0 | AW92: 0 | AX92: 0 | AY92: 0 | AZ92: 0 | BA92: 0 | BB92: 0 | BC92: 0 | BD92: 0 | BE92: 0 | BF92: 0 | BG92: 0 | BH92: 0 | BI92: 0 | BJ92: 0 | BK92: 0 | BL92: 0 | BM92: 0
A93: Receita bruta de serviços s/ ATAERO | B93: MM R$ | I93: =I92+I94 ->  | AO93: =AO92+AO94 -> 
A94: Receita bruta tarifária s/ ATAERO | B94: MM R$ | E94: 0 | I94: =I91/$E94 ->  | AO94: =AO91/$E94 -> 
A95: Receita líquida s/ ATAERO | B95: MM R$ | I95: =I94*(1-14.25%)+I92*(1-9.25%)+I894+I920 ->  | AO95: =AO94*(1-14.25%)+AO92*(1-9.25%)+AO894+AO920 -> 
A96: Custo operacional ajustado sem outorgas | B96: MM R$ | I96: =I201 -> 0 | J96: 0 | K96: -1.807203729 | L96: -3.865798411 | M96: -4.762812554 | N96: -5.963723597 | O96: -7.513843464 | P96: -8.601191763 | Q96: -10.1770878 | R96: -10.99514273 | S96: -11.86318746 | T96: -12.49300682 | U96: -12.46228583 | V96: -12.69297799 | W96: -12.92351363 | X96: -13.15523707 | Y96: -13.80985138 | Z96: -13.73257409 | AA96: -13.99995585 | AB96: -14.246047 | AC96: -14.47459943 | AD96: -15.07653449 | AE96: -14.95709615 | AF96: -15.20757626 | AG96: -15.44906605 | AH96: -15.69145325 | AI96: -16.29581035 | AJ96: -16.16741627 | AK96: -16.40744288 | AL96: -16.64313564 | AM96: -16.88468176 | AN96: -17.14813776 | AO96: =AO201 -> -16.71493361 | AP96: -16.71493361 | AQ96: -13.80946974 | AR96: 0 | AS96: 0 | AT96: 0 | AU96: 0 | AV96: 0 | AW96: 0 | AX96: 0 | AY96: 0 | AZ96: 0 | BA96: 0 | BB96: 0 | BC96: 0 | BD96: 0 | BE96: 0 | BF96: 0 | BG96: 0 | BH96: 0 | BI96: 0 | BJ96: 0 | BK96: 0 | BL96: 0 | BM96: 0
A97: Custo operacional ajustado com outorgas | B97: MM R$ | I97: =I202 -> 0 | J97: 0 | K97: -1.807203729 | L97: -3.865798411 | M97: -4.762812554 | N97: -5.963723597 | O97: -7.513843464 | P97: -8.601191763 | Q97: -10.1770878 | R97: -10.99514273 | S97: -11.86318746 | T97: -12.49300682 | U97: -12.46228583 | V97: -12.69297799 | W97: -12.92351363 | X97: -13.15523707 | Y97: -13.80985138 | Z97: -13.73257409 | AA97: -13.99995585 | AB97: -14.246047 | AC97: -14.47459943 | AD97: -15.07653449 | AE97: -14.95709615 | AF97: -15.20757626 | AG97: -15.44906605 | AH97: -15.69145325 | AI97: -16.29581035 | AJ97: -16.16741627 | AK97: -16.40744288 | AL97: -16.64313564 | AM97: -16.88468176 | AN97: -17.14813776 | AO97: =AO202 -> -16.71493361 | AP97: -16.71493361 | AQ97: -13.80946974 | AR97: 0 | AS97: 0 | AT97: 0 | AU97: 0 | AV97: 0 | AW97: 0 | AX97: 0 | AY97: 0 | AZ97: 0 | BA97: 0 | BB97: 0 | BC97: 0 | BD97: 0 | BE97: 0 | BF97: 0 | BG97: 0 | BH97: 0 | BI97: 0 | BJ97: 0 | BK97: 0 | BL97: 0 | BM97: 0
A98: EBITDA ajustado, sem outorgas | B98: MM R$ | I98: =I204 -> 0 | J98: 0 | K98: -0.3755211083 | L98: 0.6737832758 | M98: 0.1786697251 | N98: 11.46533764 | O98: 10.79417236 | P98: -0.6114449407 | Q98: -0.515615674 | R98: 0.6163864061 | S98: -0.45249762 | T98: 1.252449983 | U98: 4.998480037 | V98: 8.220241386 | W98: 9.102720265 | X98: 10.15726068 | Y98: 10.87931187 | Z98: 12.31593928 | AA98: 13.38924394 | AB98: 14.51836998 | AC98: 15.52932598 | AD98: 16.19648059 | AE98: 17.65125802 | AF98: 18.83689181 | AG98: 19.87834973 | AH98: 20.9760578 | AI98: 21.75959254 | AJ98: 23.22686145 | AK98: 24.2688192 | AL98: 25.36597255 | AM98: 26.5721217 | AN98: 27.71450228 | AO98: =AO204 -> 28.14770644 | AP98: 28.14770644 | AQ98: 17.82981468 | AR98: 0 | AS98: 0 | AT98: 0 | AU98: 0 | AV98: 0 | AW98: 0 | AX98: 0 | AY98: 0 | AZ98: 0 | BA98: 0 | BB98: 0 | BC98: 0 | BD98: 0 | BE98: 0 | BF98: 0 | BG98: 0 | BH98: 0 | BI98: 0 | BJ98: 0 | BK98: 0 | BL98: 0 | BM98: 0
A99: EBITDA ajustado, com outorgas | B99: MM R$ | I99: =I205 -> 0 | J99: 0 | K99: -0.3755211083 | L99: 0.6737832758 | M99: 0.1786697251 | N99: 11.46533764 | O99: 10.79417236 | P99: -0.6114449407 | Q99: -0.515615674 | R99: 0.6163864061 | S99: -0.45249762 | T99: 1.252449983 | U99: 4.998480037 | V99: 8.220241386 | W99: 9.102720265 | X99: 10.15726068 | Y99: 10.87931187 | Z99: 12.31593928 | AA99: 13.38924394 | AB99: 14.51836998 | AC99: 15.52932598 | AD99: 16.19648059 | AE99: 17.65125802 | AF99: 18.83689181 | AG99: 19.87834973 | AH99: 20.9760578 | AI99: 21.75959254 | AJ99: 23.22686145 | AK99: 24.2688192 | AL99: 25.36597255 | AM99: 26.5721217 | AN99: 27.71450228 | AO99: =AO205 -> 28.14770644 | AP99: 28.14770644 | AQ99: 17.82981468 | AR99: 0 | AS99: 0 | AT99: 0 | AU99: 0 | AV99: 0 | AW99: 0 | AX99: 0 | AY99: 0 | AZ99: 0 | BA99: 0 | BB99: 0 | BC99: 0 | BD99: 0 | BE99: 0 | BF99: 0 | BG99: 0 | BH99: 0 | BI99: 0 | BJ99: 0 | BK99: 0 | BL99: 0 | BM99: 0
A100: EBITDA ajustado s/ ATAERO s/ outorgas | B100: MM R$ | I100: =I95+I96 ->  | AO100: =AO95+AO96 -> 
A103: SÍNTESE
A105: VALUATION
L106: 6.683140347 | M106: -10.07208391 | N106: -45.61033345 | O106: -12.66457466 | P106: -25.47674075
A107: Valoração para a firma - definição de parâmetros da concessão
A108: Fluxo de caixa livre do projeto | B108: MM R$ | I108: =IF(OR(I111>Result!$C$6,I111<0),"",I268) ->  | J108: =IF(OR(J111>Result!$C$6,J111<0),"",J268) ->  | K108: =IF(OR(K111>Result!$C$6,K111<0),"",K268) -> -5.112815898 | L108: =IF(OR(L111>Result!$C$6,L111<0),"",L268) -> -1.973574279 | M108: =IF(OR(M111>Result!$C$6,M111<0),"",M268) -> -10.48355768 | N108: =IF(OR(N111>Result!$C$6,N111<0),"",N268) -> 5.076177273 | O108: =IF(OR(O111>Result!$C$6,O111<0),"",O268) -> 7.596538398 | P108: =IF(OR(P111>Result!$C$6,P111<0),"",P268) -> -47.58214413 | Q108: =IF(OR(Q111>Result!$C$6,Q111<0),"",Q268) -> -11.05979878 | R108: =IF(OR(R111>Result!$C$6,R111<0),"",R268) -> -2.077410362 | S108: =IF(OR(S111>Result!$C$6,S111<0),"",S268) -> -2.825760865 | T108: =IF(OR(T111>Result!$C$6,T111<0),"",T268) -> -1.809610311 | U108: =IF(OR(U111>Result!$C$6,U111<0),"",U268) -> 1.175330916 | V108: =IF(OR(V111>Result!$C$6,V111<0),"",V268) -> 4.048823109 | W108: =IF(OR(W111>Result!$C$6,W111<0),"",W268) -> 5.149906336 | X108: =IF(OR(X111>Result!$C$6,X111<0),"",X268) -> 6.021125708 | Y108: =IF(OR(Y111>Result!$C$6,Y111<0),"",Y268) -> 6.626528246 | Z108: =IF(OR(Z111>Result!$C$6,Z111<0),"",Z268) -> 7.786479865 | AA108: =IF(OR(AA111>Result!$C$6,AA111<0),"",AA268) -> 8.751617923 | AB108: =IF(OR(AB111>Result!$C$6,AB111<0),"",AB268) -> 9.704125294 | AC108: =IF(OR(AC111>Result!$C$6,AC111<0),"",AC268) -> 10.58127 | AD108: =IF(OR(AD111>Result!$C$6,AD111<0),"",AD268) -> 11.14466849 | AE108: =IF(OR(AE111>Result!$C$6,AE111<0),"",AE268) -> 12.3175179 | AF108: =IF(OR(AF111>Result!$C$6,AF111<0),"",AF268) -> 11.50796897 | AG108: =IF(OR(AG111>Result!$C$6,AG111<0),"",AG268) -> 13.94446956 | AH108: =IF(OR(AH111>Result!$C$6,AH111<0),"",AH268) -> 15.19747347 | AI108: =IF(OR(AI111>Result!$C$6,AI111<0),"",AI268) -> 15.86115951 | AJ108: =IF(OR(AJ111>Result!$C$6,AJ111<0),"",AJ268) -> 17.06065427 | AK108: =IF(OR(AK111>Result!$C$6,AK111<0),"",AK268) -> 18.00956115 | AL108: =IF(OR(AL111>Result!$C$6,AL111<0),"",AL268) -> 18.93346239 | AM108: =IF(OR(AM111>Result!$C$6,AM111<0),"",AM268) -> 19.94711456 | AN108: =IF(OR(AN111>Result!$C$6,AN111<0),"",AN268) -> 20.92752025 | AO108: =IF(OR(AO111>Result!$C$6,AO111<0),"",AO268) -> 21.46619284 | AP108: =IF(OR(AP111>Result!$C$6,AP111<0),"",AP268) -> 21.53108678 | AQ108: =IF(OR(AQ111>Result!$C$6,AQ111<0),"",AQ268) -> 17.00033204 | AR108: =IF(OR(AR111>Result!$C$6,AR111<0),"",AR268) ->  | AS108: =IF(OR(AS111>Result!$C$6,AS111<0),"",AS268) ->  | AT108: =IF(OR(AT111>Result!$C$6,AT111<0),"",AT268) ->  | AU108: =IF(OR(AU111>Result!$C$6,AU111<0),"",AU268) ->  | AV108: =IF(OR(AV111>Result!$C$6,AV111<0),"",AV268) ->  | AW108: =IF(OR(AW111>Result!$C$6,AW111<0),"",AW268) ->  | AX108: =IF(OR(AX111>Result!$C$6,AX111<0),"",AX268) ->  | AY108: =IF(OR(AY111>Result!$C$6,AY111<0),"",AY268) ->  | AZ108: =IF(OR(AZ111>Result!$C$6,AZ111<0),"",AZ268) ->  | BA108: =IF(OR(BA111>Result!$C$6,BA111<0),"",BA268) ->  | BB108: =IF(OR(BB111>Result!$C$6,BB111<0),"",BB268) ->  | BC108: =IF(OR(BC111>Result!$C$6,BC111<0),"",BC268) ->  | BD108: =IF(OR(BD111>Result!$C$6,BD111<0),"",BD268) ->  | BE108: =IF(OR(BE111>Result!$C$6,BE111<0),"",BE268) ->  | BF108: =IF(OR(BF111>Result!$C$6,BF111<0),"",BF268) ->  | BG108: =IF(OR(BG111>Result!$C$6,BG111<0),"",BG268) ->  | BH108: =IF(OR(BH111>Result!$C$6,BH111<0),"",BH268) ->  | BI108: =IF(OR(BI111>Result!$C$6,BI111<0),"",BI268) ->  | BJ108: =IF(OR(BJ111>Result!$C$6,BJ111<0),"",BJ268) ->  | BK108: =IF(OR(BK111>Result!$C$6,BK111<0),"",BK268) ->  | BL108: =IF(OR(BL111>Result!$C$6,BL111<0),"",BL268) ->  | BM108: =IF(OR(BM111>Result!$C$6,BM111<0),"",BM268) -> 
A109: Fluxo de caixa livre acumulado | B109: MM R$ | I109: 0 | J109: =IF(J108="",0,J108+I109) -> 0 | K109: =IF(K108="",0,K108+J109) -> -5.112815898 | L109: =IF(L108="",0,L108+K109) -> -7.086390177 | M109: =IF(M108="",0,M108+L109) -> -17.56994785 | N109: -12.49377058 | O109: -4.897232182 | P109: -52.47937631 | Q109: -63.53917509 | R109: -65.61658545 | S109: -68.44234632 | T109: -70.25195663 | U109: -69.07662571 | V109: -65.0278026 | W109: -59.87789627 | X109: -53.85677056 | Y109: -47.23024231 | Z109: -39.44376245 | AA109: -30.69214452 | AB109: -20.98801923 | AC109: -10.40674923 | AD109: 0.7379192564 | AE109: 13.05543716 | AF109: 24.56340613 | AG109: 38.50787569 | AH109: 53.70534916 | AI109: 69.56650867 | AJ109: 86.62716294 | AK109: 104.6367241 | AL109: 123.5701865 | AM109: 143.517301 | AN109: 164.4448213 | AO109: 185.9110141 | AP109: 207.4421009 | AQ109: 224.442433 | AR109: 0 | AS109: 0 | AT109: 0 | AU109: 0 | AV109: 0 | AW109: 0 | AX109: 0 | AY109: 0 | AZ109: 0 | BA109: 0 | BB109: 0 | BC109: 0 | BD109: 0 | BE109: 0 | BF109: 0 | BG109: 0 | BH109: 0 | BI109: 0 | BJ109: 0 | BK109: 0 | BL109: 0 | BM109: 0
A110: Fator de desconto | B110: [] | E110: =Premissas!D$3 -> 0.083 | F110: % a.a. real | I110: =1/(1+$E110)^I111 -> 1.172889 | J110: 1.083 | K110: 1 | L110: 0.9233610342 | M110: 0.8525955994 | N110: 0.7872535544 | O110: 0.7269192561 | P110: 0.6712089161 | Q110: 0.6197681589 | R110: 0.5722697682 | S110: 0.5284116049 | T110: 0.487914686 | U110: 0.4505214091 | V110: 0.4159939142 | W110: 0.3841125708 | X110: 0.3546745806 | Y110: 0.3274926875 | Z110: 0.3023939867 | AA110: 0.2792188242 | AB110: 0.2578197823 | AC110: 0.2380607408 | AD110: 0.2198160118 | AE110: 0.20296954 | AF110: 0.1874141644 | AG110: 0.1730509366 | AH110: 0.1597884918 | AI110: 0.147542467 | AJ110: 0.136234965 | AK110: 0.1257940581 | AL110: 0.1161533316 | AM110: 0.1072514604 | AN110: 0.09903181939 | AO110: =1/(1+$E110)^AO111 -> 0.09144212316 | AP110: 0.08443409341 | AQ110: 0.07796315181 | AR110: 0.07198813648 | AS110: 0.06647104015 | AT110: 0.06137676837 | AU110: 0.05667291632 | AV110: 0.05232956262 | AW110: 0.04831907906 | AX110: 0.04461595481 | AY110: 0.04119663417 | AZ110: 0.03803936674 | BA110: 0.03512406901 | BB110: 0.03243219668 | BC110: 0.02994662667 | BD110: 0.02765154817 | BE110: 0.02553236212 | BF110: 0.02357558829 | BG110: 0.02176877958 | BH110: 0.02010044283 | BI110: 0.01855996568 | BJ110: 0.0171375491 | BK110: 0.01582414506 | BL110: 0.01461139895 | BM110: 0.01349159644
A111: Distância entre fim de período e data presente | B111: anos | I111: =Timing!I$50 -> -2 | J111: =Timing!J$50 -> -1 | K111: =Timing!K$50 -> 0 | L111: =Timing!L$50 -> 1 | M111: =Timing!M$50 -> 2 | N111: =Timing!N$50 -> 3 | O111: =Timing!O$50 -> 4 | P111: =Timing!P$50 -> 5 | Q111: =Timing!Q$50 -> 6 | R111: =Timing!R$50 -> 7 | S111: =Timing!S$50 -> 8 | T111: =Timing!T$50 -> 9 | U111: =Timing!U$50 -> 10 | V111: =Timing!V$50 -> 11 | W111: =Timing!W$50 -> 12 | X111: =Timing!X$50 -> 13 | Y111: =Timing!Y$50 -> 14 | Z111: =Timing!Z$50 -> 15 | AA111: =Timing!AA$50 -> 16 | AB111: =Timing!AB$50 -> 17 | AC111: =Timing!AC$50 -> 18 | AD111: =Timing!AD$50 -> 19 | AE111: =Timing!AE$50 -> 20 | AF111: =Timing!AF$50 -> 21 | AG111: =Timing!AG$50 -> 22 | AH111: =Timing!AH$50 -> 23 | AI111: =Timing!AI$50 -> 24 | AJ111: =Timing!AJ$50 -> 25 | AK111: =Timing!AK$50 -> 26 | AL111: =Timing!AL$50 -> 27 | AM111: =Timing!AM$50 -> 28 | AN111: =Timing!AN$50 -> 29 | AO111: =Timing!AO$50 -> 30 | AP111: =Timing!AP$50 -> 31 | AQ111: =Timing!AQ$50 -> 32 | AR111: =Timing!AR$50 -> 33 | AS111: =Timing!AS$50 -> 34 | AT111: =Timing!AT$50 -> 35 | AU111: =Timing!AU$50 -> 36 | AV111: =Timing!AV$50 -> 37 | AW111: =Timing!AW$50 -> 38 | AX111: =Timing!AX$50 -> 39 | AY111: =Timing!AY$50 -> 40 | AZ111: =Timing!AZ$50 -> 41 | BA111: =Timing!BA$50 -> 42 | BB111: =Timing!BB$50 -> 43 | BC111: =Timing!BC$50 -> 44 | BD111: =Timing!BD$50 -> 45 | BE111: =Timing!BE$50 -> 46 | BF111: =Timing!BF$50 -> 47 | BG111: =Timing!BG$50 -> 48 | BH111: =Timing!BH$50 -> 49 | BI111: =Timing!BI$50 -> 50 | BJ111: =Timing!BJ$50 -> 51 | BK111: =Timing!BK$50 -> 52 | BL111: =Timing!BL$50 -> 53 | BM111: =Timing!BM$50 -> 54
A112: Fluxo de caixa descontado | B112: MM R$ | I112: =IF(I108="",0*I110,I108*I110) -> 0 | J112: =IF(J108="",0*J110,J108*J110) -> 0 | K112: =IF(K108="",0*K110,K108*K110) -> -5.112815898 | L112: -1.822321587 | M112: -8.938235142 | N112: 3.996238601 | O112: 5.522070042 | P112: -31.93755939 | Q112: -6.854511126 | R112: -1.188839146 | S112: -1.493164834 | T112: -0.8829354467 | U112: 0.5295117406 | V112: 1.684285773 | W112: 1.978143762 | X112: 2.135540235 | Y112: 2.170139544 | Z112: 2.354584688 | AA112: 2.443616467 | AB112: 2.501915471 | AC112: 2.518984975 | AD112: 2.44977658 | AE112: 2.500080942 | AF112: 2.156756389 | AG112: 2.413103519 | AH112: 2.428381365 | AI112: 2.340194604 | AJ112: 2.324257636 | AK112: 2.265495782 | AL112: 2.199184736 | AM112: 2.139357167 | AN112: 2.072490406 | AO112: 1.96291425 | AP112: 1.817957792 | AQ112: 1.325399468 | AR112: 0 | AS112: 0 | AT112: 0 | AU112: 0 | AV112: 0 | AW112: 0 | AX112: 0 | AY112: 0 | AZ112: 0 | BA112: 0 | BB112: 0 | BC112: 0 | BD112: 0 | BE112: 0 | BF112: 0 | BG112: 0 | BH112: 0 | BI112: 0 | BJ112: 0 | BK112: 0 | BL112: 0 | BM112: 0
A113: Fluxo de caixa descontado acumulado | B113: MM R$ | I113: =I112 -> 0 | J113: =J112+I113 -> 0 | K113: -5.112815898 | L113: -6.935137485 | M113: -15.87337263 | N113: -11.87713403 | O113: -6.355063984 | P113: -38.29262337 | Q113: -45.1471345 | R113: -46.33597364 | S113: -47.82913848 | T113: -48.71207392 | U113: -48.18256218 | V113: -46.49827641 | W113: -44.52013265 | X113: -42.38459241 | Y113: -40.21445287 | Z113: -37.85986818 | AA113: -35.41625171 | AB113: -32.91433624 | AC113: -30.39535127 | AD113: -27.94557469 | AE113: -25.44549375 | AF113: -23.28873736 | AG113: -20.87563384 | AH113: -18.44725247 | AI113: -16.10705787 | AJ113: -13.78280023 | AK113: -11.51730445 | AL113: -9.318119715 | AM113: -7.178762548 | AN113: -5.106272142 | AO113: -3.143357892 | AP113: =AP112+AO113 -> -1.3254001 | AQ113: -6.321018495e-07 | AR113: -6.321018495e-07 | AS113: -6.321018495e-07 | AT113: -6.321018495e-07 | AU113: -6.321018495e-07 | AV113: -6.321018495e-07 | AW113: -6.321018495e-07 | AX113: -6.321018495e-07 | AY113: -6.321018495e-07 | AZ113: -6.321018495e-07 | BA113: -6.321018495e-07 | BB113: -6.321018495e-07 | BC113: -6.321018495e-07 | BD113: -6.321018495e-07 | BE113: -6.321018495e-07 | BF113: -6.321018495e-07 | BG113: -6.321018495e-07 | BH113: -6.321018495e-07 | BI113: -6.321018495e-07 | BJ113: -6.321018495e-07 | BK113: -6.321018495e-07 | BL113: -6.321018495e-07 | BM113: -6.321018495e-07
K114: =IRR(K108:AQ108,E110) -> 0.08299999916
A115: TIR | E115: =IF(AND(Result!C11<0,IRR(J108:BM108,E110)>Result!C5+0.001),IRR(J108:BM108,E110)*-1,IRR(J108:BM108,E110)) -> 0.08299999916 | F115: % a.a.
A116: TIR modificada | E116: =MIRR(K108:BM108,E110,E110) -> 0.08299999963 | F116: % a.a.
A117: VIR/Profitability Index | E117: =E118/ABS(E267) -> -1.035292903e-08 | F117: []
A118: VPL para firma | E118: =SUM(K112:BM112) -> -6.321018495e-07 | F118: MM R$ @data base
A119: Tempo de payback não-descontado | E119: =E120-E134+1 -> 19.93378724 | F119: anos
A120: Ano quebrado de payback | E120: =FORECAST(0,E121:E122,E123:E124) -> 2039.933787 | F120: [ano]
A121: Ano anterior a payback | E121: =E122-1 -> 2039 | F121: [ano anterior]
A122: Ano de payback? | B122: [1=SIM; 0=NÃO] | E122: =MIN(IF(I122:BM122=1,$I$4:$BM$4,"")) -> 2040 | F122: [ano payback] | I122: =IF(I109>0,1,0) -> 0 | J122: 0 | K122: 0 | L122: 0 | M122: 0 | N122: 0 | O122: 0 | P122: 0 | Q122: 0 | R122: 0 | S122: 0 | T122: 0 | U122: 0 | V122: 0 | W122: 0 | X122: 0 | Y122: 0 | Z122: 0 | AA122: 0 | AB122: 0 | AC122: 0 | AD122: 1 | AE122: 1 | AF122: 1 | AG122: 1 | AH122: 1 | AI122: 1 | AJ122: 1 | AK122: 1 | AL122: 1 | AM122: 1 | AN122: 1 | AO122: =IF(AO109>0,1,0) -> 1 | AP122: 1 | AQ122: 1 | AR122: 0 | AS122: 0 | AT122: 0 | AU122: 0 | AV122: 0 | AW122: 0 | AX122: 0 | AY122: 0 | AZ122: 0 | BA122: 0 | BB122: 0 | BC122: 0 | BD122: 0 | BE122: 0 | BF122: 0 | BG122: 0 | BH122: 0 | BI122: 0 | BJ122: 0 | BK122: 0 | BL122: 0 | BM122: 0
A123: Fluxo de caixa no ano anterior a payback | E123: =INDEX($I$109:$BM$109,MATCH(E121,$I$4:$BM$4,0)) -> -10.40674923 | F123: MM R$
A124: Fluxo de caixa no ano de payback | E124: =INDEX($I$109:$BM$109,MATCH(E122,$I$4:$BM$4,0))/INDEX(Timing!I33:BM33,MATCH(E122,$I$4:$BM$4,0)) -> 0.7379192564 | F124: MM R$
A125: Tempo de payback descontado | E125: =E126-E134+1 -> 33.00000048 | F125: anos
A126: Ano quebrado de payback | E126: =FORECAST(0,E127:E128,E129:E130) -> 2053 | F126: [ano]
A127: Ano anterior a payback | E127: =E128-1 -> 2052 | F127: [ano anterior]
A128: Ano de payback? | B128: [1=SIM; 0=NÃO] | E128: =MIN(IF(I128:BM128=1,$I$4:$BM$4,"")) -> 2053 | F128: [ano payback] | I128: =IF(AND(ROUND(I113,3)>=0,I$4>=$E134),1,0) -> 0 | J128: 0 | K128: 0 | L128: 0 | M128: 0 | N128: 0 | O128: 0 | P128: 0 | Q128: 0 | R128: 0 | S128: 0 | T128: 0 | U128: 0 | V128: 0 | W128: 0 | X128: 0 | Y128: 0 | Z128: 0 | AA128: 0 | AB128: 0 | AC128: 0 | AD128: 0 | AE128: 0 | AF128: 0 | AG128: 0 | AH128: 0 | AI128: 0 | AJ128: 0 | AK128: 0 | AL128: 0 | AM128: 0 | AN128: 0 | AO128: =IF(AND(ROUND(AO113,3)>=0,AO$4>=$E134),1,0) -> 0 | AP128: 0 | AQ128: 1 | AR128: 1 | AS128: 1 | AT128: 1 | AU128: 1 | AV128: 1 | AW128: 1 | AX128: 1 | AY128: 1 | AZ128: 1 | BA128: 1 | BB128: 1 | BC128: 1 | BD128: 1 | BE128: 1 | BF128: 1 | BG128: 1 | BH128: 1 | BI128: 1 | BJ128: 1 | BK128: 1 | BL128: 1 | BM128: 1
A129: Fluxo de caixa no ano anterior a payback | E129: =INDEX($I$113:$BM$113,MATCH(E127,$I$4:$BM$4,0)) -> -1.3254001 | F129: MM R$
A130: Fluxo de caixa no ano de payback | E130: =INDEX($I$113:$BM$113,MATCH(E128,$I$4:$BM$4,0)) -> -6.321018495e-07 | F130: MM R$
A131: Máxima exposição | E131: =MIN(I109:BM109) -> -70.25195663 | F131: MM R$ @data base
A132: Ano de máxima exposição | E132: =INDEX($I$4:$BM$4,MATCH($E$131,$I$109:$BM$109,0)) -> 2030
A134: Ano de início de concessão | E134: =Timing!$E$49 -> 2021 | F134: [ano] | G134: =Premissas!F$11 -> Orientação SAC
A136: Indicadores de atratividade para o acionista
A138: Por método de Fluxo de caixa livre
A139: Fluxo de caixa livre para o acionista | B139: MM R$ | I139: =I273 -> 0 | J139: 0 | K139: -5.112815898 | L139: -1.62266007 | M139: -3.355613461 | N139: 5.066033086 | O139: 7.33400358 | P139: -48.55119578 | Q139: -11.97894366 | R139: -3.117161935 | S139: -3.791840979 | T139: -2.713559189 | U139: 0.1775861276 | V139: 3.132912772 | W139: 4.311676682 | X139: 5.277571231 | Y139: 6.37651296 | Z139: 7.553858286 | AA139: 8.535544554 | AB139: 9.503790573 | AC139: 10.39589888 | AD139: 10.97351907 | AE139: 12.15988011 | AF139: 11.36316331 | AG139: 13.81184585 | AH139: 15.07640971 | AI139: 15.75106075 | AJ139: 16.96514898 | AK139: 18.00956115 | AL139: 18.93346239 | AM139: 19.94711456 | AN139: 20.92752025 | AO139: =AO273 -> 21.46619284 | AP139: 21.53108678 | AQ139: 17.00033204 | AR139: -1.012364665 | AS139: -1.191761041 | AT139: -1.191761041 | AU139: -1.191761041 | AV139: -1.191761041 | AW139: -1.191761041 | AX139: -0.179396376 | AY139: 0 | AZ139: 0 | BA139: 0 | BB139: 0 | BC139: 0 | BD139: 0 | BE139: 0 | BF139: 0 | BG139: 0 | BH139: 0 | BI139: 0 | BJ139: 0 | BK139: 0 | BL139: 0 | BM139: 0
A140: Fator de desconto | B140: [] | E140: =Premissas!$D$4 -> 0.0907 | F140: % a.a. real | G140: =Premissas!$F$4 -> Orientação SAC | J140: =1/(1+$E140)^J141 -> 1.0907 | K140: 1 | L140: 0.9168423948 | M140: 0.8405999769 | N140: 0.7706976959 | O140: 0.7066083211 | P140: 0.6478484653 | Q140: 0.5939749384 | R140: 0.544581405 | S140: 0.4992953195 | T140: 0.4577751164 | U140: 0.419707634 | V140: 0.3848057523 | W140: 0.3528062275 | X140: 0.3234677065 | Y140: 0.2965689067 | Z140: 0.2719069466 | AA140: 0.2492958161 | AB140: 0.228564973 | AC140: 0.2095580572 | AD140: 0.192131711 | AE140: 0.1761544981 | AF140: 0.1615059119 | AG140: 0.148075467 | AH140: 0.1357618658 | AI140: 0.1244722341 | AJ140: 0.1141214212 | AK140: 0.1046313571 | AL140: 0.09593046406 | AM140: 0.0879531164 | AN140: 0.08063914587 | AO140: 0.07393338761 | AP140: =1/(1+$E140)^AP141 -> 0.06778526415 | AQ140: 0.06214840392 | AR140: 0.05698029148 | AS140: 0.0522419469 | AT140: 0.0478976317 | AU140: 0.04391457935 | AV140: 0.0402627481 | AW140: 0.03691459439 | AX140: 0.03384486512 | AY140: 0.03103040719 | AZ140: 0.02844999284 | BA140: 0.02608415957 | BB140: 0.02391506332 | BC140: 0.02192634393 | BD140: 0.02010300168 | BE140: 0.0184312842 | BF140: 0.01689858275 | BG140: 0.01549333707 | BH140: 0.01420494827 | BI140: 0.01302369879 | BJ140: 0.01194067918 | BK140: 0.0109477209 | BL140: 0.01003733465 | BM140: 0.009202653934
A141: Distância entre fim de período e data presente | B141: anos | I141: =Timing!I$50 -> -2 | J141: =Timing!J$50 -> -1 | K141: =Timing!K$50 -> 0 | L141: =Timing!L$50 -> 1 | M141: =Timing!M$50 -> 2 | N141: =Timing!N$50 -> 3 | O141: =Timing!O$50 -> 4 | P141: =Timing!P$50 -> 5 | Q141: =Timing!Q$50 -> 6 | R141: =Timing!R$50 -> 7 | S141: =Timing!S$50 -> 8 | T141: =Timing!T$50 -> 9 | U141: =Timing!U$50 -> 10 | V141: =Timing!V$50 -> 11 | W141: =Timing!W$50 -> 12 | X141: =Timing!X$50 -> 13 | Y141: =Timing!Y$50 -> 14 | Z141: =Timing!Z$50 -> 15 | AA141: =Timing!AA$50 -> 16 | AB141: =Timing!AB$50 -> 17 | AC141: =Timing!AC$50 -> 18 | AD141: =Timing!AD$50 -> 19 | AE141: =Timing!AE$50 -> 20 | AF141: =Timing!AF$50 -> 21 | AG141: =Timing!AG$50 -> 22 | AH141: =Timing!AH$50 -> 23 | AI141: =Timing!AI$50 -> 24 | AJ141: =Timing!AJ$50 -> 25 | AK141: =Timing!AK$50 -> 26 | AL141: =Timing!AL$50 -> 27 | AM141: =Timing!AM$50 -> 28 | AN141: =Timing!AN$50 -> 29 | AO141: =Timing!AO$50 -> 30 | AP141: =Timing!AP$50 -> 31 | AQ141: =Timing!AQ$50 -> 32 | AR141: =Timing!AR$50 -> 33 | AS141: =Timing!AS$50 -> 34 | AT141: =Timing!AT$50 -> 35 | AU141: =Timing!AU$50 -> 36 | AV141: =Timing!AV$50 -> 37 | AW141: =Timing!AW$50 -> 38 | AX141: =Timing!AX$50 -> 39 | AY141: =Timing!AY$50 -> 40 | AZ141: =Timing!AZ$50 -> 41 | BA141: =Timing!BA$50 -> 42 | BB141: =Timing!BB$50 -> 43 | BC141: =Timing!BC$50 -> 44 | BD141: =Timing!BD$50 -> 45 | BE141: =Timing!BE$50 -> 46 | BF141: =Timing!BF$50 -> 47 | BG141: =Timing!BG$50 -> 48 | BH141: =Timing!BH$50 -> 49 | BI141: =Timing!BI$50 -> 50 | BJ141: =Timing!BJ$50 -> 51 | BK141: =Timing!BK$50 -> 52 | BL141: =Timing!BL$50 -> 53 | BM141: =Timing!BM$50 -> 54
A142: Fluxo de caixa descontado | B142: MM R$@data base | J142: =J139*J140 -> 0 | K142: -5.112815898 | L142: -1.487723544 | M142: -2.820728598 | N142: 3.904380026 | O142: 5.182267957 | P142: -31.45381768 | Q142: -7.115192323 | R142: -1.697548426 | S142: -1.893248453 | T142: -1.242199874 | U142: 0.07453425347 | V142: 1.205562856 | W142: 1.521186384 | X142: 1.707123862 | Y142: 1.891075477 | Z142: 2.053946542 | AA142: 2.127875545 | AB142: 2.172233636 | AC142: 2.178544373 | AD142: 2.108360995 | AE142: 2.142017578 | AF142: 1.835218051 | AG142: 2.045195524 | AH142: 2.046801512 | AI142: 1.960569722 | AJ142: 1.936086913 | AK142: 1.884364824 | AL142: 1.816295834 | AM142: 1.754410888 | AN142: 1.687577358 | AO142: 1.587068356 | AP142: =AP139*AP140 -> 1.459490405 | AQ142: 1.056543503 | AR142: -0.05768483369 | AS142: -0.06225991701 | AT142: -0.05708253141 | AU142: -0.0523356848 | AV142: -0.04798357459 | AW142: -0.04399337543 | AX142: -0.006071646149 | AY142: 0 | AZ142: 0 | BA142: 0 | BB142: 0 | BC142: 0 | BD142: 0 | BE142: 0 | BF142: 0 | BG142: 0 | BH142: 0 | BI142: 0 | BJ142: 0 | BK142: 0 | BL142: 0 | BM142: 0
A143: Fluxo de caixa descontado acumulado | B143: MM R$@data base | J143: =J142 -> 0 | K143: =K142+J143 -> -5.112815898 | L143: -6.600539442 | M143: -9.42126804 | N143: -5.516888014 | O143: -0.3346200573 | P143: -31.78843774 | Q143: -38.90363006 | R143: -40.60117848 | S143: -42.49442694 | T143: -43.73662681 | U143: -43.66209256 | V143: -42.4565297 | W143: -40.93534332 | X143: -39.22821945 | Y143: -37.33714398 | Z143: -35.28319744 | AA143: -33.15532189 | AB143: -30.98308825 | AC143: -28.80454388 | AD143: -26.69618289 | AE143: -24.55416531 | AF143: -22.71894726 | AG143: -20.67375173 | AH143: -18.62695022 | AI143: -16.6663805 | AJ143: -14.73029359 | AK143: -12.84592876 | AL143: -11.02963293 | AM143: -9.27522204 | AN143: -7.587644681 | AO143: -6.000576326 | AP143: -4.541085921 | AQ143: =AQ142+AP143 -> -3.484542418 | AR143: -3.542227252 | AS143: -3.604487169 | AT143: -3.6615697 | AU143: -3.713905385 | AV143: -3.76188896 | AW143: -3.805882335 | AX143: -3.811953981 | AY143: -3.811953981 | AZ143: -3.811953981 | BA143: -3.811953981 | BB143: -3.811953981 | BC143: -3.811953981 | BD143: -3.811953981 | BE143: -3.811953981 | BF143: -3.811953981 | BG143: -3.811953981 | BH143: -3.811953981 | BI143: -3.811953981 | BJ143: -3.811953981 | BK143: -3.811953981 | BL143: -3.811953981 | BM143: -3.811953981
A145: VPL de equity | E145: =SUM(E147,E146) -> -3.811953981 | F145: MM R$ @data base
A146: (+) VPL de fluxos livres para acionista | E146: =SUM(I142:BM142) -> -3.811953981 | F146: MM R$ @data base
A147: (+) Caixa inicial | E147: =I281 -> 0 | F147: MM R$ @data base
A148: TIR acionista | E148: =IRR(I139:BM139,$E$140) -> 0.08461717804 | F148: % a.a., real
A149: Máxima exposição | B149: MM R$ acumulado | E149: =MIN(I149:BM149) -> -67.84375431 | F149: MM R$ | I149: =I139 -> 0 | J149: =J139+I149 -> 0 | K149: -5.112815898 | L149: -6.735475968 | M149: -10.09108943 | N149: -5.025056344 | O149: 2.308947236 | P149: -46.24224855 | Q149: -58.22119221 | R149: -61.33835414 | S149: -65.13019512 | T149: -67.84375431 | U149: -67.66616818 | V149: -64.53325541 | W149: -60.22157873 | X149: -54.9440075 | Y149: -48.56749454 | Z149: -41.01363625 | AA149: -32.4780917 | AB149: -22.97430112 | AC149: -12.57840224 | AD149: -1.60488317 | AE149: 10.55499694 | AF149: 21.91816025 | AG149: 35.7300061 | AH149: 50.80641581 | AI149: 66.55747656 | AJ149: 83.52262554 | AK149: 101.5321867 | AL149: 120.4656491 | AM149: 140.4127636 | AN149: 161.3402839 | AO149: 182.8064767 | AP149: =AP139+AO149 -> 204.3375635 | AQ149: 221.3378956 | AR149: 220.3255309 | AS149: 219.1337698 | AT149: 217.9420088 | AU149: 216.7502478 | AV149: 215.5584867 | AW149: 214.3667257 | AX149: 214.1873293 | AY149: 214.1873293 | AZ149: 214.1873293 | BA149: 214.1873293 | BB149: 214.1873293 | BC149: 214.1873293 | BD149: 214.1873293 | BE149: 214.1873293 | BF149: 214.1873293 | BG149: 214.1873293 | BH149: 214.1873293 | BI149: 214.1873293 | BJ149: 214.1873293 | BK149: 214.1873293 | BL149: 214.1873293 | BM149: 214.1873293
A150: Primeiro ano de geração líquida de caixa | B150: [1=gerador de caixa até final de concessão; 0=consome caixa em algum período futuro até final de concessão] | E150: =INDEX($I$4:$BM$4,MATCH(E149,$I149:$BM149,0))+1 -> 2031 | F150: [ano] | I150: =IF(J150=0,0,IF(I151<0,0,1)) -> 0 | J150: 0 | K150: 0 | L150: 0 | M150: 0 | N150: 0 | O150: 0 | P150: 0 | Q150: 0 | R150: 0 | S150: 0 | T150: 0 | U150: 0 | V150: 0 | W150: 0 | X150: 0 | Y150: 0 | Z150: 0 | AA150: 0 | AB150: 0 | AC150: 0 | AD150: 0 | AE150: 0 | AF150: 0 | AG150: 0 | AH150: 0 | AI150: 0 | AJ150: 0 | AK150: 0 | AL150: 0 | AM150: 0 | AN150: 0 | AO150: =IF(AP150=0,0,IF(AO151<0,0,1)) -> 0 | AP150: 0 | AQ150: 0 | AR150: 0 | AS150: 0 | AT150: 0 | AU150: 0 | AV150: 0 | AW150: 0 | AX150: 0 | AY150: 0 | AZ150: 0 | BA150: 0 | BB150: 0 | BC150: 0 | BD150: 0 | BE150: 0 | BF150: =IF(BM150=0,0,IF(BF151<0,0,1)) -> 0 | BG150: 0 | BH150: 0 | BI150: 0 | BJ150: 0 | BK150: 0 | BL150: 0 | BM150: 0
A151: Gera caixa no período? | B151: [1=gera;-1=consome] | I151: =SIGN(ROUND(I139,6)) -> 0 | J151: 0 | K151: -1 | L151: -1 | M151: -1 | N151: 1 | O151: 1 | P151: -1 | Q151: -1 | R151: -1 | S151: -1 | T151: -1 | U151: 1 | V151: 1 | W151: 1 | X151: 1 | Y151: 1 | Z151: 1 | AA151: 1 | AB151: 1 | AC151: 1 | AD151: 1 | AE151: 1 | AF151: 1 | AG151: 1 | AH151: 1 | AI151: 1 | AJ151: 1 | AK151: 1 | AL151: 1 | AM151: 1 | AN151: 1 | AO151: =SIGN(ROUND(AO139,6)) -> 1 | AP151: 1 | AQ151: 1 | AR151: -1 | AS151: -1 | AT151: -1 | AU151: -1 | AV151: -1 | AW151: -1 | AX151: -1 | AY151: 0 | AZ151: 0 | BA151: 0 | BB151: 0 | BC151: 0 | BD151: 0 | BE151: 0 | BF151: 0 | BG151: 0 | BH151: 0 | BI151: 0 | BJ151: 0 | BK151: 0 | BL151: 0 | BM151: 0
A153: Por método de Dividend discount model
A154: Fluxo de -aportes/+dividendos | B154: MM R$ | E154: =SUMPRODUCT(J154:BM154,J140:BM140) -> -5.325440577 | I154: =-SUM(I276,I277,I278) -> 0 | J154: 0 | K154: -5.169399046 | L154: -1.746388706 | M154: -3.371561306 | N154: 0 | O154: 0 | P154: -36.15196273 | Q154: -12.04557014 | R154: -3.194776626 | S154: -3.786445814 | T154: -2.808067746 | U154: 0.02796412148 | V154: 2.995117697 | W154: 4.271653957 | X154: 5.230681016 | Y154: 6.326300163 | Z154: 7.504750809 | AA154: 8.48759147 | AB154: 9.454767158 | AC154: 10.35289241 | AD154: 10.92964664 | AE154: 12.11362526 | AF154: 11.31311632 | AG154: 13.76855675 | AH154: 15.03111713 | AI154: 15.70416671 | AJ154: 16.92068036 | AK154: 17.9678384 | AL154: 18.8899923 | AM154: 19.89926325 | AN154: 20.88184764 | AO154: =-SUM(AO276,AO277,AO278) -> 21.47896922 | AP154: 21.54386315 | AQ154: 18.84190923 | AR154: -1.012364665 | AS154: -1.191761041 | AT154: -1.191761041 | AU154: -1.191761041 | AV154: -1.191761041 | AW154: -1.191761041 | AX154: -0.179396376 | AY154: 4.52171776e-18 | AZ154: 0 | BA154: 0 | BB154: 0 | BC154: 0 | BD154: 0 | BE154: 0 | BF154: 0 | BG154: 0 | BH154: 0 | BI154: 0 | BJ154: 0 | BK154: 0 | BL154: 0 | BM154: 0
A156: TIR acionista | E156: =IRR(I154:BM154,$E$140) -> 0.08252419218 | F156: % a.a., real
A157: Máxima exposição | B157: MM R$ acumulado | E157: =MIN(I157:BM157) -> -68.27417211 | F157: MM R$ | I157: =I154 -> 0 | J157: =J154+I157 -> 0 | K157: -5.169399046 | L157: -6.915787752 | M157: -10.28734906 | N157: -10.28734906 | O157: -10.28734906 | P157: -46.43931178 | Q157: -58.48488192 | R157: -61.67965855 | S157: -65.46610436 | T157: -68.27417211 | U157: -68.24620799 | V157: -65.25109029 | W157: -60.97943633 | X157: -55.74875532 | Y157: -49.42245516 | Z157: -41.91770435 | AA157: -33.43011288 | AB157: -23.97534572 | AC157: -13.6224533 | AD157: -2.692806668 | AE157: 9.420818593 | AF157: 20.73393491 | AG157: 34.50249166 | AH157: 49.53360879 | AI157: 65.2377755 | AJ157: 82.15845586 | AK157: 100.1262943 | AL157: 119.0162866 | AM157: 138.9155498 | AN157: 159.7973974 | AO157: 181.2763667 | AP157: =AP154+AO157 -> 202.8202298 | AQ157: 221.662139 | AR157: 220.6497744 | AS157: 219.4580133 | AT157: 218.2662523 | AU157: 217.0744913 | AV157: 215.8827302 | AW157: 214.6909692 | AX157: 214.5115728 | AY157: 214.5115728 | AZ157: 214.5115728 | BA157: 214.5115728 | BB157: 214.5115728 | BC157: 214.5115728 | BD157: 214.5115728 | BE157: 214.5115728 | BF157: 214.5115728 | BG157: 214.5115728 | BH157: 214.5115728 | BI157: 214.5115728 | BJ157: 214.5115728 | BK157: 214.5115728 | BL157: 214.5115728 | BM157: 214.5115728
A158: Primeiro ano de geração líquida de dividendo | B158: [1=gerador de caixa até final de concessão; 0=consome caixa em algum período futuro até final de concessão] | E158: =INDEX($I$4:$BM$4,MATCH(E157,$I157:$BM157,0))+1 -> 2031 | F158: [ano] | I158: =IF(J158=0,0,IF(I159<0,0,1)) -> 0 | J158: 0 | K158: 0 | L158: 0 | M158: 0 | N158: 0 | O158: 0 | P158: 0 | Q158: 0 | R158: 0 | S158: 0 | T158: 0 | U158: 0 | V158: 0 | W158: 0 | X158: 0 | Y158: 0 | Z158: 0 | AA158: 0 | AB158: 0 | AC158: 0 | AD158: 0 | AE158: 0 | AF158: 0 | AG158: 0 | AH158: 0 | AI158: 0 | AJ158: 0 | AK158: 0 | AL158: 0 | AM158: 0 | AN158: 0 | AO158: =IF(AP158=0,0,IF(AO159<0,0,1)) -> 0 | AP158: 0 | AQ158: 0 | AR158: 0 | AS158: 0 | AT158: 0 | AU158: 0 | AV158: 0 | AW158: 0 | AX158: 0 | AY158: 0 | AZ158: 0 | BA158: 0 | BB158: 0 | BC158: 0 | BD158: 0 | BE158: 0 | BF158: =IF(BM158=0,0,IF(BF159<0,0,1)) -> 0 | BG158: 0 | BH158: 0 | BI158: 0 | BJ158: 0 | BK158: 0 | BL158: 0 | BM158: 0
A159: Gera caixa no período? | B159: [1=gera;-1=consome] | I159: =SIGN(ROUND(I154,6)) -> 0 | J159: 0 | K159: -1 | L159: -1 | M159: -1 | N159: 0 | O159: 0 | P159: -1 | Q159: -1 | R159: -1 | S159: -1 | T159: -1 | U159: 1 | V159: 1 | W159: 1 | X159: 1 | Y159: 1 | Z159: 1 | AA159: 1 | AB159: 1 | AC159: 1 | AD159: 1 | AE159: 1 | AF159: 1 | AG159: 1 | AH159: 1 | AI159: 1 | AJ159: 1 | AK159: 1 | AL159: 1 | AM159: 1 | AN159: 1 | AO159: =SIGN(ROUND(AO154,6)) -> 1 | AP159: 1 | AQ159: 1 | AR159: -1 | AS159: -1 | AT159: -1 | AU159: -1 | AV159: -1 | AW159: -1 | AX159: -1 | AY159: 0 | AZ159: 0 | BA159: 0 | BB159: 0 | BC159: 0 | BD159: 0 | BE159: 0 | BF159: 0 | BG159: 0 | BH159: 0 | BI159: 0 | BJ159: 0 | BK159: 0 | BL159: 0 | BM159: 0
A161: DEMONSTRAÇÃO DE RESULTADOS DE EXERCÍCIO
A163: Receita bruta | B163: MM R$ | E163: =+K163+NPV($E$110,L163:AO163) -> 283.3186133 | I163: =SUM(I164,I167) -> 0 | J163: 0 | K163: =SUM(K164,K167) -> 2.180023736 | L163: =SUM(L164,L167) -> 7.027160284 | M163: 17.10956636 | N163: =SUM(N164,N167) -> 19.36726902 | O163: 20.31204216 | P163: 66.12098029 | Q163: 11.50131133 | R163: 13.61950122 | S163: 13.56099797 | T163: 16.13654213 | U163: 20.18207438 | V163: 23.94587133 | W163: 25.15533672 | X163: 26.55611396 | Y163: 28.05410127 | Z163: 29.53529503 | AA163: 30.99227255 | AB163: 32.48951532 | AC163: 33.83853936 | AD163: 35.22168526 | AE163: 36.67313279 | AF163: 40.43652618 | AG163: 39.63263347 | AH163: 41.09316078 | AI163: 42.60194519 | AJ163: 44.05924023 | AK163: 45.45423276 | AL163: 46.90688858 | AM163: 48.4809929 | AN163: 50.0105593 | AO163: =SUM(AO164,AO167) -> 50.0105593 | AP163: =SUM(AP164,AP167) -> 50.0105593 | AQ163: 35.53534864 | AR163: 1.197573483 | AS163: 1.197573483 | AT163: 1.197573483 | AU163: 1.197573483 | AV163: 1.197573483 | AW163: 1.197573483 | AX163: 0 | AY163: 0 | AZ163: 0 | BA163: 0 | BB163: 0 | BC163: 0 | BD163: 0 | BE163: 0 | BF163: 0 | BG163: 0 | BH163: 0 | BI163: 0 | BJ163: 0 | BK163: 0 | BL163: 0 | BM163: 0
A164: Receita de serviços | B164: MM R$ | I164: =SUM(I165,I166) -> 0 | J164: 0 | K164: =SUM(K165,K166) -> 1.490951238 | L164: 4.743644491 | M164: 5.180056828 | N164: 18.16205505 | O164: 19.11446868 | P164: 8.489596247 | Q164: 10.30373785 | R164: 12.41992774 | S164: 12.36342448 | T164: 14.93896865 | U164: 18.9845009 | V164: 22.74629785 | W164: 23.95776324 | X164: 25.35854048 | Y164: 26.85652778 | Z164: 28.33572155 | AA164: 29.79469907 | AB164: 31.29194184 | AC164: 32.64096587 | AD164: 34.02211177 | AE164: 35.47555931 | AF164: 37.0389527 | AG164: 38.43505998 | AH164: 39.89358729 | AI164: 41.40437171 | AJ164: 42.86166675 | AK164: 44.25665928 | AL164: 45.70731509 | AM164: 47.28341942 | AN164: 48.81298582 | AO164: =SUM(AO165,AO166) -> 48.81298582 | AP164: =SUM(AP165,AP166) -> 48.81298582 | AQ164: 34.33777515 | AR164: 0 | AS164: 0 | AT164: 0 | AU164: 0 | AV164: 0 | AW164: 0 | AX164: 0 | AY164: 0 | AZ164: 0 | BA164: 0 | BB164: 0 | BC164: 0 | BD164: 0 | BE164: 0 | BF164: 0 | BG164: 0 | BH164: 0 | BI164: 0 | BJ164: 0 | BK164: 0 | BL164: 0 | BM164: 0
A165: Receita tarifária | B165: MM R$ | E165: =+K165+NPV($E$110,L165:AO165) -> 157.8149823 | I165: =I$492 -> 0 | J165: 0 | K165: =K$492 -> 0.09641272389 | L165: 0.6171685877 | M165: 0.988058805 | N165: 1.398730649 | O165: 2.169887161 | P165: 3.790039074 | Q165: =Q$492 -> 5.309540806 | R165: 7.082136418 | S165: 10.00493496 | T165: 12.93604178 | U165: 16.58150902 | V165: 20.01776749 | W165: 21.10045802 | X165: 22.36605785 | Y165: 23.69647939 | Z165: 25.01107479 | AA165: 26.30943694 | AB165: 27.65463108 | AC165: 28.85786545 | AD165: 30.0884411 | AE165: 31.38723587 | AF165: 32.78909101 | AG165: 34.03078621 | AH165: 35.33232054 | AI165: 36.68488872 | AJ165: 37.98708994 | AK165: 39.22656663 | AL165: 40.52140026 | AM165: 41.93656767 | AN165: 43.29198273 | AO165: =AO$492 -> 43.29198273 | AP165: =AP$492 -> 43.29198273 | AQ165: 28.82178576 | AR165: 0 | AS165: 0 | AT165: 0 | AU165: 0 | AV165: 0 | AW165: 0 | AX165: 0 | AY165: 0 | AZ165: 0 | BA165: 0 | BB165: 0 | BC165: 0 | BD165: 0 | BE165: 0 | BF165: 0 | BG165: 0 | BH165: 0 | BI165: 0 | BJ165: 0 | BK165: 0 | BL165: 0 | BM165: 0
A166: Receita não-tarifária | B166: MM R$ | E166: =+K166+NPV($E$110,L166:AO166) -> 63.25184971 | I166: =I$652 -> 0 | J166: 0 | K166: =K$652 -> 1.394538514 | L166: 4.126475903 | M166: 4.191998023 | N166: 16.7633244 | O166: 16.94458151 | P166: 4.699557173 | Q166: 4.994197043 | R166: 5.337791322 | S166: 2.358489521 | T166: 2.002926872 | U166: 2.40299188 | V166: 2.728530364 | W166: 2.857305219 | X166: 2.992482631 | Y166: 3.16004839 | Z166: 3.324646761 | AA166: 3.485262129 | AB166: 3.637310761 | AC166: 3.783100429 | AD166: 3.933670677 | AE166: 4.088323439 | AF166: 4.249861682 | AG166: 4.40427377 | AH166: 4.561266757 | AI166: 4.719482984 | AJ166: 4.874576809 | AK166: 5.030092653 | AL166: 5.18591483 | AM166: 5.34685175 | AN166: 5.521003092 | AO166: =AO$652 -> 5.521003092 | AP166: 5.521003092 | AQ166: 5.515989393 | AR166: 0 | AS166: 0 | AT166: 0 | AU166: 0 | AV166: 0 | AW166: 0 | AX166: 0 | AY166: 0 | AZ166: 0 | BA166: 0 | BB166: 0 | BC166: 0 | BD166: 0 | BE166: 0 | BF166: 0 | BG166: 0 | BH166: 0 | BI166: 0 | BJ166: 0 | BK166: 0 | BL166: 0 | BM166: 0
A167: Receita de construção | B167: MM R$ | E167: =+K167+NPV($E$110,L167:AO167) -> 62.25178128 | I167: =I$2367 -> 0 | J167: 0 | K167: =K$2367 -> 0.6890724976 | L167: 2.283515793 | M167: 11.92950953 | N167: =N$2367 -> 1.205213969 | O167: 1.197573483 | P167: 57.63138404 | Q167: 1.197573483 | R167: 1.199573483 | S167: 1.197573483 | T167: 1.197573483 | U167: 1.197573483 | V167: 1.199573483 | W167: 1.197573483 | X167: 1.197573483 | Y167: 1.197573483 | Z167: 1.199573483 | AA167: 1.197573483 | AB167: 1.197573483 | AC167: 1.197573483 | AD167: 1.199573483 | AE167: 1.197573483 | AF167: 3.397573483 | AG167: 1.197573483 | AH167: 1.199573483 | AI167: 1.197573483 | AJ167: 1.197573483 | AK167: 1.197573483 | AL167: 1.199573483 | AM167: 1.197573483 | AN167: 1.197573483 | AO167: =AO$2367 -> 1.197573483 | AP167: 1.197573483 | AQ167: 1.197573483 | AR167: 1.197573483 | AS167: 1.197573483 | AT167: 1.197573483 | AU167: 1.197573483 | AV167: 1.197573483 | AW167: 1.197573483 | AX167: 0 | AY167: 0 | AZ167: 0 | BA167: 0 | BB167: 0 | BC167: 0 | BD167: 0 | BE167: 0 | BF167: 0 | BG167: 0 | BH167: 0 | BI167: 0 | BJ167: 0 | BK167: 0 | BL167: 0 | BM167: 0
A168: (−) Deduções | B168: MM R$ | E168: =+K168+NPV($E$110,L168:AO168) -> -15.97549729 | I168: =SUM(I169,I170,I171) -> 0 | J168: 0 | K168: -0.05926861775 | L168: -0.2040628049 | M168: -0.2385745497 | N168: -0.7329938123 | O168: -0.806452849 | P168: -0.4998494243 | Q168: -0.6422657254 | R168: -0.8083986054 | S168: -0.9527346477 | T168: -1.193511846 | U168: -1.523735029 | V168: -1.833078471 | W168: -1.931529347 | X168: -2.046042733 | Y168: -2.167364528 | Z168: -2.287208186 | AA168: -2.405499275 | AB168: -2.527524865 | AC168: -2.637040467 | AD168: -2.749096699 | AE168: -2.867205147 | AF168: -2.994484625 | AG168: -3.107644202 | AH168: -3.226076248 | AI168: -3.348968808 | AJ168: -3.467389028 | AK168: -3.580397201 | AL168: -3.698206903 | AM168: -3.826615952 | AN168: -3.950345771 | AO168: =SUM(AO169,AO170,AO171) -> -3.950345771 | AP168: -3.950345771 | AQ168: -2.698490733 | AR168: 0 | AS168: 0 | AT168: 0 | AU168: 0 | AV168: 0 | AW168: 0 | AX168: 0 | AY168: 0 | AZ168: 0 | BA168: 0 | BB168: 0 | BC168: 0 | BD168: 0 | BE168: 0 | BF168: 0 | BG168: 0 | BH168: 0 | BI168: 0 | BJ168: 0 | BK168: 0 | BL168: 0 | BM168: 0
A169: (−) ISS | B169: MM R$ | I169: =I$897 -> 0 | J169: 0 | K169: -0.004848897564 | L169: -0.03091978098 | M169: -0.04950247545 | N169: -0.07007880298 | O169: -0.1087747424 | P169: -0.1899791613 | Q169: -0.2661792939 | R169: -0.3550712429 | S169: -0.501469654 | T169: -0.6482394907 | U169: -0.8308007461 | V169: -1.0028386 | W169: -1.057070989 | X169: -1.120456005 | Y169: -1.187101264 | Z169: -1.25295435 | AA169: -1.317992759 | AB169: -1.385368988 | AC169: -1.445645213 | AD169: -1.507289619 | AE169: -1.572347232 | AF169: -1.642562852 | AG169: -1.704764512 | AH169: -1.769960312 | AI169: -1.837709241 | AJ169: -1.902938192 | AK169: -1.965029137 | AL169: -2.029889902 | AM169: -2.100771144 | AN169: -2.168671788 | AO169: =AO$897 -> -2.168671788 | AP169: -2.168671788 | AQ169: -1.44516194 | AR169: 0 | AS169: 0 | AT169: 0 | AU169: 0 | AV169: 0 | AW169: 0 | AX169: 0 | AY169: 0 | AZ169: 0 | BA169: 0 | BB169: 0 | BC169: 0 | BD169: 0 | BE169: 0 | BF169: 0 | BG169: 0 | BH169: 0 | BI169: 0 | BJ169: 0 | BK169: 0 | BL169: 0 | BM169: 0
A170: (−) PIS/COFINS | B170: MM R$ | I170: =I$908 -> 0 | J170: 0 | K170: -0.05441972019 | L170: -0.1731430239 | M170: -0.1890720742 | N170: -0.6629150093 | O170: -0.6976781066 | P170: -0.309870263 | Q170: -0.3760864315 | R170: -0.4533273625 | S170: -0.4512649937 | T170: -0.5452723556 | U170: -0.6929342828 | V170: -0.8302398716 | W170: -0.8744583583 | X170: -0.9255867276 | Y170: -0.9802632641 | Z170: -1.034253837 | AA170: -1.087506516 | AB170: -1.142155877 | AC170: -1.191395254 | AD170: -1.24180708 | AE170: -1.294857915 | AF170: -1.351921773 | AG170: -1.402879689 | AH170: -1.456115936 | AI170: -1.511259567 | AJ170: -1.564450836 | AK170: -1.615368064 | AL170: -1.668317001 | AM170: -1.725844809 | AN170: -1.781673982 | AO170: =AO$908 -> -1.781673982 | AP170: -1.781673982 | AQ170: -1.253328793 | AR170: 0 | AS170: 0 | AT170: 0 | AU170: 0 | AV170: 0 | AW170: 0 | AX170: 0 | AY170: 0 | AZ170: 0 | BA170: 0 | BB170: 0 | BC170: 0 | BD170: 0 | BE170: 0 | BF170: 0 | BG170: 0 | BH170: 0 | BI170: 0 | BJ170: 0 | BK170: 0 | BL170: 0 | BM170: 0
A171: (+) Crédito PIS/COFINS | B171: MM R$ | I171: =I927 -> 0 | J171: 0 | K171: 0 | L171: 0 | M171: 0 | N171: 0 | O171: 0 | P171: 0 | Q171: 0 | R171: 0 | S171: 0 | T171: 0 | U171: 0 | V171: 0 | W171: 0 | X171: 0 | Y171: 0 | Z171: 0 | AA171: 0 | AB171: 0 | AC171: 0 | AD171: 0 | AE171: 0 | AF171: 0 | AG171: 0 | AH171: 0 | AI171: 0 | AJ171: 0 | AK171: 0 | AL171: 0 | AM171: 0 | AN171: 0 | AO171: =AO927 -> 0 | AP171: 0 | AQ171: 0 | AR171: 0 | AS171: 0 | AT171: 0 | AU171: 0 | AV171: 0 | AW171: 0 | AX171: 0 | AY171: 0 | AZ171: 0 | BA171: 0 | BB171: 0 | BC171: 0 | BD171: 0 | BE171: 0 | BF171: 0 | BG171: 0 | BH171: 0 | BI171: 0 | BJ171: 0 | BK171: 0 | BL171: 0 | BM171: 0
A172: (=) Receita líquida | B172: MM R$ | E172: =+K172+NPV($E$110,L172:AO172) -> 267.343116 | I172: =SUM(I163,I168) -> 0 | J172: 0 | K172: =SUM(K163,K168) -> 2.120755118 | L172: 6.823097479 | M172: 16.87099181 | N172: 18.63427521 | O172: 19.50558931 | P172: 65.62113087 | Q172: 10.85904561 | R172: 12.81110262 | S172: 12.60826332 | T172: 14.94303028 | U172: 18.65833935 | V172: 22.11279286 | W172: 23.22380738 | X172: 24.51007123 | Y172: 25.88673674 | Z172: 27.24808685 | AA172: 28.58677328 | AB172: 29.96199046 | AC172: 31.20149889 | AD172: 32.47258856 | AE172: 33.80592765 | AF172: 37.44204155 | AG172: 36.52498927 | AH172: 37.86708453 | AI172: 39.25297638 | AJ172: 40.5918512 | AK172: 41.87383556 | AL172: 43.20868167 | AM172: 44.65437695 | AN172: 46.06021353 | AO172: =SUM(AO163,AO168) -> 46.06021353 | AP172: =SUM(AP163,AP168) -> 46.06021353 | AQ172: 32.8368579 | AR172: 1.197573483 | AS172: 1.197573483 | AT172: 1.197573483 | AU172: 1.197573483 | AV172: 1.197573483 | AW172: 1.197573483 | AX172: 0 | AY172: 0 | AZ172: 0 | BA172: 0 | BB172: 0 | BC172: 0 | BD172: 0 | BE172: 0 | BF172: 0 | BG172: 0 | BH172: 0 | BI172: 0 | BJ172: 0 | BK172: 0 | BL172: 0 | BM172: 0
A173: (−) Custos e despesas operacionais (exceto outorga fixa) | B173: MM R$ | E173: -118.5814784 | I173: =I$968 -> 0 | J173: 0 | K173: -1.807203729 | L173: -3.865798411 | M173: -4.762812554 | N173: -5.963723597 | O173: -7.513843464 | P173: -8.601191763 | Q173: -10.1770878 | R173: -10.99514273 | S173: -11.86318746 | T173: -12.49300682 | U173: -12.46228583 | V173: -12.69297799 | W173: -12.92351363 | X173: -13.15523707 | Y173: -13.80985138 | Z173: -13.73257409 | AA173: -13.99995585 | AB173: -14.246047 | AC173: -14.47459943 | AD173: -15.07653449 | AE173: -14.95709615 | AF173: -15.20757626 | AG173: -15.44906605 | AH173: -15.69145325 | AI173: -16.29581035 | AJ173: -16.16741627 | AK173: -16.40744288 | AL173: -16.64313564 | AM173: -16.88468176 | AN173: -17.14813776 | AO173: =AO$968 -> -16.71493361 | AP173: -16.71493361 | AQ173: -13.80946974 | AR173: 0 | AS173: 0 | AT173: 0 | AU173: 0 | AV173: 0 | AW173: 0 | AX173: 0 | AY173: 0 | AZ173: 0 | BA173: 0 | BB173: 0 | BC173: 0 | BD173: 0 | BE173: 0 | BF173: 0 | BG173: 0 | BH173: 0 | BI173: 0 | BJ173: 0 | BK173: 0 | BL173: 0 | BM173: 0
A174: (−) Custo de construção | B174: MM R$ | E174: -61.05536393 | I174: =I$2386 -> 0 | J174: 0 | K174: -0.6890724976 | L174: -2.256468593 | M174: -11.66221281 | N174: -1.205073483 | O174: -1.197573483 | P174: -56.22580614 | Q174: -1.197573483 | R174: -1.199573483 | S174: -1.197573483 | T174: -1.197573483 | U174: -1.197573483 | V174: -1.199573483 | W174: -1.197573483 | X174: -1.197573483 | Y174: -1.197573483 | Z174: -1.199573483 | AA174: -1.197573483 | AB174: -1.197573483 | AC174: -1.197573483 | AD174: -1.199573483 | AE174: -1.197573483 | AF174: -3.397573483 | AG174: -1.197573483 | AH174: -1.199573483 | AI174: -1.197573483 | AJ174: -1.197573483 | AK174: -1.197573483 | AL174: -1.199573483 | AM174: -1.197573483 | AN174: -1.197573483 | AO174: =AO$2386 -> -1.197573483 | AP174: -1.197573483 | AQ174: -1.197573483 | AR174: -1.197573483 | AS174: -1.197573483 | AT174: -1.197573483 | AU174: -1.197573483 | AV174: -1.197573483 | AW174: -1.197573483 | AX174: 0 | AY174: 0 | AZ174: 0 | BA174: 0 | BB174: 0 | BC174: 0 | BD174: 0 | BE174: 0 | BF174: 0 | BG174: 0 | BH174: 0 | BI174: 0 | BJ174: 0 | BK174: 0 | BL174: 0 | BM174: 0
A175: (=) EBITDA | B175: MM R$ | E175: 87.70627367 | I175: =SUM(I172,I173,I174) -> 0 | J175: 0 | K175: =SUM(K172,K173,K174) -> -0.3755211083 | L175: 0.700830475 | M175: 0.4459664404 | N175: 11.46547813 | O175: 10.79417236 | P175: 0.7941329655 | Q175: -0.515615674 | R175: 0.6163864061 | S175: -0.45249762 | T175: 1.252449983 | U175: 4.998480037 | V175: 8.220241386 | W175: 9.102720265 | X175: 10.15726068 | Y175: 10.87931187 | Z175: 12.31593928 | AA175: 13.38924394 | AB175: 14.51836998 | AC175: 15.52932598 | AD175: 16.19648059 | AE175: 17.65125802 | AF175: 18.83689181 | AG175: 19.87834973 | AH175: 20.9760578 | AI175: 21.75959254 | AJ175: 23.22686145 | AK175: 24.2688192 | AL175: 25.36597255 | AM175: 26.5721217 | AN175: 27.71450228 | AO175: =SUM(AO172,AO173,AO174) -> 28.14770644 | AP175: =SUM(AP172,AP173,AP174) -> 28.14770644 | AQ175: 17.82981468 | AR175: 0 | AS175: 0 | AT175: 0 | AU175: 0 | AV175: 0 | AW175: 0 | AX175: 0 | AY175: 0 | AZ175: 0 | BA175: 0 | BB175: 0 | BC175: 0 | BD175: 0 | BE175: 0 | BF175: 0 | BG175: 0 | BH175: 0 | BI175: 0 | BJ175: 0 | BK175: 0 | BL175: 0 | BM175: 0
A176: (−) Depreciação e amortização | B176: MM R$ | E176: -14.48552893 | I176: =SUM(I177,I178,I179,I180) -> 0 | J176: 0 | K176: -0.0005900198127 | L176: -0.00554612835 | M176: -0.02431122479 | N176: -0.03596262144 | O176: -0.07050133254 | P176: -0.4598545706 | Q176: -0.6609362011 | R176: -0.8896632783 | S176: -1.140784627 | T176: -1.349719168 | U176: -1.620921711 | V176: -1.835991447 | W176: -1.905682818 | X176: -1.981711477 | Y176: -2.074150442 | Z176: -2.166583995 | AA176: -2.257626474 | AB176: -2.347387141 | AC176: -2.438035445 | AD176: -2.533046164 | AE176: -2.634101015 | AF176: -2.902230372 | AG176: -3.016412886 | AH176: -3.141833504 | AI176: -3.280386889 | AJ176: -3.433642115 | AK176: -3.607210959 | AL176: -3.813580148 | AM176: -4.068632407 | AN176: -4.403632407 | AO176: =SUM(AO177,AO178,AO179,AO180) -> -4.714676305 | AP176: -5.285652775 | AQ176: -4.606079331 | AR176: 0 | AS176: 0 | AT176: 0 | AU176: 0 | AV176: 0 | AW176: 0 | AX176: 0 | AY176: 0 | AZ176: 0 | BA176: 0 | BB176: 0 | BC176: 0 | BD176: 0 | BE176: 0 | BF176: 0 | BG176: 0 | BH176: 0 | BI176: 0 | BJ176: 0 | BK176: 0 | BL176: 0 | BM176: 0
A177: (−) Amortização de ativo associado à construção | B177: MM R$ | E177: -13.9691535 | I177: =I2270 -> 0 | J177: 0 | K177: -8.520076669e-05 | L177: -0.002372075126 | M177: -0.01932225131 | N177: -0.02904597213 | O177: -0.0577638116 | P177: -0.4391994172 | Q177: -0.6317228722 | R177: -0.8509842094 | S177: -1.092020991 | T177: -1.293023785 | U177: -1.554053903 | V177: -1.761662333 | W177: -1.830027534 | X177: -1.904629274 | Y177: -1.995178964 | Z177: -2.085924398 | AA177: -2.175534187 | AB177: -2.264124051 | AC177: -2.353797296 | AD177: -2.447932364 | AE177: -2.548177504 | AF177: -2.81549262 | AG177: -2.929129034 | AH177: -3.054057867 | AI177: -3.192189208 | AJ177: -3.345156798 | AK177: -3.518565757 | AL177: -3.724814466 | AM177: -3.979746751 | AN177: -4.314565257 | AO177: =AO2270 -> -4.628404365 | AP177: -5.202088324 | AQ177: -4.552191962 | AR177: 0 | AS177: 0 | AT177: 0 | AU177: 0 | AV177: 0 | AW177: 0 | AX177: 0 | AY177: 0 | AZ177: 0 | BA177: 0 | BB177: 0 | BC177: 0 | BD177: 0 | BE177: 0 | BF177: 0 | BG177: 0 | BH177: 0 | BI177: 0 | BJ177: 0 | BK177: 0 | BL177: 0 | BM177: 0
A178: (−) Amortização de despesas financeiras ativadas | B178: MM R$ | E178: 0 | I178: =I2534 -> 0 | J178: 0 | K178: 0 | L178: 0 | M178: 0 | N178: 0 | O178: 0 | P178: 0 | Q178: 0 | R178: 0 | S178: 0 | T178: 0 | U178: 0 | V178: 0 | W178: 0 | X178: 0 | Y178: 0 | Z178: 0 | AA178: 0 | AB178: 0 | AC178: 0 | AD178: 0 | AE178: 0 | AF178: 0 | AG178: 0 | AH178: 0 | AI178: 0 | AJ178: 0 | AK178: 0 | AL178: 0 | AM178: 0 | AN178: 0 | AO178: =AO2534 -> 0 | AP178: 0 | AQ178: 0 | AR178: 0 | AS178: 0 | AT178: 0 | AU178: 0 | AV178: 0 | AW178: 0 | AX178: 0 | AY178: 0 | AZ178: 0 | BA178: 0 | BB178: 0 | BC178: 0 | BD178: 0 | BE178: 0 | BF178: 0 | BG178: 0 | BH178: 0 | BI178: 0 | BJ178: 0 | BK178: 0 | BL178: 0 | BM178: 0
A179: (−) Amortização de ativo associado à outorga fixa | B179: MM R$ | I179: =I2421 -> 0 | J179: 0 | K179: 0 | L179: 0 | M179: 0 | N179: 0 | O179: 0 | P179: 0 | Q179: 0 | R179: 0 | S179: 0 | T179: 0 | U179: 0 | V179: 0 | W179: 0 | X179: 0 | Y179: 0 | Z179: 0 | AA179: 0 | AB179: 0 | AC179: 0 | AD179: 0 | AE179: 0 | AF179: 0 | AG179: 0 | AH179: 0 | AI179: 0 | AJ179: 0 | AK179: 0 | AL179: 0 | AM179: 0 | AN179: 0 | AO179: =AO2421 -> 0 | AP179: 0 | AQ179: 0 | AR179: 0 | AS179: 0 | AT179: 0 | AU179: 0 | AV179: 0 | AW179: 0 | AX179: 0 | AY179: 0 | AZ179: 0 | BA179: 0 | BB179: 0 | BC179: 0 | BD179: 0 | BE179: 0 | BF179: 0 | BG179: 0 | BH179: 0 | BI179: 0 | BJ179: 0 | BK179: 0 | BL179: 0 | BM179: 0
A180: (−) Amortização de ativo associado às obrigações pré-assinatura de contrato | B180: MM R$ | E180: =+K180+NPV($E$110,L180:AO180) -> -0.5163754351 | I180: =I2484 -> 0 | J180: 0 | K180: -0.000504819046 | L180: -0.003174053224 | M180: -0.004988973474 | N180: -0.006916649304 | O180: -0.01273752094 | P180: -0.02065515343 | Q180: -0.02921332891 | R180: -0.03867906893 | S180: -0.04876363644 | T180: -0.05669538238 | U180: -0.0668678085 | V180: -0.0743291142 | W180: -0.07565528394 | X180: -0.07708220257 | Y180: -0.07897147824 | Z180: -0.08065959666 | AA180: -0.08209228736 | AB180: -0.08326309041 | AC180: -0.08423814882 | AD180: -0.08511380055 | AE180: -0.08592351123 | AF180: -0.08673775194 | AG180: -0.08728385256 | AH180: -0.08777563692 | AI180: -0.08819768027 | AJ180: -0.08848531666 | AK180: -0.08864520172 | AL180: -0.08876568188 | AM180: -0.08888565619 | AN180: -0.08906715053 | AO180: =AO2484 -> -0.08627193969 | AP180: -0.08356445146 | AQ180: -0.05388736899 | AR180: 0 | AS180: 0 | AT180: 0 | AU180: 0 | AV180: 0 | AW180: 0 | AX180: 0 | AY180: 0 | AZ180: 0 | BA180: 0 | BB180: 0 | BC180: 0 | BD180: 0 | BE180: 0 | BF180: 0 | BG180: 0 | BH180: 0 | BI180: 0 | BJ180: 0 | BK180: 0 | BL180: 0 | BM180: 0
A181: (=) EBIT (Lucro operacional) | B181: MM R$ | E181: =+K181+NPV($E$110,L181:AO181) -> 73.22074473 | I181: =SUM(I175,I176) -> 0 | J181: 0 | K181: =SUM(K175,K176) -> -0.3761111281 | L181: 0.6952843467 | M181: 0.4216552156 | N181: 11.42951551 | O181: 10.72367103 | P181: 0.3342783949 | Q181: -1.176551875 | R181: -0.2732768722 | S181: -1.593282247 | T181: -0.09726918426 | U181: 3.377558326 | V181: 6.384249939 | W181: 7.197037447 | X181: 8.175549201 | Y181: 8.80516143 | Z181: 10.14935528 | AA181: 11.13161747 | AB181: 12.17098284 | AC181: 13.09129053 | AD181: 13.66343442 | AE181: 15.017157 | AF181: 15.93466144 | AG181: 16.86193684 | AH181: 17.83422429 | AI181: 18.47920566 | AJ181: 19.79321934 | AK181: 20.66160824 | AL181: 21.5523924 | AM181: 22.5034893 | AN181: 23.31086988 | AO181: =SUM(AO175,AO176) -> 23.43303013 | AP181: =SUM(AP175,AP176) -> 22.86205366 | AQ181: 13.22373535 | AR181: 0 | AS181: 0 | AT181: 0 | AU181: 0 | AV181: 0 | AW181: 0 | AX181: 0 | AY181: 0 | AZ181: 0 | BA181: 0 | BB181: 0 | BC181: 0 | BD181: 0 | BE181: 0 | BF181: 0 | BG181: 0 | BH181: 0 | BI181: 0 | BJ181: 0 | BK181: 0 | BL181: 0 | BM181: 0
A182: (+) Receita financeira | B182: MM R$ | I182: =I$2566 -> 0 | J182: 0 | K182: 0 | L182: 0.002410442114 | M182: 0.00972141674 | N182: 0.01140213517 | O182: 0.3053106926 | P182: 0.7327885716 | Q182: 0.01868696178 | R182: 0.02268017816 | S182: 0.02733825122 | T182: 0.0272138785 | U182: 0.03288306393 | V182: 0.0417879287 | W182: 0.05006824661 | X182: 0.05273487607 | Y182: 0.05581821125 | Z182: 0.05911552135 | AA182: 0.06237146387 | AB182: 0.06558290719 | AC182: 0.06887857846 | AD182: 0.07184799653 | AE182: 0.07488811998 | AF182: 0.07808739092 | AG182: 0.0815286703 | AH182: 0.08460172616 | AI182: 0.08781217849 | AJ182: 0.09113765709 | AK182: 0.094345397 | AL182: 0.09741599911 | AM182: 0.100609125 | AN182: 0.1040783832 | AO182: =AO$2566 -> 0.107445204 | AP182: 0.107445204 | AQ182: 0.0715320125 | AR182: 0 | AS182: 0 | AT182: 0 | AU182: 0 | AV182: 0 | AW182: 0 | AX182: 0 | AY182: 0 | AZ182: 0 | BA182: 0 | BB182: 0 | BC182: 0 | BD182: 0 | BE182: 0 | BF182: 0 | BG182: 0 | BH182: 0 | BI182: 0 | BJ182: 0 | BK182: 0 | BL182: 0 | BM182: 0
A183: (−) Despesa financeira | B183: MM R$ | I183: =SUM(I184,I185) -> 0 | J183: 0 | K183: 0 | L183: 0 | M183: -0.02557082091 | N183: -0.5638440076 | O183: -0.5879741042 | P183: -0.5947933351 | Q183: -0.5478947329 | R183: -0.502670157 | S183: -0.4458540244 | T183: -0.3921089522 | U183: -0.3406767068 | V183: -0.2794631443 | W183: -0.2217562009 | X183: -0.1673960684 | Y183: -0.1178705713 | Z183: -0.1046239851 | AA183: -0.09209274774 | AB183: -0.08024500606 | AC183: -0.06905020156 | AD183: -0.05847902065 | AE183: -0.04850334655 | AF183: -0.03909621306 | AG183: -0.03023176004 | AH183: -0.02188519052 | AI183: -0.01403272948 | AJ183: -0.006651584088 | AK183: 0 | AL183: 0 | AM183: 0 | AN183: 0 | AO183: =SUM(AO184,AO185) -> 0 | AP183: 0 | AQ183: 0 | AR183: 0 | AS183: 0 | AT183: 0 | AU183: 0 | AV183: 0 | AW183: 0 | AX183: 0 | AY183: 0 | AZ183: 0 | BA183: 0 | BB183: 0 | BC183: 0 | BD183: 0 | BE183: 0 | BF183: 0 | BG183: 0 | BH183: 0 | BI183: 0 | BJ183: 0 | BK183: 0 | BL183: 0 | BM183: 0
A184: (−) Ajuste a valor presente de outorga fixa | B184: MM R$ | I184: =-I$2453 -> 0 | J184: 0 | K184: 0 | L184: 0 | M184: 0 | N184: 0 | O184: 0 | P184: 0 | Q184: 0 | R184: 0 | S184: 0 | T184: 0 | U184: 0 | V184: 0 | W184: 0 | X184: 0 | Y184: 0 | Z184: 0 | AA184: 0 | AB184: 0 | AC184: 0 | AD184: 0 | AE184: 0 | AF184: 0 | AG184: 0 | AH184: 0 | AI184: 0 | AJ184: 0 | AK184: 0 | AL184: 0 | AM184: 0 | AN184: 0 | AO184: =-AO$2453 -> 0 | AP184: 0 | AQ184: 0 | AR184: 0 | AS184: 0 | AT184: 0 | AU184: 0 | AV184: 0 | AW184: 0 | AX184: 0 | AY184: 0 | AZ184: 0 | BA184: 0 | BB184: 0 | BC184: 0 | BD184: 0 | BE184: 0 | BF184: 0 | BG184: 0 | BH184: 0 | BI184: 0 | BJ184: 0 | BK184: 0 | BL184: 0 | BM184: 0
A185: (−) Juros incorridos e estruturação | B185: MM R$ | I185: =I1182 -> 0 | J185: 0 | K185: 0 | L185: 0 | M185: -0.02557082091 | N185: -0.5638440076 | O185: -0.5879741042 | P185: -0.5947933351 | Q185: -0.5478947329 | R185: -0.502670157 | S185: -0.4458540244 | T185: -0.3921089522 | U185: -0.3406767068 | V185: -0.2794631443 | W185: -0.2217562009 | X185: -0.1673960684 | Y185: -0.1178705713 | Z185: -0.1046239851 | AA185: -0.09209274774 | AB185: -0.08024500606 | AC185: -0.06905020156 | AD185: -0.05847902065 | AE185: -0.04850334655 | AF185: -0.03909621306 | AG185: -0.03023176004 | AH185: -0.02188519052 | AI185: -0.01403272948 | AJ185: -0.006651584088 | AK185: 0 | AL185: 0 | AM185: 0 | AN185: 0 | AO185: =AO1182 -> 0 | AP185: 0 | AQ185: 0 | AR185: 0 | AS185: 0 | AT185: 0 | AU185: 0 | AV185: 0 | AW185: 0 | AX185: 0 | AY185: 0 | AZ185: 0 | BA185: 0 | BB185: 0 | BC185: 0 | BD185: 0 | BE185: 0 | BF185: 0 | BG185: 0 | BH185: 0 | BI185: 0 | BJ185: 0 | BK185: 0 | BL185: 0 | BM185: 0
A186: (=) Lucro antes de imposto de renda | B186: MM R$ | I186: =SUM(I181,I182,I183) -> 0 | J186: 0 | K186: -0.3761111281 | L186: 0.6976947888 | M186: 0.4058058114 | N186: 10.87707363 | O186: 10.44100762 | P186: 0.4722736314 | Q186: -1.705759646 | R186: -0.7532668511 | S186: -2.011798021 | T186: -0.4621642579 | U186: 3.069764683 | V186: 6.146574723 | W186: 7.025349493 | X186: 8.060888009 | Y186: 8.74310907 | Z186: 10.10384682 | AA186: 11.10189619 | AB186: 12.15632074 | AC186: 13.09111891 | AD186: 13.6768034 | AE186: 15.04354177 | AF186: 15.97365261 | AG186: 16.91323376 | AH186: 17.89694083 | AI186: 18.5529851 | AJ186: 19.87770541 | AK186: 20.75595364 | AL186: 21.6498084 | AM186: 22.60409842 | AN186: 23.41494826 | AO186: =SUM(AO181,AO182,AO183) -> 23.54047534 | AP186: 22.96949887 | AQ186: 13.29526736 | AR186: 0 | AS186: 0 | AT186: 0 | AU186: 0 | AV186: 0 | AW186: 0 | AX186: 0 | AY186: 0 | AZ186: 0 | BA186: 0 | BB186: 0 | BC186: 0 | BD186: 0 | BE186: 0 | BF186: 0 | BG186: 0 | BH186: 0 | BI186: 0 | BJ186: 0 | BK186: 0 | BL186: 0 | BM186: 0
A187: (−) Imposto de renda corrente | B187: MM R$ | I187: =I1997 -> 0 | J187: 0 | K187: -0.1382154947 | L187: -0.492928071 | M187: -0.5428954646 | N187: -1.955908315 | O187: -2.159459827 | P187: -1.148816186 | Q187: -1.103400245 | R187: -1.334999399 | S187: -1.330435589 | T187: -1.610612507 | U187: -2.052693939 | V187: -2.465005102 | W187: -2.599627844 | X187: -2.752939062 | Y187: -2.916968415 | Z187: -3.079025782 | AA187: -3.238869557 | AB187: -3.402861461 | AC187: -3.550755804 | AD187: -3.70203408 | AE187: -3.861202814 | AF187: -4.032387766 | AG187: -4.185454274 | AH187: -4.345186884 | AI187: -4.510651782 | AJ187: -4.670336145 | AK187: -4.823201965 | AL187: -4.982077322 | AM187: -5.154643135 | AN187: -5.322239507 | AO187: =AO1997 -> -5.323384226 | AP187: -5.323384226 | AQ187: -3.736270821 | AR187: 0 | AS187: 0 | AT187: 0 | AU187: 0 | AV187: 0 | AW187: 0 | AX187: 0 | AY187: 0 | AZ187: 0 | BA187: 0 | BB187: 0 | BC187: 0 | BD187: 0 | BE187: 0 | BF187: 0 | BG187: 0 | BH187: 0 | BI187: 0 | BJ187: 0 | BK187: 0 | BL187: 0 | BM187: 0
A188: (+/−) Imposto de renda diferido | B188: MM R$ | I188: =I1998 -> 0 | J188: 0 | K188: =K1998 -> -1.431661864e-17 | L188: -0.00918865239 | M188: -0.09075046299 | N188: 0.0001331372882 | O188: 0.0003331451746 | P188: -0.4744910259 | Q188: 0.00481646806 | R188: 0.006377106172 | S188: 0.008039771782 | T188: 0.009347496796 | U188: 0.01102464786 | V188: 0.01225481032 | W188: 0.01247345894 | X188: 0.01270871826 | Y188: 0.01302020745 | Z188: 0.01329853138 | AA188: 0.01353474235 | AB188: 0.01372777532 | AC188: 0.01388853542 | AD188: 0.01403290611 | AE188: 0.01416640496 | AF188: 0.01430065068 | AG188: 0.01439068753 | AH188: 0.01447176914 | AI188: 0.01454135239 | AJ188: 0.01458877565 | AK188: 0.01461513627 | AL188: 0.0146350001 | AM188: 0.01465478054 | AN188: 0.01468470393 | AO188: =AO1998 -> 0.01422385115 | AP188: 0.0137774614 | AQ188: 0.008884533234 | AR188: 0 | AS188: 0 | AT188: 0 | AU188: 0 | AV188: 0 | AW188: 0 | AX188: 0 | AY188: 0 | AZ188: 0 | BA188: 0 | BB188: 0 | BC188: 0 | BD188: 0 | BE188: 0 | BF188: 0 | BG188: 0 | BH188: 0 | BI188: 0 | BJ188: 0 | BK188: 0 | BL188: 0 | BM188: 0
A189: (−) Baixa de ativo de imposto | B189: MM R$ | I189: =I1999 -> 0 | J189: 0 | K189: 0 | L189: 0 | M189: 0 | N189: 0 | O189: 0 | P189: 0 | Q189: 0 | R189: 0 | S189: 0 | T189: 0 | U189: 0 | V189: 0 | W189: 0 | X189: 0 | Y189: 0 | Z189: 0 | AA189: 0 | AB189: 0 | AC189: 0 | AD189: 0 | AE189: 0 | AF189: 0 | AG189: 0 | AH189: 0 | AI189: 0 | AJ189: 0 | AK189: 0 | AL189: 0 | AM189: 0 | AN189: 0 | AO189: =AO1999 -> 0 | AP189: 0 | AQ189: 0 | AR189: 0 | AS189: 0 | AT189: 0 | AU189: 0 | AV189: 0 | AW189: 0 | AX189: 0 | AY189: 0 | AZ189: 0 | BA189: 0 | BB189: 0 | BC189: 0 | BD189: 0 | BE189: 0 | BF189: 0 | BG189: 0 | BH189: 0 | BI189: 0 | BJ189: 0 | BK189: 0 | BL189: 0 | BM189: 0
A190: (=) Lucro líquido | B190: MM R$ | I190: =SUM(I186,I187,I188,I189) -> 0 | J190: 0 | K190: =SUM(K186,K187,K188,K189) -> -0.5143266228 | L190: =SUM(L186,L187,L188,L189) -> 0.1955780654 | M190: -0.2278401162 | N190: 8.921298455 | O190: 8.281880936 | P190: -1.15103358 | Q190: -2.804343423 | R190: -2.081889144 | S190: -3.334193838 | T190: -2.063429269 | U190: 1.028095391 | V190: 3.693824432 | W190: 4.438195107 | X190: 5.320657665 | Y190: 5.839160862 | Z190: 7.038119566 | AA190: 7.876561373 | AB190: 8.767187052 | AC190: 9.554251641 | AD190: 9.988802226 | AE190: 11.19650536 | AF190: 11.9555655 | AG190: 12.74217017 | AH190: 13.56622571 | AI190: 14.05687467 | AJ190: 15.22195804 | AK190: 15.94736681 | AL190: 16.68236608 | AM190: 17.46411007 | AN190: 18.10739346 | AO190: =SUM(AO186,AO187,AO188,AO189) -> 18.23131496 | AP190: 17.6598921 | AQ190: 9.567881075 | AR190: 0 | AS190: 0 | AT190: 0 | AU190: 0 | AV190: 0 | AW190: 0 | AX190: 0 | AY190: 0 | AZ190: 0 | BA190: 0 | BB190: 0 | BC190: 0 | BD190: 0 | BE190: 0 | BF190: 0 | BG190: 0 | BH190: 0 | BI190: 0 | BJ190: 0 | BK190: 0 | BL190: 0 | BM190: 0
A192: Ajustes de ROL e EBITDA e LL
A193: (−) Receita de construção | B193: MM R$ | I193: =-I167 -> 0 | J193: 0 | K193: -0.6890724976 | L193: -2.283515793 | M193: -11.92950953 | N193: -1.205213969 | O193: -1.197573483 | P193: -57.63138404 | Q193: -1.197573483 | R193: -1.199573483 | S193: -1.197573483 | T193: -1.197573483 | U193: -1.197573483 | V193: -1.199573483 | W193: -1.197573483 | X193: -1.197573483 | Y193: -1.197573483 | Z193: -1.199573483 | AA193: -1.197573483 | AB193: -1.197573483 | AC193: -1.197573483 | AD193: -1.199573483 | AE193: -1.197573483 | AF193: -3.397573483 | AG193: -1.197573483 | AH193: -1.199573483 | AI193: -1.197573483 | AJ193: -1.197573483 | AK193: -1.197573483 | AL193: -1.199573483 | AM193: -1.197573483 | AN193: -1.197573483 | AO193: =-AO167 -> -1.197573483 | AP193: -1.197573483 | AQ193: -1.197573483 | AR193: -1.197573483 | AS193: -1.197573483 | AT193: -1.197573483 | AU193: -1.197573483 | AV193: -1.197573483 | AW193: -1.197573483 | AX193: 0 | AY193: 0 | AZ193: 0 | BA193: 0 | BB193: 0 | BC193: 0 | BD193: 0 | BE193: 0 | BF193: 0 | BG193: 0 | BH193: 0 | BI193: 0 | BJ193: 0 | BK193: 0 | BL193: 0 | BM193: 0
A194: (+) Custo de construção | B194: MM R$ | I194: =-I174 -> 0 | J194: 0 | K194: 0.6890724976 | L194: 2.256468593 | M194: 11.66221281 | N194: 1.205073483 | O194: 1.197573483 | P194: 56.22580614 | Q194: 1.197573483 | R194: 1.199573483 | S194: 1.197573483 | T194: 1.197573483 | U194: 1.197573483 | V194: 1.199573483 | W194: 1.197573483 | X194: 1.197573483 | Y194: 1.197573483 | Z194: 1.199573483 | AA194: 1.197573483 | AB194: 1.197573483 | AC194: 1.197573483 | AD194: 1.199573483 | AE194: 1.197573483 | AF194: 3.397573483 | AG194: 1.197573483 | AH194: 1.199573483 | AI194: 1.197573483 | AJ194: 1.197573483 | AK194: 1.197573483 | AL194: 1.199573483 | AM194: 1.197573483 | AN194: 1.197573483 | AO194: =-AO174 -> 1.197573483 | AP194: 1.197573483 | AQ194: 1.197573483 | AR194: 1.197573483 | AS194: 1.197573483 | AT194: 1.197573483 | AU194: 1.197573483 | AV194: 1.197573483 | AW194: 1.197573483 | AX194: 0 | AY194: 0 | AZ194: 0 | BA194: 0 | BB194: 0 | BC194: 0 | BD194: 0 | BE194: 0 | BF194: 0 | BG194: 0 | BH194: 0 | BI194: 0 | BJ194: 0 | BK194: 0 | BL194: 0 | BM194: 0
A195: (+) Outorga variável | B195: MM R$ | I195: =-I$1116 -> 0 | J195: 0 | K195: 0 | L195: 0 | M195: 0 | N195: 0 | O195: 0 | P195: 0 | Q195: 0 | R195: 0 | S195: 0 | T195: 0 | U195: 0 | V195: 0 | W195: 0 | X195: 0 | Y195: 0 | Z195: 0 | AA195: 0 | AB195: 0 | AC195: 0 | AD195: 0 | AE195: 0 | AF195: 0 | AG195: 0 | AH195: 0 | AI195: 0 | AJ195: 0 | AK195: 0 | AL195: 0 | AM195: 0 | AN195: 0 | AO195: =-AO$1116 -> 0 | AP195: 0 | AQ195: 0 | AR195: 0 | AS195: 0 | AT195: 0 | AU195: 0 | AV195: 0 | AW195: 0 | AX195: 0 | AY195: 0 | AZ195: 0 | BA195: 0 | BB195: 0 | BC195: 0 | BD195: 0 | BE195: 0 | BF195: 0 | BG195: 0 | BH195: 0 | BI195: 0 | BJ195: 0 | BK195: 0 | BL195: 0 | BM195: 0
A196: (−) Outorga fixa paga | B196: MM R$ | I196: =I$2463 -> 0 | J196: 0 | K196: 0 | L196: 0 | M196: 0 | N196: 0 | O196: 0 | P196: 0 | Q196: 0 | R196: 0 | S196: 0 | T196: 0 | U196: 0 | V196: 0 | W196: 0 | X196: 0 | Y196: 0 | Z196: 0 | AA196: 0 | AB196: 0 | AC196: 0 | AD196: 0 | AE196: 0 | AF196: 0 | AG196: 0 | AH196: 0 | AI196: 0 | AJ196: 0 | AK196: 0 | AL196: 0 | AM196: 0 | AN196: 0 | AO196: =AO$2463 -> 0 | AP196: 0 | AQ196: 0 | AR196: 0 | AS196: 0 | AT196: 0 | AU196: 0 | AV196: 0 | AW196: 0 | AX196: 0 | AY196: 0 | AZ196: 0 | BA196: 0 | BB196: 0 | BC196: 0 | BD196: 0 | BE196: 0 | BF196: 0 | BG196: 0 | BH196: 0 | BI196: 0 | BJ196: 0 | BK196: 0 | BL196: 0 | BM196: 0
A197: (+) Amortização de ativo associado a outorga fixa | B197: MM R$ | I197: =-I179 -> 0 | J197: 0 | K197: 0 | L197: 0 | M197: 0 | N197: 0 | O197: 0 | P197: 0 | Q197: 0 | R197: 0 | S197: 0 | T197: 0 | U197: 0 | V197: 0 | W197: 0 | X197: 0 | Y197: 0 | Z197: 0 | AA197: 0 | AB197: 0 | AC197: 0 | AD197: 0 | AE197: 0 | AF197: 0 | AG197: 0 | AH197: 0 | AI197: 0 | AJ197: 0 | AK197: 0 | AL197: 0 | AM197: 0 | AN197: 0 | AO197: =-AO179 -> 0 | AP197: 0 | AQ197: 0 | AR197: 0 | AS197: 0 | AT197: 0 | AU197: 0 | AV197: 0 | AW197: 0 | AX197: 0 | AY197: 0 | AZ197: 0 | BA197: 0 | BB197: 0 | BC197: 0 | BD197: 0 | BE197: 0 | BF197: 0 | BG197: 0 | BH197: 0 | BI197: 0 | BJ197: 0 | BK197: 0 | BL197: 0 | BM197: 0
A198: (+) Ajuste a valor presente de Outorga fixa | B198: MM R$ | I198: =-I184 -> 0 | J198: 0 | K198: 0 | L198: 0 | M198: 0 | N198: 0 | O198: 0 | P198: 0 | Q198: 0 | R198: 0 | S198: 0 | T198: 0 | U198: 0 | V198: 0 | W198: 0 | X198: 0 | Y198: 0 | Z198: 0 | AA198: 0 | AB198: 0 | AC198: 0 | AD198: 0 | AE198: 0 | AF198: 0 | AG198: 0 | AH198: 0 | AI198: 0 | AJ198: 0 | AK198: 0 | AL198: 0 | AM198: 0 | AN198: 0 | AO198: =-AO184 -> 0 | AP198: 0 | AQ198: 0 | AR198: 0 | AS198: 0 | AT198: 0 | AU198: 0 | AV198: 0 | AW198: 0 | AX198: 0 | AY198: 0 | AZ198: 0 | BA198: 0 | BB198: 0 | BC198: 0 | BD198: 0 | BE198: 0 | BF198: 0 | BG198: 0 | BH198: 0 | BI198: 0 | BJ198: 0 | BK198: 0 | BL198: 0 | BM198: 0
A200: Receita líquida ajustada | B200: MM R$ | I200: =SUM(I172,I193) -> 0 | J200: 0 | K200: 1.43168262 | L200: 4.539581686 | M200: 4.941482279 | N200: 17.42906124 | O200: 18.30801583 | P200: 7.989746822 | Q200: 9.661472124 | R200: 11.61152913 | S200: 11.41068984 | T200: 13.7454568 | U200: 17.46076587 | V200: 20.91321938 | W200: 22.02623389 | X200: 23.31249775 | Y200: 24.68916326 | Z200: 26.04851336 | AA200: 27.3891998 | AB200: 28.76441698 | AC200: 30.00392541 | AD200: 31.27301507 | AE200: 32.60835416 | AF200: 34.04446807 | AG200: 35.32741578 | AH200: 36.66751105 | AI200: 38.0554029 | AJ200: 39.39427772 | AK200: 40.67626208 | AL200: 42.00910819 | AM200: 43.45680346 | AN200: 44.86264005 | AO200: =SUM(AO172,AO193) -> 44.86264005 | AP200: 44.86264005 | AQ200: 31.63928442 | AR200: 0 | AS200: 0 | AT200: 0 | AU200: 0 | AV200: 0 | AW200: 0 | AX200: 0 | AY200: 0 | AZ200: 0 | BA200: 0 | BB200: 0 | BC200: 0 | BD200: 0 | BE200: 0 | BF200: 0 | BG200: 0 | BH200: 0 | BI200: 0 | BJ200: 0 | BK200: 0 | BL200: 0 | BM200: 0
A201: Custo ajustado, sem outorgas | B201: MM R$ | I201: =SUM(I173,I195) -> 0 | J201: 0 | K201: -1.807203729 | L201: -3.865798411 | M201: -4.762812554 | N201: -5.963723597 | O201: -7.513843464 | P201: -8.601191763 | Q201: -10.1770878 | R201: -10.99514273 | S201: -11.86318746 | T201: -12.49300682 | U201: -12.46228583 | V201: -12.69297799 | W201: -12.92351363 | X201: -13.15523707 | Y201: -13.80985138 | Z201: -13.73257409 | AA201: -13.99995585 | AB201: -14.246047 | AC201: -14.47459943 | AD201: -15.07653449 | AE201: -14.95709615 | AF201: -15.20757626 | AG201: -15.44906605 | AH201: -15.69145325 | AI201: -16.29581035 | AJ201: -16.16741627 | AK201: -16.40744288 | AL201: -16.64313564 | AM201: -16.88468176 | AN201: -17.14813776 | AO201: =SUM(AO173,AO195) -> -16.71493361 | AP201: -16.71493361 | AQ201: -13.80946974 | AR201: 0 | AS201: 0 | AT201: 0 | AU201: 0 | AV201: 0 | AW201: 0 | AX201: 0 | AY201: 0 | AZ201: 0 | BA201: 0 | BB201: 0 | BC201: 0 | BD201: 0 | BE201: 0 | BF201: 0 | BG201: 0 | BH201: 0 | BI201: 0 | BJ201: 0 | BK201: 0 | BL201: 0 | BM201: 0
A202: Custo ajustado, com outorgas | B202: MM R$ | I202: =SUM(I173,I196) -> 0 | J202: 0 | K202: -1.807203729 | L202: -3.865798411 | M202: -4.762812554 | N202: -5.963723597 | O202: -7.513843464 | P202: -8.601191763 | Q202: -10.1770878 | R202: -10.99514273 | S202: -11.86318746 | T202: -12.49300682 | U202: -12.46228583 | V202: -12.69297799 | W202: -12.92351363 | X202: -13.15523707 | Y202: -13.80985138 | Z202: -13.73257409 | AA202: -13.99995585 | AB202: -14.246047 | AC202: -14.47459943 | AD202: -15.07653449 | AE202: -14.95709615 | AF202: -15.20757626 | AG202: -15.44906605 | AH202: -15.69145325 | AI202: -16.29581035 | AJ202: -16.16741627 | AK202: -16.40744288 | AL202: -16.64313564 | AM202: -16.88468176 | AN202: -17.14813776 | AO202: =SUM(AO173,AO196) -> -16.71493361 | AP202: -16.71493361 | AQ202: -13.80946974 | AR202: 0 | AS202: 0 | AT202: 0 | AU202: 0 | AV202: 0 | AW202: 0 | AX202: 0 | AY202: 0 | AZ202: 0 | BA202: 0 | BB202: 0 | BC202: 0 | BD202: 0 | BE202: 0 | BF202: 0 | BG202: 0 | BH202: 0 | BI202: 0 | BJ202: 0 | BK202: 0 | BL202: 0 | BM202: 0
A203: EBITDA ajustado, com outorga variável, sem outorga fixa | B203: MM R$ | I203: =SUM(I175,I193,I194) -> 0 | J203: 0 | K203: -0.3755211083 | L203: 0.6737832758 | M203: 0.1786697251 | N203: 11.46533764 | O203: 10.79417236 | P203: -0.6114449407 | Q203: -0.515615674 | R203: 0.6163864061 | S203: -0.45249762 | T203: 1.252449983 | U203: 4.998480037 | V203: 8.220241386 | W203: 9.102720265 | X203: 10.15726068 | Y203: 10.87931187 | Z203: 12.31593928 | AA203: 13.38924394 | AB203: 14.51836998 | AC203: 15.52932598 | AD203: 16.19648059 | AE203: 17.65125802 | AF203: 18.83689181 | AG203: 19.87834973 | AH203: 20.9760578 | AI203: 21.75959254 | AJ203: 23.22686145 | AK203: 24.2688192 | AL203: 25.36597255 | AM203: 26.5721217 | AN203: 27.71450228 | AO203: =SUM(AO175,AO193,AO194) -> 28.14770644 | AP203: 28.14770644 | AQ203: 17.82981468 | AR203: 0 | AS203: 0 | AT203: 0 | AU203: 0 | AV203: 0 | AW203: 0 | AX203: 0 | AY203: 0 | AZ203: 0 | BA203: 0 | BB203: 0 | BC203: 0 | BD203: 0 | BE203: 0 | BF203: 0 | BG203: 0 | BH203: 0 | BI203: 0 | BJ203: 0 | BK203: 0 | BL203: 0 | BM203: 0
A204: EBITDA ajustado, sem outorgas | B204: MM R$ | I204: =SUM(I175,I193,I194,I195) -> 0 | J204: 0 | K204: -0.3755211083 | L204: 0.6737832758 | M204: 0.1786697251 | N204: 11.46533764 | O204: 10.79417236 | P204: -0.6114449407 | Q204: -0.515615674 | R204: 0.6163864061 | S204: -0.45249762 | T204: 1.252449983 | U204: 4.998480037 | V204: 8.220241386 | W204: 9.102720265 | X204: 10.15726068 | Y204: 10.87931187 | Z204: 12.31593928 | AA204: 13.38924394 | AB204: 14.51836998 | AC204: 15.52932598 | AD204: 16.19648059 | AE204: 17.65125802 | AF204: 18.83689181 | AG204: 19.87834973 | AH204: 20.9760578 | AI204: 21.75959254 | AJ204: 23.22686145 | AK204: 24.2688192 | AL204: 25.36597255 | AM204: 26.5721217 | AN204: 27.71450228 | AO204: =SUM(AO175,AO193,AO194,AO195) -> 28.14770644 | AP204: 28.14770644 | AQ204: 17.82981468 | AR204: 0 | AS204: 0 | AT204: 0 | AU204: 0 | AV204: 0 | AW204: 0 | AX204: 0 | AY204: 0 | AZ204: 0 | BA204: 0 | BB204: 0 | BC204: 0 | BD204: 0 | BE204: 0 | BF204: 0 | BG204: 0 | BH204: 0 | BI204: 0 | BJ204: 0 | BK204: 0 | BL204: 0 | BM204: 0
A205: EBITDA ajustado, com outorgas | B205: MM R$ | I205: =SUM(I175,I193,I194,I196) -> 0 | J205: 0 | K205: -0.3755211083 | L205: 0.6737832758 | M205: 0.1786697251 | N205: 11.46533764 | O205: 10.79417236 | P205: -0.6114449407 | Q205: -0.515615674 | R205: 0.6163864061 | S205: -0.45249762 | T205: 1.252449983 | U205: 4.998480037 | V205: 8.220241386 | W205: 9.102720265 | X205: 10.15726068 | Y205: 10.87931187 | Z205: 12.31593928 | AA205: 13.38924394 | AB205: 14.51836998 | AC205: 15.52932598 | AD205: 16.19648059 | AE205: 17.65125802 | AF205: 18.83689181 | AG205: 19.87834973 | AH205: 20.9760578 | AI205: 21.75959254 | AJ205: 23.22686145 | AK205: 24.2688192 | AL205: 25.36597255 | AM205: 26.5721217 | AN205: 27.71450228 | AO205: =SUM(AO175,AO193,AO194,AO196) -> 28.14770644 | AP205: 28.14770644 | AQ205: 17.82981468 | AR205: 0 | AS205: 0 | AT205: 0 | AU205: 0 | AV205: 0 | AW205: 0 | AX205: 0 | AY205: 0 | AZ205: 0 | BA205: 0 | BB205: 0 | BC205: 0 | BD205: 0 | BE205: 0 | BF205: 0 | BG205: 0 | BH205: 0 | BI205: 0 | BJ205: 0 | BK205: 0 | BL205: 0 | BM205: 0
A206: Lucro líquido ajustado, sem outorgas | B206: MM R$ | I206: =SUM(I190,I193,I194,I195,I197,I198) -> 0 | J206: 0 | K206: -0.5143266228 | L206: 0.1685308662 | M206: -0.4951368315 | N206: 8.921157969 | O206: 8.281880936 | P206: -2.556611487 | Q206: -2.804343423 | R206: -2.081889144 | S206: -3.334193838 | T206: -2.063429269 | U206: 1.028095391 | V206: 3.693824432 | W206: 4.438195107 | X206: 5.320657665 | Y206: 5.839160862 | Z206: 7.038119566 | AA206: 7.876561373 | AB206: 8.767187052 | AC206: 9.554251641 | AD206: 9.988802226 | AE206: 11.19650536 | AF206: 11.9555655 | AG206: 12.74217017 | AH206: 13.56622571 | AI206: 14.05687467 | AJ206: 15.22195804 | AK206: 15.94736681 | AL206: 16.68236608 | AM206: 17.46411007 | AN206: 18.10739346 | AO206: =SUM(AO190,AO193,AO194,AO195,AO197,AO198) -> 18.23131496 | AP206: 17.6598921 | AQ206: 9.567881075 | AR206: 0 | AS206: 0 | AT206: 0 | AU206: 0 | AV206: 0 | AW206: 0 | AX206: 0 | AY206: 0 | AZ206: 0 | BA206: 0 | BB206: 0 | BC206: 0 | BD206: 0 | BE206: 0 | BF206: 0 | BG206: 0 | BH206: 0 | BI206: 0 | BJ206: 0 | BK206: 0 | BL206: 0 | BM206: 0
A207: Lucro líquido ajustado, com outorgas | B207: MM R$ | I207: =SUM(I190,I193,I194,I196,I197,I198) -> 0 | J207: 0 | K207: -0.5143266228 | L207: 0.1685308662 | M207: -0.4951368315 | N207: 8.921157969 | O207: 8.281880936 | P207: -2.556611487 | Q207: -2.804343423 | R207: -2.081889144 | S207: -3.334193838 | T207: -2.063429269 | U207: 1.028095391 | V207: 3.693824432 | W207: 4.438195107 | X207: 5.320657665 | Y207: 5.839160862 | Z207: 7.038119566 | AA207: 7.876561373 | AB207: 8.767187052 | AC207: 9.554251641 | AD207: 9.988802226 | AE207: 11.19650536 | AF207: 11.9555655 | AG207: 12.74217017 | AH207: 13.56622571 | AI207: 14.05687467 | AJ207: 15.22195804 | AK207: 15.94736681 | AL207: 16.68236608 | AM207: 17.46411007 | AN207: 18.10739346 | AO207: =SUM(AO190,AO193,AO194,AO196,AO197,AO198) -> 18.23131496 | AP207: 17.6598921 | AQ207: 9.567881075 | AR207: 0 | AS207: 0 | AT207: 0 | AU207: 0 | AV207: 0 | AW207: 0 | AX207: 0 | AY207: 0 | AZ207: 0 | BA207: 0 | BB207: 0 | BC207: 0 | BD207: 0 | BE207: 0 | BF207: 0 | BG207: 0 | BH207: 0 | BI207: 0 | BJ207: 0 | BK207: 0 | BL207: 0 | BM207: 0
A208: Mg EBITDA ajustada, com outorga variável, sem outorga fixa | B208: % | I208: =IF(I$200=0,#N/A,I203/I$200) ->  | K208: -0.2622935439 | L208: 0.1484240889 | M208: 0.03615711137 | N208: 0.6578287542 | O208: 0.5895872313 | P208: -0.07652870038 | Q208: -0.05336823078 | R208: 0.05308399944 | S208: -0.03965558845 | T208: 0.09111737802 | U208: 0.2862692321 | V208: 0.3930643693 | W208: 0.4132672117 | X208: 0.435700232 | Y208: 0.4406512995 | Z208: 0.4728077608 | AA208: 0.4888512277 | AB208: 0.5047336781 | AC208: 0.517576476 | AD208: 0.5179059502 | AE208: 0.5413109146 | AF208: 0.5533025738 | AG208: 0.5626890417 | AH208: 0.5720611298 | AI208: 0.5717872073 | AJ208: 0.5895998809 | AK208: 0.5966334652 | AL208: 0.6038207819 | AM208: 0.6114605674 | AN208: 0.6177635167 | AO208: =IF(AO$200=0,#N/A,AO203/AO$200) -> 0.6274197508 | AP208: 0.6274197508 | AQ208: 0.5635340687
A209: Mg EBITDA ajustada, sem outorgas | B209: % | I209: =IF(I$200=0,#N/A,I204/I$200) ->  | K209: -0.2622935439 | L209: 0.1484240889 | M209: 0.03615711137 | N209: 0.6578287542 | O209: 0.5895872313 | P209: -0.07652870038 | Q209: -0.05336823078 | R209: 0.05308399944 | S209: -0.03965558845 | T209: 0.09111737802 | U209: 0.2862692321 | V209: 0.3930643693 | W209: 0.4132672117 | X209: 0.435700232 | Y209: 0.4406512995 | Z209: 0.4728077608 | AA209: 0.4888512277 | AB209: 0.5047336781 | AC209: 0.517576476 | AD209: 0.5179059502 | AE209: 0.5413109146 | AF209: 0.5533025738 | AG209: 0.5626890417 | AH209: 0.5720611298 | AI209: 0.5717872073 | AJ209: 0.5895998809 | AK209: 0.5966334652 | AL209: 0.6038207819 | AM209: 0.6114605674 | AN209: 0.6177635167 | AO209: =IF(AO$200=0,#N/A,AO204/AO$200) -> 0.6274197508 | AP209: 0.6274197508 | AQ209: 0.5635340687
A210: Mg EBITDA ajustada, com outorgas | B210: % | I210: =IF(I$200=0,#N/A,I205/I$200) ->  | J210: =IF(J$200=0,#N/A,J205/J$200) ->  | K210: -0.2622935439 | L210: 0.1484240889 | M210: 0.03615711137 | N210: 0.6578287542 | O210: 0.5895872313 | P210: -0.07652870038 | Q210: -0.05336823078 | R210: 0.05308399944 | S210: -0.03965558845 | T210: 0.09111737802 | U210: 0.2862692321 | V210: 0.3930643693 | W210: 0.4132672117 | X210: 0.435700232 | Y210: 0.4406512995 | Z210: 0.4728077608 | AA210: 0.4888512277 | AB210: 0.5047336781 | AC210: 0.517576476 | AD210: 0.5179059502 | AE210: 0.5413109146 | AF210: 0.5533025738 | AG210: 0.5626890417 | AH210: 0.5720611298 | AI210: 0.5717872073 | AJ210: 0.5895998809 | AK210: 0.5966334652 | AL210: 0.6038207819 | AM210: 0.6114605674 | AN210: 0.6177635167 | AO210: =IF(AO$200=0,#N/A,AO205/AO$200) -> 0.6274197508 | AP210: 0.6274197508 | AQ210: 0.5635340687
A211: Mg Lucro líquido ajustada, sem outorgas | B211: % | I211: =IF(I$200=0,#N/A,I206/I$200) ->  | K211: -0.3592462572 | L211: 0.03712475683 | M211: -0.1002000622 | N211: 0.5118553344 | O211: 0.452363654 | P211: -0.3199865457 | Q211: -0.2902604683 | R211: -0.1792950024 | S211: -0.2921991471 | T211: -0.1501171841 | U211: 0.05888031481 | V211: 0.1766262939 | W211: 0.2014958675 | X211: 0.2282319862 | Y211: 0.2365070376 | Z211: 0.2701927541 | AA211: 0.287579098 | AB211: 0.3047927952 | AC211: 0.3184333887 | AD211: 0.319406434 | AE211: 0.3433630937 | AF211: 0.3511749831 | AG211: 0.3606878648 | AH211: 0.3699794539 | AI211: 0.3693792104 | AJ211: 0.3864002317 | AK211: 0.3920558574 | AL211: 0.3971130738 | AM211: 0.401872864 | AN211: 0.403618544 | AO211: =IF(AO$200=0,#N/A,AO206/AO$200) -> 0.4063807869 | AP211: 0.3936436216 | AQ211: 0.3024051034
A212: Mg Lucro líquido ajustada, com outorgas | B212: % | I212: =IF(I$200=0,#N/A,I207/I$200) ->  | K212: -0.3592462572 | L212: 0.03712475683 | M212: -0.1002000622 | N212: 0.5118553344 | O212: 0.452363654 | P212: -0.3199865457 | Q212: -0.2902604683 | R212: -0.1792950024 | S212: -0.2921991471 | T212: -0.1501171841 | U212: 0.05888031481 | V212: 0.1766262939 | W212: 0.2014958675 | X212: 0.2282319862 | Y212: 0.2365070376 | Z212: 0.2701927541 | AA212: 0.287579098 | AB212: 0.3047927952 | AC212: 0.3184333887 | AD212: 0.319406434 | AE212: 0.3433630937 | AF212: 0.3511749831 | AG212: 0.3606878648 | AH212: 0.3699794539 | AI212: 0.3693792104 | AJ212: 0.3864002317 | AK212: 0.3920558574 | AL212: 0.3971130738 | AM212: 0.401872864 | AN212: 0.403618544 | AO212: =IF(AO$200=0,#N/A,AO207/AO$200) -> 0.4063807869 | AP212: 0.3936436216 | AQ212: 0.3024051034
A216: BALANÇO PATRIMONIAL
A217: CHECK: Ativo = Passivo + PL | B217: [OK / MM R$] | E217: =IF(AND(I217:BM217="OK"),"OK","ERRO") -> OK | I217: =IF(ROUND(I219-I239,6)=0,"OK",ROUND(I219-I239,6)) -> OK | J217: OK | K217: OK | L217: OK | M217: OK | N217: OK | O217: OK | P217: OK | Q217: OK | R217: OK | S217: OK | T217: OK | U217: OK | V217: OK | W217: OK | X217: OK | Y217: OK | Z217: OK | AA217: OK | AB217: OK | AC217: OK | AD217: OK | AE217: OK | AF217: OK | AG217: OK | AH217: OK | AI217: OK | AJ217: OK | AK217: OK | AL217: OK | AM217: OK | AN217: OK | AO217: =IF(ROUND(AO219-AO239,6)=0,"OK",ROUND(AO219-AO239,6)) -> OK | AP217: OK | AQ217: OK | AR217: OK | AS217: OK | AT217: OK | AU217: OK | AV217: OK | AW217: OK | AX217: OK | AY217: OK | AZ217: OK | BA217: OK | BB217: OK | BC217: OK | BD217: OK | BE217: OK | BF217: OK | BG217: OK | BH217: OK | BI217: OK | BJ217: OK | BK217: OK | BL217: OK | BM217: OK
A219: ATIVO | B219: MM R$ | I219: =SUM(I220,I223) -> 0 | J219: 0 | K219: 5.041130045 | L219: 7.749597546 | M219: 19.51170915 | N219: 27.02244661 | O219: 35.05474854 | P219: 77.77652749 | Q219: 76.24886542 | R219: 74.60739354 | S219: 72.38308606 | T219: 70.49571967 | U219: 68.67707436 | V219: 66.67405876 | W219: 64.22198024 | X219: 61.81197323 | Y219: 59.41071236 | Z219: 56.99948452 | AA219: 54.57562932 | AB219: 52.15329496 | AC219: 49.69801052 | AD219: 47.24024672 | AE219: 44.77749209 | AF219: 44.35205291 | AG219: 41.60438513 | AH219: 38.83875532 | AI219: 36.03710952 | AJ219: 33.1690333 | AK219: 30.21439887 | AL219: 27.16611982 | AM219: 23.987399 | AN219: 20.57396603 | AO219: =SUM(AO220,AO223) -> 16.68845606 | AP219: 12.35390929 | AQ219: 2.597921878e-14 | AR219: 1.197573483 | AS219: 2.357563297 | AT219: 3.481148936 | AU219: 4.569472879 | AV219: 5.62364175 | AW219: 6.644727445 | AX219: 6.436194736 | AY219: 6.234206447 | AZ219: 6.038557194 | BA219: 5.849048038 | BB219: 5.665486282 | BC219: 5.487685279 | BD219: 5.315464238 | BE219: 5.148648041 | BF219: 4.987067068 | BG219: 4.830557021 | BH219: 4.678958757 | BI219: 4.53211813 | BJ219: 4.389885829 | BK219: 4.25211723 | BL219: 4.11867225 | BM219: 3.989415197
A220: Ativo circulante | B220: MM R$ | I220: =SUM(I221,I222) -> 0 | J220: 0 | K220: 0.2698565975 | L220: 0.8585819102 | M220: 0.9375709109 | N220: 7.861972635 | O220: 15.36851911 | P220: 1.536585167 | Q220: 1.864938012 | R220: 2.247960467 | S220: 2.237733589 | T220: 2.703897449 | U220: 3.436123655 | V220: 4.116994833 | W220: 4.336265537 | X220: 4.589800978 | Y220: 4.860931077 | Z220: 5.128659616 | AA220: 5.392729091 | AB220: 5.663724432 | AC220: 5.907892736 | AD220: 6.157874978 | AE220: 6.420943546 | AF220: 6.703911901 | AG220: 6.956602098 | AH220: 7.220590086 | AI220: 7.494036414 | AJ220: 7.757801365 | AK220: 8.010289797 | AL220: 8.272853073 | AM220: 8.55812206 | AN220: 8.834967858 | AO220: =SUM(AO221,AO222) -> 8.834967858 | AP220: 8.834967858 | AQ220: 2.597921878e-14 | AR220: 7.286779557e-17 | AS220: 7.058097208e-17 | AT220: 6.836591639e-17 | AU220: 6.62203762e-17 | AV220: 6.414216989e-17 | AW220: 6.212918432e-17 | AX220: 4.668221416e-18 | AY220: 0 | AZ220: 0 | BA220: 0 | BB220: 0 | BC220: 0 | BD220: 0 | BE220: 0 | BF220: 0 | BG220: 0 | BH220: 0 | BI220: 0 | BJ220: 0 | BK220: 0 | BL220: 0 | BM220: 0
A221: Caixa e equivalentes | B221: MM R$ | I221: =I283 -> 0 | J221: 0 | K221: 0.05658314822 | L221: 0.1800262359 | M221: 0.1965885374 | N221: 5.263977458 | O221: 12.63428572 | P221: 0.3221889962 | Q221: 0.3910375545 | R221: 0.471349159 | S221: 0.4692048017 | T221: 0.5669493781 | U221: 0.7204815293 | V221: 0.8632456313 | W221: 0.9092220013 | X221: 0.9623829526 | Y221: 1.019233127 | Z221: 1.075370067 | AA221: 1.130739779 | AB221: 1.187561698 | AC221: 1.238758561 | AD221: 1.291174482 | AE221: 1.346334326 | AF221: 1.405666729 | AG221: 1.458650451 | AH221: 1.514003077 | AI221: 1.571338915 | AJ221: 1.626644776 | AK221: 1.679586192 | AL221: 1.734640087 | AM221: 1.794454883 | AN221: 1.852503517 | AO221: =AO283 -> 1.852503517 | AP221: 1.852503517 | AQ221: 2.597921878e-14 | AR221: 7.286779557e-17 | AS221: 7.058097208e-17 | AT221: 6.836591639e-17 | AU221: 6.62203762e-17 | AV221: 6.414216989e-17 | AW221: 6.212918432e-17 | AX221: 4.668221416e-18 | AY221: 0 | AZ221: 0 | BA221: 0 | BB221: 0 | BC221: 0 | BD221: 0 | BE221: 0 | BF221: 0 | BG221: 0 | BH221: 0 | BI221: 0 | BJ221: 0 | BK221: 0 | BL221: 0 | BM221: 0
A222: Contas a receber e Outros ativos circulantes | B222: MM R$ | I222: =I$2588 -> 0 | J222: 0 | K222: 0.2132734493 | L222: 0.6785556743 | M222: 0.7409823735 | N222: 2.597995177 | O222: 2.734233395 | P222: 1.214396171 | Q222: 1.473900457 | R222: 1.776611308 | S222: 1.768528787 | T222: 2.136948071 | U222: 2.715642125 | V222: 3.253749202 | W222: 3.427043536 | X222: 3.627418026 | Y222: 3.841697951 | Z222: 4.05328955 | AA222: 4.261989311 | AB222: 4.476162734 | AC222: 4.669134175 | AD222: 4.866700495 | AE222: 5.074609219 | AF222: 5.298245172 | AG222: 5.497951647 | AH222: 5.706587009 | AI222: 5.922697499 | AJ222: 6.13115659 | AK222: 6.330703605 | AL222: 6.538212986 | AM222: 6.763667177 | AN222: 6.982464341 | AO222: =AO$2588 -> 6.982464341 | AP222: 6.982464341 | AQ222: 0 | AR222: 0 | AS222: 0 | AT222: 0 | AU222: 0 | AV222: 0 | AW222: 0 | AX222: 0 | AY222: 0 | AZ222: 0 | BA222: 0 | BB222: 0 | BC222: 0 | BD222: 0 | BE222: 0 | BF222: 0 | BG222: 0 | BH222: 0 | BI222: 0 | BJ222: 0 | BK222: 0 | BL222: 0 | BM222: 0
A223: Ativo não circulante | B223: MM R$ | I223: =SUM(I224,I225) -> 0 | J223: 0 | K223: 4.771273448 | L223: 6.891015635 | M223: 18.57413824 | N223: 19.16047397 | O223: 19.68622943 | P223: 76.23994233 | Q223: 74.38392741 | R223: 72.35943307 | S223: 70.14535247 | T223: 67.79182222 | U223: 65.24095071 | V223: 62.55706393 | W223: 59.8857147 | X223: 57.22217225 | Y223: 54.54978129 | Z223: 51.87082491 | AA223: 49.18290023 | AB223: 46.48957053 | AC223: 43.79011778 | AD223: 41.08237174 | AE223: 38.35654854 | AF223: 37.648141 | AG223: 34.64778303 | AH223: 31.61816524 | AI223: 28.54307311 | AJ223: 25.41123194 | AK223: 22.20410907 | AL223: 18.89326675 | AM223: 15.42927694 | AN223: 11.73899817 | AO223: =SUM(AO224,AO225) -> 7.8534882 | AP223: 3.518941437 | AQ223: 0 | AR223: 1.197573483 | AS223: 2.357563297 | AT223: 3.481148936 | AU223: 4.569472879 | AV223: 5.62364175 | AW223: 6.644727445 | AX223: 6.436194736 | AY223: 6.234206447 | AZ223: 6.038557194 | BA223: 5.849048038 | BB223: 5.665486282 | BC223: 5.487685279 | BD223: 5.315464238 | BE223: 5.148648041 | BF223: 4.987067068 | BG223: 4.830557021 | BH223: 4.678958757 | BI223: 4.53211813 | BJ223: 4.389885829 | BK223: 4.25211723 | BL223: 4.11867225 | BM223: 3.989415197
A224: Imposto diferido ativo | B224: MM R$ | I224: =I2002 -> 0 | J224: 0 | K224: 0 | L224: 0 | M224: 0 | N224: 0 | O224: 0 | P224: 0 | Q224: 0 | R224: 0 | S224: 0 | T224: 0 | U224: 0 | V224: 0 | W224: 0 | X224: 0 | Y224: 0 | Z224: 0 | AA224: 0 | AB224: 0 | AC224: 0 | AD224: 0 | AE224: 0 | AF224: 0 | AG224: 0 | AH224: 0 | AI224: 0 | AJ224: 0 | AK224: 0 | AL224: 0 | AM224: 0 | AN224: 0 | AO224: =AO2002 -> 0 | AP224: 0 | AQ224: 0 | AR224: 0 | AS224: 0 | AT224: 0 | AU224: 0 | AV224: 0 | AW224: 0 | AX224: 0 | AY224: 0 | AZ224: 0 | BA224: 0 | BB224: 0 | BC224: 0 | BD224: 0 | BE224: 0 | BF224: 0 | BG224: 0 | BH224: 0 | BI224: 0 | BJ224: 0 | BK224: 0 | BL224: 0 | BM224: 0
A225: Ativo intangível | B225: MM R$ | I225: =SUM(I226,I229,I232,I235) -> 0 | J225: 0 | K225: 4.771273448 | L225: 6.891015635 | M225: 18.57413824 | N225: 19.16047397 | O225: 19.68622943 | P225: 76.23994233 | Q225: 74.38392741 | R225: 72.35943307 | S225: 70.14535247 | T225: 67.79182222 | U225: 65.24095071 | V225: 62.55706393 | W225: 59.8857147 | X225: 57.22217225 | Y225: 54.54978129 | Z225: 51.87082491 | AA225: 49.18290023 | AB225: 46.48957053 | AC225: 43.79011778 | AD225: 41.08237174 | AE225: 38.35654854 | AF225: 37.648141 | AG225: 34.64778303 | AH225: 31.61816524 | AI225: 28.54307311 | AJ225: 25.41123194 | AK225: 22.20410907 | AL225: 18.89326675 | AM225: 15.42927694 | AN225: 11.73899817 | AO225: =SUM(AO226,AO229,AO232,AO235) -> 7.8534882 | AP225: 3.518941437 | AQ225: 0 | AR225: 1.197573483 | AS225: 2.357563297 | AT225: 3.481148936 | AU225: 4.569472879 | AV225: 5.62364175 | AW225: 6.644727445 | AX225: 6.436194736 | AY225: 6.234206447 | AZ225: 6.038557194 | BA225: 5.849048038 | BB225: 5.665486282 | BC225: 5.487685279 | BD225: 5.315464238 | BE225: 5.148648041 | BF225: 4.987067068 | BG225: 4.830557021 | BH225: 4.678958757 | BI225: 4.53211813 | BJ225: 4.389885829 | BK225: 4.25211723 | BL225: 4.11867225 | BM225: 3.989415197
A226: Ativos construídos (ex- despesas financeiras ativadas) | B226: MM R$ | I226: =SUM(I227,I228) -> 0 | J226: 0 | K226: 0.6889872968 | L226: 2.947282456 | M226: 14.76248812 | N226: 15.47536222 | O226: 16.12950574 | P226: 72.81549511 | Q226: 71.09616358 | R226: 69.21352881 | S226: 67.14694034 | T226: 64.9442052 | U226: 62.54956878 | V226: 60.02447526 | W226: 57.508262 | X226: 54.9964138 | Y226: 52.4728457 | Z226: 49.93972977 | AA226: 47.3945013 | AB226: 44.84056034 | AC226: 42.27709693 | AD226: 39.70194811 | AE226: 37.10537051 | AF226: 36.52296667 | AG226: 33.64520411 | AH226: 30.73482607 | AI226: 27.77565362 | AJ226: 24.75638183 | AK226: 21.65845545 | AL226: 18.45350316 | AM226: 15.09220019 | AN226: 11.50156711 | AO226: =SUM(AO227,AO228) -> 7.709780422 | AP226: 3.463308117 | AQ226: 0 | AR226: 1.197573483 | AS226: 2.357563297 | AT226: 3.481148936 | AU226: 4.569472879 | AV226: 5.62364175 | AW226: 6.644727445 | AX226: 6.436194736 | AY226: 6.234206447 | AZ226: 6.038557194 | BA226: 5.849048038 | BB226: 5.665486282 | BC226: 5.487685279 | BD226: 5.315464238 | BE226: 5.148648041 | BF226: 4.987067068 | BG226: 4.830557021 | BH226: 4.678958757 | BI226: 4.53211813 | BJ226: 4.389885829 | BK226: 4.25211723 | BL226: 4.11867225 | BM226: 3.989415197
A227: Custo histórico | B227: MM R$ | I227: =I$2281 -> 0 | J227: 0 | K227: 0.6890724976 | L227: 2.949736906 | M227: 14.78418572 | N227: 15.52542485 | O227: 16.23576106 | P227: 73.35761521 | Q227: 72.2529931 | R227: 71.18503755 | S227: 70.14859784 | T227: 69.14468492 | U227: 68.17227797 | V227: 67.23238826 | W227: 66.31999528 | X227: 65.43623609 | Y227: 64.58021208 | Z227: 63.75305284 | AA227: 62.94985248 | AB227: 62.17185911 | AC227: 61.41828165 | AD227: 60.69035385 | AE227: 59.98327074 | AF227: 61.49837815 | AG227: 60.76593667 | AH227: 60.05848153 | AI227: 59.37122859 | AJ227: 58.70554383 | AK227: 58.06075039 | AL227: 57.43819261 | AM227: 56.83317268 | AN227: 56.2471402 | AO227: =AO$2281 -> 55.67949929 | AP227: 55.12967275 | AQ227: 54.59710153 | AR227: 54.08124409 | AS227: 53.58157589 | AT227: 53.09758888 | AU227: 52.62879091 | AV227: 52.17470533 | AW227: 51.73487039 | AX227: 50.11126539 | AY227: 48.53861429 | AZ227: 47.01531799 | BA227: 45.53982757 | BB227: 44.11064275 | BC227: 42.72631029 | BD227: 41.3854226 | BE227: 40.08661624 | BF227: 38.82857055 | BG227: 37.61000634 | BH227: 36.42968456 | BI227: 35.28640504 | BJ227: 34.17900527 | BK227: 33.10635923 | BL227: 32.06737624 | BM227: 31.06099985
A228: (−) Amortização acumulada | B228: MM R$ | I228: =I$2286 -> 0 | J228: 0 | K228: -8.520076669e-05 | L228: -0.00245445042 | M228: -0.02169760254 | N228: -0.0500626348 | O228: -0.1062553215 | P228: -0.5421201083 | Q228: -1.156829525 | R228: -1.97150874 | S228: -3.001657507 | T228: -4.20047972 | U228: -5.622709192 | V228: -7.207913003 | W228: -8.811733272 | X228: -10.43982229 | Y228: -12.10736638 | Z228: -13.81332307 | AA228: -15.55535118 | AB228: -17.33129877 | AC228: -19.14118472 | AD228: -20.98840574 | AE228: -22.87790023 | AF228: -24.97541148 | AG228: -27.12073256 | AH228: -29.32365546 | AI228: -31.59557497 | AJ228: -33.949162 | AK228: -36.40229493 | AL228: -38.98468945 | AM228: -41.74097249 | AN228: -44.74557309 | AO228: =AO$2286 -> -47.96971887 | AP228: -51.66636464 | AQ228: -54.59710153 | AR228: -52.8836706 | AS228: -51.22401259 | AT228: -49.61643994 | AU228: -48.05931804 | AV228: -46.55106358 | AW228: -45.09014294 | AX228: -43.67507066 | AY228: -42.30440784 | AZ228: -40.97676079 | BA228: -39.69077953 | BB228: -38.44515647 | BC228: -37.23862501 | BD228: -36.06995836 | BE228: -34.93796819 | BF228: -33.84150348 | BG228: -32.77944932 | BH228: -31.75072581 | BI228: -30.75428691 | BJ228: -29.78911944 | BK228: -28.854242 | BL228: -27.94870399 | BM228: -27.07158465
A229: Despesas financeiras ativadas | B229: MM R$ | I229: =SUM(I230,I231) -> 0 | J229: 0 | K229: 0 | L229: 0 | M229: 0 | N229: 0 | O229: 0 | P229: 0 | Q229: 0 | R229: 0 | S229: 0 | T229: 0 | U229: 0 | V229: 0 | W229: 0 | X229: 0 | Y229: 0 | Z229: 0 | AA229: 0 | AB229: 0 | AC229: 0 | AD229: 0 | AE229: 0 | AF229: 0 | AG229: 0 | AH229: 0 | AI229: 0 | AJ229: 0 | AK229: 0 | AL229: 0 | AM229: 0 | AN229: 0 | AO229: =SUM(AO230,AO231) -> 0 | AP229: 0 | AQ229: 0 | AR229: 0 | AS229: 0 | AT229: 0 | AU229: 0 | AV229: 0 | AW229: 0 | AX229: 0 | AY229: 0 | AZ229: 0 | BA229: 0 | BB229: 0 | BC229: 0 | BD229: 0 | BE229: 0 | BF229: 0 | BG229: 0 | BH229: 0 | BI229: 0 | BJ229: 0 | BK229: 0 | BL229: 0 | BM229: 0
A230: Custo histórico | B230: MM R$ | I230: =I$2530 -> 0 | J230: 0 | K230: 0 | L230: 0 | M230: 0 | N230: 0 | O230: 0 | P230: 0 | Q230: 0 | R230: 0 | S230: 0 | T230: 0 | U230: 0 | V230: 0 | W230: 0 | X230: 0 | Y230: 0 | Z230: 0 | AA230: 0 | AB230: 0 | AC230: 0 | AD230: 0 | AE230: 0 | AF230: 0 | AG230: 0 | AH230: 0 | AI230: 0 | AJ230: 0 | AK230: 0 | AL230: 0 | AM230: 0 | AN230: 0 | AO230: =AO$2530 -> 0 | AP230: 0 | AQ230: 0 | AR230: 0 | AS230: 0 | AT230: 0 | AU230: 0 | AV230: 0 | AW230: 0 | AX230: 0 | AY230: 0 | AZ230: 0 | BA230: 0 | BB230: 0 | BC230: 0 | BD230: 0 | BE230: 0 | BF230: 0 | BG230: 0 | BH230: 0 | BI230: 0 | BJ230: 0 | BK230: 0 | BL230: 0 | BM230: 0
A231: (−) Amortização acumulada | B231: MM R$ | I231: =I$2535 -> 0 | J231: 0 | K231: 0 | L231: 0 | M231: 0 | N231: 0 | O231: 0 | P231: 0 | Q231: 0 | R231: 0 | S231: 0 | T231: 0 | U231: 0 | V231: 0 | W231: 0 | X231: 0 | Y231: 0 | Z231: 0 | AA231: 0 | AB231: 0 | AC231: 0 | AD231: 0 | AE231: 0 | AF231: 0 | AG231: 0 | AH231: 0 | AI231: 0 | AJ231: 0 | AK231: 0 | AL231: 0 | AM231: 0 | AN231: 0 | AO231: =AO$2535 -> 0 | AP231: 0 | AQ231: 0 | AR231: 0 | AS231: 0 | AT231: 0 | AU231: 0 | AV231: 0 | AW231: 0 | AX231: 0 | AY231: 0 | AZ231: 0 | BA231: 0 | BB231: 0 | BC231: 0 | BD231: 0 | BE231: 0 | BF231: 0 | BG231: 0 | BH231: 0 | BI231: 0 | BJ231: 0 | BK231: 0 | BL231: 0 | BM231: 0
A232: Outorga fixa | B232: MM R$ | I232: =SUM(I233,I234) -> 0 | J232: 0 | K232: 0 | L232: 0 | M232: 0 | N232: 0 | O232: 0 | P232: 0 | Q232: 0 | R232: 0 | S232: 0 | T232: 0 | U232: 0 | V232: 0 | W232: 0 | X232: 0 | Y232: 0 | Z232: 0 | AA232: 0 | AB232: 0 | AC232: 0 | AD232: 0 | AE232: 0 | AF232: 0 | AG232: 0 | AH232: 0 | AI232: 0 | AJ232: 0 | AK232: 0 | AL232: 0 | AM232: 0 | AN232: 0 | AO232: =SUM(AO233,AO234) -> 0 | AP232: 0 | AQ232: 0 | AR232: 0 | AS232: 0 | AT232: 0 | AU232: 0 | AV232: 0 | AW232: 0 | AX232: 0 | AY232: 0 | AZ232: 0 | BA232: 0 | BB232: 0 | BC232: 0 | BD232: 0 | BE232: 0 | BF232: 0 | BG232: 0 | BH232: 0 | BI232: 0 | BJ232: 0 | BK232: 0 | BL232: 0 | BM232: 0
... 741 more rows

Sheet Premissas
A1: =D1 -> SBPB | B1: Unidade | D1: SBPB | E1: Unidade | F1: Fonte
A3: TAXA DE DESCONTO PARA PROJETO | D3: =Result!C5 -> 0.083 | E3: % a.a. | F3: Orientação SAC
A4: Custo de Capital Próprio | D4: 0.0907 | E4: % a.a. | F4: Orientação SAC
A5: Custo de Capital de Terceiros | D5: 0.0528 | E5: % a.a. | F5: Orientação SAC
A7: PARÂMETROS DE CONTRATO
A9: TIMING
A10: Assinatura de contrato de concessão | D10: =Result!C15 -> 2021-09-01 | E10: [data]
A11: 1o ano cheio de concessão | D11: =IF(AND(DAY($D$10)=1,MONTH($D$10)=1),YEAR($D$10),YEAR($D$10)+1) -> 2022 | E11: [ano] | F11: Orientação SAC
A12: Anos de concessão | D12: =Result!C6 -> 32 | E12: anos | F12: Orientação SAC
A13: Último ano de concessão | D13: =D11+D12-1 -> 2053 | E13: [ano] | F13: Orientação SAC
A15: FASES DE TRANSIÇÃO
A16: Fase 1A - duração do Estágio I | D16: 80 | E16: [dias]
A17: Fase 1A - duração do Estágio II | D17: 45 | E17: [dias]
A20: SENSIBILIDADES/CENÁRIOS
A21: DEMANDA
A22: Aumento/redução percentual de demanda | D22: 0 | E22: [%]
A24: RECEITA
A25: Permite alteração de categoria tarifária? | D25: 0 | E25: [0=não, 1=sim]
A27: Aumento/redução percentual de receita | D27: 0 | E27: [%]
A29: OPEX
A30: Aumento/redução percentual de opex | D30: 0 | E30: [%]
A32: CAPEX
A33: Aumento/redução percentual de capex | D33: 0 | E33: [%]
A35: PRAZO
A36: Aumento/redução do prazo contratual em anos | D36: 0 | E36: [anos]
A38: REGIME DE TRIBUTAÇÃO
A39: Priorizar opção por Lucro Presumido, caso limite de faturamento seja atendido? | D39: 1 | E39: [1=SIM; 0=NÃO]
A40: Considerar que deverá vigorar um único regime de tributação ao longo de toda concessão? | D40: 1 | E40: [1=SIM; 0=NÃO]
A41: Considerar que limite de faturamento para enquadramento em Lucro Presumido se atualizará por inflação ao longo do tempo? | D41: 1 | E41: [1=SIM; 0=NÃO]
A43: DRIVERS
A45: Funcionários de companhias aéreas, ESATAS e orgãos de controle
A46: População total atual do aeroporto (exclusos funcionários do operador) | D46: =75-D49 -> 50 | E46: Pessoas | F46: Estimativa geral
A48: Funcionários do aeroporto
A49: Efetivo atual (mar/2019) | D49: 25 | E49: funcionários | F49: Estimativa geral
A51: Área locada inicialmente
A53: Taxa de aproveitamento de áreas potencialmente locáveis, internas a TPS | D53: =D55/D54 -> 1 | E53: % | F53: Baseado em levantamento de estudo de arquitetura e avaliação de contratos vigentes
A54: Área disponível inicialmente | D54: =MArq!$C6 -> 145 | E54: m2 | F54: Levantamento de estudo de arquitetura
A55: Área locada inicialmente | D55: 145 | E55: m2 | F55: Avaliação de contratos comerciais e classificação de áreas internas/externas
A58: RECEITA TARIFÁRIA
A60: EMBARQUE, CONEXÃO, POUSO
A61: Aviação Regular e Não-regular
A62: 1a Categoria
A63: Em avião de passageiros
A64: Embarque doméstico | C64: 34.57 | D64: =(Result!$C$30+1)*Premissas!C64 -> 98.7551739 | E64: R$/pax | F64: 1a Categoria - Vigência em 01/02/2020 Tárifa Infraero
A65: Embarque internacional | C65: 132.25 | D65: =(Result!$C$30+1)*Premissas!C65 -> 377.7949595 | E65: R$/pax | F65: 1a Categoria - Vigência em 01/02/2020 Tárifa Infraero
A66: Conexão doméstico | C66: 10.58 | D66: =(Result!$C$30+1)*Premissas!C66 -> 30.22359676 | E66: R$/pax | F66: 1a Categoria - Vigência em 01/02/2020 Tárifa Infraero
A67: Conexão internacional | C67: 10.58 | D67: =(Result!$C$30+1)*Premissas!C67 -> 30.22359676 | E67: R$/pax | F67: 1a Categoria - Vigência em 01/02/2020 Tárifa Infraero
A68: Pouso doméstico | C68: 10.83 | D68: =Premissas!C68 -> 10.83 | E68: R$/PMD | F68: 1a Categoria - Vigência em 01/02/2020 Tárifa Infraero
A69: Pouso internacional | C69: 28.86 | D69: =Premissas!C69 -> 28.86 | E69: R$/PMD | F69: 1a Categoria - Vigência em 01/02/2020 Tárifa Infraero
A70: Em avião cargueiro
A71: Pouso doméstico | C71: 10.83 | D71: =Premissas!C71 -> 10.83 | E71: R$/PMD | F71: 1a Categoria - Vigência em 01/02/2020 Tárifa Infraero
A72: Pouso internacional | C72: 28.86 | D72: =Premissas!C72 -> 28.86 | E72: R$/PMD | F72: 1a Categoria - Vigência em 01/02/2020 Tárifa Infraero
A74: 2a Categoria
A75: Em avião de passageiros
A76: Embarque doméstico | C76: 27.16 | D76: =(Result!$C$30+1)*Premissas!C76 -> 77.58722948 | E76: R$/pax | F76: 2a Categoria - Vigência em 01/02/2020 Tárifa Infraero
A77: Embarque internacional | C77: 110.19 | D77: =(Result!$C$30+1)*Premissas!C77 -> 314.7767606 | E77: R$/pax | F77: 2a Categoria - Vigência em 01/02/2020 Tárifa Infraero
A78: Conexão doméstico | C78: 8.31 | D78: =(Result!$C$30+1)*Premissas!C78 -> 23.73894982 | E78: R$/pax | F78: 2a Categoria - Vigência em 01/02/2020 Tárifa Infraero
A79: Conexão internacional | C79: 8.31 | D79: =(Result!$C$30+1)*Premissas!C79 -> 23.73894982 | E79: R$/pax | F79: 2a Categoria - Vigência em 01/02/2020 Tárifa Infraero
A80: Pouso doméstico | C80: 8.91 | D80: =Premissas!C80 -> 8.91 | E80: R$/PMD | F80: 2a Categoria - Vigência em 01/02/2020 Tárifa Infraero
A81: Pouso internacional | C81: 26.21 | D81: =Premissas!C81 -> 26.21 | E81: R$/PMD | F81: 2a Categoria - Vigência em 01/02/2020 Tárifa Infraero
A82: Em avião cargueiro
A83: Pouso doméstico | C83: 8.91 | D83: =Premissas!C83 -> 8.91 | E83: R$/PMD | F83: 2a Categoria - Vigência em 01/02/2020 Tárifa Infraero
A84: Pouso internacional | C84: 26.21 | D84: =Premissas!C84 -> 26.21 | E84: R$/PMD | F84: 2a Categoria - Vigência em 01/02/2020 Tárifa Infraero
A86: PERMANÊNCIA
A87: Aviação comercial
A88: Receita inicial, em R$@2019 | C88: 0.03 | D88: =(Result!$C$30+1)*Premissas!C88 -> 0.08570017984 | E88: R$/PMD doméstico equivalente | F88: =F89 -> Dados fornecidos pela SAC (Data Room). "DRE_2018_Prévia_2018 - Teresina" e ponderados pelo PMD total de 2018
A89: Receita inicial, em R$@2018 | C89: 0.03 | D89: =Premissas!C89 -> 0.03 | E89: R$/PMD doméstico equivalente | F89: Dados fornecidos pela SAC (Data Room). "DRE_2018_Prévia_2018 - Teresina" e ponderados pelo PMD total de 2018
A90: Ajuste de inflação 2018->2019 | C90: 1 | D90: =(Result!$C$30+1)*Premissas!C90 -> 2.856672661 | E90: [2019=1,00]
A91: Ano vinculado à receita inicial | C91: 2019 | D91: 2021 | E91: [ano] | F91: Receita existente
A92: Aviação geral
A93: Receita inicial, em R$@2019 | C93: 0.03 | D93: =(Result!$C$30+1)*Premissas!C93 -> 0.08570017984 | E93: MM R$, @2019 | F93: =F94 -> Assume receita de permanência 100% aviação comercial
A94: Receita inicial, em R$@2018 | C94: 0.03 | D94: =(Result!$C$30+1)*Premissas!C94 -> 0.08570017984 | E94: MM R$, @2018 | F94: Assume receita de permanência 100% aviação comercial
A96: Auxiliar: permanência
A97: PMD total .equivalente a avião doméstico
A98: Avião de passageiro doméstico | C98: 1 | D98: =(Result!$C$30+1)*Premissas!C98 -> 2.856672661 | E98: %
A99: Avião de passageiro internacional | C99: 2.941638608 | D99: =(Result!$C$30+1)*Premissas!C99 -> 8.403298592 | E99: % | F99: Proporção entre tarifa internacional e doméstica para Permanência em Área de estadia. Fonte: 2a Categoria - Portaria ANAC Nº 103/SRA (jan/2019)
A100: Avião de cargueiro doméstico | C100: 1 | D100: =(Result!$C$30+1)*Premissas!C100 -> 2.856672661 | E100: %
A101: Avião de cargueiro internacional | C101: 2.941638608 | D101: =(Result!$C$30+1)*Premissas!C101 -> 8.403298592 | E101: % | F101: Proporção entre tarifa internacional e doméstica para Permanência em Área de estadia. Fonte: 2a Categoria - Portaria ANAC Nº 103/SRA (jan/2019)
A103: TARIFAS AVIAÇÃO GERAL
A104: Pouso + embarque
A105: 1a Categoria
A106: Valores domésticos (R$) por faixas de PMD (ton)
A107: Até 1 | C107: 101.75 | D107: =Premissas!C107*(Result!$C$30+1) -> 290.6664433 | E107: R$/pouso | F107: Tarifário Infraero 2019 - considera teto de valores para aeroportos de primeira categoria dentro do Grupo II (aviação geral)
A108: + de 1 até 2 | C108: 101.75 | D108: =Premissas!C108*(Result!$C$30+1) -> 290.6664433 | E108: R$/pouso | F108: Tarifário Infraero 2019 - considera teto de valores para aeroportos de primeira categoria dentro do Grupo II (aviação geral)
A109: + de 2 até 4 | C109: 177.06 | D109: =Premissas!C109*(Result!$C$30+1) -> 505.8024614 | E109: R$/pouso | F109: Tarifário Infraero 2019 - considera teto de valores para aeroportos de primeira categoria dentro do Grupo II (aviação geral)
A110: + de 4 até 6 | C110: 357.89 | D110: =Premissas!C110*(Result!$C$30+1) -> 1022.374579 | E110: R$/pouso | F110: Tarifário Infraero 2019 - considera teto de valores para aeroportos de primeira categoria dentro do Grupo II (aviação geral)
A111: + de 6 até 12 | C111: 465.9 | D111: =Premissas!C111*(Result!$C$30+1) -> 1330.923793 | E111: R$/pouso | F111: Tarifário Infraero 2019 - considera teto de valores para aeroportos de primeira categoria dentro do Grupo II (aviação geral)
A112: + de 12 até 24 | C112: 1058.4 | D112: =Premissas!C112*(Result!$C$30+1) -> 3023.502345 | E112: R$/pouso | F112: Tarifário Infraero 2019 - considera teto de valores para aeroportos de primeira categoria dentro do Grupo II (aviação geral)
A113: + de 24 até 48 | C113: 2716.6 | D113: =Premissas!C113*(Result!$C$30+1) -> 7760.436952 | E113: R$/pouso | F113: Tarifário Infraero 2019 - considera teto de valores para aeroportos de primeira categoria dentro do Grupo II (aviação geral)
A114: + de 48 até 100 | C114: 3214.9 | D114: =Premissas!C114*(Result!$C$30+1) -> 9183.916939 | E114: R$/pouso | F114: Tarifário Infraero 2019 - considera teto de valores para aeroportos de primeira categoria dentro do Grupo II (aviação geral)
A115: + de 100 até 200 | C115: 5245.99 | D115: =Premissas!C115*(Result!$C$30+1) -> 14986.07621 | E115: R$/pouso | F115: Tarifário Infraero 2019 - considera teto de valores para aeroportos de primeira categoria dentro do Grupo II (aviação geral)
A116: + de 200 até 300 | C116: 8280.07 | D116: =Premissas!C116*(Result!$C$30+1) -> 23653.4496 | E116: R$/pouso | F116: Tarifário Infraero 2019 - considera teto de valores para aeroportos de primeira categoria dentro do Grupo II (aviação geral)
A117: + de 300 | C117: 13841.22 | D117: =Premissas!C117*(Result!$C$30+1) -> 39539.83477 | E117: R$/pouso | F117: Tarifário Infraero 2019 - considera teto de valores para aeroportos de primeira categoria dentro do Grupo II (aviação geral)
A119: Valores internacionais (R$) por faixas de PMD (ton)
A120: Até 1 | C120: 234.61 | D120: =Premissas!C120*(Result!$C$30+1) -> 670.2039731 | E120: R$/pouso | F120: Tarifário Infraero 2019 - considera teto de valores para aeroportos de primeira categoria dentro do Grupo II (aviação geral)
A121: + de 1 até 2 | C121: 234.61 | D121: =Premissas!C121*(Result!$C$30+1) -> 670.2039731 | E121: R$/pouso | F121: Tarifário Infraero 2019 - considera teto de valores para aeroportos de primeira categoria dentro do Grupo II (aviação geral)
A122: + de 2 até 4 | C122: 402.94 | D122: =Premissas!C122*(Result!$C$30+1) -> 1151.067682 | E122: R$/pouso | F122: Tarifário Infraero 2019 - considera teto de valores para aeroportos de primeira categoria dentro do Grupo II (aviação geral)
A123: + de 4 até 6 | C123: 816.12 | D123: =Premissas!C123*(Result!$C$30+1) -> 2331.387692 | E123: R$/pouso | F123: Tarifário Infraero 2019 - considera teto de valores para aeroportos de primeira categoria dentro do Grupo II (aviação geral)
A124: + de 6 até 12 | C124: 1076.27 | D124: =Premissas!C124*(Result!$C$30+1) -> 3074.551085 | E124: R$/pouso | F124: Tarifário Infraero 2019 - considera teto de valores para aeroportos de primeira categoria dentro do Grupo II (aviação geral)
A125: + de 12 até 24 | C125: 2433.05 | D125: =Premissas!C125*(Result!$C$30+1) -> 6950.427419 | E125: R$/pouso | F125: Tarifário Infraero 2019 - considera teto de valores para aeroportos de primeira categoria dentro do Grupo II (aviação geral)
A126: + de 24 até 48 | C126: 5473.05 | D126: =Premissas!C126*(Result!$C$30+1) -> 15634.71231 | E126: R$/pouso | F126: Tarifário Infraero 2019 - considera teto de valores para aeroportos de primeira categoria dentro do Grupo II (aviação geral)
A127: + de 48 até 100 | C127: 7406.23 | D127: =Premissas!C127*(Result!$C$30+1) -> 21157.17476 | E127: R$/pouso | F127: Tarifário Infraero 2019 - considera teto de valores para aeroportos de primeira categoria dentro do Grupo II (aviação geral)
A128: + de 100 até 200 | C128: 12328.42 | D128: =Premissas!C128*(Result!$C$30+1) -> 35218.26037 | E128: R$/pouso | F128: Tarifário Infraero 2019 - considera teto de valores para aeroportos de primeira categoria dentro do Grupo II (aviação geral)
A129: + de 200 até 300 | C129: 19571.45 | D129: =Premissas!C129*(Result!$C$30+1) -> 55909.22616 | E129: R$/pouso | F129: Tarifário Infraero 2019 - considera teto de valores para aeroportos de primeira categoria dentro do Grupo II (aviação geral)
A130: + de 300 | C130: 32425.25 | D130: =Premissas!C130*(Result!$C$30+1) -> 92628.32521 | E130: R$/pouso | F130: Tarifário Infraero 2019 - considera teto de valores para aeroportos de primeira categoria dentro do Grupo II (aviação geral)
A132: 2a Categoria
A133: Valores domésticos (R$) por faixas de PMD (ton)
A134: Até 1 | C134: 101.75 | D134: =Premissas!C134*(Result!$C$30+1) -> 290.6664433 | E134: R$/pouso | F134: Tarifário Infraero 2019 - considera teto de valores para aeroportos de segunda categoria dentro do Grupo II (aviação geral)
A135: + de 1 até 2 | C135: 101.75 | D135: =Premissas!C135*(Result!$C$30+1) -> 290.6664433 | E135: R$/pouso | F135: Tarifário Infraero 2019 - considera teto de valores para aeroportos de segunda categoria dentro do Grupo II (aviação geral)
A136: + de 2 até 4 | C136: 177.06 | D136: =Premissas!C136*(Result!$C$30+1) -> 505.8024614 | E136: R$/pouso | F136: Tarifário Infraero 2019 - considera teto de valores para aeroportos de segunda categoria dentro do Grupo II (aviação geral)
A137: + de 4 até 6 | C137: 357.89 | D137: =Premissas!C137*(Result!$C$30+1) -> 1022.374579 | E137: R$/pouso | F137: Tarifário Infraero 2019 - considera teto de valores para aeroportos de segunda categoria dentro do Grupo II (aviação geral)
A138: + de 6 até 12 | C138: 465.9 | D138: =Premissas!C138*(Result!$C$30+1) -> 1330.923793 | E138: R$/pouso | F138: Tarifário Infraero 2019 - considera teto de valores para aeroportos de segunda categoria dentro do Grupo II (aviação geral)
A139: + de 12 até 24 | C139: 1058.4 | D139: =Premissas!C139*(Result!$C$30+1) -> 3023.502345 | E139: R$/pouso | F139: Tarifário Infraero 2019 - considera teto de valores para aeroportos de segunda categoria dentro do Grupo II (aviação geral)
A140: + de 24 até 48 | C140: 2716.6 | D140: =Premissas!C140*(Result!$C$30+1) -> 7760.436952 | E140: R$/pouso | F140: Tarifário Infraero 2019 - considera teto de valores para aeroportos de segunda categoria dentro do Grupo II (aviação geral)
A141: + de 48 até 100 | C141: 3214.9 | D141: =Premissas!C141*(Result!$C$30+1) -> 9183.916939 | E141: R$/pouso | F141: Tarifário Infraero 2019 - considera teto de valores para aeroportos de segunda categoria dentro do Grupo II (aviação geral)
A142: + de 100 até 200 | C142: 5245.99 | D142: =Premissas!C142*(Result!$C$30+1) -> 14986.07621 | E142: R$/pouso | F142: Tarifário Infraero 2019 - considera teto de valores para aeroportos de segunda categoria dentro do Grupo II (aviação geral)
A143: + de 200 até 300 | C143: 8280.07 | D143: =Premissas!C143*(Result!$C$30+1) -> 23653.4496 | E143: R$/pouso | F143: Tarifário Infraero 2019 - considera teto de valores para aeroportos de segunda categoria dentro do Grupo II (aviação geral)
A144: + de 300 | C144: 13841.22 | D144: =Premissas!C144*(Result!$C$30+1) -> 39539.83477 | E144: R$/pouso | F144: Tarifário Infraero 2019 - considera teto de valores para aeroportos de segunda categoria dentro do Grupo II (aviação geral)
A146: Valores internacionais (R$) por faixas de PMD (ton)
A147: Até 1 | C147: 234.61 | D147: =Premissas!C147*(Result!$C$30+1) -> 670.2039731 | E147: R$/pouso | F147: Tarifário Infraero 2019 - considera teto de valores para aeroportos de segunda categoria dentro do Grupo II (aviação geral)
A148: + de 1 até 2 | C148: 234.61 | D148: =Premissas!C148*(Result!$C$30+1) -> 670.2039731 | E148: R$/pouso | F148: Tarifário Infraero 2019 - considera teto de valores para aeroportos de segunda categoria dentro do Grupo II (aviação geral)
A149: + de 2 até 4 | C149: 402.94 | D149: =Premissas!C149*(Result!$C$30+1) -> 1151.067682 | E149: R$/pouso | F149: Tarifário Infraero 2019 - considera teto de valores para aeroportos de segunda categoria dentro do Grupo II (aviação geral)
A150: + de 4 até 6 | C150: 816.12 | D150: =Premissas!C150*(Result!$C$30+1) -> 2331.387692 | E150: R$/pouso | F150: Tarifário Infraero 2019 - considera teto de valores para aeroportos de segunda categoria dentro do Grupo II (aviação geral)
A151: + de 6 até 12 | C151: 1076.27 | D151: =Premissas!C151*(Result!$C$30+1) -> 3074.551085 | E151: R$/pouso | F151: Tarifário Infraero 2019 - considera teto de valores para aeroportos de segunda categoria dentro do Grupo II (aviação geral)
A152: + de 12 até 24 | C152: 2433.05 | D152: =Premissas!C152*(Result!$C$30+1) -> 6950.427419 | E152: R$/pouso | F152: Tarifário Infraero 2019 - considera teto de valores para aeroportos de segunda categoria dentro do Grupo II (aviação geral)
A153: + de 24 até 48 | C153: 5473.05 | D153: =Premissas!C153*(Result!$C$30+1) -> 15634.71231 | E153: R$/pouso | F153: Tarifário Infraero 2019 - considera teto de valores para aeroportos de segunda categoria dentro do Grupo II (aviação geral)
A154: + de 48 até 100 | C154: 7406.23 | D154: =Premissas!C154*(Result!$C$30+1) -> 21157.17476 | E154: R$/pouso | F154: Tarifário Infraero 2019 - considera teto de valores para aeroportos de segunda categoria dentro do Grupo II (aviação geral)
A155: + de 100 até 200 | C155: 12328.42 | D155: =Premissas!C155*(Result!$C$30+1) -> 35218.26037 | E155: R$/pouso | F155: Tarifário Infraero 2019 - considera teto de valores para aeroportos de segunda categoria dentro do Grupo II (aviação geral)
A156: + de 200 até 300 | C156: 19571.45 | D156: =Premissas!C156*(Result!$C$30+1) -> 55909.22616 | E156: R$/pouso | F156: Tarifário Infraero 2019 - considera teto de valores para aeroportos de segunda categoria dentro do Grupo II (aviação geral)
A157: + de 300 | C157: 32425.25 | D157: =Premissas!C157*(Result!$C$30+1) -> 92628.32521 | E157: R$/pouso | F157: Tarifário Infraero 2019 - considera teto de valores para aeroportos de segunda categoria dentro do Grupo II (aviação geral)
A159: TARIFAS DE NAVEGAÇÃO AÉREA
A161: Tarifa Grupo I - Doméstico | B161: R$/movimento | D161: =D162*D163 -> 0 | E161: R$/movimento | F161: =F163 -> Portaria 1194/2015
A162: Tarifa é receita do concessionário? | B162: [0=não;1=sim] | D162: 0 | E162: [0=não;1=sim] | F162: Orientação SAC. E-mail de 05/01/2018
A163: Valor da tabela | B163: R$/movimento | D163: 318.97 | E163: R$/movimento | F163: Portaria 1194/2015
A164: Tarifa Grupo I - Internacional | B164: R$/movimento | D164: =D165*D166 -> 0 | E164: R$/movimento | F164: =F166 -> Portaria 1194/2015
A165: Tarifa é receita do concessionário? | B165: [0=não;1=sim] | D165: =D162 -> 0 | E165: [0=não;1=sim] | F165: Orientação SAC. E-mail de 05/01/2018
A166: Valor da tabela | B166: R$/movimento | D166: 358.31 | E166: R$/movimento | F166: Portaria 1194/2015
A167: Tarifa unificada média Grupo II | B167: R$/movimento | D167: =D168*D169 -> 0 | E167: R$/movimento | F167: =F169 -> Valor ponderado de tarifas pela proporção de cada classe de aeronave observado em 2016, ponderando aeronaves domésticas e internacionais. Portaria 1194/2015
A168: Tarifa é receita do concessionário? | B168: [0=não;1=sim] | D168: =D162 -> 0 | E168: [0=não;1=sim] | F168: Orientação SAC. E-mail de 05/01/2018
A169: Tarifa média unificada | B169: R$/movimento | D169: 200.4513244 | E169: R$/movimento | F169: Valor ponderado de tarifas pela proporção de cada classe de aeronave observado em 2016, ponderando aeronaves domésticas e internacionais. Portaria 1194/2015
A170: Considerar valor reajustado ou pré-reajuste?
A171: Fator de ajuste em relação à tabela
A172: Fator base
A173: Fator de reajuste
A175: CAPATAZIA E ARMAZENAGEM
A177: TECA não concedido | D177: 0 | E177: [1=sim, 0=não]
A179: IMPORTAÇÃO
A180: Receita mínima inicial, em R$@2019 | D180: 0 | E180: MM R$, @2019
A181: Receita mínima inicial, em R$@2018 | D181: 0 | E181: MM R$, @2018 | F181: Estimado com base em dados fornecidos pela SAC (Data Room) caso TECA fosse operado pelo concessionário em 2018
A182: Receita adicional inicial, em R$@2019 | D182: =D183/D184 -> 0 | E182: MM R$, @2019
A183: Receita adicional inicial, em R$@2018 | D183: 0 | E183: MM R$, @2018 | F183: Estimado com base em dados fornecidos pela SAC (Data Room) caso TECA fosse operado pelo concessionário em 2018
A184: Ajuste de inflação 2018->2019 | D184: =MacroEco!$D$28 -> 1 | E184: [2019=1,00]
A185: Ano vinculado à receita inicial | D185: 2019
A186: EXPORTAÇÃO
A187: Receita inicial, em R$@2019 | D187: =D188/D189 -> 0 | E187: MM R$, @2019
A188: Receita inicial, em R$@2018 | D188: 0 | E188: MM R$, @2018 | F188: Estimado com base em dados fornecidos pela SAC (Data Room) caso TECA fosse operado pelo concessionário em 2018
A189: Ajuste de inflação 2018->2019 | D189: =MacroEco!$D$28 -> 1 | E189: [2019=1,00]
A190: Ano vinculado à receita inicial | D190: 2019
A191: CARGA DOMÉSTICA
A192: Receita inicial, em R$@2019 | D192: =D193/D194 -> 0 | E192: MM R$, @2019
A193: Receita inicial, em R$@2018 | D193: 0 | E193: MM R$, @2018 | F193: Estimado com base em dados fornecidos pela SAC (Data Room) caso TECA fosse operado pelo concessionário em 2018
A194: Ajuste de inflação 2018->2019 | D194: =MacroEco!$D$28 -> 1 | E194: [2019=1,00]
A195: Ano vinculado à receita inicial | D195: 2019
A196: SERVIÇOS ACESSÓRIOS
A197: Receita inicial, em R$@2019 | D197: =D198/D199 -> 0 | E197: MM R$, @2019
A198: Receita inicial, em R$@2018 | D198: 0 | E198: MM R$, @2018 | F198: Estimado com base em dados fornecidos pela SAC (Data Room) caso TECA fosse operado pelo concessionário em 2018
A199: Ajuste de inflação 2018->2019 | D199: =MacroEco!$D$28 -> 1 | E199: [2019=1,00]
A200: Ano vinculado à receita inicial | D200: 2019
A203: RECEITA NÃO TARIFÁRIA
A205: SUBCONCESSÃO TECA
A206: TECA com contrato de exploração? | D206: 0 | E206: [1=sim, 0=não]
A208: Preço Mínimo Ajustado | D208: =D209/D212 -> 0 | E208: MM R$, @2019
A209: Preço Mínimo Contratual | D209: 0 | E209: MM R$, @2018 | F209: Contrato TECA
A210: Data-base do contrato | D210: 2018-07-01 | E210: [data-base]
A211: Data final do contrato | D211: 2019-07-12 | E211: [data final]
A212: Ajuste de inflação preço mínimo | D212: =INDEX(Inflação!$C$16:$C$213,MATCH(Premissas!D210,Inflação!$A$16:$A$213,0)) -> 0.9890903954 | E212: [2019=1,00]
A213: Carga Internacional
A214: Variável Adicional Ajustado | D214: =D219*SUMPRODUCT(D222:D224,D225:D227)/D218 -> 0 | E214: MM R$, @2019
A215: I - Modal aéreo apenas 1º período | D215: =D214*D216*D220 -> 0 | E215: MM R$, @2019
A216: % de primeiro período | D216: 0.3757375427 | E216: % | F216: Share do primeiro periodo de SBEG ponderado pela proporção entre o Dwelltime médio entre SBEG e SBCT
A217: I - Modal aéreo acima do 1º período | D217: =D214*(1-D216)*D220 -> 0 | E217: MM R$, @2019
A218: Ajuste de inflação preço mínimo | D218: =MacroEco!$D$28 -> 1 | E218: [2019=1,00]
A219: Variável Adicional 2018 | D219: 0 | E219: MM R$, @2018 | F219: Receita total com concessão de TECA 2018 pré concessão anualizada
A220: I - Modal aéreo | D220: =(D222*D225)/SUMPRODUCT(D$222:D$224,D$225:D$227) -> 0 | E220: %
A221: II - Outros modais | D221: =SUMPRODUCT(D223:D224,D226:D227)/SUMPRODUCT(D$222:D$224,D$225:D$227) -> 1 | E221: %
A222: % de receita - aéreo | D222: 0.45 | E222: % | F222: Contrato TECA - Modelo SBTE
A223: % de receita - terrestre | D223: 0.57 | E223: % | F223: Contrato TECA - Modelo SBTE
A224: % de receita - marítimo | D224: 0.12 | E224: % | F224: Contrato TECA - Modelo SBTE
A225: % de volume - aéreo | D225: 0 | E225: %
A226: % de volume - terrestre | D226: 0 | E226: %
A227: % de volume - marítimo | D227: 1 | E227: % | F227: 100% marítimo conservador
A228: Carga Doméstica
A229: Receita inicial, em R$@2019 | D229: =D230/D231 -> 0 | E229: MM R$, @2019
A230: Receita inicial, em R$@2018 | D230: 0 | E230: MM R$, @2018 | F230: Dados fornecidos pela SAC (Data Room)
A231: Ajuste de inflação 2018->2019 | D231: =MacroEco!$D$28 -> 1 | E231: [2019=1,00]
A232: Ano vinculado à receita inicial | D232: 2019
A234: SUBCONCESSÃO - CARGA NACIONAL CIAS. AÉREAS
A235: Preço Mínimo Ajustado | D235: =SUM(D236:D237)/D240 -> 0.015 | E235: MM R$, @2019
A236: Preço Mínimo Contratual - Realizado 2018 | D236: 0 | E236: MM R$, @2018 | F236: Dados fornecidos pela SAC (Data Room) e Due Dilligence de contratos
A237: Preço Mínimo Contratual - Novos Contratos | D237: 0.015 | E237: MM R$, @2018 | F237: Dados fornecidos pela SAC (Data Room) e Due Dilligence de contratos
... 455 more rows

Sheet Timing
A1: =Premissas!$A$1 -> SBPB | B1: Unid | C1: Fonte | E1: Fator | F1: Unid fator | G1: Fonte | I1: 2019 | J1: =I1+1 -> 2020 | K1: =J1+1 -> 2021 | L1: 2022 | M1: 2023 | N1: 2024 | O1: 2025 | P1: 2026 | Q1: 2027 | R1: 2028 | S1: 2029 | T1: 2030 | U1: 2031 | V1: 2032 | W1: 2033 | X1: 2034 | Y1: 2035 | Z1: 2036 | AA1: 2037 | AB1: 2038 | AC1: 2039 | AD1: 2040 | AE1: 2041 | AF1: 2042 | AG1: 2043 | AH1: 2044 | AI1: 2045 | AJ1: 2046 | AK1: 2047 | AL1: 2048 | AM1: 2049 | AN1: 2050 | AO1: 2051 | AP1: 2052 | AQ1: 2053 | AR1: 2054 | AS1: 2055 | AT1: 2056 | AU1: 2057 | AV1: 2058 | AW1: 2059 | AX1: 2060 | AY1: 2061 | AZ1: 2062 | BA1: 2063 | BB1: 2064 | BC1: 2065 | BD1: 2066 | BE1: 2067 | BF1: 2068 | BG1: 2069 | BH1: =BG1+1 -> 2070 | BI1: =BH1+1 -> 2071 | BJ1: =BI1+1 -> 2072 | BK1: =BJ1+1 -> 2073 | BL1: =BK1+1 -> 2074 | BM1: =BL1+1 -> 2075
A2: Início período | I2: =DATE(I$1,1,1) -> 2019-01-01 | J2: =EDATE(I2,12) -> 2020-01-01 | K2: =EDATE(J2,12) -> 2021-01-01 | L2: 2022-01-01 | M2: 2023-01-01 | N2: 2024-01-01 | O2: 2025-01-01 | P2: 2026-01-01 | Q2: 2027-01-01 | R2: 2028-01-01 | S2: 2029-01-01 | T2: 2030-01-01 | U2: 2031-01-01 | V2: 2032-01-01 | W2: 2033-01-01 | X2: 2034-01-01 | Y2: 2035-01-01 | Z2: 2036-01-01 | AA2: 2037-01-01 | AB2: 2038-01-01 | AC2: 2039-01-01 | AD2: 2040-01-01 | AE2: 2041-01-01 | AF2: 2042-01-01 | AG2: 2043-01-01 | AH2: 2044-01-01 | AI2: 2045-01-01 | AJ2: 2046-01-01 | AK2: 2047-01-01 | AL2: 2048-01-01 | AM2: 2049-01-01 | AN2: 2050-01-01 | AO2: 2051-01-01 | AP2: 2052-01-01 | AQ2: 2053-01-01 | AR2: 2054-01-01 | AS2: 2055-01-01 | AT2: 2056-01-01 | AU2: 2057-01-01 | AV2: 2058-01-01 | AW2: 2059-01-01 | AX2: 2060-01-01 | AY2: 2061-01-01 | AZ2: 2062-01-01 | BA2: 2063-01-01 | BB2: 2064-01-01 | BC2: 2065-01-01 | BD2: 2066-01-01 | BE2: 2067-01-01 | BF2: 2068-01-01 | BG2: 2069-01-01 | BH2: =EDATE(BG2,12) -> 2070-01-01 | BI2: =EDATE(BH2,12) -> 2071-01-01 | BJ2: =EDATE(BI2,12) -> 2072-01-01 | BK2: =EDATE(BJ2,12) -> 2073-01-01 | BL2: =EDATE(BK2,12) -> 2074-01-01 | BM2: =EDATE(BL2,12) -> 2075-01-01
A3: Fim de período | I3: =EDATE(I2,12) -> 2020-01-01 | J3: =EDATE(J2,12) -> 2021-01-01 | K3: 2022-01-01 | L3: 2023-01-01 | M3: 2024-01-01 | N3: 2025-01-01 | O3: 2026-01-01 | P3: 2027-01-01 | Q3: 2028-01-01 | R3: 2029-01-01 | S3: 2030-01-01 | T3: 2031-01-01 | U3: 2032-01-01 | V3: 2033-01-01 | W3: 2034-01-01 | X3: 2035-01-01 | Y3: 2036-01-01 | Z3: 2037-01-01 | AA3: 2038-01-01 | AB3: 2039-01-01 | AC3: 2040-01-01 | AD3: 2041-01-01 | AE3: 2042-01-01 | AF3: 2043-01-01 | AG3: 2044-01-01 | AH3: 2045-01-01 | AI3: 2046-01-01 | AJ3: 2047-01-01 | AK3: 2048-01-01 | AL3: 2049-01-01 | AM3: 2050-01-01 | AN3: 2051-01-01 | AO3: 2052-01-01 | AP3: 2053-01-01 | AQ3: 2054-01-01 | AR3: 2055-01-01 | AS3: 2056-01-01 | AT3: 2057-01-01 | AU3: 2058-01-01 | AV3: 2059-01-01 | AW3: 2060-01-01 | AX3: 2061-01-01 | AY3: 2062-01-01 | AZ3: 2063-01-01 | BA3: 2064-01-01 | BB3: 2065-01-01 | BC3: 2066-01-01 | BD3: 2067-01-01 | BE3: 2068-01-01 | BF3: 2069-01-01 | BG3: 2070-01-01 | BH3: =EDATE(BH2,12) -> 2071-01-01 | BI3: 2072-01-01 | BJ3: 2073-01-01 | BK3: 2074-01-01 | BL3: 2075-01-01 | BM3: 2076-01-01
A6: Início de concessão (primeiro ano cheio) | E6: =Premissas!$D$11 -> 2022 | F6: [ano] | G6: =Premissas!$F$11 -> Orientação SAC
A7: Tempo de concessão | E7: =Premissas!$D$12 -> 32 | F7: anos | G7: =Premissas!$F$12 -> Orientação SAC
A8: Término de concessão | E8: =Premissas!$D$13 -> 2053 | F8: [ano] | G8: =Premissas!$F$13 -> Orientação SAC
A9: Ano base para projeções | E9: 2019 | F9: [ano]
A11: Último ano de concessão? | B11: [1=SIM; 0=NÃO] | I11: =IF(I$1=$E43,1,0) -> 0 | J11: 0 | K11: 0 | L11: 0 | M11: 0 | N11: 0 | O11: 0 | P11: 0 | Q11: 0 | R11: 0 | S11: 0 | T11: 0 | U11: 0 | V11: 0 | W11: 0 | X11: 0 | Y11: 0 | Z11: 0 | AA11: 0 | AB11: 0 | AC11: 0 | AD11: 0 | AE11: 0 | AF11: 0 | AG11: 0 | AH11: 0 | AI11: 0 | AJ11: 0 | AK11: 0 | AL11: 0 | AM11: 0 | AN11: 0 | AO11: =IF(AO$1=$E43,1,0) -> 0 | AP11: 0 | AQ11: 1 | AR11: 0 | AS11: 0 | AT11: 0 | AU11: 0 | AV11: 0 | AW11: 0 | AX11: 0 | AY11: 0 | AZ11: 0 | BA11: 0 | BB11: 0 | BC11: 0 | BD11: 0 | BE11: 0 | BF11: 0 | BG11: 0 | BH11: =IF(BH$1=$E43,1,0) -> 0 | BI11: 0 | BJ11: 0 | BK11: 0 | BL11: 0 | BM11: 0
A12: # do ano da concessão | B12: ano da concessão | I12: =IF(OR(I$1<$E$42,I$1>$E$43),0,IF(I$1=$E$42,1,0)) -> 0 | J12: =IF(OR(J$1<$E$42,J$1>$E$43),0,IF(J$1=$E$42,1,I12+1)) -> 0 | K12: 0 | L12: 1 | M12: 2 | N12: 3 | O12: 4 | P12: 5 | Q12: 6 | R12: 7 | S12: 8 | T12: 9 | U12: 10 | V12: 11 | W12: 12 | X12: 13 | Y12: 14 | Z12: 15 | AA12: 16 | AB12: 17 | AC12: 18 | AD12: 19 | AE12: 20 | AF12: 21 | AG12: 22 | AH12: 23 | AI12: 24 | AJ12: 25 | AK12: 26 | AL12: 27 | AM12: 28 | AN12: 29 | AO12: 30 | AP12: =IF(OR(AP$1<$E$42,AP$1>$E$43),0,IF(AP$1=$E$42,1,AO12+1)) -> 31 | AQ12: 32 | AR12: 0 | AS12: 0 | AT12: 0 | AU12: 0 | AV12: 0 | AW12: 0 | AX12: 0 | AY12: 0 | AZ12: 0 | BA12: 0 | BB12: 0 | BC12: 0 | BD12: 0 | BE12: 0 | BF12: 0 | BG12: 0 | BH12: =IF(OR(BH$1<$E$42,BH$1>$E$43),0,IF(BH$1=$E$42,1,BG12+1)) -> 0 | BI12: =IF(OR(BI$1<$E$42,BI$1>$E$43),0,IF(BI$1=$E$42,1,BH12+1)) -> 0 | BJ12: =IF(OR(BJ$1<$E$42,BJ$1>$E$43),0,IF(BJ$1=$E$42,1,BI12+1)) -> 0 | BK12: =IF(OR(BK$1<$E$42,BK$1>$E$43),0,IF(BK$1=$E$42,1,BJ12+1)) -> 0 | BL12: =IF(OR(BL$1<$E$42,BL$1>$E$43),0,IF(BL$1=$E$42,1,BK12+1)) -> 0 | BM12: =IF(OR(BM$1<$E$42,BM$1>$E$43),0,IF(BM$1=$E$42,1,BL12+1)) -> 0
A13: Concessão ativa no período? | B13: [1=SIM; 0=NÃO] | I13: =SIGN(I33) -> 0 | J13: =SIGN(J33) -> 0 | K13: 1 | L13: 1 | M13: 1 | N13: 1 | O13: 1 | P13: 1 | Q13: 1 | R13: 1 | S13: 1 | T13: 1 | U13: 1 | V13: 1 | W13: 1 | X13: 1 | Y13: 1 | Z13: 1 | AA13: 1 | AB13: 1 | AC13: 1 | AD13: 1 | AE13: 1 | AF13: 1 | AG13: 1 | AH13: 1 | AI13: 1 | AJ13: 1 | AK13: 1 | AL13: 1 | AM13: 1 | AN13: 1 | AO13: 1 | AP13: 1 | AQ13: 1 | AR13: 0 | AS13: 0 | AT13: 0 | AU13: 0 | AV13: 0 | AW13: 0 | AX13: 0 | AY13: 0 | AZ13: 0 | BA13: 0 | BB13: 0 | BC13: 0 | BD13: 0 | BE13: 0 | BF13: 0 | BG13: 0 | BH13: =SIGN(BH33) -> 0 | BI13: 0 | BJ13: 0 | BK13: 0 | BL13: 0 | BM13: 0
A14: Primeiros 5 anos de concessão (adicionado dos 4 meses sob operação Infraero)? | B14: [1=SIM; 0=NÃO] | E14: 5 | F14: anos | I14: =IF(AND(I13=1,I12<=$E14),1,0) -> 0 | J14: =IF(AND(J13=1,J12<=$E14),1,0) -> 0 | K14: =IF(AND(K13=1,K12<=$E14),1,0) -> 1 | L14: =IF(AND(L13=1,L12<=$E14),1,0) -> 1 | M14: 1 | N14: 1 | O14: 1 | P14: 1 | Q14: 0 | R14: 0 | S14: 0 | T14: 0 | U14: 0 | V14: 0 | W14: 0 | X14: 0 | Y14: 0 | Z14: 0 | AA14: 0 | AB14: 0 | AC14: 0 | AD14: 0 | AE14: 0 | AF14: 0 | AG14: 0 | AH14: 0 | AI14: 0 | AJ14: 0 | AK14: 0 | AL14: 0 | AM14: 0 | AN14: 0 | AO14: 0 | AP14: 0 | AQ14: 0 | AR14: 0 | AS14: 0 | AT14: 0 | AU14: 0 | AV14: 0 | AW14: 0 | AX14: 0 | AY14: 0 | AZ14: 0 | BA14: 0 | BB14: 0 | BC14: 0 | BD14: 0 | BE14: 0 | BF14: 0 | BG14: 0 | BH14: =IF(AND(BH13=1,BH12<=$E14),1,0) -> 0 | BI14: 0 | BJ14: 0 | BK14: 0 | BL14: 0 | BM14: 0
A15: Capital social mínimo em posição no fim do período? | B15: [1=SIM; 0=NÃO] | I15: =IF(OR(I$1<$E$45,I$1>$E$46),0,IF(I$1=$E$45,1,0)) -> 0 | J15: =IF(AND(J$1>=$E$45,J$1<=$E$46),1,0) -> 0 | K15: 1 | L15: 1 | M15: 1 | N15: 1 | O15: 1 | P15: 0 | Q15: 0 | R15: 0 | S15: 0 | T15: 0 | U15: 0 | V15: 0 | W15: 0 | X15: 0 | Y15: 0 | Z15: 0 | AA15: 0 | AB15: 0 | AC15: 0 | AD15: 0 | AE15: 0 | AF15: 0 | AG15: 0 | AH15: 0 | AI15: 0 | AJ15: 0 | AK15: 0 | AL15: 0 | AM15: 0 | AN15: 0 | AO15: 0 | AP15: =IF(AND(AP$1>=$E$45,AP$1<=$E$46),1,0) -> 0 | AQ15: =IF(AND(AQ$1>=$E$45,AQ$1<=$E$46),1,0) -> 0 | AR15: 0 | AS15: 0 | AT15: 0 | AU15: 0 | AV15: 0 | AW15: 0 | AX15: 0 | AY15: 0 | AZ15: 0 | BA15: 0 | BB15: 0 | BC15: 0 | BD15: 0 | BE15: 0 | BF15: 0 | BG15: 0 | BH15: 0 | BI15: 0 | BJ15: 0 | BK15: 0 | BL15: 0 | BM15: 0
A17: Prazos para Transferência ao concessionário (Fase 1A)
A18: Estágio 1 - Plano de Transferência | E18: =Premissas!D16 -> 80 | F18: dias | G18: =Premissas!F16 -> 0
A19: Estágio 2 - Operação Infraero assistida por concessionário | E19: =Premissas!D17 -> 45 | F19: dias
A20: Estágio 3 - Operação pelo concessionário acompanhada pela Infraero | E20: 0 | F20: dias
A22: Duração Estágio 1 | E22: =ROUND(E18/30,0) -> 3 | F22: meses
A23: Duração Estágio 1+2 | E23: =ROUND((E18+E19)/30,0) -> 4 | F23: meses
A24: Duração Estágio 3 | E24: =ROUND(E20/30,0) -> 0 | F24: meses
A26: Data de valoração | E26: =E27-(1/(24*60*60)) -> 2021-08-31T23:59:59 | F26: [data]
A27: Assinatura de contrato de concessão | E27: =Premissas!D10 -> 2021-09-01 | F27: [data]
A28: Início de operação pela Infraero assistida pelo concessionário | E28: =E27 -> 2021-09-01 | F28: [data]
A29: Início de Operação pelo concessionário (acompanhada por Infraero) | E29: =E28 -> 2021-09-01 | F29: [data]
A30: Início de Operação pelo concessionário por conta própria | E30: =EDATE(E29,E24) -> 2021-09-01 | F30: [data]
A31: Término de contrato de concessão | E31: =EDATE(E27,12*E7) -> 2053-09-01 | F31: [data]
A33: % de ano calendário com concessão ativa | B33: % do ano | I33: =MAX(0,(MIN(I$3,$E$31)-MAX(I$2,$E$27))/(I$3-I$2)) -> 0 | J33: =MAX(0,(MIN(J$3,$E$31)-MAX(J$2,$E$27))/(J$3-J$2)) -> 0 | K33: =MAX(0,(MIN(K$3,$E$31)-MAX(K$2,$E$27))/(K$3-K$2)) -> 0.3342465753 | L33: 1 | M33: 1 | N33: 1 | O33: 1 | P33: 1 | Q33: 1 | R33: 1 | S33: 1 | T33: 1 | U33: 1 | V33: 1 | W33: 1 | X33: 1 | Y33: 1 | Z33: 1 | AA33: 1 | AB33: 1 | AC33: 1 | AD33: 1 | AE33: 1 | AF33: 1 | AG33: 1 | AH33: 1 | AI33: 1 | AJ33: 1 | AK33: 1 | AL33: 1 | AM33: 1 | AN33: 1 | AO33: =MAX(0,(MIN(AO$3,$E$31)-MAX(AO$2,$E$27))/(AO$3-AO$2)) -> 1 | AP33: =MAX(0,(MIN(AP$3,$E$31)-MAX(AP$2,$E$27))/(AP$3-AP$2)) -> 1 | AQ33: 0.6657534247 | AR33: 0 | AS33: 0 | AT33: 0 | AU33: 0 | AV33: 0 | AW33: 0 | AX33: 0 | AY33: 0 | AZ33: 0 | BA33: 0 | BB33: 0 | BC33: 0 | BD33: 0 | BE33: 0 | BF33: 0 | BG33: 0 | BH33: 0 | BI33: 0 | BJ33: 0 | BK33: 0 | BL33: 0 | BM33: 0
A34: % de ano calendário com receitas/custos de responsabilidade do concessionário | B34: % do ano | I34: =MAX(0,(MIN(I$3,$E$29)-MAX(I$2,$E$27))/(I$3-I$2)) -> 0 | J34: 0 | K34: =MAX(0,(MIN(K$3,$E$29)-MAX(K$2,$E$27))/(K$3-K$2)) -> 0 | L34: 0 | M34: 0 | N34: 0 | O34: 0 | P34: 0 | Q34: 0 | R34: 0 | S34: 0 | T34: 0 | U34: 0 | V34: 0 | W34: 0 | X34: 0 | Y34: 0 | Z34: 0 | AA34: 0 | AB34: 0 | AC34: 0 | AD34: 0 | AE34: 0 | AF34: 0 | AG34: 0 | AH34: 0 | AI34: 0 | AJ34: 0 | AK34: 0 | AL34: 0 | AM34: 0 | AN34: 0 | AO34: =MAX(0,(MIN(AO$3,$E$29)-MAX(AO$2,$E$27))/(AO$3-AO$2)) -> 0 | AP34: 0 | AQ34: 0 | AR34: 0 | AS34: 0 | AT34: 0 | AU34: 0 | AV34: 0 | AW34: 0 | AX34: 0 | AY34: 0 | AZ34: 0 | BA34: 0 | BB34: 0 | BC34: 0 | BD34: 0 | BE34: 0 | BF34: 0 | BG34: 0 | BH34: 0 | BI34: 0 | BJ34: 0 | BK34: 0 | BL34: 0 | BM34: 0
A35: % de ano com operação da Infraero assistida pelo concessionário | B35: % do ano | I35: =MAX(0,(MIN(I$3,$E$29)-MAX(I$2,$E$28))/(I$3-I$2)) -> 0 | J35: =MAX(0,(MIN(J$3,$E$29)-MAX(J$2,$E$28))/(J$3-J$2)) -> 0 | K35: =MAX(0,(MIN(K$3,$E$29)-MAX(K$2,$E$28))/(K$3-K$2)) -> 0 | L35: =MAX(0,(MIN(L$3,$E$29)-MAX(L$2,$E$28))/(L$3-L$2)) -> 0 | M35: =MAX(0,(MIN(M$3,$E$29)-MAX(M$2,$E$28))/(M$3-M$2)) -> 0 | N35: =MAX(0,(MIN(N$3,$E$29)-MAX(N$2,$E$28))/(N$3-N$2)) -> 0 | O35: 0 | P35: 0 | Q35: 0 | R35: 0 | S35: 0 | T35: 0 | U35: 0 | V35: 0 | W35: 0 | X35: 0 | Y35: 0 | Z35: 0 | AA35: 0 | AB35: 0 | AC35: 0 | AD35: 0 | AE35: 0 | AF35: 0 | AG35: 0 | AH35: 0 | AI35: 0 | AJ35: 0 | AK35: 0 | AL35: 0 | AM35: 0 | AN35: 0 | AO35: 0 | AP35: 0 | AQ35: 0 | AR35: 0 | AS35: 0 | AT35: 0 | AU35: 0 | AV35: 0 | AW35: 0 | AX35: 0 | AY35: 0 | AZ35: 0 | BA35: 0 | BB35: 0 | BC35: 0 | BD35: 0 | BE35: 0 | BF35: 0 | BG35: 0 | BH35: 0 | BI35: 0 | BJ35: 0 | BK35: 0 | BL35: 0 | BM35: 0
A36: % de ano calendário custeio de prepostos da Infraero de responsabilidade do concessionário | B36: % do ano | I36: =MAX(0,(MIN(I$3,$E$30)-MAX(I$2,$E$29))/(I$3-I$2)) -> 0 | J36: 0 | K36: 0 | L36: 0 | M36: 0 | N36: 0 | O36: 0 | P36: 0 | Q36: 0 | R36: 0 | S36: 0 | T36: 0 | U36: 0 | V36: 0 | W36: 0 | X36: 0 | Y36: 0 | Z36: 0 | AA36: 0 | AB36: 0 | AC36: 0 | AD36: 0 | AE36: 0 | AF36: 0 | AG36: 0 | AH36: 0 | AI36: 0 | AJ36: 0 | AK36: 0 | AL36: 0 | AM36: 0 | AN36: 0 | AO36: =MAX(0,(MIN(AO$3,$E$30)-MAX(AO$2,$E$29))/(AO$3-AO$2)) -> 0 | AP36: 0 | AQ36: 0 | AR36: 0 | AS36: 0 | AT36: 0 | AU36: 0 | AV36: 0 | AW36: 0 | AX36: 0 | AY36: 0 | AZ36: 0 | BA36: 0 | BB36: 0 | BC36: 0 | BD36: 0 | BE36: 0 | BF36: 0 | BG36: 0 | BH36: 0 | BI36: 0 | BJ36: 0 | BK36: 0 | BL36: 0 | BM36: 0
A38: % de tempo com concessão ativa com receitas/custos de responsabilidade do concessionário | B38: % do ano | I38: =IF(I$33=0,0,1-I34/I$33) -> 0 | J38: 0 | K38: =IF(K$33=0,0,1-K34/K$33) -> 1 | L38: 1 | M38: 1 | N38: 1 | O38: 1 | P38: 1 | Q38: 1 | R38: 1 | S38: 1 | T38: 1 | U38: 1 | V38: 1 | W38: 1 | X38: 1 | Y38: 1 | Z38: 1 | AA38: 1 | AB38: 1 | AC38: 1 | AD38: 1 | AE38: 1 | AF38: 1 | AG38: 1 | AH38: 1 | AI38: 1 | AJ38: 1 | AK38: 1 | AL38: 1 | AM38: 1 | AN38: 1 | AO38: =IF(AO$33=0,0,1-AO34/AO$33) -> 1 | AP38: =IF(AP$33=0,0,1-AP34/AP$33) -> 1 | AQ38: =IF(AQ$33=0,0,1-AQ34/AQ$33) -> 1 | AR38: 0 | AS38: 0 | AT38: 0 | AU38: 0 | AV38: 0 | AW38: 0 | AX38: 0 | AY38: 0 | AZ38: 0 | BA38: 0 | BB38: 0 | BC38: 0 | BD38: 0 | BE38: 0 | BF38: 0 | BG38: 0 | BH38: =IF(BH$33=0,0,1-BH34/BH$33) -> 0 | BI38: 0 | BJ38: 0 | BK38: 0 | BL38: 0 | BM38: 0
A39: % de tempo com concessão ativa com operação da Infraero assistida pelo concessionário | B39: % do ano | I39: =IF(I$33=0,0,I35/I$33) -> 0 | J39: 0 | K39: =IF(K$33=0,0,K35/K$33) -> 0 | L39: =IF(L$33=0,0,L35/L$33) -> 0 | M39: 0 | N39: 0 | O39: 0 | P39: 0 | Q39: 0 | R39: 0 | S39: 0 | T39: 0 | U39: 0 | V39: 0 | W39: 0 | X39: 0 | Y39: 0 | Z39: 0 | AA39: 0 | AB39: 0 | AC39: 0 | AD39: 0 | AE39: 0 | AF39: 0 | AG39: 0 | AH39: 0 | AI39: 0 | AJ39: 0 | AK39: 0 | AL39: 0 | AM39: 0 | AN39: 0 | AO39: 0 | AP39: 0 | AQ39: 0 | AR39: 0 | AS39: 0 | AT39: 0 | AU39: 0 | AV39: 0 | AW39: 0 | AX39: 0 | AY39: 0 | AZ39: 0 | BA39: 0 | BB39: 0 | BC39: 0 | BD39: 0 | BE39: 0 | BF39: 0 | BG39: 0 | BH39: =IF(BH$33=0,0,BH35/BH$33) -> 0 | BI39: 0 | BJ39: 0 | BK39: 0 | BL39: 0 | BM39: 0
A40: % de tempo com concessão ativa com custeio de prepostos da Infraero de responsabilidade do concessionário | B40: % do ano | I40: 0 | J40: 0 | K40: 0 | L40: =IF(L$33=0,0,L36/L$33) -> 0 | M40: 0 | N40: 0 | O40: 0 | P40: 0 | Q40: 0 | R40: 0 | S40: 0 | T40: 0 | U40: 0 | V40: 0 | W40: 0 | X40: 0 | Y40: 0 | Z40: 0 | AA40: 0 | AB40: 0 | AC40: 0 | AD40: 0 | AE40: 0 | AF40: 0 | AG40: 0 | AH40: 0 | AI40: 0 | AJ40: 0 | AK40: 0 | AL40: 0 | AM40: 0 | AN40: 0 | AO40: 0 | AP40: 0 | AQ40: 0 | AR40: 0 | AS40: 0 | AT40: 0 | AU40: 0 | AV40: 0 | AW40: 0 | AX40: 0 | AY40: 0 | AZ40: 0 | BA40: 0 | BB40: 0 | BC40: 0 | BD40: 0 | BE40: 0 | BF40: 0 | BG40: 0 | BH40: =IF(BH$33=0,0,BH36/BH$33) -> 0 | BI40: 0 | BJ40: 0 | BK40: 0 | BL40: 0 | BM40: 0
A42: Primeiro ano cheio de concessão | E42: 2022 | F42: [ano]
A43: Último ano cheio de concessão | E43: =YEAR(E31) -> 2053 | F43: [ano]
A45: Primeiro ano com balanço não-zero | E45: =YEAR(E27) -> 2021 | F45: [ano]
A46: Primeiro ano com balanço zerado | E46: 2025 | F46: [ano]
A48: Ano de pagamento de outorga inicial | E48: =YEAR(E27) -> 2021 | F48: [ano]
A49: Ano de início de concessão | E49: 2021 | F49: [ano]
A50: Distância de final de período versus momento de valoração | B50: anos | E50: =YEAR(E27) -> 2021 | F50: [ano de valoração] | I50: =IF(I$1=$E50,0,J50-1) -> -2 | J50: =IF(J$1=$E50,0,IF(J$1>$E50,I50+1,K50-1)) -> -1 | K50: =IF(K$1=$E50,0,IF(K$1>$E50,J50+1,L50-1)) -> 0 | L50: 1 | M50: 2 | N50: 3 | O50: 4 | P50: 5 | Q50: 6 | R50: 7 | S50: 8 | T50: 9 | U50: 10 | V50: 11 | W50: 12 | X50: 13 | Y50: 14 | Z50: 15 | AA50: 16 | AB50: 17 | AC50: 18 | AD50: 19 | AE50: 20 | AF50: 21 | AG50: 22 | AH50: 23 | AI50: 24 | AJ50: 25 | AK50: 26 | AL50: 27 | AM50: 28 | AN50: 29 | AO50: 30 | AP50: 31 | AQ50: 32 | AR50: 33 | AS50: 34 | AT50: 35 | AU50: 36 | AV50: 37 | AW50: 38 | AX50: 39 | AY50: 40 | AZ50: 41 | BA50: 42 | BB50: 43 | BC50: 44 | BD50: 45 | BE50: 46 | BF50: 47 | BG50: 48 | BH50: =IF(BH$1=$E50,0,IF(BH$1>$E50,BG50+1,BI50-1)) -> 49 | BI50: =IF(BI$1=$E50,0,IF(BI$1>$E50,BH50+1,BJ50-1)) -> 50 | BJ50: =IF(BJ$1=$E50,0,IF(BJ$1>$E50,BI50+1,BK50-1)) -> 51 | BK50: =IF(BK$1=$E50,0,IF(BK$1>$E50,BJ50+1,BL50-1)) -> 52 | BL50: =IF(BL$1=$E50,0,IF(BL$1>$E50,BK50+1,BM50-1)) -> 53 | BM50: =IF(BM$1=$E50,0,IF(BM$1>$E50,BL50+1,BN50-1)) -> 54
A52: Data de consideração de fluxo | B52: data | C52: Considerados fluxos em aniversários de concessão | I52: =DATE(YEAR(I2),MONTH($E$27),DAY($E$27)) -> 2019-09-01 | J52: =DATE(YEAR(J2),MONTH($E$27),DAY($E$27)) -> 2020-09-01 | K52: 2021-09-01 | L52: 2022-09-01 | M52: 2023-09-01 | N52: 2024-09-01 | O52: 2025-09-01 | P52: 2026-09-01 | Q52: 2027-09-01 | R52: 2028-09-01 | S52: 2029-09-01 | T52: 2030-09-01 | U52: 2031-09-01 | V52: 2032-09-01 | W52: 2033-09-01 | X52: 2034-09-01 | Y52: 2035-09-01 | Z52: 2036-09-01 | AA52: 2037-09-01 | AB52: 2038-09-01 | AC52: 2039-09-01 | AD52: 2040-09-01 | AE52: 2041-09-01 | AF52: 2042-09-01 | AG52: 2043-09-01 | AH52: 2044-09-01 | AI52: 2045-09-01 | AJ52: 2046-09-01 | AK52: 2047-09-01 | AL52: 2048-09-01 | AM52: 2049-09-01 | AN52: 2050-09-01 | AO52: 2051-09-01 | AP52: 2052-09-01 | AQ52: 2053-09-01 | AR52: 2054-09-01 | AS52: 2055-09-01 | AT52: 2056-09-01 | AU52: 2057-09-01 | AV52: 2058-09-01 | AW52: 2059-09-01 | AX52: 2060-09-01 | AY52: 2061-09-01 | AZ52: 2062-09-01 | BA52: 2063-09-01 | BB52: 2064-09-01 | BC52: 2065-09-01 | BD52: 2066-09-01 | BE52: 2067-09-01 | BF52: 2068-09-01 | BG52: 2069-09-01 | BH52: =DATE(YEAR(BH2),MONTH($E$27),DAY($E$27)) -> 2070-09-01 | BI52: 2071-09-01 | BJ52: 2072-09-01 | BK52: 2073-09-01 | BL52: 2074-09-01 | BM52: 2075-09-01
A55: Cronograma de incidência de outorga variável
A56: Ano da concessão | B56: ano da concessão | J56: 0 | K56: 1 | L56: 2 | M56: 3 | N56: 4 | O56: 5 | P56: 6 | Q56: 7 | R56: 8 | S56: 9 | T56: 10 | U56: 11 | V56: 12 | W56: 13 | X56: 14 | Y56: 15 | Z56: 16 | AA56: 17 | AB56: 18 | AC56: 19 | AD56: 20 | AE56: 21 | AF56: 22 | AG56: 23 | AH56: 24 | AI56: 25 | AJ56: 26 | AK56: 27 | AL56: 28 | AM56: 29 | AN56: 30 | AO56: 31 | AP56: 32 | AQ56: 33 | AR56: 34 | AS56: 35
A57: % de incidência de outorga variável em regime | B57: % | J57: =MAX(0,MIN(100%,(J$56-$E$59)/($E$60-$E$59))) -> 0 | K57: 0 | L57: 0 | M57: 0 | N57: 0 | O57: 0 | P57: 0.2 | Q57: 0.4 | R57: 0.6 | S57: 0.8 | T57: 1 | U57: 1 | V57: 1 | W57: 1 | X57: 1 | Y57: 1 | Z57: 1 | AA57: 1 | AB57: 1 | AC57: 1 | AD57: 1 | AE57: 1 | AF57: 1 | AG57: 1 | AH57: 1 | AI57: 1 | AJ57: 1 | AK57: 1 | AL57: 1 | AM57: 1 | AN57: 1 | AO57: 1 | AP57: 1 | AQ57: 1 | AR57: 1 | AS57: 1
A59: Anos de carência de outorga variável | E59: =CONTROLE!E7 -> 5 | F59: anos
A60: Primeiro ano de pagamento integral | E60: =CONTROLE!E8 -> 10 | F60: # ano da concessão

Sheet MacroEco
A1: =Premissas!$A$1 -> SBPB | B1: Unid | C1: Fonte | D1: Fator | E1: Unid fator | F1: Fonte | H1: 2018 | I1: =H1+1 -> 2019 | J1: =I1+1 -> 2020 | K1: 2021 | L1: 2022 | M1: 2023 | N1: 2024 | O1: 2025 | P1: 2026 | Q1: 2027 | R1: 2028 | S1: 2029 | T1: 2030 | U1: 2031 | V1: 2032 | W1: 2033 | X1: 2034 | Y1: 2035 | Z1: 2036 | AA1: 2037 | AB1: 2038 | AC1: 2039 | AD1: 2040 | AE1: 2041 | AF1: 2042 | AG1: 2043 | AH1: 2044 | AI1: 2045 | AJ1: 2046 | AK1: 2047 | AL1: 2048 | AM1: 2049 | AN1: 2050 | AO1: 2051 | AP1: 2052 | AQ1: 2053 | AR1: 2054 | AS1: 2055 | AT1: 2056 | AU1: 2057 | AV1: 2058 | AW1: 2059 | AX1: 2060 | AY1: 2061 | AZ1: 2062 | BA1: 2063 | BB1: 2064 | BC1: 2065 | BD1: 2066 | BE1: 2067 | BF1: 2068 | BG1: 2069 | BH1: =BG1+1 -> 2070 | BI1: =BH1+1 -> 2071 | BJ1: =BI1+1 -> 2072 | BK1: =BJ1+1 -> 2073 | BL1: =BK1+1 -> 2074 | BM1: =BL1+1 -> 2075
A3: Inflação brasileira (IPCA) | B3: % a.a. | C3: Sistema de Expectativas BACEN, consultado em 21/08/2020; constante no longo prazo | H3: 0.0375 | I3: 0.0389 | J3: 0.0173 | K3: 0.03 | L3: 0.0343 | M3: 0.0333 | N3: 0.0324 | O3: =N3 -> 0.0324 | P3: 0.0324 | Q3: 0.0324 | R3: =Q3 -> 0.0324 | S3: 0.0324 | T3: 0.0324 | U3: 0.0324 | V3: 0.0324 | W3: 0.0324 | X3: 0.0324 | Y3: 0.0324 | Z3: 0.0324 | AA3: 0.0324 | AB3: 0.0324 | AC3: 0.0324 | AD3: 0.0324 | AE3: 0.0324 | AF3: 0.0324 | AG3: 0.0324 | AH3: 0.0324 | AI3: 0.0324 | AJ3: 0.0324 | AK3: 0.0324 | AL3: 0.0324 | AM3: 0.0324 | AN3: 0.0324 | AO3: =AN3 -> 0.0324 | AP3: 0.0324 | AQ3: 0.0324 | AR3: 0.0324 | AS3: 0.0324 | AT3: 0.0324 | AU3: 0.0324 | AV3: 0.0324 | AW3: 0.0324 | AX3: 0.0324 | AY3: 0.0324 | AZ3: 0.0324 | BA3: 0.0324 | BB3: 0.0324 | BC3: 0.0324 | BD3: 0.0324 | BE3: 0.0324 | BF3: 0.0324 | BG3: 0.0324 | BH3: =BG3 -> 0.0324 | BI3: =BH3 -> 0.0324 | BJ3: =BI3 -> 0.0324 | BK3: =BJ3 -> 0.0324 | BL3: =BK3 -> 0.0324 | BM3: =BL3 -> 0.0324
A4: Inflação americana (CPI) | B4: % a.a. | C4: Brasil - Variáveis Econômicas/Brasil - Banco Itaú, consultado em 26/08/2020; constante no longo prazo https://www.itau.com.br/itaubba-pt/analises-economicas/projecoes/longo-prazo-agosto-2020 | H4: 0.019 | I4: 0.021 | J4: 0.009 | K4: 0.023 | L4: 0.025 | M4: 0.025 | N4: 0.025 | O4: 0.025 | P4: 0.025 | Q4: 0.025 | R4: 0.025 | S4: 0.025 | T4: 0.025 | U4: 0.025 | V4: 0.025 | W4: 0.025 | X4: 0.025 | Y4: 0.025 | Z4: 0.025 | AA4: 0.025 | AB4: 0.025 | AC4: 0.025 | AD4: 0.025 | AE4: 0.025 | AF4: 0.025 | AG4: 0.025 | AH4: 0.025 | AI4: 0.025 | AJ4: 0.025 | AK4: 0.025 | AL4: 0.025 | AM4: 0.025 | AN4: 0.025 | AO4: 0.025 | AP4: 0.025 | AQ4: 0.025 | AR4: 0.025 | AS4: 0.025 | AT4: 0.025 | AU4: 0.025 | AV4: 0.025 | AW4: 0.025 | AX4: 0.025 | AY4: 0.025 | AZ4: 0.025 | BA4: 0.025 | BB4: 0.025 | BC4: 0.025 | BD4: 0.025 | BE4: 0.025 | BF4: 0.025 | BG4: 0.025 | BH4: 0.025 | BI4: 0.025 | BJ4: 0.025 | BK4: 0.025 | BL4: 0.025 | BM4: 0.025
A6: Índice de inflação brasileira | B6: [2019 = 1,00] | D6: =H6/(1+H3) -> 0.9277653496 | E6: Índice em 2017 | H6: =I6/(1+I3) -> 0.9625565502 | I6: 1 | J6: =I6*(1+J3) -> 1.0173 | K6: 1.047819 | L6: 1.083759192 | M6: =L6*(1+M3) -> 1.119848373 | N6: 1.15613146 | O6: 1.193590119 | P6: 1.232262439 | Q6: 1.272187742 | R6: 1.313406625 | S6: 1.355961 | T6: 1.399894136 | U6: 1.445250706 | V6: 1.492076829 | W6: 1.540420118 | X6: 1.59032973 | Y6: 1.641856413 | Z6: 1.695052561 | AA6: 1.749972264 | AB6: 1.806671366 | AC6: 1.865207518 | AD6: 1.925640241 | AE6: 1.988030985 | AF6: 2.052443189 | AG6: 2.118942348 | AH6: 2.187596081 | AI6: 2.258474194 | AJ6: 2.331648757 | AK6: 2.407194177 | AL6: 2.485187268 | AM6: 2.565707336 | AN6: 2.648836254 | AO6: 2.734658548 | AP6: 2.823261485 | AQ6: 2.914735157 | AR6: 3.009172576 | AS6: 3.106669768 | AT6: 3.207325868 | AU6: 3.311243227 | AV6: 3.418527507 | AW6: 3.529287798 | AX6: 3.643636723 | AY6: 3.761690553 | AZ6: 3.883569327 | BA6: 4.009396973 | BB6: 4.139301435 | BC6: 4.273414801 | BD6: 4.411873441 | BE6: 4.55481814 | BF6: 4.702394248 | BG6: 4.854751822 | BH6: =BG6*(1+BH3) -> 5.012045781 | BI6: =BH6*(1+BI3) -> 5.174436064 | BJ6: =BI6*(1+BJ3) -> 5.342087793 | BK6: =BJ6*(1+BK3) -> 5.515171437 | BL6: =BK6*(1+BL3) -> 5.693862992 | BM6: =BL6*(1+BM3) -> 5.878344153
A7: Índice de inflação americana | B7: [2019 = 1,00] | D7: =H7/(1+H4) -> 0.9611697051 | E7: Índice em 2017 | H7: =I7/(1+I4) -> 0.9794319295 | I7: 1 | J7: =I7*(1+J4) -> 1.009 | K7: 1.032207 | L7: 1.058012175 | M7: =L7*(1+M4) -> 1.084462479 | N7: 1.111574041 | O7: 1.139363392 | P7: 1.167847477 | Q7: 1.197043664 | R7: 1.226969756 | S7: 1.257644 | T7: 1.2890851 | U7: 1.321312227 | V7: 1.354345033 | W7: 1.388203659 | X7: 1.42290875 | Y7: 1.458481469 | Z7: 1.494943506 | AA7: 1.532317093 | AB7: 1.570625021 | AC7: 1.609890646 | AD7: 1.650137912 | AE7: 1.69139136 | AF7: 1.733676144 | AG7: 1.777018048 | AH7: 1.821443499 | AI7: 1.866979586 | AJ7: 1.913654076 | AK7: 1.961495428 | AL7: 2.010532813 | AM7: 2.060796134 | AN7: 2.112316037 | AO7: 2.165123938 | AP7: 2.219252037 | AQ7: 2.274733337 | AR7: 2.331601671 | AS7: 2.389891713 | AT7: 2.449639005 | AU7: 2.510879981 | AV7: 2.57365198 | AW7: 2.63799328 | AX7: 2.703943112 | AY7: 2.771541689 | AZ7: 2.840830232 | BA7: 2.911850987 | BB7: 2.984647262 | BC7: 3.059263444 | BD7: 3.13574503 | BE7: 3.214138656 | BF7: 3.294492122 | BG7: 3.376854425 | BH7: 3.461275786 | BI7: 3.54780768 | BJ7: 3.636502872 | BK7: 3.727415444 | BL7: 3.82060083 | BM7: 3.916115851
A9: Taxas básicas de juros, nominal
A10: TLP | B10: % a.a., nominal | C10: Calculado com base em novas regras do BNDES de 2018 em diante | D10: 0.0178 | E10: %a.a. | F10: NTN-B 2024 (em 21/08/2019) | H10: 0.0652 | I10: =(1+I3)*(1+I11*$D10)-1 -> 0.0511049972 | J10: =(1+J3)*(1+J11*$D10)-1 -> 0.0306998756 | K10: 0.04521722 | L10: 0.0510535914 | M10: 0.05169274 | N10: 0.05077672 | O10: 0.05077672 | P10: 0.05077672 | Q10: 0.05077672 | R10: 0.05077672 | S10: 0.05077672 | T10: 0.05077672 | U10: 0.05077672 | V10: 0.05077672 | W10: 0.05077672 | X10: 0.05077672 | Y10: 0.05077672 | Z10: 0.05077672 | AA10: 0.05077672 | AB10: 0.05077672 | AC10: 0.05077672 | AD10: 0.05077672 | AE10: 0.05077672 | AF10: 0.05077672 | AG10: 0.05077672 | AH10: 0.05077672 | AI10: 0.05077672 | AJ10: 0.05077672 | AK10: 0.05077672 | AL10: 0.05077672 | AM10: 0.05077672 | AN10: 0.05077672 | AO10: 0.05077672 | AP10: 0.05077672 | AQ10: 0.05077672 | AR10: 0.05077672 | AS10: 0.05077672 | AT10: 0.05077672 | AU10: 0.05077672 | AV10: 0.05077672 | AW10: 0.05077672 | AX10: 0.05077672 | AY10: 0.05077672 | AZ10: 0.05077672 | BA10: 0.05077672 | BB10: 0.05077672 | BC10: 0.05077672 | BD10: 0.05077672 | BE10: 0.05077672 | BF10: 0.05077672 | BG10: =(1+BG3)*(1+BG11*$D10)-1 -> 0.05077672 | BH10: =(1+BH3)*(1+BH11*$D10)-1 -> 0.05077672 | BI10: 0.05077672 | BJ10: 0.05077672 | BK10: 0.05077672 | BL10: 0.05077672 | BM10: 0.05077672
A11: Fator alfa TLP | B11: [] | C11: https://www.bndes.gov.br/wps/portal/site/home/financiamento/guia/custos-financeiros/tlp-taxa-de-longo-prazo | H11: 0.57 | I11: 0.66 | J11: 0.74 | K11: 0.83 | L11: 0.91 | M11: 1 | N11: =M11 -> 1 | O11: =N11 -> 1 | P11: =O11 -> 1 | Q11: 1 | R11: 1 | S11: 1 | T11: 1 | U11: 1 | V11: 1 | W11: 1 | X11: 1 | Y11: 1 | Z11: 1 | AA11: 1 | AB11: 1 | AC11: 1 | AD11: 1 | AE11: 1 | AF11: 1 | AG11: 1 | AH11: 1 | AI11: 1 | AJ11: 1 | AK11: 1 | AL11: 1 | AM11: 1 | AN11: 1 | AO11: 1 | AP11: 1 | AQ11: 1 | AR11: 1 | AS11: 1 | AT11: 1 | AU11: 1 | AV11: 1 | AW11: 1 | AX11: 1 | AY11: 1 | AZ11: 1 | BA11: 1 | BB11: 1 | BC11: 1 | BD11: 1 | BE11: 1 | BF11: 1 | BG11: 1 | BH11: =BG11 -> 1 | BI11: =BH11 -> 1 | BJ11: =BI11 -> 1 | BK11: =BJ11 -> 1 | BL11: =BK11 -> 1 | BM11: =BL11 -> 1
A12: SELIC | B12: % a.a., nominal | C12: Sistema de Expectativas BACEN, consultado em 04/06/2019; constante no longo prazo | H12: 0.065 | I12: 0.065 | J12: 0.0264 | K12: 0.0222 | L12: 0.0426 | M12: 0.054 | N12: 0.058 | O12: =N12 -> 0.058 | P12: =O12 -> 0.058 | Q12: =P12 -> 0.058 | R12: 0.058 | S12: 0.058 | T12: 0.058 | U12: 0.058 | V12: 0.058 | W12: 0.058 | X12: 0.058 | Y12: 0.058 | Z12: 0.058 | AA12: 0.058 | AB12: 0.058 | AC12: 0.058 | AD12: 0.058 | AE12: 0.058 | AF12: 0.058 | AG12: 0.058 | AH12: 0.058 | AI12: 0.058 | AJ12: 0.058 | AK12: 0.058 | AL12: 0.058 | AM12: 0.058 | AN12: 0.058 | AO12: 0.058 | AP12: 0.058 | AQ12: 0.058 | AR12: 0.058 | AS12: 0.058 | AT12: 0.058 | AU12: 0.058 | AV12: 0.058 | AW12: 0.058 | AX12: 0.058 | AY12: 0.058 | AZ12: 0.058 | BA12: 0.058 | BB12: 0.058 | BC12: 0.058 | BD12: 0.058 | BE12: 0.058 | BF12: 0.058 | BG12: 0.058 | BH12: 0.058 | BI12: 0.058 | BJ12: 0.058 | BK12: 0.058 | BL12: 0.058 | BM12: 0.058
A14: Taxas básicas de juros, real
A15: TLP | B15: % a.a., real | H15: =(1+H10)/(1+H3)-1 -> 0.02669879518 | I15: =(1+I10)/(1+I3)-1 -> 0.011748 | J15: 0.013172 | K15: 0.014774 | L15: 0.016198 | M15: 0.0178 | N15: 0.0178 | O15: 0.0178 | P15: 0.0178 | Q15: 0.0178 | R15: 0.0178 | S15: 0.0178 | T15: 0.0178 | U15: 0.0178 | V15: 0.0178 | W15: 0.0178 | X15: 0.0178 | Y15: 0.0178 | Z15: 0.0178 | AA15: 0.0178 | AB15: 0.0178 | AC15: 0.0178 | AD15: 0.0178 | AE15: 0.0178 | AF15: 0.0178 | AG15: 0.0178 | AH15: 0.0178 | AI15: 0.0178 | AJ15: 0.0178 | AK15: 0.0178 | AL15: 0.0178 | AM15: 0.0178 | AN15: 0.0178 | AO15: 0.0178 | AP15: 0.0178 | AQ15: 0.0178 | AR15: 0.0178 | AS15: 0.0178 | AT15: 0.0178 | AU15: 0.0178 | AV15: 0.0178 | AW15: 0.0178 | AX15: 0.0178 | AY15: 0.0178 | AZ15: 0.0178 | BA15: 0.0178 | BB15: 0.0178 | BC15: 0.0178 | BD15: 0.0178 | BE15: 0.0178 | BF15: 0.0178 | BG15: =(1+BG10)/(1+BG3)-1 -> 0.0178 | BH15: =(1+BH10)/(1+BH3)-1 -> 0.0178 | BI15: 0.0178 | BJ15: 0.0178 | BK15: 0.0178 | BL15: 0.0178 | BM15: 0.0178
A16: SELIC | B16: % a.a., real | H16: =(1+H12)/(1+H3)-1 -> 0.0265060241 | I16: =(1+I12)/(1+I$3)-1 -> 0.02512272596 | J16: 0.008945247223 | K16: -0.007572815534 | L16: 0.008024751039 | M16: 0.02003290429 | N16: 0.02479659047 | O16: 0.02479659047 | P16: 0.02479659047 | Q16: 0.02479659047 | R16: 0.02479659047 | S16: 0.02479659047 | T16: 0.02479659047 | U16: 0.02479659047 | V16: 0.02479659047 | W16: 0.02479659047 | X16: 0.02479659047 | Y16: 0.02479659047 | Z16: 0.02479659047 | AA16: 0.02479659047 | AB16: 0.02479659047 | AC16: 0.02479659047 | AD16: 0.02479659047 | AE16: 0.02479659047 | AF16: 0.02479659047 | AG16: 0.02479659047 | AH16: 0.02479659047 | AI16: 0.02479659047 | AJ16: 0.02479659047 | AK16: 0.02479659047 | AL16: 0.02479659047 | AM16: 0.02479659047 | AN16: 0.02479659047 | AO16: =(1+AO12)/(1+AO$3)-1 -> 0.02479659047 | AP16: 0.02479659047 | AQ16: 0.02479659047 | AR16: 0.02479659047 | AS16: 0.02479659047 | AT16: 0.02479659047 | AU16: 0.02479659047 | AV16: 0.02479659047 | AW16: 0.02479659047 | AX16: 0.02479659047 | AY16: 0.02479659047 | AZ16: 0.02479659047 | BA16: 0.02479659047 | BB16: 0.02479659047 | BC16: 0.02479659047 | BD16: 0.02479659047 | BE16: 0.02479659047 | BF16: 0.02479659047 | BG16: =(1+BG12)/(1+BG$3)-1 -> 0.02479659047 | BH16: =(1+BH12)/(1+BH$3)-1 -> 0.02479659047 | BI16: 0.02479659047 | BJ16: 0.02479659047 | BK16: 0.02479659047 | BL16: 0.02479659047 | BM16: 0.02479659047
A18: Câmbio nominal | B18: R$/US$, corrente | C18: Sistema de Expectativas BACEN, consultado em 04/06/2019; constante no longo prazo | D18: 3.1932 | E18: R$/US$ Câmbio nominal em 2017 | H18: 3.654 | I18: 3.85 | J18: 5.16 | K18: 5.05 | L18: 4.8 | M18: 4.78 | N18: 4.79 | O18: =N18*(1+O3)/(1+O4) -> 4.824581463 | P18: 4.859412588 | Q18: 4.894495177 | R18: 4.929831044 | S18: 4.96542202 | T18: 5.001269944 | U18: 5.037376674 | V18: 5.073744076 | W18: 5.110374033 | X18: 5.147268441 | Y18: 5.184429208 | Z18: 5.221858258 | AA18: 5.259557527 | AB18: 5.297528967 | AC18: 5.335774542 | AD18: 5.374296232 | AE18: 5.413096029 | AF18: 5.452175942 | AG18: 5.491537992 | AH18: 5.531184218 | AI18: 5.57111667 | AJ18: 5.611337414 | AK18: 5.651848533 | AL18: 5.692652123 | AM18: 5.733750294 | AN18: 5.775145174 | AO18: 5.816838905 | AP18: 5.858833645 | AQ18: 5.901131566 | AR18: 5.943734857 | AS18: 5.986645723 | AT18: 6.029866385 | AU18: 6.073399079 | AV18: 6.117246058 | AW18: 6.16140959 | AX18: 6.205891962 | AY18: 6.250695475 | AZ18: 6.295822447 | BA18: 6.341275214 | BB18: 6.387056127 | BC18: 6.433167557 | BD18: 6.479611889 | BE18: 6.526391526 | BF18: 6.573508889 | BG18: 6.620966417 | BH18: =BG18*(1+BH3)/(1+BH4) -> 6.668766564 | BI18: =BH18*(1+BI3)/(1+BI4) -> 6.716911806 | BJ18: =BI18*(1+BJ3)/(1+BJ4) -> 6.765404633 | BK18: =BJ18*(1+BK3)/(1+BK4) -> 6.814247554 | BL18: =BK18*(1+BL3)/(1+BL4) -> 6.863443097 | BM18: =BL18*(1+BM3)/(1+BM4) -> 6.912993808
A19: Câmbio real | B19: R$@2019/US$@2019 | D19: =D18/D6*D7 -> 3.308171731 | E19: Câmbio real em 2017, R$@2017/US$@2017 | H19: =H18/H6*H7 -> 3.718061312 | I19: 3.85 | J19: 5.117900324 | K19: 4.974757425 | L19: 4.685965737 | M19: 4.628957614 | N19: 4.605392935 | O19: 4.605392935 | P19: 4.605392935 | Q19: 4.605392935 | R19: 4.605392935 | S19: 4.605392935 | T19: 4.605392935 | U19: 4.605392935 | V19: 4.605392935 | W19: 4.605392935 | X19: 4.605392935 | Y19: 4.605392935 | Z19: 4.605392935 | AA19: 4.605392935 | AB19: 4.605392935 | AC19: 4.605392935 | AD19: 4.605392935 | AE19: 4.605392935 | AF19: 4.605392935 | AG19: 4.605392935 | AH19: 4.605392935 | AI19: 4.605392935 | AJ19: 4.605392935 | AK19: 4.605392935 | AL19: 4.605392935 | AM19: 4.605392935 | AN19: =AN18/AN6*AN7 -> 4.605392935 | AO19: 4.605392935 | AP19: 4.605392935 | AQ19: 4.605392935 | AR19: 4.605392935 | AS19: 4.605392935 | AT19: 4.605392935 | AU19: 4.605392935 | AV19: 4.605392935 | AW19: 4.605392935 | AX19: 4.605392935 | AY19: 4.605392935 | AZ19: 4.605392935 | BA19: 4.605392935 | BB19: 4.605392935 | BC19: 4.605392935 | BD19: 4.605392935 | BE19: 4.605392935 | BF19: 4.605392935 | BG19: =BG18/BG6*BG7 -> 4.605392935 | BH19: =BH18/BH6*BH7 -> 4.605392935 | BI19: 4.605392935 | BJ19: 4.605392935 | BK19: 4.605392935 | BL19: 4.605392935 | BM19: 4.605392935
A20: Câmbio real (preços@2017) | B20: R$@2017/US$@2017 | C20: Apenas para conferência | D20: =D18/(D6/$D6)*(D7/$D7) -> 3.1932 | E20: Câmbio real em 2017, R$@2017/US$@2017 | H20: =H18/(H6/$D6)*(H7/$D7) -> 3.588844337 | I20: 3.716197646 | J20: 4.940033543 | K20: 4.801865411 | L20: 4.523110349 | M20: 4.468083478 | N20: 4.445337763 | O20: 4.445337763 | P20: 4.445337763 | Q20: 4.445337763 | R20: 4.445337763 | S20: 4.445337763 | T20: 4.445337763 | U20: 4.445337763 | V20: 4.445337763 | W20: 4.445337763 | X20: 4.445337763 | Y20: 4.445337763 | Z20: 4.445337763 | AA20: 4.445337763 | AB20: 4.445337763 | AC20: 4.445337763 | AD20: 4.445337763 | AE20: 4.445337763 | AF20: 4.445337763 | AG20: 4.445337763 | AH20: 4.445337763 | AI20: 4.445337763 | AJ20: 4.445337763 | AK20: 4.445337763 | AL20: 4.445337763 | AM20: 4.445337763 | AN20: =AN18/(AN6/$D6)*(AN7/$D7) -> 4.445337763 | AO20: 4.445337763 | AP20: 4.445337763 | AQ20: 4.445337763 | AR20: 4.445337763 | AS20: 4.445337763 | AT20: 4.445337763 | AU20: 4.445337763 | AV20: 4.445337763 | AW20: 4.445337763 | AX20: 4.445337763 | AY20: 4.445337763 | AZ20: 4.445337763 | BA20: 4.445337763 | BB20: 4.445337763 | BC20: 4.445337763 | BD20: 4.445337763 | BE20: 4.445337763 | BF20: 4.445337763 | BG20: =BG18/(BG6/$D6)*(BG7/$D7) -> 4.445337763 | BH20: =BH18/(BH6/$D6)*(BH7/$D7) -> 4.445337763 | BI20: 4.445337763 | BJ20: 4.445337763 | BK20: 4.445337763 | BL20: 4.445337763 | BM20: 4.445337763
A22: % PIB BR | B22: % a.a. | C22: Sostema de Expectativas BACEN de 2020 até 2024. Premissa da DPR/SAC para os anos de 2025 em diante. | H22: 0.011 | I22: 0.022 | J22: -0.0556 | K22: 0.0336 | L22: 0.0249 | M22: 0.0241 | N22: 0.0239 | O22: 0.0218864663 | P22: 0.02158849767 | Q22: 0.02117596733 | R22: 0.02107130661 | S22: 0.02114476871 | T22: 0.0204784405 | U22: 0.02010490669 | V22: 0.02021126054 | W22: 0.01985201607 | X22: 0.01952804369 | Y22: 0.0192500862 | Z22: 0.01898256953 | AA22: 0.01868623077 | AB22: 0.01839608984 | AC22: 0.01799540308 | AD22: 0.01743009073 | AE22: 0.01676385416 | AF22: 0.0161187699 | AG22: 0.01548044556 | AH22: 0.01487888223 | AI22: 0.01433335193 | AJ22: 0.01383187644 | AK22: 0.01334072759 | AL22: 0.01286028087 | AM22: 0.01247616491 | AN22: 0.01222094051 | AO22: =AN22 -> 0.01222094051 | AP22: 0.01222094051 | AQ22: 0.01222094051 | AR22: 0.01222094051 | AS22: 0.01222094051 | AT22: 0.01222094051 | AU22: 0.01222094051 | AV22: 0.01222094051 | AW22: 0.01222094051 | AX22: 0.01222094051 | AY22: 0.01222094051 | AZ22: 0.01222094051 | BA22: 0.01222094051 | BB22: 0.01222094051 | BC22: 0.01222094051 | BD22: 0.01222094051 | BE22: 0.01222094051 | BF22: 0.01222094051 | BG22: 0.01222094051 | BH22: =BG22 -> 0.01222094051 | BI22: =BH22 -> 0.01222094051 | BJ22: =BI22 -> 0.01222094051 | BK22: =BJ22 -> 0.01222094051 | BL22: =BK22 -> 0.01222094051 | BM22: =BL22 -> 0.01222094051
A23: PIB BR | B23: MM R$ @2018 | D23: 6826586 | E23: PIB 2018 (MM R$@2018) | H23: =D23 -> 6826586 | I23: =$D23*(1+I22) -> 6976770.892 | J23: =I23*(1+J22) -> 6588862.43 | K23: 6810248.208 | L23: 6979823.388 | M23: 7148037.132 | N23: 7318875.22 | O23: 7479059.535 | P23: 7640521.195 | Q23: 7802316.622 | R23: 7966721.628 | S23: 8135176.114 | T23: 8301771.834 | U23: 8468678.182 | V23: 8639840.843 | W23: 8811359.103 | X23: 8983427.708 | Y23: 9156359.466 | Z23: 9330170.696 | AA23: 9504516.419 | AB23: 9679362.357 | AC23: 9853546.384 | AD23: 10025294.59 | AE23: 10193357.17 | AF23: 10357661.55 | AG23: 10518002.76 | AH23: 10674498.89 | AI23: 10827500.24 | AJ23: 10977264.88 | AK23: 11123709.58 | AL23: 11266763.61 | AM23: 11407329.61 | AN23: 11546737.91 | AO23: =AN23*(1+AO22) -> 11687849.91 | AP23: 11830686.42 | AQ23: 11975268.54 | AR23: 12121617.58 | AS23: 12269755.15 | AT23: 12419703.1 | AU23: 12571483.55 | AV23: 12725118.9 | AW23: 12880631.83 | AX23: 13038045.26 | AY23: 13197382.44 | AZ23: 13358666.86 | BA23: 13521922.34 | BB23: 13687172.94 | BC23: 13854443.07 | BD23: 14023757.39 | BE23: 14195140.9 | BF23: 14368618.87 | BG23: 14544216.91 | BH23: =BG23*(1+BH22) -> 14721960.92 | BI23: =BH23*(1+BI22) -> 14901877.13 | BJ23: =BI23*(1+BJ22) -> 15083992.08 | BK23: =BJ23*(1+BK22) -> 15268332.65 | BL23: =BK23*(1+BL22) -> 15454926.04 | BM23: =BL23*(1+BM22) -> 15643799.77
A27: Inflação entre data base e do modelo (IPCA) | B27: % | C27: BCB - Calculadora do Cidadão | D27: 0 | E27: [%] Inflação entre jun/2018 e abr/2019 (IPCA)
A28: Índice para correção de valores de 2019 para data base do modelo | B28: [] | D28: =1/(1+D27) -> 1
A30: Índice para correção (INPC) entre fev/2016 e jan/2019 | B30: % | D30: 1
A32: INPC | B32: %

Sheet Inflação
A1: Mês/ano | B1: Número IPCA | C1: Atualizador IPCA | D1: Fonte:
B2: acumulado a partir | D2: Ipeadata
B3: de Jan/93 | D3: acessado em 06/08/2019
A4: 2020-06-01 | B4: 1372.443067 | C4: =B4/$B$21 -> 1.040754266
A5: 2020-05-01 | B5: 1368.884043 | C5: 1.038055379
A6: 2020-04-01 | B6: 1374.105319 | C6: 1.042014789
A7: 2020-03-01 | B7: 1378.378209 | C7: 1.045255017
A8: 2020-02-01 | B8: 1377.414361 | C8: 1.044524109
A9: 2020-01-01 | B9: 1373.979039 | C9: 1.041919028
A10: 2019-12-01 | B10: 1371.100379 | C10: 1.039736076
A11: 2019-11-01 | B11: 1355.511288 | C11: 1.02791452
A12: 2019-10-01 | B12: 1348.632914 | C12: 1.022698495
A13: 2019-09-01 | B13: 1347.285073 | C13: 1.021676396
A14: 2019-08-01 | B14: 1339.764191 | C14: 1.015973143
A15: 2019-07-01 | B15: 1346.341841 | C15: =B15/$B$21 -> 1.020961123
A16: 2019-06-01 | B16: 1343.7879 | C16: 1.019024412
A17: 2019-05-01 | B17: 1343.6536 | C17: 1.01892257
A18: 2019-04-01 | B18: 1341.9091 | C18: 1.017599676
A19: 2019-03-01 | B19: 1334.3036 | C19: 1.011832255
A20: 2019-02-01 | B20: 1324.3708 | C20: 1.004299991
A21: 2019-01-01 | B21: 1318.7004 | C21: 1
A22: 2018-12-01 | B22: 1314.494 | C22: =B22/$B$21 -> 0.9968101928
A23: 2018-11-01 | B23: 1312.5252 | C23: 0.9953172078
A24: 2018-10-01 | B24: 1315.2873 | C24: 0.99741177
A25: 2018-09-01 | B25: 1309.3951 | C25: 0.9929435829
A26: 2018-08-01 | B26: 1303.14 | C26: 0.9882002007
A27: 2018-07-01 | B27: 1304.3139 | C27: 0.9890903954
A28: 2018-06-01 | B28: 1300.0238 | C28: 0.9858371166
A29: 2018-05-01 | B29: 1283.8473 | C29: 0.9735701149
A30: 2018-04-01 | B30: 1278.7324 | C30: 0.9696913719
A31: 2018-03-01 | B31: 1275.9254 | C31: 0.967562761
A32: 2018-02-01 | B32: 1274.7781 | C32: 0.9666927378
A33: 2018-01-01 | B33: 1270.7118 | C33: 0.9636091716
A34: 2017-12-01 | B34: 1267.0374 | C34: 0.9608227919
A35: 2017-11-01 | B35: 1261.4869 | C35: 0.9566137236
A36: 2017-10-01 | B36: 1257.9646 | C36: 0.9539426848
A37: 2017-09-01 | B37: 1252.7032 | C37: 0.9499528475
A38: 2017-08-01 | B38: 1250.7021 | C38: 0.9484353686
A39: 2017-07-01 | B39: 1248.3303 | C39: 0.9466367797
A40: 2017-06-01 | B40: 1245.3415 | C40: 0.9443703058
A41: 2017-05-01 | B41: 1248.2124 | C41: 0.9465473735
A42: 2017-04-01 | B42: 1244.3549 | C42: 0.943622145
A43: 2017-03-01 | B43: 1242.6152 | C43: 0.9423028915
A44: 2017-02-01 | B44: 1239.5164 | C44: 0.9399530022
A45: 2017-01-01 | B45: 1235.4394 | C45: 0.936861322
A46: 2016-12-01 | B46: 1230.7625 | C46: 0.9333147241
A47: 2016-11-01 | B47: 1227.0813 | C47: 0.9305231878
A48: 2016-10-01 | B48: 1224.8765 | C48: 0.9288512387
A49: 2016-09-01 | B49: 1221.7001 | C49: 0.9264425035
A50: 2016-08-01 | B50: 1220.7235 | C50: 0.9257019259
A51: 2016-07-01 | B51: 1215.3758 | C51: 0.9216466454
A52: 2016-06-01 | B52: 1209.0886 | C52: 0.9168789211
A53: 2016-05-01 | B53: 1204.8715 | C53: 0.9136809999
A54: 2016-04-01 | B54: 1195.5462 | C54: 0.9066094164
A55: 2016-03-01 | B55: 1188.2976 | C55: 0.9011126409
A56: 2016-02-01 | B56: 1183.2098 | C56: 0.8972544484
A57: 2016-01-01 | B57: 1172.6559 | C57: 0.88925119
A58: 2015-12-01 | B58: 1157.95 | C58: 0.8780993772
A59: 2015-11-01 | B59: 1146.9394 | C59: 0.8697497931
A60: 2015-10-01 | B60: 1135.4711 | C60: 0.8610531247
A61: 2015-09-01 | B61: 1126.236 | C61: 0.8540499419
A62: 2015-08-01 | B62: 1120.187 | C62: 0.8494628499
A63: 2015-07-01 | B63: 1117.728 | C63: 0.8475981353
A64: 2015-06-01 | B64: 1110.8408 | C64: 0.8423754175
A65: 2015-05-01 | B65: 1102.1339 | C65: 0.8357727805
A66: 2015-04-01 | B66: 1094.038 | C66: 0.8296334785
A67: 2015-03-01 | B67: 1086.3251 | C67: 0.823784614
A68: 2015-02-01 | B68: 1072.1724 | C68: 0.8130523051
A69: 2015-01-01 | B69: 1059.2496 | C69: 0.8032526569
A70: 2014-12-01 | B70: 1046.2758 | C70: 0.7934143343
A71: 2014-11-01 | B71: 1038.178 | C71: 0.7872735915
A72: 2014-10-01 | B72: 1032.9101 | C72: 0.7832788251
A73: 2014-09-01 | B73: 1028.5901 | C73: 0.7800028725
A74: 2014-08-01 | B74: 1022.7603 | C74: 0.7755820048
A75: 2014-07-01 | B75: 1020.2098 | C75: 0.7736479036
A76: 2014-06-01 | B76: 1020.1078 | C76: 0.7735705548
A77: 2014-05-01 | B77: 1016.0436 | C77: 0.770488581
A78: 2014-04-01 | B78: 1011.3912 | C78: 0.7669605621
A79: 2014-03-01 | B79: 1004.66 | C79: 0.7618561426
A80: 2014-02-01 | B80: 995.5014 | C80: 0.7549109714
A81: 2014-01-01 | B81: 988.6795 | C81: 0.7497377721
A82: 2013-12-01 | B82: 983.2715 | C82: 0.7456367648
A83: 2013-11-01 | B83: 974.3079 | C83: 0.7388394665
A84: 2013-10-01 | B84: 969.0749 | C84: 0.7348711656
A85: 2013-09-01 | B85: 963.5824 | C85: 0.73070608
A86: 2013-08-01 | B86: 960.2217 | C86: =B86/$B$21 -> 0.7281575861
A87: 2013-07-01 | B87: 957.9227 | C87: 0.726414203
A88: 2013-06-01 | B88: 957.6354 | C88: 0.7261963369
A89: 2013-05-01 | B89: 955.152 | C89: 0.7243131192
A90: 2013-04-01 | B90: 951.6309 | C90: 0.7216429903
A91: 2013-03-01 | B91: 946.4256 | C91: 0.7176956949
A92: 2013-02-01 | B92: 941.9982 | C92: 0.7143382985
A93: 2013-01-01 | B93: 936.3799 | C93: 0.710077816
A94: 2012-12-01 | B94: 928.3957 | C94: 0.7040232186
A95: 2012-11-01 | B95: 921.1189 | C95: 0.6985050585
A96: 2012-10-01 | B96: 915.6251 | C96: 0.6943389871
A97: 2012-09-01 | B97: 910.2546 | C97: 0.6902664168
A98: 2012-08-01 | B98: 905.0956 | C98: 0.6863542318
A99: 2012-07-01 | B99: 901.3998 | C99: 0.683551624
A100: 2012-06-01 | B100: 897.5404 | C100: 0.6806249547
A101: 2012-05-01 | B101: 896.823 | C101: 0.6800809342
A102: 2012-04-01 | B102: 893.606 | C102: 0.6776414112
A103: 2012-03-01 | B103: 887.9232 | C103: 0.6733320169
A104: 2012-02-01 | B104: 886.0625 | C104: 0.6719210065
A105: 2012-01-01 | B105: 882.0931 | C105: 0.6689109217
A106: 2011-12-01 | B106: 877.1809 | C106: 0.6651858906
A107: 2011-11-01 | B107: 872.8168 | C107: 0.661876496
A108: 2011-10-01 | B108: 868.3017 | C108: 0.6584525947
A109: 2011-09-01 | B109: 864.5839 | C109: 0.6556333038
A110: 2011-08-01 | B110: 860.0258 | C110: 0.6521767947
A111: 2011-07-01 | B111: 856.8554 | C111: 0.6497726095
A112: 2011-06-01 | B112: 855.4867 | C112: 0.6487346936
A113: 2011-05-01 | B113: 854.2054 | C113: 0.6477630552
A114: 2011-04-01 | B114: 850.2094 | C114: 0.644732799
A115: 2011-03-01 | B115: 843.7128 | C115: 0.639806282
A116: 2011-02-01 | B116: 837.0997 | C116: 0.6347914204
A117: 2011-01-01 | B117: 830.456 | C117: 0.6297533541
A118: 2010-12-01 | B118: 823.62 | C118: 0.6245694625
A119: 2010-11-01 | B119: 818.4637 | C119: 0.6206593249
A120: 2010-10-01 | B120: 811.7264 | C120: 0.6155502797
A121: 2010-09-01 | B121: 805.6837 | C121: 0.6109679651
A122: 2010-08-01 | B122: 802.0744 | C122: 0.6082309522
A123: 2010-07-01 | B123: 801.7537 | C123: 0.6079877583
A124: 2010-06-01 | B124: 801.6735 | C124: 0.6079269408
A125: 2010-05-01 | B125: 801.6735 | C125: 0.6079269408
A126: 2010-04-01 | B126: 798.2411 | C126: 0.6053240751
A127: 2010-03-01 | B127: 793.7169 | C127: 0.6018932731
A128: 2010-02-01 | B128: 789.6109 | C128: 0.5987796015
A129: 2010-01-01 | B129: 783.4996 | C129: 0.5941452661
A130: 2009-12-01 | B130: 777.6671 | C130: 0.5897223509
A131: 2009-11-01 | B131: 774.8004 | C131: 0.5875484682
A132: 2009-10-01 | B132: 771.6367 | C132: 0.5851493637
A133: 2009-09-01 | B133: 769.482 | C133: 0.5835154065
A134: 2009-08-01 | B134: 767.6397 | C134: 0.5821183492
A135: 2009-07-01 | B135: 766.49 | C135: 0.581246506
A136: 2009-06-01 | B136: 764.6549 | C136: 0.5798549087
A137: 2009-05-01 | B137: 761.912 | C137: 0.5777749063
A138: 2009-04-01 | B138: 758.3477 | C138: 0.5750720179
A139: 2009-03-01 | B139: 754.7251 | C139: 0.5723249193
A140: 2009-02-01 | B140: 753.2186 | C140: 0.5711825067
A141: 2009-01-01 | B141: 749.0986 | C141: 0.5680582185
A142: 2008-12-01 | B142: 745.5201 | C142: 0.565344562
A143: 2008-11-01 | B143: 743.4385 | C143: 0.5637660381
A144: 2008-10-01 | B144: 740.7717 | C144: 0.5617437441
A145: 2008-09-01 | B145: 737.4531 | C145: 0.5592271755
A146: 2008-08-01 | B146: 735.5407 | C146: 0.5577769598
A147: 2008-07-01 | B147: 733.487 | C147: 0.5562195932
A148: 2008-06-01 | B148: 729.6197 | C148: 0.5532869331
A149: 2008-05-01 | B149: 724.2602 | C149: 0.5492227044
A150: 2008-04-01 | B150: 718.5834 | C150: =B150/$B$21 -> 0.54491786
A151: 2008-03-01 | B151: 714.6528 | C151: 0.5419371982
A152: 2008-02-01 | B152: 711.2389 | C152: 0.5393483615
A153: 2008-01-01 | B153: 707.7709 | C153: 0.5367184995
A154: 2007-12-01 | B154: 703.9695 | C154: 0.5338358129
A155: 2007-11-01 | B155: 698.7984 | C155: 0.5299144521
A156: 2007-10-01 | B156: 696.1531 | C156: 0.527908462
A157: 2007-09-01 | B157: 694.0709 | C157: 0.5263294832
A158: 2007-08-01 | B158: 692.8238 | C158: 0.5253837794
A159: 2007-07-01 | B159: 689.5828 | C159: 0.5229260566
A160: 2007-06-01 | B160: 687.9316 | C160: 0.5216739147
A161: 2007-05-01 | B161: 686.0108 | C161: 0.5202173291
A162: 2007-04-01 | B162: 684.0953 | C162: 0.5187647626
A163: 2007-03-01 | B163: 682.3894 | C163: 0.5174711405
A164: 2007-02-01 | B164: 679.8739 | C164: 0.5155635806
A165: 2007-01-01 | B165: 676.8956 | C165: 0.5133050691
A166: 2006-12-01 | B166: 673.9303 | C166: 0.5110564158
A167: 2006-11-01 | B167: 670.7109 | C167: 0.5086150728
A168: 2006-10-01 | B168: 668.6381 | C168: 0.5070432223
A169: 2006-09-01 | B169: 666.4389 | C169: 0.5053755197
A170: 2006-08-01 | B170: 665.0423 | C170: 0.5043164467
A171: 2006-07-01 | B171: 664.7099 | C171: 0.5040643804
A172: 2006-06-01 | B172: 663.4494 | C172: 0.503108515
A173: 2006-05-01 | B173: 664.8455 | C173: 0.5041672089
A174: 2006-04-01 | B174: 664.1814 | C174: 0.503663607
A175: 2006-03-01 | B175: 662.7895 | C175: 0.5026080981
A176: 2006-02-01 | B176: 659.9517 | C176: 0.5004561309
A177: 2006-01-01 | B177: 657.2569 | C177: 0.4984126038
A178: 2005-12-01 | B178: 653.4019 | C178: 0.4954892711
A179: 2005-11-01 | B179: 651.0581 | C179: 0.4937119152
A180: 2005-10-01 | B180: 647.4968 | C180: 0.4910113017
A181: 2005-09-01 | B181: 642.6768 | C181: 0.487356188
A182: 2005-08-01 | B182: 640.4352 | C182: 0.4856563326
A183: 2005-07-01 | B183: 639.3483 | C183: 0.484832112
A184: 2005-06-01 | B184: 637.754 | C184: 0.4836231186
A185: 2005-05-01 | B185: 637.8815 | C185: 0.4837198047
A186: 2005-04-01 | B186: 634.7712 | C186: 0.4813611947
A187: 2005-03-01 | B187: 629.2963 | C187: 0.4772094556
A188: 2005-02-01 | B188: 625.4808 | C188: 0.4743160766
A189: 2005-01-01 | B189: 621.8122 | C189: 0.4715340952
A190: 2004-12-01 | B190: 618.2264 | C190: 0.4688149029
A191: 2004-11-01 | B191: 612.955 | C191: 0.4648174824
A192: 2004-10-01 | B192: 608.7546 | C192: 0.4616322252
A193: 2004-09-01 | B193: 606.0878 | C193: 0.4596099311
A194: 2004-08-01 | B194: 604.0943 | C194: 0.4580982155
A195: 2004-07-01 | B195: 599.9546 | C195: 0.4549589884
A196: 2004-06-01 | B196: 594.5443 | C196: 0.4508562369
A197: 2004-05-01 | B197: 590.3528 | C197: 0.4476777288
A198: 2004-04-01 | B198: 587.3573 | C198: 0.4454061741
A199: 2004-03-01 | B199: 585.192 | C199: 0.4437641787
A200: 2004-02-01 | B200: 582.4545 | C200: 0.4416882713
... 13 more rows

Sheet MÁSCARAS>>
B2: Modelo Financeiro para concessões aeroportuárias
B4: Lista de planilhas | C4: Conteúdo
B6: >>MODELO
B7: CONTROLE | C7: Reúne principais variáveis de sensibilidade. O valor de outorga é definido nesta seção.
B8: Result | C8: Reúne os principais resultados acerca da viabilidade do projeto (com intuito de facilitar a compreensão/localização dos principais parâmetros). Não possui nenhum dado de entrada.
B9: MF | C9: Principal planilha do Modelo Financeiro. Consolida parâmetros de máscaras de demanda, capex e arquitetura, e realiza projeção financeira completa incluindo: valoração, demonstrativos
C10: A planilha MF é quebrada em três seções:
C11: PAINEL DE CONTROLE: apresenta gráficos e indicadores gerais da concessão (volumes, receitas, capacidade de geração de caixa, eficiência, fontes e usos, entre outros).
C12: SÍNTESE: consolida parâmetros para realizar avaliação de viabilidade e calcular principais demonstrativos financeiros.
C13: DETALHAMENTO: realiza projeção de grandezas que serão usadas na valoração (receitas, custos, financiamento, depreciações, impostos, investimentos, particularidades de contabilidade, entre outros).
B14: Premissas | C14: Reúne premissas específicas referente ao aeroporto em questão
B15: Timing | C15: Trata os principais marcos temporais ao longo da vida de concessão
B16: MacroEco | C16: Projeções de indicadores macroeconômicos
B17: Inflação | C17: Índices de reajuste de inflação
B19: >>MÁSCARAS (DE INTERFACE COM OUTROS ESTUDOS)
B20: MDem | C20: Interface de Demanda para o modelo financeiro. Recupera os dados de entrada de mercado do aeroporto em análise para alimentar o modelo financeiro.
B21: MCapex | C21: Interface de Capex para o modelo financeiro. Recupera os dados de entrada de capex do aeroporto em análise para alimentar o modelo financeiro
B22: Capex | C22: Detalhamento do Capex aeroporto em questão
B23: MArq | C23: Interface de Arquitetura para o modelo financeiro. Recupera os dados de entrada de arquitetura (configuração e vocação de áreas) do aeroporto em análise para alimentar o modelo financeiro.
B24: MIPTU | C24: Interface Jurídica para o modelo financeiro. Recupera os dados e cálculos de IPTU para alimentar o modelo financeiro.
B26: >>OUTPUT
B27: Output_Rel | C27: Reúne gráficos e tabelas apresentados no relatório de Avaliação Econômico-Financeira. Ao usar, atente ao valor de outorga que está considerado.
B28: Output_MF_Bloco | C28: Interface de Output para o modelo financeiro do Bloco de aeroportos em questão

Sheet MDem
A1: SBTE | B1: Unid | C1: Fonte | E1: 2018 | F1: Unid fator | G1: Fonte | I1: 2019 | J1: 2020 | K1: 2021 | L1: 2022 | M1: 2023 | N1: 2024 | O1: 2025 | P1: 2026 | Q1: 2027 | R1: 2028 | S1: 2029 | T1: 2030 | U1: 2031 | V1: 2032 | W1: 2033 | X1: 2034 | Y1: 2035 | Z1: 2036 | AA1: 2037 | AB1: 2038 | AC1: 2039 | AD1: 2040 | AE1: 2041 | AF1: 2042 | AG1: 2043 | AH1: 2044 | AI1: 2045 | AJ1: 2046 | AK1: 2047 | AL1: 2048 | AM1: 2049 | AN1: 2050 | AO1: 2051 | AP1: 2052 | AQ1: 2053 | AR1: 2054 | AS1: 2055 | AT1: 2056 | AU1: 2057 | AV1: 2058 | AW1: 2059 | AX1: 2060 | AY1: 2061 | AZ1: 2062 | BA1: 2063 | BB1: 2064 | BC1: 2065 | BD1: 2066 | BE1: 2067 | BF1: 2068 | BG1: 2069 | BH1: 2070 | BI1: 2071 | BJ1: 2072 | BK1: 2073 | BL1: 2074 | BM1: 2075
A2: Passageiros | B2: MM pax | E2: =I2 -> 0.011192 | I2: =I3+I16 -> 0.011192 | J2: 0.005596 | K2: 0.00336525 | L2: 0.0073055 | M2: 0.01185225 | N2: 0.016941 | O2: 0.033387034 | P2: 0.05682396 | Q2: 0.083621528 | R2: 0.114839488 | S2: 0.145618704 | T2: 0.171160028 | U2: 0.20544121 | V2: 0.232225 | W2: 0.243878 | X2: 0.256384 | Y2: 0.271171 | Z2: 0.285855 | AA2: 0.30018 | AB2: 0.314055 | AC2: 0.32769 | AD2: 0.341458 | AE2: 0.355494 | AF2: 0.370124 | AG2: 0.384044 | AH2: 0.398224 | AI2: 0.412575 | AJ2: 0.426732 | AK2: 0.440677 | AL2: 0.454857 | AM2: 0.469488 | AN2: 0.484955 | AO2: =AN2 -> 0.484955 | AP2: =AO2 -> 0.484955 | AQ2: 0.484955 | AR2: 0.484955 | AS2: 0.484955 | AT2: 0.484955 | AU2: 0 | AV2: 0 | AW2: 0 | AX2: 0 | AY2: 0 | AZ2: 0 | BA2: 0 | BB2: 0 | BC2: 0 | BD2: 0 | BE2: 0 | BF2: 0 | BG2: 0 | BH2: 0 | BI2: 0 | BJ2: 0 | BK2: 0 | BL2: 0 | BM2: 0
A3: Aviação Regular e Não Regular | B3: MM pax | E3: 0.008133 | I3: =I4+I7 -> 0.008133 | J3: 0.0040665 | K3: 0.00237225 | L3: 0.005298 | M3: 0.00880875 | N3: 0.012846 | O3: 0.02789975 | P3: 0.0494945 | Q3: 0.073999 | R3: 0.102473 | S3: 0.1283795 | T3: 0.1490285 | U3: 0.17755375 | V3: 0.198846 | W3: 0.209214 | X3: 0.220384 | Y3: 0.232928 | Z3: 0.245897 | AA3: 0.2585 | AB3: 0.270849 | AC3: 0.282886 | AD3: 0.295065 | AE3: 0.307519 | AF3: 0.320522 | AG3: 0.332841 | AH3: 0.345386 | AI3: 0.358178 | AJ3: 0.37075 | AK3: 0.383109 | AL3: 0.395685 | AM3: 0.408693 | AN3: 0.422207 | AO3: =AN3 -> 0.422207 | AP3: 0.422207 | AQ3: 0.422207 | AR3: 0.422207 | AS3: 0.422207 | AT3: 0.422207 | AU3: =AU4+AU7+AU16 -> 0 | AV3: 0 | AW3: 0 | AX3: 0 | AY3: 0 | AZ3: 0 | BA3: 0 | BB3: 0 | BC3: 0 | BD3: 0 | BE3: 0 | BF3: 0 | BG3: 0 | BH3: 0 | BI3: 0 | BJ3: 0 | BK3: 0 | BL3: 0 | BM3: 0
A4: Embarque (OD) | B4: MM pax | E4: 0.0040665 | I4: =I5+I6 -> 0.0040665 | J4: 0.00203325 | K4: 0.001186125 | L4: 0.002649 | M4: 0.004404375 | N4: 0.006423 | O4: 0.013949875 | P4: 0.02474725 | Q4: 0.0369995 | R4: 0.0512365 | S4: 0.06418975 | T4: 0.07451425 | U4: 0.088776875 | V4: 0.099423 | W4: 0.104607 | X4: 0.110192 | Y4: 0.116464 | Z4: 0.1229485 | AA4: 0.12925 | AB4: 0.1354245 | AC4: 0.141443 | AD4: 0.1475325 | AE4: 0.1537595 | AF4: 0.160261 | AG4: 0.1664205 | AH4: 0.172693 | AI4: 0.179089 | AJ4: 0.185375 | AK4: 0.1915545 | AL4: 0.1978425 | AM4: 0.2043465 | AN4: 0.2111035 | AO4: =AN4 -> 0.2111035 | AP4: 0.2111035 | AQ4: 0.2111035 | AR4: 0.2111035 | AS4: 0.2111035 | AT4: 0.2111035 | AU4: 0 | AV4: 0 | AW4: 0 | AX4: 0 | AY4: 0 | AZ4: 0 | BA4: 0 | BB4: 0 | BC4: 0 | BD4: 0 | BE4: 0 | BF4: 0 | BG4: 0 | BH4: 0 | BI4: 0 | BJ4: 0 | BK4: 0 | BL4: 0 | BM4: 0
A5: Embarque Doméstico (OD) | B5: MM pax | E5: 0.0040665 | I5: =(I117+I136*I111+I144*I112)/2/1000000 -> 0.0040665 | J5: =(J117+J136*J111+J144*J112)/2/1000000*J110 -> 0.00203325 | K5: =(K117+K136*K111+K144*K112)/2/1000000*K110 -> 0.001186125 | L5: =(L117+L136*L111+L144*L112)/2/1000000*L110 -> 0.002649 | M5: 0.004404375 | N5: =(N117+N136*N111+N144*N112)/2/1000000*N110 -> 0.006423 | O5: 0.013949875 | P5: 0.02474725 | Q5: 0.0369995 | R5: 0.0512365 | S5: 0.061508 | T5: 0.06837575 | U5: 0.078513875 | V5: 0.084447 | W5: 0.088333 | X5: 0.0923325 | Y5: 0.0972255 | Z5: 0.1022625 | AA5: 0.107158 | AB5: 0.111699 | AC5: 0.116345 | AD5: 0.1210595 | AE5: 0.125758 | AF5: 0.130551 | AG5: 0.1353015 | AH5: 0.1400465 | AI5: 0.144787 | AJ5: 0.149528 | AK5: 0.154267 | AL5: 0.158994 | AM5: 0.163722 | AN5: 0.16899 | AO5: =AN5 -> 0.16899 | AP5: =AO5 -> 0.16899 | AQ5: 0.16899 | AR5: 0.16899 | AS5: 0.16899 | AT5: 0.16899 | AU5: =(AU117+AU136*AU111+AU144*AU112)/2/1000000 -> 0 | AV5: 0 | AW5: 0 | AX5: 0 | AY5: 0 | AZ5: 0 | BA5: 0 | BB5: 0 | BC5: 0 | BD5: 0 | BE5: 0 | BF5: 0 | BG5: 0 | BH5: 0 | BI5: 0 | BJ5: 0 | BK5: 0 | BL5: 0 | BM5: 0
A6: Embarque Internacional (OD) | B6: MM pax | E6: 0 | I6: =(I146*I112)/2/1000000 -> 0 | J6: =(J146*J112)/2/1000000*J110 -> 0 | K6: =(K146*K112)/2/1000000*K110 -> 0 | L6: 0 | M6: 0 | N6: =(N146*N112)/2/1000000*N110 -> 0 | O6: 0 | P6: 0 | Q6: =(Q146*Q112)/2/1000000*Q110 -> 0 | R6: 0 | S6: 0.00268175 | T6: 0.0061385 | U6: 0.010263 | V6: 0.014976 | W6: 0.016274 | X6: 0.0178595 | Y6: 0.0192385 | Z6: 0.020686 | AA6: 0.022092 | AB6: 0.0237255 | AC6: 0.025098 | AD6: 0.026473 | AE6: 0.0280015 | AF6: 0.02971 | AG6: 0.031119 | AH6: 0.0326465 | AI6: 0.034302 | AJ6: 0.035847 | AK6: 0.0372875 | AL6: 0.0388485 | AM6: 0.0406245 | AN6: 0.0421135 | AO6: 0.0421135 | AP6: =AO6 -> 0.0421135 | AQ6: 0.0421135 | AR6: 0.0421135 | AS6: 0.0421135 | AT6: 0.0421135 | AU6: =(AU146*AU112)/2/1000000 -> 0 | AV6: 0 | AW6: 0 | AX6: 0 | AY6: 0 | AZ6: 0 | BA6: 0 | BB6: 0 | BC6: 0 | BD6: 0 | BE6: 0 | BF6: 0 | BG6: 0 | BH6: 0 | BI6: 0 | BJ6: 0 | BK6: 0 | BL6: 0 | BM6: 0
A7: Desembarque (OD) | B7: MM pax | E7: 0.0040665 | I7: =I8+I9 -> 0.0040665 | J7: 0.00203325 | K7: 0.001186125 | L7: 0.002649 | M7: 0.004404375 | N7: 0.006423 | O7: 0.013949875 | P7: 0.02474725 | Q7: 0.0369995 | R7: 0.0512365 | S7: 0.06418975 | T7: 0.07451425 | U7: 0.088776875 | V7: 0.099423 | W7: 0.104607 | X7: 0.110192 | Y7: 0.116464 | Z7: 0.1229485 | AA7: 0.12925 | AB7: 0.1354245 | AC7: 0.141443 | AD7: 0.1475325 | AE7: 0.1537595 | AF7: 0.160261 | AG7: 0.1664205 | AH7: 0.172693 | AI7: 0.179089 | AJ7: 0.185375 | AK7: 0.1915545 | AL7: 0.1978425 | AM7: 0.2043465 | AN7: 0.2111035 | AO7: =AN7 -> 0.2111035 | AP7: 0.2111035 | AQ7: 0.2111035 | AR7: 0.2111035 | AS7: 0.2111035 | AT7: 0.2111035 | AU7: 0 | AV7: 0 | AW7: 0 | AX7: 0 | AY7: 0 | AZ7: 0 | BA7: 0 | BB7: 0 | BC7: 0 | BD7: 0 | BE7: 0 | BF7: 0 | BG7: 0 | BH7: 0 | BI7: 0 | BJ7: 0 | BK7: 0 | BL7: 0 | BM7: 0
A8: Desembarque Doméstico (OD) | B8: MM pax | E8: 0.0040665 | I8: =I5 -> 0.0040665 | J8: =J5 -> 0.00203325 | K8: =K5 -> 0.001186125 | L8: 0.002649 | M8: 0.004404375 | N8: 0.006423 | O8: 0.013949875 | P8: 0.02474725 | Q8: 0.0369995 | R8: 0.0512365 | S8: 0.061508 | T8: 0.06837575 | U8: 0.078513875 | V8: 0.084447 | W8: 0.088333 | X8: 0.0923325 | Y8: 0.0972255 | Z8: 0.1022625 | AA8: 0.107158 | AB8: 0.111699 | AC8: 0.116345 | AD8: 0.1210595 | AE8: 0.125758 | AF8: 0.130551 | AG8: 0.1353015 | AH8: 0.1400465 | AI8: 0.144787 | AJ8: 0.149528 | AK8: 0.154267 | AL8: 0.158994 | AM8: 0.163722 | AN8: 0.16899 | AO8: =AN8 -> 0.16899 | AP8: 0.16899 | AQ8: 0.16899 | AR8: 0.16899 | AS8: 0.16899 | AT8: 0.16899 | AU8: 0 | AV8: 0 | AW8: 0 | AX8: 0 | AY8: 0 | AZ8: 0 | BA8: 0 | BB8: 0 | BC8: 0 | BD8: 0 | BE8: 0 | BF8: 0 | BG8: 0 | BH8: 0 | BI8: 0 | BJ8: 0 | BK8: 0 | BL8: 0 | BM8: 0
A9: Desembarque Internacional (OD) | B9: MM pax | E9: 0 | I9: =I6 -> 0 | J9: =J6 -> 0 | K9: =K6 -> 0 | L9: 0 | M9: 0 | N9: 0 | O9: 0 | P9: 0 | Q9: 0 | R9: 0 | S9: 0.00268175 | T9: 0.0061385 | U9: 0.010263 | V9: 0.014976 | W9: 0.016274 | X9: 0.0178595 | Y9: 0.0192385 | Z9: 0.020686 | AA9: 0.022092 | AB9: 0.0237255 | AC9: 0.025098 | AD9: 0.026473 | AE9: 0.0280015 | AF9: 0.02971 | AG9: 0.031119 | AH9: 0.0326465 | AI9: 0.034302 | AJ9: 0.035847 | AK9: 0.0372875 | AL9: 0.0388485 | AM9: 0.0406245 | AN9: 0.0421135 | AO9: =AN9 -> 0.0421135 | AP9: 0.0421135 | AQ9: 0.0421135 | AR9: 0.0421135 | AS9: 0.0421135 | AT9: 0.0421135 | AU9: 0 | AV9: 0 | AW9: 0 | AX9: 0 | AY9: 0 | AZ9: 0 | BA9: 0 | BB9: 0 | BC9: 0 | BD9: 0 | BE9: 0 | BF9: 0 | BG9: 0 | BH9: 0 | BI9: 0 | BJ9: 0 | BK9: 0 | BL9: 0 | BM9: 0
A10: Conexão | B10: MM pax | E10: 0 | I10: 0 | J10: 0 | K10: 0 | L10: 0 | M10: 0 | N10: 0 | O10: 0 | P10: 0 | Q10: 0 | R10: 0 | S10: 0 | T10: 0 | U10: 0 | V10: 0 | W10: 0 | X10: 0 | Y10: 0 | Z10: 0 | AA10: 0 | AB10: 0 | AC10: 0 | AD10: 0 | AE10: 0 | AF10: 0 | AG10: 0 | AH10: 0 | AI10: 0 | AJ10: 0 | AK10: 0 | AL10: 0 | AM10: 0 | AN10: 0 | AO10: =AN10 -> 0 | AP10: 0 | AQ10: 0 | AR10: 0 | AS10: 0 | AT10: 0 | AU10: 0 | AV10: 0 | AW10: 0 | AX10: 0 | AY10: 0 | AZ10: 0 | BA10: 0 | BB10: 0 | BC10: 0 | BD10: 0 | BE10: 0 | BF10: 0 | BG10: 0 | BH10: 0 | BI10: 0 | BJ10: 0 | BK10: 0 | BL10: 0 | BM10: 0
A11: Doméstico-Doméstico | B11: MM pax | E11: 0 | I11: 0 | J11: 0 | K11: 0 | L11: 0 | M11: 0 | N11: 0 | O11: 0 | P11: 0 | Q11: 0 | R11: 0 | S11: 0 | T11: 0 | U11: 0 | V11: 0 | W11: 0 | X11: 0 | Y11: 0 | Z11: 0 | AA11: 0 | AB11: 0 | AC11: 0 | AD11: 0 | AE11: 0 | AF11: 0 | AG11: 0 | AH11: 0 | AI11: 0 | AJ11: 0 | AK11: 0 | AL11: 0 | AM11: 0 | AN11: 0 | AO11: =AN11 -> 0 | AP11: 0 | AQ11: 0 | AR11: 0 | AS11: 0 | AT11: 0 | AU11: 0 | AV11: 0 | AW11: 0 | AX11: 0 | AY11: 0 | AZ11: 0 | BA11: 0 | BB11: 0 | BC11: 0 | BD11: 0 | BE11: 0 | BF11: 0 | BG11: 0 | BH11: 0 | BI11: 0 | BJ11: 0 | BK11: 0 | BL11: 0 | BM11: 0
A12: Doméstico-Internacional | B12: MM pax | E12: 0 | I12: 0 | J12: 0 | K12: 0 | L12: 0 | M12: 0 | N12: 0 | O12: 0 | P12: 0 | Q12: 0 | R12: 0 | S12: 0 | T12: 0 | U12: 0 | V12: 0 | W12: 0 | X12: 0 | Y12: 0 | Z12: 0 | AA12: 0 | AB12: 0 | AC12: 0 | AD12: 0 | AE12: 0 | AF12: 0 | AG12: 0 | AH12: 0 | AI12: 0 | AJ12: 0 | AK12: 0 | AL12: 0 | AM12: 0 | AN12: 0 | AO12: =AN12 -> 0 | AP12: 0 | AQ12: 0 | AR12: 0 | AS12: 0 | AT12: 0 | AU12: 0 | AV12: 0 | AW12: 0 | AX12: 0 | AY12: 0 | AZ12: 0 | BA12: 0 | BB12: 0 | BC12: 0 | BD12: 0 | BE12: 0 | BF12: 0 | BG12: 0 | BH12: 0 | BI12: 0 | BJ12: 0 | BK12: 0 | BL12: 0 | BM12: 0
A13: Internacional-Doméstico | B13: MM pax | E13: 0 | I13: 0 | J13: 0 | K13: 0 | L13: 0 | M13: 0 | N13: 0 | O13: 0 | P13: 0 | Q13: 0 | R13: 0 | S13: 0 | T13: 0 | U13: 0 | V13: 0 | W13: 0 | X13: 0 | Y13: 0 | Z13: 0 | AA13: 0 | AB13: 0 | AC13: 0 | AD13: 0 | AE13: 0 | AF13: 0 | AG13: 0 | AH13: 0 | AI13: 0 | AJ13: 0 | AK13: 0 | AL13: 0 | AM13: 0 | AN13: 0 | AO13: =AN13 -> 0 | AP13: 0 | AQ13: 0 | AR13: 0 | AS13: 0 | AT13: 0 | AU13: 0 | AV13: 0 | AW13: 0 | AX13: 0 | AY13: 0 | AZ13: 0 | BA13: 0 | BB13: 0 | BC13: 0 | BD13: 0 | BE13: 0 | BF13: 0 | BG13: 0 | BH13: 0 | BI13: 0 | BJ13: 0 | BK13: 0 | BL13: 0 | BM13: 0
A14: Internacional-Internacional | B14: MM pax | E14: 0 | I14: 0 | J14: 0 | K14: 0 | L14: 0 | M14: 0 | N14: 0 | O14: 0 | P14: 0 | Q14: 0 | R14: 0 | S14: 0 | T14: 0 | U14: 0 | V14: 0 | W14: 0 | X14: 0 | Y14: 0 | Z14: 0 | AA14: 0 | AB14: 0 | AC14: 0 | AD14: 0 | AE14: 0 | AF14: 0 | AG14: 0 | AH14: 0 | AI14: 0 | AJ14: 0 | AK14: 0 | AL14: 0 | AM14: 0 | AN14: 0 | AO14: =AN14 -> 0 | AP14: 0 | AQ14: 0 | AR14: 0 | AS14: 0 | AT14: 0 | AU14: 0 | AV14: 0 | AW14: 0 | AX14: 0 | AY14: 0 | AZ14: 0 | BA14: 0 | BB14: 0 | BC14: 0 | BD14: 0 | BE14: 0 | BF14: 0 | BG14: 0 | BH14: 0 | BI14: 0 | BJ14: 0 | BK14: 0 | BL14: 0 | BM14: 0
AO15: =AN15 -> 0 | AP15: 0 | AQ15: 0 | AR15: 0 | AS15: 0 | AT15: 0
A16: Aviação Geral (Embarque+Desembarque) | B16: MM pax | E16: =I16 -> 0.003059 | I16: =(I118+I137*I111+I145*I112)/1000000 -> 0.003059 | J16: =(J118+J137*J111+J145*J112)/1000000*J110 -> 0.0015295 | K16: =(K118+K137*K111+K145*K112)/1000000*K110 -> 0.000993 | L16: =(L118+L137*L111+L145*L112)/1000000*L110 -> 0.0020075 | M16: 0.0030435 | N16: 0.004095 | O16: 0.005487284 | P16: 0.00732946 | Q16: 0.009622528 | R16: 0.012366488 | S16: 0.017239204 | T16: 0.022131528 | U16: 0.02788746 | V16: 0.033379 | W16: 0.034664 | X16: 0.036 | Y16: 0.038243 | Z16: 0.039958 | AA16: 0.04168 | AB16: 0.043206 | AC16: 0.044804 | AD16: 0.046393 | AE16: 0.047975 | AF16: 0.049602 | AG16: 0.051203 | AH16: 0.052838 | AI16: 0.054397 | AJ16: 0.055982 | AK16: 0.057568 | AL16: 0.059172 | AM16: 0.060795 | AN16: 0.062748 | AO16: =AN16 -> 0.062748 | AP16: 0.062748 | AQ16: 0.062748 | AR16: 0.062748 | AS16: 0.062748 | AT16: 0.062748 | AU16: =(AU118+AU137*AU111+AU145*AU112)/1000000 -> 0 | AV16: 0 | AW16: 0 | AX16: 0 | AY16: 0 | AZ16: 0 | BA16: 0 | BB16: 0 | BC16: 0 | BD16: 0 | BE16: 0 | BF16: 0 | BG16: 0 | BH16: 0 | BI16: 0 | BJ16: 0 | BK16: 0 | BL16: 0 | BM16: 0
AO17: =AN17 -> 0 | AP17: 0 | AQ17: 0 | AR17: 0 | AS17: 0 | AT17: 0
A18: Movimentos Totais de Aeronaves [MTA] | B18: 000 movimentos | E18: =I18 -> 1.573 | I18: =I19+I34 -> 1.573 | J18: =J19+J34 -> 0.7865 | K18: =K19+K34 -> 0.40175 | L18: 0.8215 | M18: 1.257 | N18: 1.705 | O18: 2.185206897 | P18: 2.804117241 | Q18: 3.572731034 | R18: 4.475048276 | S18: 5.736341379 | T18: 6.991931034 | U18: 8.429817241 | V18: 9.808 | W18: 10.155 | X18: 10.468 | Y18: 10.99 | Z18: 11.473 | AA18: 11.945 | AB18: 12.333 | AC18: 12.643 | AD18: 13.022 | AE18: 13.431 | AF18: 13.864 | AG18: 14.29 | AH18: 14.718 | AI18: 15.138 | AJ18: 15.533 | AK18: 15.976 | AL18: 16.381 | AM18: 16.802 | AN18: 17.326 | AO18: =AN18 -> 17.326 | AP18: 17.326 | AQ18: 17.326 | AR18: 17.326 | AS18: 17.326 | AT18: 17.326 | AU18: 0 | AV18: 0 | AW18: 0 | AX18: 0 | AY18: 0 | AZ18: 0 | BA18: 0 | BB18: 0 | BC18: 0 | BD18: 0 | BE18: 0 | BF18: 0 | BG18: 0 | BH18: 0 | BI18: 0 | BJ18: 0 | BK18: 0 | BL18: 0 | BM18: 0
A19: Aviação Regular e Não Regular | B19: 000 movimentos | E19: 0.126 | I19: =I20+I27 -> 0.126 | J19: =J20+J27 -> 0.063 | K19: =K20+K27 -> 0.0345 | L19: 0.078 | M19: 0.129 | N19: 0.186 | O19: 0.3805 | P19: 0.626 | Q19: 0.9305 | R19: 1.28 | S19: 1.5575 | T19: 1.826 | U19: 2.102 | V19: 2.372 | W19: 2.454 | X19: 2.492 | Y19: 2.56 | Z19: 2.692 | AA19: 2.812 | AB19: 2.888 | AC19: 2.872 | AD19: 2.928 | AE19: 3.014 | AF19: 3.114 | AG19: 3.216 | AH19: 3.31 | AI19: 3.412 | AJ19: 3.486 | AK19: 3.606 | AL19: 3.684 | AM19: 3.776 | AN19: 3.904 | AO19: =AN19 -> 3.904 | AP19: 3.904 | AQ19: 3.904 | AR19: 3.904 | AS19: 3.904 | AT19: 3.904 | AU19: 0 | AV19: 0 | AW19: 0 | AX19: 0 | AY19: 0 | AZ19: 0 | BA19: 0 | BB19: 0 | BC19: 0 | BD19: 0 | BE19: 0 | BF19: 0 | BG19: 0 | BH19: 0 | BI19: 0 | BJ19: 0 | BK19: 0 | BL19: 0 | BM19: 0
A20: Pouso | B20: 000 movimentos | E20: 0.063 | I20: =I21+I24 -> 0.063 | J20: 0.0315 | K20: 0.01725 | L20: 0.039 | M20: 0.0645 | N20: 0.093 | O20: 0.19025 | P20: 0.313 | Q20: 0.46525 | R20: 0.64 | S20: 0.77875 | T20: 0.913 | U20: =U21+U24 -> 1.051 | V20: 1.186 | W20: 1.227 | X20: 1.246 | Y20: 1.28 | Z20: 1.346 | AA20: 1.406 | AB20: 1.444 | AC20: 1.436 | AD20: 1.464 | AE20: 1.507 | AF20: 1.557 | AG20: 1.608 | AH20: 1.655 | AI20: 1.706 | AJ20: 1.743 | AK20: 1.803 | AL20: 1.842 | AM20: 1.888 | AN20: 1.952 | AO20: =AN20 -> 1.952 | AP20: 1.952 | AQ20: 1.952 | AR20: 1.952 | AS20: 1.952 | AT20: 1.952 | AU20: =AU21+AU23 -> 0 | AV20: 0 | AW20: 0 | AX20: 0 | AY20: 0 | AZ20: 0 | BA20: 0 | BB20: 0 | BC20: 0 | BD20: 0 | BE20: 0 | BF20: 0 | BG20: 0 | BH20: 0 | BI20: 0 | BJ20: 0 | BK20: 0 | BL20: 0 | BM20: 0
A21: Avião de passageiro | B21: 000 movimentos | E21: 0.063 | I21: =I22+I23 -> 0.063 | J21: 0.0315 | K21: 0.01725 | L21: 0.039 | M21: 0.0645 | N21: 0.093 | O21: 0.19025 | P21: 0.313 | Q21: 0.46525 | R21: 0.64 | S21: 0.767 | T21: 0.889 | U21: =U22+U23 -> 1.015 | V21: 1.138 | W21: 1.179 | X21: 1.196 | Y21: 1.229 | Z21: 1.294 | AA21: 1.353 | AB21: 1.389 | AC21: 1.379 | AD21: 1.406 | AE21: 1.448 | AF21: 1.496 | AG21: 1.546 | AH21: 1.591 | AI21: 1.641 | AJ21: 1.677 | AK21: 1.737 | AL21: 1.776 | AM21: 1.822 | AN21: 1.886 | AO21: =AN21 -> 1.886 | AP21: 1.886 | AQ21: 1.886 | AR21: 1.886 | AS21: 1.886 | AT21: 1.886 | AU21: 0 | AV21: 0 | AW21: 0 | AX21: 0 | AY21: 0 | AZ21: 0 | BA21: 0 | BB21: 0 | BC21: 0 | BD21: 0 | BE21: 0 | BF21: 0 | BG21: 0 | BH21: 0 | BI21: 0 | BJ21: 0 | BK21: 0 | BL21: 0 | BM21: 0
A22: Pouso Doméstico | B22: 000 movimentos | E22: 0.063 | I22: =(I114+I133*I111+I140*I112)/2/1000 -> 0.063 | J22: =(J114+J133*J111+J140*J112)/2/1000*J110 -> 0.0315 | K22: =(K114+K133*K111+K140*K112)/2/1000*K110 -> 0.01725 | L22: =(L114+L133*L111+L140*L112)/2/1000*L110 -> 0.039 | M22: =(M114+M133*M111+M140*M112)/2/1000*M110 -> 0.0645 | N22: 0.093 | O22: 0.19025 | P22: 0.313 | Q22: 0.46525 | R22: 0.64 | S22: 0.705 | T22: 0.752 | U22: 0.793 | V22: 0.828 | W22: 0.859 | X22: 0.85 | Y22: 0.871 | Z22: 0.926 | AA22: 0.971 | AB22: 0.987 | AC22: 0.971 | AD22: 0.988 | AE22: 1.018 | AF22: 1.05 | AG22: 1.094 | AH22: 1.131 | AI22: 1.169 | AJ22: 1.195 | AK22: 1.253 | AL22: 1.286 | AM22: 1.316 | AN22: 1.378 | AO22: =AN22 -> 1.378 | AP22: 1.378 | AQ22: 1.378 | AR22: 1.378 | AS22: 1.378 | AT22: 1.378 | AU22: =(AU114+AU133*AU111+AU140*AU112)/2/1000 -> 0 | AV22: 0 | AW22: 0 | AX22: 0 | AY22: 0 | AZ22: 0 | BA22: 0 | BB22: 0 | BC22: 0 | BD22: 0 | BE22: 0 | BF22: 0 | BG22: 0 | BH22: 0 | BI22: 0 | BJ22: 0 | BK22: 0 | BL22: 0 | BM22: 0
A23: Pouso Internacional | B23: 000 movimentos | E23: 0 | I23: =(I141*I112)/2/1000 -> 0 | J23: =(J141*J112)/2/1000*J110 -> 0 | K23: =(K141*K112)/2/1000*K110 -> 0 | L23: 0 | M23: 0 | N23: 0 | O23: 0 | P23: 0 | Q23: 0 | R23: 0 | S23: 0.062 | T23: 0.137 | U23: 0.222 | V23: 0.31 | W23: 0.32 | X23: 0.346 | Y23: 0.358 | Z23: 0.368 | AA23: 0.382 | AB23: 0.402 | AC23: 0.408 | AD23: 0.418 | AE23: 0.43 | AF23: 0.446 | AG23: 0.452 | AH23: 0.46 | AI23: 0.472 | AJ23: 0.482 | AK23: 0.484 | AL23: 0.49 | AM23: 0.506 | AN23: 0.508 | AO23: 0.508 | AP23: 0.508 | AQ23: 0.508 | AR23: 0.508 | AS23: 0.508 | AT23: 0.508 | AU23: =(AU141*AU112)/2/1000 -> 0 | AV23: 0 | AW23: 0 | AX23: 0 | AY23: 0 | AZ23: 0 | BA23: 0 | BB23: 0 | BC23: 0 | BD23: 0 | BE23: 0 | BF23: 0 | BG23: 0 | BH23: 0 | BI23: 0 | BJ23: 0 | BK23: 0 | BL23: 0 | BM23: 0
A24: Avião cargueiro | B24: 000 movimentos | E24: 0 | I24: =I25+I26 -> 0 | J24: 0 | K24: 0 | L24: 0 | M24: 0 | N24: 0 | O24: 0 | P24: 0 | Q24: 0 | R24: 0 | S24: 0.01175 | T24: 0.024 | U24: 0.036 | V24: 0.048 | W24: 0.048 | X24: 0.05 | Y24: 0.051 | Z24: 0.052 | AA24: 0.053 | AB24: 0.055 | AC24: 0.057 | AD24: 0.058 | AE24: 0.059 | AF24: 0.061 | AG24: 0.062 | AH24: 0.064 | AI24: 0.065 | AJ24: 0.066 | AK24: 0.066 | AL24: 0.066 | AM24: 0.066 | AN24: 0.066 | AO24: =AN24 -> 0.066 | AP24: 0.066 | AQ24: 0.066 | AR24: 0.066 | AS24: 0.066 | AT24: 0.066 | AU24: 0 | AV24: 0 | AW24: 0 | AX24: 0 | AY24: 0 | AZ24: 0 | BA24: 0 | BB24: 0 | BC24: 0 | BD24: 0 | BE24: 0 | BF24: 0 | BG24: 0 | BH24: 0 | BI24: 0 | BJ24: 0 | BK24: 0 | BL24: 0 | BM24: 0
A25: Pouso Doméstico | B25: 000 movimentos | E25: 0 | I25: =(I139*I112)/2/1000 -> 0 | J25: =(J139*J112)/2/1000*J110 -> 0 | K25: =(K139*K112)/2/1000*K110 -> 0 | L25: 0 | M25: 0 | N25: 0 | O25: 0 | P25: 0 | Q25: 0 | R25: 0 | S25: 0.01175 | T25: 0.024 | U25: 0.036 | V25: 0.048 | W25: 0.048 | X25: 0.05 | Y25: 0.051 | Z25: 0.052 | AA25: 0.053 | AB25: 0.055 | AC25: 0.057 | AD25: 0.058 | AE25: 0.059 | AF25: 0.061 | AG25: 0.062 | AH25: 0.064 | AI25: 0.065 | AJ25: 0.066 | AK25: 0.066 | AL25: 0.066 | AM25: 0.066 | AN25: 0.066 | AO25: =AN25 -> 0.066 | AP25: 0.066 | AQ25: 0.066 | AR25: 0.066 | AS25: 0.066 | AT25: 0.066 | AU25: =(AU139*AU112)/2/1000 -> 0 | AV25: 0 | AW25: 0 | AX25: 0 | AY25: 0 | AZ25: 0 | BA25: 0 | BB25: 0 | BC25: 0 | BD25: 0 | BE25: 0 | BF25: 0 | BG25: 0 | BH25: 0 | BI25: 0 | BJ25: 0 | BK25: 0 | BL25: 0 | BM25: 0
A26: Pouso Internacional | B26: 000 movimentos | E26: 0 | I26: 0 | J26: 0 | K26: 0 | L26: 0 | M26: 0 | N26: 0 | O26: 0 | P26: 0 | Q26: 0 | R26: 0 | S26: 0 | T26: 0 | U26: 0 | V26: 0 | W26: 0 | X26: 0 | Y26: 0 | Z26: 0 | AA26: 0 | AB26: 0 | AC26: 0 | AD26: 0 | AE26: 0 | AF26: 0 | AG26: 0 | AH26: 0 | AI26: 0 | AJ26: 0 | AK26: 0 | AL26: 0 | AM26: 0 | AN26: 0 | AO26: =AN26 -> 0 | AP26: 0 | AQ26: 0 | AR26: 0 | AS26: 0 | AT26: 0 | AU26: 0 | AV26: 0 | AW26: 0 | AX26: 0 | AY26: 0 | AZ26: 0 | BA26: 0 | BB26: 0 | BC26: 0 | BD26: 0 | BE26: 0 | BF26: 0 | BG26: 0 | BH26: 0 | BI26: 0 | BJ26: 0 | BK26: 0 | BL26: 0 | BM26: 0
A27: Decolagem | B27: 000 movimentos | E27: 0.063 | I27: =I28+I31 -> 0.063 | J27: 0.0315 | K27: 0.01725 | L27: 0.039 | M27: 0.0645 | N27: 0.093 | O27: 0.19025 | P27: 0.313 | Q27: 0.46525 | R27: 0.64 | S27: 0.77875 | T27: 0.913 | U27: 1.051 | V27: 1.186 | W27: 1.227 | X27: 1.246 | Y27: 1.28 | Z27: 1.346 | AA27: 1.406 | AB27: 1.444 | AC27: 1.436 | AD27: 1.464 | AE27: 1.507 | AF27: 1.557 | AG27: 1.608 | AH27: 1.655 | AI27: 1.706 | AJ27: 1.743 | AK27: 1.803 | AL27: 1.842 | AM27: 1.888 | AN27: 1.952 | AO27: =AN27 -> 1.952 | AP27: 1.952 | AQ27: 1.952 | AR27: 1.952 | AS27: 1.952 | AT27: 1.952 | AU27: 0 | AV27: 0 | AW27: 0 | AX27: 0 | AY27: 0 | AZ27: 0 | BA27: 0 | BB27: 0 | BC27: 0 | BD27: 0 | BE27: 0 | BF27: 0 | BG27: 0 | BH27: 0 | BI27: 0 | BJ27: 0 | BK27: 0 | BL27: 0 | BM27: 0
A28: Avião de passageiro | B28: 000 movimentos | E28: 0.063 | I28: =I29+I30 -> 0.063 | J28: 0.0315 | K28: 0.01725 | L28: 0.039 | M28: 0.0645 | N28: 0.093 | O28: 0.19025 | P28: 0.313 | Q28: 0.46525 | R28: 0.64 | S28: 0.767 | T28: 0.889 | U28: 1.015 | V28: 1.138 | W28: 1.179 | X28: 1.196 | Y28: 1.229 | Z28: 1.294 | AA28: 1.353 | AB28: 1.389 | AC28: 1.379 | AD28: 1.406 | AE28: 1.448 | AF28: 1.496 | AG28: 1.546 | AH28: 1.591 | AI28: 1.641 | AJ28: 1.677 | AK28: 1.737 | AL28: 1.776 | AM28: 1.822 | AN28: 1.886 | AO28: =AN28 -> 1.886 | AP28: 1.886 | AQ28: 1.886 | AR28: 1.886 | AS28: 1.886 | AT28: 1.886 | AU28: 0 | AV28: 0 | AW28: 0 | AX28: 0 | AY28: 0 | AZ28: 0 | BA28: 0 | BB28: 0 | BC28: 0 | BD28: 0 | BE28: 0 | BF28: 0 | BG28: 0 | BH28: 0 | BI28: 0 | BJ28: 0 | BK28: 0 | BL28: 0 | BM28: 0
A29: Decolagem Doméstico | B29: 000 movimentos | E29: 0.063 | I29: =I22 -> 0.063 | J29: =J22 -> 0.0315 | K29: 0.01725 | L29: 0.039 | M29: 0.0645 | N29: 0.093 | O29: 0.19025 | P29: 0.313 | Q29: 0.46525 | R29: 0.64 | S29: 0.705 | T29: 0.752 | U29: 0.793 | V29: 0.828 | W29: 0.859 | X29: 0.85 | Y29: 0.871 | Z29: 0.926 | AA29: 0.971 | AB29: 0.987 | AC29: 0.971 | AD29: 0.988 | AE29: 1.018 | AF29: 1.05 | AG29: 1.094 | AH29: 1.131 | AI29: 1.169 | AJ29: 1.195 | AK29: 1.253 | AL29: 1.286 | AM29: 1.316 | AN29: =AN22 -> 1.378 | AO29: =AN29 -> 1.378 | AP29: 1.378 | AQ29: 1.378 | AR29: 1.378 | AS29: 1.378 | AT29: 1.378 | AU29: =AU22 -> 0 | AV29: 0 | AW29: 0 | AX29: 0 | AY29: 0 | AZ29: 0 | BA29: 0 | BB29: 0 | BC29: 0 | BD29: 0 | BE29: 0 | BF29: 0 | BG29: 0 | BH29: 0 | BI29: 0 | BJ29: 0 | BK29: 0 | BL29: 0 | BM29: 0
A30: Decolagem Internacional | B30: 000 movimentos | E30: 0 | I30: =I23 -> 0 | J30: =J23 -> 0 | K30: 0 | L30: 0 | M30: 0 | N30: 0 | O30: 0 | P30: 0 | Q30: 0 | R30: 0 | S30: 0.062 | T30: 0.137 | U30: 0.222 | V30: 0.31 | W30: 0.32 | X30: 0.346 | Y30: 0.358 | Z30: 0.368 | AA30: 0.382 | AB30: 0.402 | AC30: 0.408 | AD30: 0.418 | AE30: 0.43 | AF30: 0.446 | AG30: 0.452 | AH30: 0.46 | AI30: 0.472 | AJ30: 0.482 | AK30: 0.484 | AL30: 0.49 | AM30: 0.506 | AN30: 0.508 | AO30: =AN30 -> 0.508 | AP30: 0.508 | AQ30: 0.508 | AR30: 0.508 | AS30: 0.508 | AT30: 0.508 | AU30: =AU23 -> 0 | AV30: 0 | AW30: 0 | AX30: 0 | AY30: 0 | AZ30: 0 | BA30: 0 | BB30: 0 | BC30: 0 | BD30: 0 | BE30: 0 | BF30: 0 | BG30: 0 | BH30: 0 | BI30: 0 | BJ30: 0 | BK30: 0 | BL30: 0 | BM30: 0
A31: Avião cargueiro | B31: 000 movimentos | E31: 0 | I31: =I32+I33 -> 0 | J31: 0 | K31: 0 | L31: 0 | M31: 0 | N31: 0 | O31: 0 | P31: 0 | Q31: 0 | R31: 0 | S31: 0.01175 | T31: 0.024 | U31: 0.036 | V31: 0.048 | W31: 0.048 | X31: 0.05 | Y31: 0.051 | Z31: 0.052 | AA31: 0.053 | AB31: 0.055 | AC31: 0.057 | AD31: 0.058 | AE31: 0.059 | AF31: 0.061 | AG31: 0.062 | AH31: 0.064 | AI31: 0.065 | AJ31: 0.066 | AK31: 0.066 | AL31: 0.066 | AM31: 0.066 | AN31: 0.066 | AO31: =AN31 -> 0.066 | AP31: 0.066 | AQ31: 0.066 | AR31: 0.066 | AS31: 0.066 | AT31: 0.066 | AU31: 0 | AV31: 0 | AW31: 0 | AX31: 0 | AY31: 0 | AZ31: 0 | BA31: 0 | BB31: 0 | BC31: 0 | BD31: 0 | BE31: 0 | BF31: 0 | BG31: 0 | BH31: 0 | BI31: 0 | BJ31: 0 | BK31: 0 | BL31: 0 | BM31: 0
A32: Decolagem Doméstico | B32: 000 movimentos | E32: 0 | I32: 0 | J32: 0 | K32: 0 | L32: 0 | M32: 0 | N32: 0 | O32: 0 | P32: 0 | Q32: 0 | R32: 0 | S32: 0 | T32: 0 | U32: 0 | V32: 0 | W32: 0 | X32: 0 | Y32: 0 | Z32: 0 | AA32: 0 | AB32: 0 | AC32: 0 | AD32: 0 | AE32: 0 | AF32: 0 | AG32: 0 | AH32: 0 | AI32: 0 | AJ32: 0 | AK32: 0 | AL32: 0 | AM32: 0 | AN32: 0 | AO32: =AN32 -> 0 | AP32: 0 | AQ32: 0 | AR32: 0 | AS32: 0 | AT32: 0 | AU32: 0 | AV32: 0 | AW32: 0 | AX32: 0 | AY32: 0 | AZ32: 0 | BA32: 0 | BB32: 0 | BC32: 0 | BD32: 0 | BE32: 0 | BF32: 0 | BG32: 0 | BH32: 0 | BI32: 0 | BJ32: 0 | BK32: 0 | BL32: 0 | BM32: 0
A33: Decolagem Internacional | B33: 000 movimentos | E33: 0 | I33: =I25 -> 0 | J33: =J25 -> 0 | K33: =K25 -> 0 | L33: 0 | M33: 0 | N33: 0 | O33: 0 | P33: 0 | Q33: 0 | R33: 0 | S33: 0.01175 | T33: 0.024 | U33: 0.036 | V33: 0.048 | W33: 0.048 | X33: 0.05 | Y33: 0.051 | Z33: 0.052 | AA33: 0.053 | AB33: 0.055 | AC33: 0.057 | AD33: 0.058 | AE33: 0.059 | AF33: 0.061 | AG33: 0.062 | AH33: =AH25 -> 0.064 | AI33: 0.065 | AJ33: 0.066 | AK33: 0.066 | AL33: 0.066 | AM33: 0.066 | AN33: 0.066 | AO33: =AN33 -> 0.066 | AP33: 0.066 | AQ33: 0.066 | AR33: 0.066 | AS33: 0.066 | AT33: 0.066 | AU33: 0 | AV33: 0 | AW33: 0 | AX33: 0 | AY33: 0 | AZ33: 0 | BA33: 0 | BB33: 0 | BC33: 0 | BD33: 0 | BE33: 0 | BF33: 0 | BG33: 0 | BH33: 0 | BI33: 0 | BJ33: 0 | BK33: 0 | BL33: 0 | BM33: 0
A34: Aviação Geral | B34: 000 movimentos | E34: 1.447 | I34: =I35+I47+I59+I71 -> 1.447 | J34: =J35+J47+J59+J71 -> 0.7235 | K34: =K35+K47+K59+K71 -> 0.36725 | L34: =L35+L47+L59+L71 -> 0.7435 | M34: 1.128 | N34: 1.519 | O34: 1.804706897 | P34: 2.178117241 | Q34: 2.642231034 | R34: 3.195048276 | S34: 4.178841379 | T34: 5.165931034 | U34: 6.327817241 | V34: 7.436 | W34: 7.701 | X34: 7.976 | Y34: 8.43 | Z34: 8.781 | AA34: 9.133 | AB34: 9.445 | AC34: 9.771 | AD34: 10.094 | AE34: 10.417 | AF34: 10.75 | AG34: 11.074 | AH34: 11.408 | AI34: 11.726 | AJ34: 12.047 | AK34: 12.37 | AL34: 12.697 | AM34: 13.026 | AN34: 13.422 | AO34: =AN34 -> 13.422 | AP34: 13.422 | AQ34: 13.422 | AR34: 13.422 | AS34: 13.422 | AT34: 13.422 | AU34: 0 | AV34: 0 | AW34: 0 | AX34: 0 | AY34: 0 | AZ34: 0 | BA34: 0 | BB34: 0 | BC34: 0 | BD34: 0 | BE34: 0 | BF34: 0 | BG34: 0 | BH34: 0 | BI34: 0 | BJ34: 0 | BK34: 0 | BL34: 0 | BM34: 0
A35: Pouso Doméstico por PMD | B35: 000 movimentos | E35: 0.7235 | I35: =SUM(I36:I46) -> 0.7235 | J35: 0.36175 | K35: 0.183625 | L35: 0.37175 | M35: 0.564 | N35: 0.7595 | O35: 0.9023534483 | P35: 1.089058621 | Q35: 1.321115517 | R35: 1.597524138 | S35: 2.08942069 | T35: 2.582965517 | U35: 3.163908621 | V35: 3.718 | W35: 3.8505 | X35: 3.988 | Y35: 4.215 | Z35: 4.3905 | AA35: 4.5665 | AB35: 4.7225 | AC35: 4.8855 | AD35: 5.047 | AE35: 5.2085 | AF35: 5.375 | AG35: 5.537 | AH35: 5.704 | AI35: 5.863 | AJ35: 6.0235 | AK35: 6.185 | AL35: 6.3485 | AM35: 6.513 | AN35: 6.711 | AO35: =AN35 -> 6.711 | AP35: 6.711 | AQ35: 6.711 | AR35: 6.711 | AS35: 6.711 | AT35: 6.711 | AU35: 0 | AV35: 0 | AW35: 0 | AX35: 0 | AY35: 0 | AZ35: 0 | BA35: 0 | BB35: 0 | BC35: 0 | BD35: 0 | BE35: 0 | BF35: 0 | BG35: 0 | BH35: 0 | BI35: 0 | BJ35: 0 | BK35: 0 | BL35: 0 | BM35: 0
A36: Até 1 | B36: 000 movimentos | E36: 0 | AO36: =AN36 -> 0 | AP36: 0 | AQ36: 0 | AR36: 0 | AS36: 0 | AT36: 0 | AU36: 0 | AV36: 0 | AW36: 0 | AX36: 0 | AY36: 0 | AZ36: 0 | BA36: 0 | BB36: 0 | BC36: 0 | BD36: 0 | BE36: 0 | BF36: 0 | BG36: 0 | BH36: 0 | BI36: 0 | BJ36: 0 | BK36: 0 | BL36: 0 | BM36: 0
A37: + de 1 até 2 | B37: 000 movimentos | E37: 0 | AO37: =AN37 -> 0 | AP37: 0 | AQ37: 0 | AR37: 0 | AS37: 0 | AT37: 0 | AU37: 0 | AV37: 0 | AW37: 0 | AX37: 0 | AY37: 0 | AZ37: 0 | BA37: 0 | BB37: 0 | BC37: 0 | BD37: 0 | BE37: 0 | BF37: 0 | BG37: 0 | BH37: 0 | BI37: 0 | BJ37: 0 | BK37: 0 | BL37: 0 | BM37: 0
A38: + de 2 até 4 | B38: 000 movimentos | E38: 0 | AO38: =AN38 -> 0 | AP38: 0 | AQ38: 0 | AR38: 0 | AS38: 0 | AT38: 0 | AU38: 0 | AV38: 0 | AW38: 0 | AX38: 0 | AY38: 0 | AZ38: 0 | BA38: 0 | BB38: 0 | BC38: 0 | BD38: 0 | BE38: 0 | BF38: 0 | BG38: 0 | BH38: 0 | BI38: 0 | BJ38: 0 | BK38: 0 | BL38: 0 | BM38: 0
A39: + de 4 até 6 | B39: 000 movimentos | E39: 0.7235 | I39: =(I115+I134*I111+I138*I112)/2/1000 -> 0.7235 | J39: =(J115+J134*J111+J138*J112)/2/1000*J110 -> 0.36175 | K39: =(K115+K134*K111+K138*K112)/2/1000*K110 -> 0.183625 | L39: 0.37175 | M39: 0.564 | N39: 0.7595 | O39: 0.9023534483 | P39: 1.089058621 | Q39: 1.321115517 | R39: 1.597524138 | S39: 2.08942069 | T39: 2.582965517 | U39: 3.163908621 | V39: 3.718 | W39: 3.8505 | X39: 3.988 | Y39: 4.215 | Z39: 4.3905 | AA39: 4.5665 | AB39: 4.7225 | AC39: 4.8855 | AD39: 5.047 | AE39: 5.2085 | AF39: 5.375 | AG39: 5.537 | AH39: 5.704 | AI39: 5.863 | AJ39: 6.0235 | AK39: 6.185 | AL39: 6.3485 | AM39: 6.513 | AN39: 6.711 | AO39: =AN39 -> 6.711 | AP39: 6.711 | AQ39: 6.711 | AR39: 6.711 | AS39: 6.711 | AT39: 6.711 | AU39: =(AU115+AU134*AU111+AU138*AU112)/2/1000 -> 0 | AV39: 0 | AW39: 0 | AX39: 0 | AY39: 0 | AZ39: 0 | BA39: 0 | BB39: 0 | BC39: 0 | BD39: 0 | BE39: 0 | BF39: 0 | BG39: 0 | BH39: 0 | BI39: 0 | BJ39: 0 | BK39: 0 | BL39: 0 | BM39: 0
A40: + de 6 até 12 | B40: 000 movimentos | E40: 0 | AO40: =AN40 -> 0 | AP40: 0 | AQ40: 0 | AR40: 0 | AS40: 0 | AT40: 0 | AU40: 0 | AV40: 0 | AW40: 0 | AX40: 0 | AY40: 0 | AZ40: 0 | BA40: 0 | BB40: 0 | BC40: 0 | BD40: 0 | BE40: 0 | BF40: 0 | BG40: 0 | BH40: 0 | BI40: 0 | BJ40: 0 | BK40: 0 | BL40: 0 | BM40: 0
A41: + de 12 até 24 | B41: 000 movimentos | E41: 0 | AO41: =AN41 -> 0 | AP41: 0 | AQ41: 0 | AR41: 0 | AS41: 0 | AT41: 0 | AU41: 0 | AV41: 0 | AW41: 0 | AX41: 0 | AY41: 0 | AZ41: 0 | BA41: 0 | BB41: 0 | BC41: 0 | BD41: 0 | BE41: 0 | BF41: 0 | BG41: 0 | BH41: 0 | BI41: 0 | BJ41: 0 | BK41: 0 | BL41: 0 | BM41: 0
A42: + de 24 até 48 | B42: 000 movimentos | E42: 0 | AO42: =AN42 -> 0 | AP42: 0 | AQ42: 0 | AR42: 0 | AS42: 0 | AT42: 0 | AU42: 0 | AV42: 0 | AW42: 0 | AX42: 0 | AY42: 0 | AZ42: 0 | BA42: 0 | BB42: 0 | BC42: 0 | BD42: 0 | BE42: 0 | BF42: 0 | BG42: 0 | BH42: 0 | BI42: 0 | BJ42: 0 | BK42: 0 | BL42: 0 | BM42: 0
A43: + de 48 até 100 | B43: 000 movimentos | E43: 0 | AO43: =AN43 -> 0 | AP43: 0 | AQ43: 0 | AR43: 0 | AS43: 0 | AT43: 0 | AU43: 0 | AV43: 0 | AW43: 0 | AX43: 0 | AY43: 0 | AZ43: 0 | BA43: 0 | BB43: 0 | BC43: 0 | BD43: 0 | BE43: 0 | BF43: 0 | BG43: 0 | BH43: 0 | BI43: 0 | BJ43: 0 | BK43: 0 | BL43: 0 | BM43: 0
A44: + de 100 até 200 | B44: 000 movimentos | E44: 0 | I44: 0 | J44: 0 | K44: 0 | L44: 0 | M44: 0 | N44: 0 | O44: 0 | P44: 0 | Q44: 0 | R44: 0 | S44: 0 | T44: 0 | U44: 0 | V44: 0 | W44: 0 | X44: 0 | Y44: 0 | Z44: 0 | AA44: 0 | AB44: 0 | AC44: 0 | AD44: 0 | AE44: 0 | AF44: 0 | AG44: 0 | AH44: 0 | AI44: 0 | AJ44: 0 | AK44: 0 | AL44: 0 | AM44: 0 | AN44: 0 | AO44: =AN44 -> 0 | AP44: 0 | AQ44: 0 | AR44: 0 | AS44: 0 | AT44: 0 | AU44: 0 | AV44: 0 | AW44: 0 | AX44: 0 | AY44: 0 | AZ44: 0 | BA44: 0 | BB44: 0 | BC44: 0 | BD44: 0 | BE44: 0 | BF44: 0 | BG44: 0 | BH44: 0 | BI44: 0 | BJ44: 0 | BK44: 0 | BL44: 0 | BM44: 0
A45: + de 200 até 300 | B45: 000 movimentos | E45: 0 | I45: 0 | J45: 0 | K45: 0 | L45: 0 | M45: 0 | N45: 0 | O45: 0 | P45: 0 | Q45: 0 | R45: 0 | S45: 0 | T45: 0 | U45: 0 | V45: 0 | W45: 0 | X45: 0 | Y45: 0 | Z45: 0 | AA45: 0 | AB45: 0 | AC45: 0 | AD45: 0 | AE45: 0 | AF45: 0 | AG45: 0 | AH45: 0 | AI45: 0 | AJ45: 0 | AK45: 0 | AL45: 0 | AM45: 0 | AN45: 0 | AO45: =AN45 -> 0 | AP45: 0 | AQ45: 0 | AR45: 0 | AS45: 0 | AT45: 0 | AU45: 0 | AV45: 0 | AW45: 0 | AX45: 0 | AY45: 0 | AZ45: 0 | BA45: 0 | BB45: 0 | BC45: 0 | BD45: 0 | BE45: 0 | BF45: 0 | BG45: 0 | BH45: 0 | BI45: 0 | BJ45: 0 | BK45: 0 | BL45: 0 | BM45: 0
A46: + de 300 | B46: 000 movimentos | E46: 0 | I46: 0 | J46: 0 | K46: 0 | L46: 0 | M46: 0 | N46: 0 | O46: 0 | P46: 0 | Q46: 0 | R46: 0 | S46: 0 | T46: 0 | U46: 0 | V46: 0 | W46: 0 | X46: 0 | Y46: 0 | Z46: 0 | AA46: 0 | AB46: 0 | AC46: 0 | AD46: 0 | AE46: 0 | AF46: 0 | AG46: 0 | AH46: 0 | AI46: 0 | AJ46: 0 | AK46: 0 | AL46: 0 | AM46: 0 | AN46: 0 | AO46: =AN46 -> 0 | AP46: 0 | AQ46: 0 | AR46: 0 | AS46: 0 | AT46: 0 | AU46: 0 | AV46: 0 | AW46: 0 | AX46: 0 | AY46: 0 | AZ46: 0 | BA46: 0 | BB46: 0 | BC46: 0 | BD46: 0 | BE46: 0 | BF46: 0 | BG46: 0 | BH46: 0 | BI46: 0 | BJ46: 0 | BK46: 0 | BL46: 0 | BM46: 0
A47: Decolagem Doméstico por PMD | B47: 000 movimentos | E47: 0.7235 | I47: =SUM(I48:I58) -> 0.7235 | J47: 0.36175 | K47: 0.183625 | L47: 0.37175 | M47: 0.564 | N47: 0.7595 | O47: 0.9023534483 | P47: 1.089058621 | Q47: 1.321115517 | R47: 1.597524138 | S47: 2.08942069 | T47: 2.582965517 | U47: 3.163908621 | V47: 3.718 | W47: 3.8505 | X47: 3.988 | Y47: 4.215 | Z47: 4.3905 | AA47: 4.5665 | AB47: 4.7225 | AC47: 4.8855 | AD47: 5.047 | AE47: 5.2085 | AF47: 5.375 | AG47: 5.537 | AH47: 5.704 | AI47: 5.863 | AJ47: 6.0235 | AK47: 6.185 | AL47: 6.3485 | AM47: 6.513 | AN47: =SUM(AN48:AN58) -> 6.711 | AO47: =AN47 -> 6.711 | AP47: 6.711 | AQ47: 6.711 | AR47: 6.711 | AS47: 6.711 | AT47: 6.711 | AU47: =SUM(AU48:AU58) -> 0 | AV47: 0 | AW47: 0 | AX47: 0 | AY47: 0 | AZ47: 0 | BA47: 0 | BB47: 0 | BC47: 0 | BD47: 0 | BE47: 0 | BF47: 0 | BG47: 0 | BH47: 0 | BI47: 0 | BJ47: 0 | BK47: 0 | BL47: 0 | BM47: 0
A48: Até 1 | B48: 000 movimentos | E48: 0 | AO48: =AN48 -> 0 | AP48: 0 | AQ48: 0 | AR48: 0 | AS48: 0 | AT48: 0 | BE48: 0 | BF48: 0 | BG48: 0 | BH48: 0 | BI48: 0 | BJ48: 0 | BK48: 0 | BL48: 0 | BM48: 0
A49: + de 1 até 2 | B49: 000 movimentos | E49: 0 | AO49: =AN49 -> 0 | AP49: 0 | AQ49: 0 | AR49: 0 | AS49: 0 | AT49: 0 | BE49: 0 | BF49: 0 | BG49: 0 | BH49: 0 | BI49: 0 | BJ49: 0 | BK49: 0 | BL49: 0 | BM49: 0
A50: + de 2 até 4 | B50: 000 movimentos | E50: 0 | AO50: =AN50 -> 0 | AP50: 0 | AQ50: 0 | AR50: 0 | AS50: 0 | AT50: 0 | BE50: 0 | BF50: 0 | BG50: 0 | BH50: 0 | BI50: 0 | BJ50: 0 | BK50: 0 | BL50: 0 | BM50: 0
A51: + de 4 até 6 | B51: 000 movimentos | E51: 0.7235 | I51: =I39 -> 0.7235 | J51: =J39 -> 0.36175 | K51: =K39 -> 0.183625 | L51: 0.37175 | M51: 0.564 | N51: 0.7595 | O51: 0.9023534483 | P51: 1.089058621 | Q51: 1.321115517 | R51: 1.597524138 | S51: 2.08942069 | T51: 2.582965517 | U51: 3.163908621 | V51: 3.718 | W51: 3.8505 | X51: 3.988 | Y51: 4.215 | Z51: 4.3905 | AA51: 4.5665 | AB51: 4.7225 | AC51: 4.8855 | AD51: 5.047 | AE51: 5.2085 | AF51: 5.375 | AG51: 5.537 | AH51: 5.704 | AI51: 5.863 | AJ51: 6.0235 | AK51: 6.185 | AL51: 6.3485 | AM51: 6.513 | AN51: 6.711 | AO51: =AN51 -> 6.711 | AP51: 6.711 | AQ51: 6.711 | AR51: 6.711 | AS51: 6.711 | AT51: 6.711 | AU51: 0 | AV51: 0 | AW51: 0 | AX51: 0 | AY51: 0 | AZ51: 0 | BE51: 0 | BF51: 0 | BG51: 0 | BH51: 0 | BI51: 0 | BJ51: 0 | BK51: 0 | BL51: 0 | BM51: 0
A52: + de 6 até 12 | B52: 000 movimentos | E52: 0 | AO52: =AN52 -> 0 | AP52: 0 | AQ52: 0 | AR52: 0 | AS52: 0 | AT52: 0 | BE52: 0 | BF52: 0 | BG52: 0 | BH52: 0 | BI52: 0 | BJ52: 0 | BK52: 0 | BL52: 0 | BM52: 0
A53: + de 12 até 24 | B53: 000 movimentos | E53: 0 | AO53: =AN53 -> 0 | AP53: 0 | AQ53: 0 | AR53: 0 | AS53: 0 | AT53: 0 | BE53: 0 | BF53: 0 | BG53: 0 | BH53: 0 | BI53: 0 | BJ53: 0 | BK53: 0 | BL53: 0 | BM53: 0
A54: + de 24 até 48 | B54: 000 movimentos | E54: 0 | AO54: =AN54 -> 0 | AP54: 0 | AQ54: 0 | AR54: 0 | AS54: 0 | AT54: 0 | BE54: 0 | BF54: 0 | BG54: 0 | BH54: 0 | BI54: 0 | BJ54: 0 | BK54: 0 | BL54: 0 | BM54: 0
A55: + de 48 até 100 | B55: 000 movimentos | E55: 0 | AO55: =AN55 -> 0 | AP55: 0 | AQ55: 0 | AR55: 0 | AS55: 0 | AT55: 0 | BE55: 0 | BF55: 0 | BG55: 0 | BH55: 0 | BI55: 0 | BJ55: 0 | BK55: 0 | BL55: 0 | BM55: 0
A56: + de 100 até 200 | B56: 000 movimentos | E56: 0 | I56: 0 | J56: 0 | K56: 0 | L56: 0 | M56: 0 | N56: 0 | O56: 0 | P56: 0 | Q56: 0 | R56: 0 | S56: 0 | T56: 0 | U56: 0 | V56: 0 | W56: 0 | X56: 0 | Y56: 0 | Z56: 0 | AA56: 0 | AB56: 0 | AC56: 0 | AD56: 0 | AE56: 0 | AF56: 0 | AG56: 0 | AH56: 0 | AI56: 0 | AJ56: 0 | AK56: 0 | AL56: 0 | AM56: 0 | AN56: 0 | AO56: =AN56 -> 0 | AP56: 0 | AQ56: 0 | AR56: 0 | AS56: 0 | AT56: 0 | AU56: 0 | AV56: 0 | AW56: 0 | AX56: 0 | AY56: 0 | AZ56: 0 | BA56: 0 | BB56: 0 | BC56: 0 | BD56: 0 | BE56: 0 | BF56: 0 | BG56: 0 | BH56: 0 | BI56: 0 | BJ56: 0 | BK56: 0 | BL56: 0 | BM56: 0
A57: + de 200 até 300 | B57: 000 movimentos | E57: 0 | I57: 0 | J57: 0 | K57: 0 | L57: 0 | M57: 0 | N57: 0 | O57: 0 | P57: 0 | Q57: 0 | R57: 0 | S57: 0 | T57: 0 | U57: 0 | V57: 0 | W57: 0 | X57: 0 | Y57: 0 | Z57: 0 | AA57: 0 | AB57: 0 | AC57: 0 | AD57: 0 | AE57: 0 | AF57: 0 | AG57: 0 | AH57: 0 | AI57: 0 | AJ57: 0 | AK57: 0 | AL57: 0 | AM57: 0 | AN57: 0 | AO57: =AN57 -> 0 | AP57: 0 | AQ57: 0 | AR57: 0 | AS57: 0 | AT57: 0 | AU57: 0 | AV57: 0 | AW57: 0 | AX57: 0 | AY57: 0 | AZ57: 0 | BA57: 0 | BB57: 0 | BC57: 0 | BD57: 0 | BE57: 0 | BF57: 0 | BG57: 0 | BH57: 0 | BI57: 0 | BJ57: 0 | BK57: 0 | BL57: 0 | BM57: 0
A58: + de 300 | B58: 000 movimentos | E58: 0 | I58: 0 | J58: 0 | K58: 0 | L58: 0 | M58: 0 | N58: 0 | O58: 0 | P58: 0 | Q58: 0 | R58: 0 | S58: 0 | T58: 0 | U58: 0 | V58: 0 | W58: 0 | X58: 0 | Y58: 0 | Z58: 0 | AA58: 0 | AB58: 0 | AC58: 0 | AD58: 0 | AE58: 0 | AF58: 0 | AG58: 0 | AH58: 0 | AI58: 0 | AJ58: 0 | AK58: 0 | AL58: 0 | AM58: 0 | AN58: 0 | AO58: =AN58 -> 0 | AP58: 0 | AQ58: 0 | AR58: 0 | AS58: 0 | AT58: 0 | AU58: 0 | AV58: 0 | AW58: 0 | AX58: 0 | AY58: 0 | AZ58: 0 | BA58: 0 | BB58: 0 | BC58: 0 | BD58: 0 | BE58: 0 | BF58: 0 | BG58: 0 | BH58: 0 | BI58: 0 | BJ58: 0 | BK58: 0 | BL58: 0 | BM58: 0
A59: Pouso Internacional por PMD | B59: 000 movimentos | E59: 0 | AO59: =AN59 -> 0 | AP59: 0 | AQ59: 0 | AR59: 0 | AS59: 0 | AT59: 0 | AU59: 0 | AV59: 0 | AW59: 0 | AX59: 0 | AY59: 0 | AZ59: 0 | BA59: 0 | BB59: 0 | BC59: 0 | BD59: 0 | BE59: 0 | BF59: 0 | BG59: 0 | BH59: 0 | BI59: 0 | BJ59: 0 | BK59: 0 | BL59: 0 | BM59: 0
A60: Até 1 | B60: 000 movimentos | E60: 0 | AO60: =AN60 -> 0 | AP60: 0 | AQ60: 0 | AR60: 0 | AS60: 0 | AT60: 0 | AU60: 0 | AV60: 0 | AW60: 0 | AX60: 0 | AY60: 0 | AZ60: 0 | BA60: 0 | BB60: 0 | BC60: 0 | BD60: 0 | BE60: 0 | BF60: 0 | BG60: 0 | BH60: 0 | BI60: 0 | BJ60: 0 | BK60: 0 | BL60: 0 | BM60: 0
A61: + de 1 até 2 | B61: 000 movimentos | E61: 0 | AO61: =AN61 -> 0 | AP61: 0 | AQ61: 0 | AR61: 0 | AS61: 0 | AT61: 0 | AU61: 0 | AV61: 0 | AW61: 0 | AX61: 0 | AY61: 0 | AZ61: 0 | BA61: 0 | BB61: 0 | BC61: 0 | BD61: 0 | BE61: 0 | BF61: 0 | BG61: 0 | BH61: 0 | BI61: 0 | BJ61: 0 | BK61: 0 | BL61: 0 | BM61: 0
A62: + de 2 até 4 | B62: 000 movimentos | E62: 0 | AO62: =AN62 -> 0 | AP62: 0 | AQ62: 0 | AR62: 0 | AS62: 0 | AT62: 0 | AU62: 0 | AV62: 0 | AW62: 0 | AX62: 0 | AY62: 0 | AZ62: 0 | BA62: 0 | BB62: 0 | BC62: 0 | BD62: 0 | BE62: 0 | BF62: 0 | BG62: 0 | BH62: 0 | BI62: 0 | BJ62: 0 | BK62: 0 | BL62: 0 | BM62: 0
A63: + de 4 até 6 | B63: 000 movimentos | E63: 0 | AO63: =AN63 -> 0 | AP63: 0 | AQ63: 0 | AR63: 0 | AS63: 0 | AT63: 0 | AU63: 0 | AV63: 0 | AW63: 0 | AX63: 0 | AY63: 0 | AZ63: 0 | BA63: 0 | BB63: 0 | BC63: 0 | BD63: 0 | BE63: 0 | BF63: 0 | BG63: 0 | BH63: 0 | BI63: 0 | BJ63: 0 | BK63: 0 | BL63: 0 | BM63: 0
A64: + de 6 até 12 | B64: 000 movimentos | E64: 0 | AO64: =AN64 -> 0 | AP64: 0 | AQ64: 0 | AR64: 0 | AS64: 0 | AT64: 0 | AU64: 0 | AV64: 0 | AW64: 0 | AX64: 0 | AY64: 0 | AZ64: 0 | BA64: 0 | BB64: 0 | BC64: 0 | BD64: 0 | BE64: 0 | BF64: 0 | BG64: 0 | BH64: 0 | BI64: 0 | BJ64: 0 | BK64: 0 | BL64: 0 | BM64: 0
A65: + de 12 até 24 | B65: 000 movimentos | E65: 0 | AO65: =AN65 -> 0 | AP65: 0 | AQ65: 0 | AR65: 0 | AS65: 0 | AT65: 0 | AU65: 0 | AV65: 0 | AW65: 0 | AX65: 0 | AY65: 0 | AZ65: 0 | BA65: 0 | BB65: 0 | BC65: 0 | BD65: 0 | BE65: 0 | BF65: 0 | BG65: 0 | BH65: 0 | BI65: 0 | BJ65: 0 | BK65: 0 | BL65: 0 | BM65: 0
A66: + de 24 até 48 | B66: 000 movimentos | E66: 0 | AO66: =AN66 -> 0 | AP66: 0 | AQ66: 0 | AR66: 0 | AS66: 0 | AT66: 0 | AU66: 0 | AV66: 0 | AW66: 0 | AX66: 0 | AY66: 0 | AZ66: 0 | BA66: 0 | BB66: 0 | BC66: 0 | BD66: 0 | BE66: 0 | BF66: 0 | BG66: 0 | BH66: 0 | BI66: 0 | BJ66: 0 | BK66: 0 | BL66: 0 | BM66: 0
A67: + de 48 até 100 | B67: 000 movimentos | E67: 0 | AO67: =AN67 -> 0 | AP67: 0 | AQ67: 0 | AR67: 0 | AS67: 0 | AT67: 0 | AU67: 0 | AV67: 0 | AW67: 0 | AX67: 0 | AY67: 0 | AZ67: 0 | BA67: 0 | BB67: 0 | BC67: 0 | BD67: 0 | BE67: 0 | BF67: 0 | BG67: 0 | BH67: 0 | BI67: 0 | BJ67: 0 | BK67: 0 | BL67: 0 | BM67: 0
A68: + de 100 até 200 | B68: 000 movimentos | E68: 0 | I68: 0 | J68: 0 | K68: 0 | L68: 0 | M68: 0 | N68: 0 | O68: 0 | P68: 0 | Q68: 0 | R68: 0 | S68: 0 | T68: 0 | U68: 0 | V68: 0 | W68: 0 | X68: 0 | Y68: 0 | Z68: 0 | AA68: 0 | AB68: 0 | AC68: 0 | AD68: 0 | AE68: 0 | AF68: 0 | AG68: 0 | AH68: 0 | AI68: 0 | AJ68: 0 | AK68: 0 | AL68: 0 | AM68: 0 | AN68: 0 | AO68: =AN68 -> 0 | AP68: 0 | AQ68: 0 | AR68: 0 | AS68: 0 | AT68: 0 | AU68: 0 | AV68: 0 | AW68: 0 | AX68: 0 | AY68: 0 | AZ68: 0 | BA68: 0 | BB68: 0 | BC68: 0 | BD68: 0 | BE68: 0 | BF68: 0 | BG68: 0 | BH68: 0 | BI68: 0 | BJ68: 0 | BK68: 0 | BL68: 0 | BM68: 0
A69: + de 200 até 300 | B69: 000 movimentos | E69: 0 | I69: 0 | J69: 0 | K69: 0 | L69: 0 | M69: 0 | N69: 0 | O69: 0 | P69: 0 | Q69: 0 | R69: 0 | S69: 0 | T69: 0 | U69: 0 | V69: 0 | W69: 0 | X69: 0 | Y69: 0 | Z69: 0 | AA69: 0 | AB69: 0 | AC69: 0 | AD69: 0 | AE69: 0 | AF69: 0 | AG69: 0 | AH69: 0 | AI69: 0 | AJ69: 0 | AK69: 0 | AL69: 0 | AM69: 0 | AN69: 0 | AO69: =AN69 -> 0 | AP69: 0 | AQ69: 0 | AR69: 0 | AS69: 0 | AT69: 0 | AU69: 0 | AV69: 0 | AW69: 0 | AX69: 0 | AY69: 0 | AZ69: 0 | BA69: 0 | BB69: 0 | BC69: 0 | BD69: 0 | BE69: 0 | BF69: 0 | BG69: 0 | BH69: 0 | BI69: 0 | BJ69: 0 | BK69: 0 | BL69: 0 | BM69: 0
A70: + de 300 | B70: 000 movimentos | E70: 0 | I70: 0 | J70: 0 | K70: 0 | L70: 0 | M70: 0 | N70: 0 | O70: 0 | P70: 0 | Q70: 0 | R70: 0 | S70: 0 | T70: 0 | U70: 0 | V70: 0 | W70: 0 | X70: 0 | Y70: 0 | Z70: 0 | AA70: 0 | AB70: 0 | AC70: 0 | AD70: 0 | AE70: 0 | AF70: 0 | AG70: 0 | AH70: 0 | AI70: 0 | AJ70: 0 | AK70: 0 | AL70: 0 | AM70: 0 | AN70: 0 | AO70: =AN70 -> 0 | AP70: 0 | AQ70: 0 | AR70: 0 | AS70: 0 | AT70: 0 | AU70: 0 | AV70: 0 | AW70: 0 | AX70: 0 | AY70: 0 | AZ70: 0 | BA70: 0 | BB70: 0 | BC70: 0 | BD70: 0 | BE70: 0 | BF70: 0 | BG70: 0 | BH70: 0 | BI70: 0 | BJ70: 0 | BK70: 0 | BL70: 0 | BM70: 0
A71: Decolagem Internacional por PMD | B71: 000 movimentos | E71: 0 | AO71: =AN71 -> 0 | AP71: 0 | AQ71: 0 | AR71: 0 | AS71: 0 | AT71: 0 | AU71: 0 | AV71: 0 | AW71: 0 | AX71: 0 | AY71: 0 | AZ71: 0 | BA71: 0 | BB71: 0 | BC71: 0 | BD71: 0 | BE71: 0 | BF71: 0 | BG71: 0 | BH71: 0 | BI71: 0 | BJ71: 0 | BK71: 0 | BL71: 0 | BM71: 0
A72: Até 1 | B72: 000 movimentos | E72: 0 | AO72: =AN72 -> 0 | AP72: 0 | AQ72: 0 | AR72: 0 | AS72: 0 | AT72: 0 | AU72: 0 | AV72: 0 | AW72: 0 | AX72: 0 | AY72: 0 | AZ72: 0 | BA72: 0 | BB72: 0 | BC72: 0 | BD72: 0 | BE72: 0 | BF72: 0 | BG72: 0 | BH72: 0 | BI72: 0 | BJ72: 0 | BK72: 0 | BL72: 0 | BM72: 0
A73: + de 1 até 2 | B73: 000 movimentos | E73: 0 | AO73: =AN73 -> 0 | AP73: 0 | AQ73: 0 | AR73: 0 | AS73: 0 | AT73: 0 | AU73: 0 | AV73: 0 | AW73: 0 | AX73: 0 | AY73: 0 | AZ73: 0 | BA73: 0 | BB73: 0 | BC73: 0 | BD73: 0 | BE73: 0 | BF73: 0 | BG73: 0 | BH73: 0 | BI73: 0 | BJ73: 0 | BK73: 0 | BL73: 0 | BM73: 0
A74: + de 2 até 4 | B74: 000 movimentos | E74: 0 | AO74: =AN74 -> 0 | AP74: 0 | AQ74: 0 | AR74: 0 | AS74: 0 | AT74: 0 | AU74: 0 | AV74: 0 | AW74: 0 | AX74: 0 | AY74: 0 | AZ74: 0 | BA74: 0 | BB74: 0 | BC74: 0 | BD74: 0 | BE74: 0 | BF74: 0 | BG74: 0 | BH74: 0 | BI74: 0 | BJ74: 0 | BK74: 0 | BL74: 0 | BM74: 0
A75: + de 4 até 6 | B75: 000 movimentos | E75: 0 | AO75: =AN75 -> 0 | AP75: 0 | AQ75: 0 | AR75: 0 | AS75: 0 | AT75: 0 | AU75: 0 | AV75: 0 | AW75: 0 | AX75: 0 | AY75: 0 | AZ75: 0 | BA75: 0 | BB75: 0 | BC75: 0 | BD75: 0 | BE75: 0 | BF75: 0 | BG75: 0 | BH75: 0 | BI75: 0 | BJ75: 0 | BK75: 0 | BL75: 0 | BM75: 0
A76: + de 6 até 12 | B76: 000 movimentos | E76: 0 | AO76: =AN76 -> 0 | AP76: 0 | AQ76: 0 | AR76: 0 | AS76: 0 | AT76: 0 | AU76: 0 | AV76: 0 | AW76: 0 | AX76: 0 | AY76: 0 | AZ76: 0 | BA76: 0 | BB76: 0 | BC76: 0 | BD76: 0 | BE76: 0 | BF76: 0 | BG76: 0 | BH76: 0 | BI76: 0 | BJ76: 0 | BK76: 0 | BL76: 0 | BM76: 0
A77: + de 12 até 24 | B77: 000 movimentos | E77: 0 | AO77: =AN77 -> 0 | AP77: 0 | AQ77: 0 | AR77: 0 | AS77: 0 | AT77: 0 | AU77: 0 | AV77: 0 | AW77: 0 | AX77: 0 | AY77: 0 | AZ77: 0 | BA77: 0 | BB77: 0 | BC77: 0 | BD77: 0 | BE77: 0 | BF77: 0 | BG77: 0 | BH77: 0 | BI77: 0 | BJ77: 0 | BK77: 0 | BL77: 0 | BM77: 0
A78: + de 24 até 48 | B78: 000 movimentos | E78: 0 | AO78: =AN78 -> 0 | AP78: 0 | AQ78: 0 | AR78: 0 | AS78: 0 | AT78: 0 | AU78: 0 | AV78: 0 | AW78: 0 | AX78: 0 | AY78: 0 | AZ78: 0 | BA78: 0 | BB78: 0 | BC78: 0 | BD78: 0 | BE78: 0 | BF78: 0 | BG78: 0 | BH78: 0 | BI78: 0 | BJ78: 0 | BK78: 0 | BL78: 0 | BM78: 0
A79: + de 48 até 100 | B79: 000 movimentos | E79: 0 | AO79: =AN79 -> 0 | AP79: 0 | AQ79: 0 | AR79: 0 | AS79: 0 | AT79: 0 | AU79: 0 | AV79: 0 | AW79: 0 | AX79: 0 | AY79: 0 | AZ79: 0 | BA79: 0 | BB79: 0 | BC79: 0 | BD79: 0 | BE79: 0 | BF79: 0 | BG79: 0 | BH79: 0 | BI79: 0 | BJ79: 0 | BK79: 0 | BL79: 0 | BM79: 0
A80: + de 100 até 200 | B80: 000 movimentos | E80: 0 | I80: 0 | J80: 0 | K80: 0 | L80: 0 | M80: 0 | N80: 0 | O80: 0 | P80: 0 | Q80: 0 | R80: 0 | S80: 0 | T80: 0 | U80: 0 | V80: 0 | W80: 0 | X80: 0 | Y80: 0 | Z80: 0 | AA80: 0 | AB80: 0 | AC80: 0 | AD80: 0 | AE80: 0 | AF80: 0 | AG80: 0 | AH80: 0 | AI80: 0 | AJ80: 0 | AK80: 0 | AL80: 0 | AM80: 0 | AN80: 0 | AO80: =AN80 -> 0 | AP80: 0 | AQ80: 0 | AR80: 0 | AS80: 0 | AT80: 0 | AU80: 0 | AV80: 0 | AW80: 0 | AX80: 0 | AY80: 0 | AZ80: 0 | BA80: 0 | BB80: 0 | BC80: 0 | BD80: 0 | BE80: 0 | BF80: 0 | BG80: 0 | BH80: 0 | BI80: 0 | BJ80: 0 | BK80: 0 | BL80: 0 | BM80: 0
A81: + de 200 até 300 | B81: 000 movimentos | E81: 0 | I81: 0 | J81: 0 | K81: 0 | L81: 0 | M81: 0 | N81: 0 | O81: 0 | P81: 0 | Q81: 0 | R81: 0 | S81: 0 | T81: 0 | U81: 0 | V81: 0 | W81: 0 | X81: 0 | Y81: 0 | Z81: 0 | AA81: 0 | AB81: 0 | AC81: 0 | AD81: 0 | AE81: 0 | AF81: 0 | AG81: 0 | AH81: 0 | AI81: 0 | AJ81: 0 | AK81: 0 | AL81: 0 | AM81: 0 | AN81: 0 | AO81: =AN81 -> 0 | AP81: 0 | AQ81: 0 | AR81: 0 | AS81: 0 | AT81: 0 | AU81: 0 | AV81: 0 | AW81: 0 | AX81: 0 | AY81: 0 | AZ81: 0 | BA81: 0 | BB81: 0 | BC81: 0 | BD81: 0 | BE81: 0 | BF81: 0 | BG81: 0 | BH81: 0 | BI81: 0 | BJ81: 0 | BK81: 0 | BL81: 0 | BM81: 0
A82: + de 300 | B82: 000 movimentos | E82: =I82 -> 0 | I82: 0 | J82: 0 | K82: 0 | L82: 0 | M82: 0 | N82: 0 | O82: 0 | P82: 0 | Q82: 0 | R82: 0 | S82: 0 | T82: 0 | U82: 0 | V82: 0 | W82: 0 | X82: 0 | Y82: 0 | Z82: 0 | AA82: 0 | AB82: 0 | AC82: 0 | AD82: 0 | AE82: 0 | AF82: 0 | AG82: 0 | AH82: 0 | AI82: 0 | AJ82: 0 | AK82: 0 | AL82: 0 | AM82: 0 | AN82: 0 | AO82: =AN82 -> 0 | AP82: 0 | AQ82: 0 | AR82: 0 | AS82: 0 | AT82: 0 | AU82: 0 | AV82: 0 | AW82: 0 | AX82: 0 | AY82: 0 | AZ82: 0 | BA82: 0 | BB82: 0 | BC82: 0 | BD82: 0 | BE82: 0 | BF82: 0 | BG82: 0 | BH82: 0 | BI82: 0 | BJ82: 0 | BK82: 0 | BL82: 0 | BM82: 0
AO83: =AN83 -> 0 | AP83: 0 | AQ83: 0 | AR83: 0 | AS83: 0 | AT83: 0
A84: Peso Máximo de Decolagem (total) | B84: 000 t | AO84: =AN84 -> 0 | AP84: 0 | AQ84: 0 | AR84: 0 | AS84: 0 | AT84: 0
A85: Avião de passageiro | B85: 000 t | E85: =I85 -> 3.19977 | I85: =I86+I87 -> 3.19977 | J85: 0.7999425 | K85: 0.219031875 | L85: 0.990405 | M85: 2.45696625 | N85: 4.72347 | O85: 9.6627975 | P85: 15.89727 | Q85: 23.6300475 | R85: 32.5056 | S85: 53.8747125 | T85: 78.01827 | U85: 104.66229 | V85: 131.84694 | W85: 136.23933 | X85: 143.21034 | Y85: 147.7092 | Z85: 153.37134 | AA85: 159.65274 | AB85: 166.20276 | AC85: 167.18244 | AD85: 170.91456 | AE85: 175.87053 | AF85: 182.10603 | AG85: 186.08232 | AH85: 190.31745 | AI85: 195.67974 | AJ85: 199.86897 | AK85: 203.37837 | AL85: 206.74518 | AM85: 212.77752 | AN85: 216.49008 | AO85: =AN85 -> 216.49008 | AP85: 216.49008 | AQ85: 216.49008 | AR85: 216.49008 | AS85: 216.49008 | AT85: 216.49008 | AU85: 0 | AV85: 0 | AW85: 0 | AX85: 0 | AY85: 0 | AZ85: 0 | BA85: 0 | BB85: 0 | BC85: 0 | BD85: 0 | BE85: 0 | BF85: 0 | BG85: 0 | BH85: 0 | BI85: 0 | BJ85: 0 | BK85: 0 | BL85: 0 | BM85: 0
A86: Doméstico | B86: 000 t | E86: 3.19977 | I86: =I20*50790/1000 -> 3.19977 | J86: =J20*50790/1000*J110 -> 0.7999425 | K86: =K20*50790/1000*K110 -> 0.219031875 | L86: =L20*50790/1000*L110 -> 0.990405 | M86: 2.45696625 | N86: 4.72347 | O86: 9.6627975 | P86: 15.89727 | Q86: 23.6300475 | R86: 32.5056 | S86: 39.5527125 | T86: 46.37127 | U86: 53.38029 | V86: 60.23694 | W86: 62.31933 | X86: 63.28434 | Y86: 65.0112 | Z86: 68.36334 | AA86: 71.41074 | AB86: 73.34076 | AC86: 72.93444 | AD86: 74.35656 | AE86: 76.54053 | AF86: 79.08003 | AG86: 81.67032 | AH86: 84.05745 | AI86: 86.64774 | AJ86: 88.52697 | AK86: 91.57437 | AL86: 93.55518 | AM86: 95.89152 | AN86: 99.14208 | AO86: =AN86 -> 99.14208 | AP86: 99.14208 | AQ86: 99.14208 | AR86: 99.14208 | AS86: 99.14208 | AT86: 99.14208 | AU86: 0 | AV86: 0 | AW86: 0 | AX86: 0 | AY86: 0 | AZ86: 0 | BA86: 0 | BB86: 0 | BC86: 0 | BD86: 0 | BE86: 0 | BF86: 0 | BG86: 0 | BH86: 0 | BI86: 0 | BJ86: 0 | BK86: 0 | BL86: 0 | BM86: 0
A87: Internacional | B87: 000 t | E87: 0 | I87: =I23*231000/1000 -> 0 | J87: =J23*231000/1000*J110 -> 0 | K87: =K23*231000/1000*K110 -> 0 | L87: 0 | M87: 0 | N87: 0 | O87: 0 | P87: 0 | Q87: 0 | R87: 0 | S87: 14.322 | T87: 31.647 | U87: 51.282 | V87: 71.61 | W87: 73.92 | X87: 79.926 | Y87: 82.698 | Z87: 85.008 | AA87: 88.242 | AB87: 92.862 | AC87: 94.248 | AD87: 96.558 | AE87: 99.33 | AF87: 103.026 | AG87: 104.412 | AH87: 106.26 | AI87: 109.032 | AJ87: 111.342 | AK87: 111.804 | AL87: 113.19 | AM87: 116.886 | AN87: 117.348 | AO87: =AN87 -> 117.348 | AP87: 117.348 | AQ87: 117.348 | AR87: 117.348 | AS87: 117.348 | AT87: 117.348 | AU87: =AU23*231000/1000 -> 0 | AV87: 0 | AW87: 0 | AX87: 0 | AY87: 0 | AZ87: 0 | BA87: 0 | BB87: 0 | BC87: 0 | BD87: 0 | BE87: 0 | BF87: 0 | BG87: 0 | BH87: 0 | BI87: 0 | BJ87: 0 | BK87: 0 | BL87: 0 | BM87: 0
A88: Avião de cargueiro | B88: 000 t | E88: 0 | I88: =I89+I90 -> 0 | J88: 0 | K88: =K89+K90 -> 0 | L88: =L89+L90 -> 0 | M88: =M89+M90 -> 0 | N88: =N89+N90 -> 0 | O88: =O89+O90 -> 0 | P88: =P89+P90 -> 0 | Q88: =Q89+Q90 -> 0 | R88: =R89+R90 -> 0 | S88: =S89+S90 -> 2.71425 | T88: =T89+T90 -> 5.544 | U88: =U89+U90 -> 8.316 | V88: =V89+V90 -> 11.088 | W88: =W89+W90 -> 11.088 | X88: =X89+X90 -> 11.55 | Y88: =Y89+Y90 -> 11.781 | Z88: =Z89+Z90 -> 12.012 | AA88: =AA89+AA90 -> 12.243 | AB88: =AB89+AB90 -> 12.705 | AC88: =AC89+AC90 -> 13.167 | AD88: =AD89+AD90 -> 13.398 | AE88: =AE89+AE90 -> 13.629 | AF88: =AF89+AF90 -> 14.091 | AG88: =AG89+AG90 -> 14.322 | AH88: =AH89+AH90 -> 14.784 | AI88: =AI89+AI90 -> 15.015 | AJ88: =AJ89+AJ90 -> 15.246 | AK88: =AK89+AK90 -> 15.246 | AL88: =AL89+AL90 -> 15.246 | AM88: =AM89+AM90 -> 15.246 | AN88: =AN89+AN90 -> 15.246 | AO88: =AN88 -> 15.246 | AP88: 15.246 | AQ88: 15.246 | AR88: 15.246 | AS88: 15.246 | AT88: 15.246 | AU88: 0 | AV88: 0 | AW88: 0 | AX88: 0 | AY88: 0 | AZ88: 0 | BA88: 0 | BB88: 0 | BC88: 0 | BD88: 0 | BE88: 0 | BF88: 0 | BG88: 0 | BH88: 0 | BI88: 0 | BJ88: 0 | BK88: 0 | BL88: 0 | BM88: 0
A89: Doméstico | B89: 000 t | E89: 0 | I89: 0 | J89: 0 | K89: 0 | L89: 0 | M89: 0 | N89: 0 | O89: 0 | P89: 0 | Q89: 0 | R89: 0 | S89: 0 | T89: 0 | U89: 0 | V89: 0 | W89: 0 | X89: 0 | Y89: 0 | Z89: 0 | AA89: 0 | AB89: 0 | AC89: 0 | AD89: 0 | AE89: 0 | AF89: 0 | AG89: 0 | AH89: 0 | AI89: 0 | AJ89: 0 | AK89: 0 | AL89: 0 | AM89: 0 | AN89: 0 | AO89: =AN89 -> 0 | AP89: 0 | AQ89: 0 | AR89: 0 | AS89: 0 | AT89: 0 | AU89: 0 | AV89: 0 | AW89: 0 | AX89: 0 | AY89: 0 | AZ89: 0 | BA89: 0 | BB89: 0 | BC89: 0 | BD89: 0 | BE89: 0 | BF89: 0 | BG89: 0 | BH89: 0 | BI89: 0 | BJ89: 0 | BK89: 0 | BL89: 0 | BM89: 0
A90: Internacional | B90: 000 t | E90: 0 | I90: =I25*231000/1000 -> 0 | J90: =J25*231000/1000*J110 -> 0 | K90: =K25*231000/1000*K110 -> 0 | L90: 0 | M90: 0 | N90: 0 | O90: 0 | P90: 0 | Q90: 0 | R90: 0 | S90: 2.71425 | T90: 5.544 | U90: 8.316 | V90: 11.088 | W90: 11.088 | X90: 11.55 | Y90: 11.781 | Z90: 12.012 | AA90: 12.243 | AB90: 12.705 | AC90: 13.167 | AD90: 13.398 | AE90: 13.629 | AF90: 14.091 | AG90: 14.322 | AH90: 14.784 | AI90: 15.015 | AJ90: 15.246 | AK90: 15.246 | AL90: 15.246 | AM90: 15.246 | AN90: 15.246 | AO90: =AN90 -> 15.246 | AP90: 15.246 | AQ90: 15.246 | AR90: 15.246 | AS90: 15.246 | AT90: 15.246 | AU90: =AU25*231000/1000 -> 0 | AV90: 0 | AW90: 0 | AX90: 0 | AY90: 0 | AZ90: 0 | BA90: 0 | BB90: 0 | BC90: 0 | BD90: 0 | BE90: 0 | BF90: 0 | BG90: 0 | BH90: 0 | BI90: 0 | BJ90: 0 | BK90: 0 | BL90: 0 | BM90: 0
A91: Aviação Geral | B91: 000 t | E91: 5.3539 | I91: =I92+I93 -> 5.3539 | J91: 1.338475 | K91: =K92+K93 -> 0.33970625 | L91: =L92+L93 -> 1.375475 | M91: =M92+M93 -> 3.1302 | N91: =N92+N93 -> 5.6203 | O91: =O92+O93 -> 6.677415517 | P91: =P92+P93 -> 8.059033793 | Q91: =Q92+Q93 -> 9.776254828 | R91: =R92+R93 -> 11.82167862 | S91: =S92+S93 -> 15.4617131 | T91: =T92+T93 -> 19.11394483 | U91: =U92+U93 -> 23.41292379 | V91: =V92+V93 -> 27.5132 | W91: =W92+W93 -> 28.4937 | X91: =X92+X93 -> 29.5112 | Y91: =Y92+Y93 -> 31.191 | Z91: =Z92+Z93 -> 32.4897 | AA91: =AA92+AA93 -> 33.7921 | AB91: =AB92+AB93 -> 34.9465 | AC91: =AC92+AC93 -> 36.1527 | AD91: =AD92+AD93 -> 37.3478 | AE91: =AE92+AE93 -> 38.5429 | AF91: =AF92+AF93 -> 39.775 | AG91: =AG92+AG93 -> 40.9738 | AH91: =AH92+AH93 -> 42.2096 | AI91: =AI92+AI93 -> 43.3862 | AJ91: =AJ92+AJ93 -> 44.5739 | AK91: =AK92+AK93 -> 45.769 | AL91: =AL92+AL93 -> 46.9789 | AM91: =AM92+AM93 -> 48.1962 | AN91: =AN92+AN93 -> 49.6614 | AO91: =AN91 -> 49.6614 | AP91: 49.6614 | AQ91: 49.6614 | AR91: 49.6614 | AS91: 49.6614 | AT91: 49.6614 | AU91: 0 | AV91: 0 | AW91: 0 | AX91: 0 | AY91: 0 | AZ91: 0 | BA91: 0 | BB91: 0 | BC91: 0 | BD91: 0 | BE91: 0 | BF91: 0 | BG91: 0 | BH91: 0 | BI91: 0 | BJ91: 0 | BK91: 0 | BL91: 0 | BM91: 0
A92: Doméstico | B92: 000 t | E92: 5.3539 | I92: =I34*3700/1000 -> 5.3539 | J92: =J34*3700/1000*J110 -> 1.338475 | K92: =K34*3700/1000*K110 -> 0.33970625 | L92: 1.375475 | M92: 3.1302 | N92: 5.6203 | O92: 6.677415517 | P92: 8.059033793 | Q92: 9.776254828 | R92: 11.82167862 | S92: 15.4617131 | T92: 19.11394483 | U92: 23.41292379 | V92: 27.5132 | W92: 28.4937 | X92: 29.5112 | Y92: 31.191 | Z92: 32.4897 | AA92: 33.7921 | AB92: 34.9465 | AC92: 36.1527 | AD92: 37.3478 | AE92: 38.5429 | AF92: 39.775 | AG92: 40.9738 | AH92: 42.2096 | AI92: 43.3862 | AJ92: 44.5739 | AK92: 45.769 | AL92: 46.9789 | AM92: 48.1962 | AN92: 49.6614 | AO92: =AN92 -> 49.6614 | AP92: 49.6614 | AQ92: 49.6614 | AR92: 49.6614 | AS92: 49.6614 | AT92: 49.6614 | AU92: =AU34*3700/1000 -> 0 | AV92: 0 | AW92: 0 | AX92: 0 | AY92: 0 | AZ92: 0 | BA92: 0 | BB92: 0 | BC92: 0 | BD92: 0 | BE92: 0 | BF92: 0 | BG92: 0 | BH92: 0 | BI92: 0 | BJ92: 0 | BK92: 0 | BL92: 0 | BM92: 0
A93: Internacional | B93: 000 t | E93: 0 | AO93: =AN93 -> 0 | AP93: 0 | AQ93: 0 | AR93: 0 | AS93: 0 | AT93: 0 | AU93: 0 | AV93: 0 | AW93: 0 | AX93: 0 | AY93: 0 | AZ93: 0 | BA93: 0 | BB93: 0 | BC93: 0 | BD93: 0 | BE93: 0 | BF93: 0 | BG93: 0 | BH93: 0 | BI93: 0 | BJ93: 0 | BK93: 0 | BL93: 0 | BM93: 0
AO94: =AN94 -> 0 | AP94: 0 | AQ94: 0 | AR94: 0 | AS94: 0 | AT94: 0
A95: Carga movimentada | B95: MM kg [=000 t] | E95: =I95 -> 0.09722379163 | I95: =SUM(I96:I98) -> 0.09722379163 | J95: 0.04861189581 | K95: 0.0272618168 | L95: 0.06019949038 | M95: 0.09906274974 | N95: 0.1441090385 | O95: 0.1561748266 | P95: 0.1685158903 | Q95: 0.1811180869 | R95: 0.1940153007 | S95: 0.63783621 | T95: 1.128616473 | U95: 1.671180012 | V95: 2.271739729 | W95: 2.402055399 | X95: 2.541095627 | Y95: 2.688465298 | Z95: 2.843541578 | AA95: 3.005678234 | AB95: 3.174390161 | AC95: 3.349349282 | AD95: 3.530396935 | AE95: 3.717542536 | AF95: 3.91095478 | AG95: 4.110872758 | AH95: 4.31767309 | AI95: 4.531822428 | AJ95: 4.753866119 | AK95: 4.984476102 | AL95: 5.224594833 | AM95: 5.475268299 | AN95: 5.737620287 | AO95: =AN95 -> 5.737620287 | AP95: 5.737620287 | AQ95: 5.737620287 | AR95: 5.737620287 | AS95: 5.737620287 | AT95: 5.737620287 | AU95: 0 | AV95: 0 | AW95: 0 | AX95: 0 | AY95: 0 | AZ95: 0 | BA95: 0 | BB95: 0 | BC95: 0 | BD95: 0 | BE95: 0 | BF95: 0 | BG95: 0 | BH95: 0 | BI95: 0 | BJ95: 0 | BK95: 0 | BL95: 0 | BM95: 0
A96: Importação | B96: MM kg [=000 t] | E96: =I96 -> 0 | I96: 0 | J96: 0 | K96: 0 | L96: 0 | M96: 0 | N96: 0 | O96: 0 | P96: 0 | Q96: 0 | R96: 0 | S96: 0 | T96: 0 | U96: 0 | V96: 0 | W96: 0 | X96: 0 | Y96: 0 | Z96: 0 | AA96: 0 | AB96: 0 | AC96: 0 | AD96: 0 | AE96: 0 | AF96: 0 | AG96: 0 | AH96: 0 | AI96: 0 | AJ96: 0 | AK96: 0 | AL96: 0 | AM96: 0 | AN96: 0 | AO96: =AN96 -> 0 | AP96: 0 | AQ96: 0 | AR96: 0 | AS96: 0 | AT96: 0 | AU96: 0 | AV96: 0 | AW96: 0 | AX96: 0 | AY96: 0 | AZ96: 0 | BA96: 0 | BB96: 0 | BC96: 0 | BD96: 0 | BE96: 0 | BF96: 0 | BG96: 0 | BH96: 0 | BI96: 0 | BJ96: 0 | BK96: 0 | BL96: 0 | BM96: 0
A97: Exportação | B97: MM kg [=000 t] | E97: 0 | I97: =(I143*I112)/1000 -> 0 | J97: =(J143*J112)/1000*J110 -> 0 | K97: =(K143*K112)/1000*K110 -> 0 | L97: 0 | M97: 0 | N97: =(N143*N112)/1000*N110 -> 0 | O97: =(O143*O112)/1000*O110 -> 0 | P97: 0 | Q97: 0 | R97: 0 | S97: 0.3413811416 | T97: 0.7205906649 | U97: 1.141156544 | V97: 1.607612499 | W97: 1.699831294 | X97: 1.798224083 | Y97: 1.902511261 | Z97: 2.012252075 | AA97: 2.126989212 | AB97: 2.246379387 | AC97: 2.370190432 | AD97: 2.498310069 | AE97: 2.630744962 | AF97: 2.767614488 | AG97: 2.909087843 | AH97: 3.055431543 | AI97: 3.206975819 | AJ97: 3.364106589 | AK97: 3.527299356 | AL97: 3.697221054 | AM97: 3.874611885 | AN97: 4.060267103 | AO97: =AN97 -> 4.060267103 | AP97: 4.060267103 | AQ97: 4.060267103 | AR97: 4.060267103 | AS97: 4.060267103 | AT97: 4.060267103 | AU97: =(AU143*AU112)/1000 -> 0 | AV97: 0 | AW97: 0 | AX97: 0 | AY97: 0 | AZ97: 0 | BA97: 0 | BB97: 0 | BC97: 0 | BD97: 0 | BE97: 0 | BF97: 0 | BG97: 0 | BH97: 0 | BI97: 0 | BJ97: 0 | BK97: 0 | BL97: 0 | BM97: 0
A98: Doméstica + Internação + Correios (Total) | B98: MM kg [=000 t] | E98: 0.09722379163 | I98: =(I116+I135*I111+I142*I112)/1000 -> 0.09722379163 | J98: =(J116+J135*J111+J142*J112)/1000*J110 -> 0.04861189581 | K98: =(K116+K135*K111+K142*K112)/1000*K110 -> 0.0272618168 | L98: 0.06019949038 | M98: 0.09906274974 | N98: =(N116+N135*N111+N142*N112)/1000*N110 -> 0.1441090385 | O98: =(O116+O135*O111+O142*O112)/1000*O110 -> 0.1561748266 | P98: 0.1685158903 | Q98: 0.1811180869 | R98: 0.1940153007 | S98: 0.2964550684 | T98: 0.4080258078 | U98: 0.5300234681 | V98: 0.66412723 | W98: 0.702224105 | X98: 0.7428715438 | Y98: 0.7859540371 | Z98: 0.8312895036 | AA98: 0.8786890215 | AB98: 0.9280107741 | AC98: 0.9791588502 | AD98: 1.032086866 | AE98: 1.086797574 | AF98: 1.143340292 | AG98: 1.201784915 | AH98: 1.262241547 | AI98: 1.324846609 | AJ98: 1.38975953 | AK98: 1.457176746 | AL98: 1.527373779 | AM98: 1.600656414 | AN98: 1.677353184 | AO98: =AN98 -> 1.677353184 | AP98: 1.677353184 | AQ98: 1.677353184 | AR98: 1.677353184 | AS98: 1.677353184 | AT98: 1.677353184 | AU98: =(AU116+AU135*AU111+AU142*AU112)/1000 -> 0 | AV98: 0 | AW98: 0 | AX98: 0 | AY98: 0 | AZ98: 0 | BA98: 0 | BB98: 0 | BC98: 0 | BD98: 0 | BE98: 0 | BF98: 0 | BG98: 0 | BH98: 0 | BI98: 0 | BJ98: 0 | BK98: 0 | BL98: 0 | BM98: 0
A99: Doméstica + Internação + Correios (TECA) | B99: MM kg [=000 t] | E99: =E98 -> 0.09722379163 | I99: =I98 -> 0.09722379163 | J99: =J98 -> 0.04861189581 | K99: 0.0272618168 | L99: 0.06019949038 | M99: 0.09906274974 | N99: 0.1441090385 | O99: 0.1561748266 | P99: 0.1685158903 | Q99: 0.1811180869 | R99: 0.1940153007 | S99: 0.2964550684 | T99: 0.4080258078 | U99: 0.5300234681 | V99: 0.66412723 | W99: 0.702224105 | X99: 0.7428715438 | Y99: 0.7859540371 | Z99: 0.8312895036 | AA99: 0.8786890215 | AB99: 0.9280107741 | AC99: 0.9791588502 | AD99: 1.032086866 | AE99: 1.086797574 | AF99: 1.143340292 | AG99: 1.201784915 | AH99: 1.262241547 | AI99: 1.324846609 | AJ99: 1.38975953 | AK99: 1.457176746 | AL99: 1.527373779 | AM99: 1.600656414 | AN99: 1.677353184 | AO99: 1.677353184 | AP99: 1.677353184 | AQ99: 1.677353184 | AR99: 1.677353184 | AS99: 1.677353184 | AT99: 1.677353184 | AU99: 0 | AV99: 0 | AW99: 0 | AX99: 0 | AY99: 0 | AZ99: 0 | BA99: 0 | BB99: 0 | BC99: 0 | BD99: 0 | BE99: 0 | BF99: 0 | BG99: 0 | BH99: 0 | BI99: 0 | BJ99: 0 | BK99: 0 | BL99: 0 | BM99: 0
AO100: =AN100 -> 0 | AP100: 0 | AQ100: 0 | AR100: 0 | AS100: 0 | AT100: 0
A101: Importação de cargas | AO101: =AN101 -> 0 | AP101: 0 | AQ101: 0 | AR101: 0 | AS101: 0 | AT101: 0
A102: Dwell time - Canal verde | B102: dias | E102: =I102 -> 0 | I102: 0 | J102: 0 | K102: 0 | L102: 0 | M102: 0 | N102: 0 | O102: 0 | P102: 0 | Q102: 0 | R102: 0 | S102: 0 | T102: 0 | U102: 0 | V102: 0 | W102: 0 | X102: 0 | Y102: 0 | Z102: 0 | AA102: 0 | AB102: 0 | AC102: 0 | AD102: 0 | AE102: 0 | AF102: 0 | AG102: 0 | AH102: 0 | AI102: 0 | AJ102: 0 | AK102: 0 | AL102: 0 | AM102: 0 | AN102: 0 | AO102: =AN102 -> 0 | AP102: 0 | AQ102: 0 | AR102: 0 | AS102: 0 | AT102: 0 | AU102: 0 | AV102: 0 | AW102: 0 | AX102: 0 | AY102: 0 | AZ102: 0 | BA102: 0 | BB102: 0 | BC102: 0 | BD102: 0 | BE102: 0 | BF102: 0 | BG102: 0 | BH102: 0 | BI102: 0 | BJ102: 0 | BK102: 0 | BL102: 0 | BM102: 0
A103: Dwell time - Canal amarelo/vermelho | B103: dias | E103: 0 | I103: 0 | J103: 0 | K103: 0 | L103: 0 | M103: 0 | N103: 0 | O103: 0 | P103: 0 | Q103: 0 | R103: 0 | S103: 0 | T103: 0 | U103: 0 | V103: 0 | W103: 0 | X103: 0 | Y103: 0 | Z103: 0 | AA103: 0 | AB103: 0 | AC103: 0 | AD103: 0 | AE103: 0 | AF103: 0 | AG103: 0 | AH103: 0 | AI103: 0 | AJ103: 0 | AK103: 0 | AL103: 0 | AM103: 0 | AN103: 0 | AO103: =AN103 -> 0 | AP103: 0 | AQ103: 0 | AR103: 0 | AS103: 0 | AT103: 0 | AU103: 0 | AV103: 0 | AW103: 0 | AX103: 0 | AY103: 0 | AZ103: 0 | BA103: 0 | BB103: 0 | BC103: 0 | BD103: 0 | BE103: 0 | BF103: 0 | BG103: 0 | BH103: 0 | BI103: 0 | BJ103: 0 | BK103: 0 | BL103: 0 | BM103: 0
A104: % de carga canal verde | B104: % | E104: 0 | I104: 0 | J104: 0 | K104: 0 | L104: 0 | M104: 0 | N104: 0 | O104: 0 | P104: 0 | Q104: 0 | R104: 0 | S104: 0 | T104: 0 | U104: 0 | V104: 0 | W104: 0 | X104: 0 | Y104: 0 | Z104: 0 | AA104: 0 | AB104: 0 | AC104: 0 | AD104: 0 | AE104: 0 | AF104: 0 | AG104: 0 | AH104: 0 | AI104: 0 | AJ104: 0 | AK104: 0 | AL104: 0 | AM104: 0 | AN104: 0 | AO104: =AN104 -> 0 | AP104: 0 | AQ104: 0 | AR104: 0 | AS104: 0 | AT104: 0 | AU104: 0 | AV104: 0 | AW104: 0 | AX104: 0 | AY104: 0 | AZ104: 0 | BA104: 0 | BB104: 0 | BC104: 0 | BD104: 0 | BE104: 0 | BF104: 0 | BG104: 0 | BH104: 0 | BI104: 0 | BJ104: 0 | BK104: 0 | BL104: 0 | BM104: 0
A105: Valor FOB | B105: USD | E105: 0 | I105: 0 | J105: 0 | K105: 0 | L105: 0 | M105: 0 | N105: 0 | O105: 0 | P105: 0 | Q105: 0 | R105: 0 | S105: 0 | T105: 0 | U105: 0 | V105: 0 | W105: 0 | X105: 0 | Y105: 0 | Z105: 0 | AA105: 0 | AB105: 0 | AC105: 0 | AD105: 0 | AE105: 0 | AF105: 0 | AG105: 0 | AH105: 0 | AI105: 0 | AJ105: 0 | AK105: 0 | AL105: 0 | AM105: 0 | AN105: 0 | AO105: =AN105 -> 0 | AP105: 0 | AQ105: 0 | AR105: 0 | AS105: 0 | AT105: 0 | AU105: 0 | AV105: 0 | AW105: 0 | AX105: 0 | AY105: 0 | AZ105: 0 | BA105: 0 | BB105: 0 | BC105: 0 | BD105: 0 | BE105: 0 | BF105: 0 | BG105: 0 | BH105: 0 | BI105: 0 | BJ105: 0 | BK105: 0 | BL105: 0 | BM105: 0
AO106: =AN106 -> 0 | AP106: 0 | AQ106: 0 | AR106: 0 | AS106: 0 | AT106: 0
A107: Pax embarcados em hora-pico | B107: PHP | AO107: =AN107 -> 0 | AP107: 0 | AQ107: 0 | AR107: 0 | AS107: 0 | AT107: 0
A108: PHP embarque simultâneo | B108: pax/h | E108: =I108 -> 22.384 | I108: =IF(I2<0.1,I2*0.002*1000000,IF(I2<0.5,I2*0.0013*1000000,I2*0.0008*1000000)) -> 22.384 | J108: =IF(J2<0.1,J2*0.002*1000000,IF(J2<0.5,J2*0.0013*1000000,J2*0.0008*1000000)) -> 11.192 | K108: =IF(K2<0.1,K2*0.002*1000000,IF(K2<0.5,K2*0.0013*1000000,K2*0.0008*1000000)) -> 6.7305 | L108: 14.611 | M108: 23.7045 | N108: 33.882 | O108: 66.774068 | P108: 113.64792 | Q108: 167.243056 | R108: 149.2913344 | S108: 189.3043152 | T108: 222.5080364 | U108: 267.073573 | V108: 301.8925 | W108: 317.0414 | X108: 333.2992 | Y108: 352.5223 | Z108: 371.6115 | AA108: 390.234 | AB108: 408.2715 | AC108: 425.997 | AD108: 443.8954 | AE108: 462.1422 | AF108: 481.1612 | AG108: 499.2572 | AH108: 517.6912 | AI108: 536.3475 | AJ108: 554.7516 | AK108: 572.8801 | AL108: 591.3141 | AM108: 610.3344 | AN108: 630.4415 | AO108: =AN108 -> 630.4415 | AP108: 630.4415 | AQ108: 630.4415 | AR108: 630.4415 | AS108: 630.4415 | AT108: 630.4415 | AU108: 0 | AV108: 0 | AW108: 0 | AX108: 0 | AY108: 0 | AZ108: 0 | BA108: 0 | BB108: 0 | BC108: 0 | BD108: 0 | BE108: 0 | BF108: 0 | BG108: 0 | BH108: 0 | BI108: 0 | BJ108: 0 | BK108: 0 | BL108: 0 | BM108: 0
H110: Pandemia | J110: 0.5 | K110: =IF(J110=1,1,IF(K1=2021,IF(Result!$C$16=0,1,1/(Result!$C$16+1)),1/(Result!$C$16+1)+J110)) -> 0.25 | L110: =IF(K110=1,1,IF(L1=2021,IF(Result!$C$16=0,1,1/(Result!$C$16+1)),1/(Result!$C$16+1)+K110)) -> 0.5 | M110: =IF(L110=1,1,IF(M1=2021,IF(Result!$C$16=0,1,1/(Result!$C$16+1)),1/(Result!$C$16+1)+L110)) -> 0.75 | N110: =IF(M110=1,1,IF(N1=2021,IF(Result!$C$16=0,1,1/(Result!$C$16+1)),1/(Result!$C$16+1)+M110)) -> 1 | O110: =IF(N110=1,1,IF(O1=2021,IF(Result!$C$16=0,1,1/(Result!$C$16+1)),1/(Result!$C$16+1)+N110)) -> 1 | P110: =IF(O110=1,1,IF(P1=2021,IF(Result!$C$16=0,1,1/(Result!$C$16+1)),1/(Result!$C$16+1)+O110)) -> 1 | Q110: =IF(P110=1,1,IF(Q1=2021,IF(Result!$C$16=0,1,1/(Result!$C$16+1)),1/(Result!$C$16+1)+P110)) -> 1 | R110: =IF(Q110=1,1,IF(R1=2021,IF(Result!$C$16=0,1,1/(Result!$C$16+1)),1/(Result!$C$16+1)+Q110)) -> 1 | S110: =IF(R110=1,1,IF(S1=2021,IF(Result!$C$16=0,1,1/(Result!$C$16+1)),1/(Result!$C$16+1)+R110)) -> 1 | T110: =IF(S110=1,1,IF(T1=2021,IF(Result!$C$16=0,1,1/(Result!$C$16+1)),1/(Result!$C$16+1)+S110)) -> 1 | U110: =IF(T110=1,1,IF(U1=2021,IF(Result!$C$16=0,1,1/(Result!$C$16+1)),1/(Result!$C$16+1)+T110)) -> 1 | V110: =IF(U110=1,1,IF(V1=2021,IF(Result!$C$16=0,1,1/(Result!$C$16+1)),1/(Result!$C$16+1)+U110)) -> 1 | W110: =IF(V110=1,1,IF(W1=2021,IF(Result!$C$16=0,1,1/(Result!$C$16+1)),1/(Result!$C$16+1)+V110)) -> 1 | X110: =IF(W110=1,1,IF(X1=2021,IF(Result!$C$16=0,1,1/(Result!$C$16+1)),1/(Result!$C$16+1)+W110)) -> 1 | Y110: =IF(X110=1,1,IF(Y1=2021,IF(Result!$C$16=0,1,1/(Result!$C$16+1)),1/(Result!$C$16+1)+X110)) -> 1 | Z110: =IF(Y110=1,1,IF(Z1=2021,IF(Result!$C$16=0,1,1/(Result!$C$16+1)),1/(Result!$C$16+1)+Y110)) -> 1 | AA110: =IF(Z110=1,1,IF(AA1=2021,IF(Result!$C$16=0,1,1/(Result!$C$16+1)),1/(Result!$C$16+1)+Z110)) -> 1 | AB110: =IF(AA110=1,1,IF(AB1=2021,IF(Result!$C$16=0,1,1/(Result!$C$16+1)),1/(Result!$C$16+1)+AA110)) -> 1 | AC110: =IF(AB110=1,1,IF(AC1=2021,IF(Result!$C$16=0,1,1/(Result!$C$16+1)),1/(Result!$C$16+1)+AB110)) -> 1 | AD110: =IF(AC110=1,1,IF(AD1=2021,IF(Result!$C$16=0,1,1/(Result!$C$16+1)),1/(Result!$C$16+1)+AC110)) -> 1 | AE110: =IF(AD110=1,1,IF(AE1=2021,IF(Result!$C$16=0,1,1/(Result!$C$16+1)),1/(Result!$C$16+1)+AD110)) -> 1 | AF110: =IF(AE110=1,1,IF(AF1=2021,IF(Result!$C$16=0,1,1/(Result!$C$16+1)),1/(Result!$C$16+1)+AE110)) -> 1 | AG110: =IF(AF110=1,1,IF(AG1=2021,IF(Result!$C$16=0,1,1/(Result!$C$16+1)),1/(Result!$C$16+1)+AF110)) -> 1 | AH110: =IF(AG110=1,1,IF(AH1=2021,IF(Result!$C$16=0,1,1/(Result!$C$16+1)),1/(Result!$C$16+1)+AG110)) -> 1 | AI110: =IF(AH110=1,1,IF(AI1=2021,IF(Result!$C$16=0,1,1/(Result!$C$16+1)),1/(Result!$C$16+1)+AH110)) -> 1 | AJ110: =IF(AI110=1,1,IF(AJ1=2021,IF(Result!$C$16=0,1,1/(Result!$C$16+1)),1/(Result!$C$16+1)+AI110)) -> 1 | AK110: =IF(AJ110=1,1,IF(AK1=2021,IF(Result!$C$16=0,1,1/(Result!$C$16+1)),1/(Result!$C$16+1)+AJ110)) -> 1 | AL110: =IF(AK110=1,1,IF(AL1=2021,IF(Result!$C$16=0,1,1/(Result!$C$16+1)),1/(Result!$C$16+1)+AK110)) -> 1 | AM110: =IF(AL110=1,1,IF(AM1=2021,IF(Result!$C$16=0,1,1/(Result!$C$16+1)),1/(Result!$C$16+1)+AL110)) -> 1 | AN110: =IF(AM110=1,1,IF(AN1=2021,IF(Result!$C$16=0,1,1/(Result!$C$16+1)),1/(Result!$C$16+1)+AM110)) -> 1 | AO110: =IF(AN110=1,1,IF(AO1=2021,IF(Result!$C$16=0,1,1/(Result!$C$16+1)),1/(Result!$C$16+1)+AN110)) -> 1 | AP110: =IF(AO110=1,1,IF(AP1=2021,IF(Result!$C$16=0,1,1/(Result!$C$16+1)),1/(Result!$C$16+1)+AO110)) -> 1 | AQ110: =IF(AP110=1,1,IF(AQ1=2021,IF(Result!$C$16=0,1,1/(Result!$C$16+1)),1/(Result!$C$16+1)+AP110)) -> 1 | AR110: =IF(AQ110=1,1,IF(AR1=2021,IF(Result!$C$16=0,1,1/(Result!$C$16+1)),1/(Result!$C$16+1)+AQ110)) -> 1 | AS110: =IF(AR110=1,1,IF(AS1=2021,IF(Result!$C$16=0,1,1/(Result!$C$16+1)),1/(Result!$C$16+1)+AR110)) -> 1 | AT110: =IF(AS110=1,1,IF(AT1=2021,IF(Result!$C$16=0,1,1/(Result!$C$16+1)),1/(Result!$C$16+1)+AS110)) -> 1 | AU110: =IF(AT110=1,1,IF(AU1=2021,IF(Result!$C$16=0,1,1/(Result!$C$16+1)),1/(Result!$C$16+1)+AT110)) -> 1 | AV110: =IF(AU110=1,1,IF(AV1=2021,IF(Result!$C$16=0,1,1/(Result!$C$16+1)),1/(Result!$C$16+1)+AU110)) -> 1 | AW110: =IF(AV110=1,1,IF(AW1=2021,IF(Result!$C$16=0,1,1/(Result!$C$16+1)),1/(Result!$C$16+1)+AV110)) -> 1 | AX110: =IF(AW110=1,1,IF(AX1=2021,IF(Result!$C$16=0,1,1/(Result!$C$16+1)),1/(Result!$C$16+1)+AW110)) -> 1 | AY110: =IF(AX110=1,1,IF(AY1=2021,IF(Result!$C$16=0,1,1/(Result!$C$16+1)),1/(Result!$C$16+1)+AX110)) -> 1 | AZ110: =IF(AY110=1,1,IF(AZ1=2021,IF(Result!$C$16=0,1,1/(Result!$C$16+1)),1/(Result!$C$16+1)+AY110)) -> 1 | BA110: =IF(AZ110=1,1,IF(BA1=2021,IF(Result!$C$16=0,1,1/(Result!$C$16+1)),1/(Result!$C$16+1)+AZ110)) -> 1 | BB110: =IF(BA110=1,1,IF(BB1=2021,IF(Result!$C$16=0,1,1/(Result!$C$16+1)),1/(Result!$C$16+1)+BA110)) -> 1 | BC110: =IF(BB110=1,1,IF(BC1=2021,IF(Result!$C$16=0,1,1/(Result!$C$16+1)),1/(Result!$C$16+1)+BB110)) -> 1 | BD110: =IF(BC110=1,1,IF(BD1=2021,IF(Result!$C$16=0,1,1/(Result!$C$16+1)),1/(Result!$C$16+1)+BC110)) -> 1 | BE110: =IF(BD110=1,1,IF(BE1=2021,IF(Result!$C$16=0,1,1/(Result!$C$16+1)),1/(Result!$C$16+1)+BD110)) -> 1 | BF110: =IF(BE110=1,1,IF(BF1=2021,IF(Result!$C$16=0,1,1/(Result!$C$16+1)),1/(Result!$C$16+1)+BE110)) -> 1 | BG110: =IF(BF110=1,1,IF(BG1=2021,IF(Result!$C$16=0,1,1/(Result!$C$16+1)),1/(Result!$C$16+1)+BF110)) -> 1 | BH110: =IF(BG110=1,1,IF(BH1=2021,IF(Result!$C$16=0,1,1/(Result!$C$16+1)),1/(Result!$C$16+1)+BG110)) -> 1 | BI110: =IF(BH110=1,1,IF(BI1=2021,IF(Result!$C$16=0,1,1/(Result!$C$16+1)),1/(Result!$C$16+1)+BH110)) -> 1 | BJ110: =IF(BI110=1,1,IF(BJ1=2021,IF(Result!$C$16=0,1,1/(Result!$C$16+1)),1/(Result!$C$16+1)+BI110)) -> 1 | BK110: =IF(BJ110=1,1,IF(BK1=2021,IF(Result!$C$16=0,1,1/(Result!$C$16+1)),1/(Result!$C$16+1)+BJ110)) -> 1 | BL110: =IF(BK110=1,1,IF(BL1=2021,IF(Result!$C$16=0,1,1/(Result!$C$16+1)),1/(Result!$C$16+1)+BK110)) -> 1 | BM110: =IF(BL110=1,1,IF(BM1=2021,IF(Result!$C$16=0,1,1/(Result!$C$16+1)),1/(Result!$C$16+1)+BL110)) -> 1
